Workbook

Sheet 1a
A1: 5 | B1: Номер строки
B2: 1
B3: =SUM(INT((ROW($B2)-1)/$A$1),1) -> 1
B4: =SUM(INT((ROW($B3)-1)/$A$1),1) -> 1
B5: 1
B6: 1
B7: 2
B8: 2
B9: 2
B10: 2
B11: 2
B12: 3
B13: 3
B14: 3
B15: 3
B16: 3
B17: 4
B18: 4
B19: 4
B20: 4
B21: 4
B22: 5
B23: 5
B24: 5
B25: 5
B26: 5
B27: 6
B28: 6
B29: 6
B30: 6
B31: 6
B32: 7
B33: 7
B34: 7
B35: 7
B36: 7
B37: 8
B38: 8
B39: 8
B40: 8
B41: 8
B42: 9
B43: 9
B44: 9
B45: 9
B46: 9
B47: 10
B48: 10
B49: 10
B50: 10
B51: 10
B52: 11
B53: 11
B54: 11
B55: 11
B56: 11
B57: 12
B58: 12
B59: 12
B60: 12
B61: 12
B62: 13
B63: 13
B64: 13
B65: 13
B66: 13
B67: 14
B68: =SUM(INT((ROW($B67)-1)/$A$1),1) -> 14
B69: 14
B70: 14
B71: 14
B72: 15
B73: 15
B74: 15
B75: 15
B76: 15
B77: 16
B78: 16
B79: 16
B80: 16
B81: 16
B82: 17
B83: 17
B84: 17
B85: 17
B86: 17
B87: 18
B88: 18
B89: 18
B90: 18
B91: 18
B92: 19
B93: 19
B94: 19
B95: 19
B96: 19
B97: 20
B98: 20
B99: 20
B100: 20

Sheet 1b
A1: 5 | B1: Номер столбца
B2: 1
B3: =IF($B2 < $A$1, $B2 + 1, 1) -> 2
B4: =IF($B3 < $A$1, $B3 + 1, 1) -> 3
B5: 4
B6: 5
B7: 1
B8: 2
B9: 3
B10: 4
B11: 5
B12: 1
B13: 2
B14: 3
B15: 4
B16: 5
B17: 1
B18: 2
B19: 3
B20: 4
B21: 5
B22: 1
B23: 2
B24: 3
B25: 4
B26: 5
B27: 1
B28: 2
B29: 3
B30: 4
B31: 5
B32: 1
B33: 2
B34: 3
B35: 4
B36: 5
B37: 1
B38: 2
B39: 3
B40: 4
B41: 5
B42: 1
B43: 2
B44: 3
B45: 4
B46: 5
B47: 1
B48: 2
B49: 3
B50: 4
B51: 5
B52: 1
B53: 2
B54: 3
B55: 4
B56: 5
B57: 1
B58: 2
B59: 3
B60: 4
B61: 5
B62: 1
B63: 2
B64: 3
B65: 4
B66: 5
B67: 1
B68: =IF($B67 < $A$1, $B67 + 1, 1) -> 2
B69: 3
B70: 4
B71: 5
B72: 1
B73: 2
B74: 3
B75: 4
B76: 5
B77: 1
B78: 2
B79: 3
B80: 4
B81: 5
B82: 1
B83: 2
B84: 3
B85: 4
B86: 5
B87: 1
B88: 2
B89: 3
B90: 4
B91: 5
B92: 1
B93: 2
B94: 3
B95: 4
B96: 5
B97: 1
B98: 2
B99: 3
B100: 4

Sheet 1c
A1: Значение аргумента функции | B1: Значение функции | F1: Значение параметра "A" | G1: Значение параметра "n" | H1: Значение параметра "φ"
A2: 0 | B2: =PRODUCT(COS(SUM(PRODUCT(2,PI(),$G$2,$A2), $H$2)), $F$2) -> 1 | F2: 1 | G2: 1 | H2: 0 | K2: Параметр А "Растягивает" функцию вдоль оси ординат в А раз, параметр n уменьшает период функции в n раз, а параметр φ смещает график на φ радиан вдоль оси абсцисс. Интересно заметить, что при при ф=0 и n=0; 100 график будет принимать вид y=1, так как в первом случае аргумент косинуса принимает значение 0, а во втором значение n будет нивелировать дробную часть x, таким образом мы будем иметь аргумент B*Pi , где B - некоторое четное число.
A3: 0.01 | B3: =PRODUCT(COS(SUM(PRODUCT(2,PI(),$G$2,$A3), $H$2)), $F$2) -> 0.9980267284
A4: 0.02 | B4: 0.9921147013
A5: 0.03 | B5: 0.9822872507
A6: 0.04 | B6: 0.9685831611
A7: 0.05 | B7: 0.9510565163
A8: 0.06 | B8: 0.9297764859
A9: 0.07 | B9: 0.9048270525
A10: 0.08 | B10: 0.87630668
A11: 0.09 | B11: 0.8443279255
A12: 0.1 | B12: 0.8090169944
A13: 0.11 | B13: 0.7705132428
A14: 0.12 | B14: 0.7289686274
A15: 0.13 | B15: 0.6845471059
A16: 0.14 | B16: 0.6374239897
A17: 0.15 | B17: 0.5877852523
A18: 0.16 | B18: 0.535826795
A19: 0.17 | B19: 0.4817536741
A20: 0.18 | B20: 0.4257792916
A21: 0.19 | B21: 0.3681245527
A22: 0.2 | B22: 0.3090169944
A23: 0.21 | B23: 0.2486898872
A24: 0.22 | B24: 0.1873813146
A25: 0.23 | B25: 0.1253332336
A26: 0.24 | B26: 0.06279051953
A27: 0.25 | B27: 6.125742275e-17
A28: 0.26 | B28: -0.06279051953
A29: 0.27 | B29: -0.1253332336
A30: 0.28 | B30: -0.1873813146
A31: 0.29 | B31: -0.2486898872
A32: 0.3 | B32: -0.3090169944
A33: 0.31 | B33: -0.3681245527
A34: 0.32 | B34: -0.4257792916
A35: 0.33 | B35: -0.4817536741
A36: 0.34 | B36: -0.535826795
A37: 0.35 | B37: -0.5877852523
A38: 0.36 | B38: -0.6374239897
A39: 0.37 | B39: -0.6845471059
A40: 0.38 | B40: -0.7289686274
A41: 0.39 | B41: -0.7705132428
A42: 0.4 | B42: -0.8090169944
A43: 0.41 | B43: -0.8443279255
A44: 0.42 | B44: -0.87630668
A45: 0.43 | B45: -0.9048270525
A46: 0.44 | B46: -0.9297764859
A47: 0.45 | B47: -0.9510565163
A48: 0.46 | B48: -0.9685831611
A49: 0.47 | B49: -0.9822872507
A50: 0.48 | B50: -0.9921147013
A51: 0.49 | B51: -0.9980267284
A52: 0.5 | B52: -1
A53: 0.51 | B53: -0.9980267284
A54: 0.52 | B54: -0.9921147013
A55: 0.53 | B55: -0.9822872507
A56: 0.54 | B56: -0.9685831611
A57: 0.55 | B57: -0.9510565163
A58: 0.56 | B58: -0.9297764859
A59: 0.57 | B59: -0.9048270525
A60: 0.58 | B60: -0.87630668
A61: 0.59 | B61: -0.8443279255
A62: 0.6 | B62: -0.8090169944
A63: 0.61 | B63: -0.7705132428
A64: 0.62 | B64: -0.7289686274
A65: 0.63 | B65: -0.6845471059
A66: 0.64 | B66: -0.6374239897
A67: 0.65 | B67: =PRODUCT(COS(SUM(PRODUCT(2,PI(),$G$2,$A67), $H$2)), $F$2) -> -0.5877852523
A68: 0.66 | B68: -0.535826795
A69: 0.67 | B69: -0.4817536741
A70: 0.68 | B70: -0.4257792916
A71: 0.69 | B71: -0.3681245527
A72: 0.7 | B72: -0.3090169944
A73: 0.71 | B73: -0.2486898872
A74: 0.72 | B74: -0.1873813146
A75: 0.73 | B75: -0.1253332336
A76: 0.74 | B76: -0.06279051953
A77: 0.75 | B77: -1.837722682e-16
A78: 0.76 | B78: 0.06279051953
A79: 0.77 | B79: 0.1253332336
A80: 0.78 | B80: 0.1873813146
A81: 0.79 | B81: 0.2486898872
A82: 0.8 | B82: 0.3090169944
A83: 0.81 | B83: 0.3681245527
A84: 0.82 | B84: 0.4257792916
A85: 0.83 | B85: 0.4817536741
A86: 0.84 | B86: 0.535826795
A87: 0.85 | B87: 0.5877852523
A88: 0.86 | B88: 0.6374239897
A89: 0.87 | B89: 0.6845471059
A90: 0.88 | B90: 0.7289686274
A91: 0.89 | B91: 0.7705132428
A92: 0.9 | B92: 0.8090169944
A93: 0.91 | B93: 0.8443279255
A94: 0.92 | B94: 0.87630668
A95: 0.93 | B95: 0.9048270525
A96: 0.94 | B96: 0.9297764859
A97: 0.95 | B97: 0.9510565163
A98: 0.96 | B98: 0.9685831611
A99: 0.97 | B99: 0.9822872507
A100: 0.98 | B100: 0.9921147013
A101: 0.99 | B101: 0.9980267284
A102: 1 | B102: 1
A103: 1.01 | B103: 0.9980267284
A104: 1.02 | B104: 0.9921147013
A105: 1.03 | B105: 0.9822872507
A106: 1.04 | B106: 0.9685831611
A107: 1.05 | B107: 0.9510565163
A108: 1.06 | B108: 0.9297764859
A109: 1.07 | B109: 0.9048270525
A110: 1.08 | B110: 0.87630668
A111: 1.09 | B111: 0.8443279255
A112: 1.1 | B112: 0.8090169944
A113: 1.11 | B113: 0.7705132428
A114: 1.12 | B114: 0.7289686274
A115: 1.13 | B115: 0.6845471059
A116: 1.14 | B116: 0.6374239897
A117: 1.15 | B117: 0.5877852523
A118: 1.16 | B118: 0.535826795
A119: 1.17 | B119: 0.4817536741
A120: 1.18 | B120: 0.4257792916
A121: 1.19 | B121: 0.3681245527
A122: 1.2 | B122: 0.3090169944
A123: 1.21 | B123: 0.2486898872
A124: 1.22 | B124: 0.1873813146
A125: 1.23 | B125: 0.1253332336
A126: 1.24 | B126: 0.06279051953
A127: 1.25 | B127: 3.062871137e-16
A128: 1.26 | B128: -0.06279051953
A129: 1.27 | B129: -0.1253332336
A130: 1.28 | B130: -0.1873813146
A131: 1.29 | B131: =PRODUCT(COS(SUM(PRODUCT(2,PI(),$G$2,$A131), $H$2)), $F$2) -> -0.2486898872
A132: 1.3 | B132: -0.3090169944
A133: 1.31 | B133: -0.3681245527
A134: 1.32 | B134: -0.4257792916
A135: 1.33 | B135: -0.4817536741
A136: 1.34 | B136: -0.535826795
A137: 1.35 | B137: -0.5877852523
A138: 1.36 | B138: -0.6374239897
A139: 1.37 | B139: -0.6845471059
A140: 1.38 | B140: -0.7289686274
A141: 1.39 | B141: -0.7705132428
A142: 1.4 | B142: -0.8090169944
A143: 1.41 | B143: -0.8443279255
A144: 1.42 | B144: -0.87630668
A145: 1.43 | B145: -0.9048270525
A146: 1.44 | B146: -0.9297764859
A147: 1.45 | B147: -0.9510565163
A148: 1.46 | B148: -0.9685831611
A149: 1.47 | B149: -0.9822872507
A150: 1.48 | B150: -0.9921147013
A151: 1.49 | B151: -0.9980267284
A152: 1.5 | B152: -1
A153: 1.51 | B153: -0.9980267284
A154: 1.52 | B154: -0.9921147013
A155: 1.53 | B155: -0.9822872507
A156: 1.54 | B156: -0.9685831611
A157: 1.55 | B157: -0.9510565163
A158: 1.56 | B158: -0.9297764859
A159: 1.57 | B159: -0.9048270525
A160: 1.58 | B160: -0.87630668
A161: 1.59 | B161: -0.8443279255
A162: 1.6 | B162: -0.8090169944
A163: 1.61 | B163: -0.7705132428
A164: 1.62 | B164: -0.7289686274
A165: 1.63 | B165: -0.6845471059
A166: 1.64 | B166: -0.6374239897
A167: 1.65 | B167: -0.5877852523
A168: 1.66 | B168: -0.535826795
A169: 1.67 | B169: -0.4817536741
A170: 1.68 | B170: -0.4257792916
A171: 1.69 | B171: -0.3681245527
A172: 1.7 | B172: -0.3090169944
A173: 1.71 | B173: -0.2486898872
A174: 1.72 | B174: -0.1873813146
A175: 1.73 | B175: -0.1253332336
A176: 1.74 | B176: -0.06279051953
A177: 1.75 | B177: -4.288019592e-16
A178: 1.76 | B178: 0.06279051953
A179: 1.77 | B179: 0.1253332336
A180: 1.78 | B180: 0.1873813146
A181: 1.79 | B181: 0.2486898872
A182: 1.8 | B182: 0.3090169944
A183: 1.81 | B183: 0.3681245527
A184: 1.82 | B184: 0.4257792916
A185: 1.83 | B185: 0.4817536741
A186: 1.84 | B186: 0.535826795
A187: 1.85 | B187: 0.5877852523
A188: 1.86 | B188: 0.6374239897
A189: 1.87 | B189: 0.6845471059
A190: 1.88 | B190: 0.7289686274
A191: 1.89 | B191: 0.7705132428
A192: 1.9 | B192: 0.8090169944
A193: 1.91 | B193: 0.8443279255
A194: 1.92 | B194: 0.87630668
A195: 1.93 | B195: =PRODUCT(COS(SUM(PRODUCT(2,PI(),$G$2,$A195), $H$2)), $F$2) -> 0.9048270525
A196: 1.94 | B196: 0.9297764859
A197: 1.95 | B197: 0.9510565163
A198: 1.96 | B198: 0.9685831611
A199: 1.97 | B199: 0.9822872507
A200: 1.98 | B200: 0.9921147013
... 802 more rows

Sheet 2a
A1: <Фамилия>_<Имя>
A2: =full_name(PROPER('source-2a'!$A2),PROPER('source-2a'!$B2)) -> Надежда_Азбукина
A3: =full_name(PROPER('source-2a'!$A3),PROPER('source-2a'!$B3)) -> Екатерина_Бартыш
A4: =full_name(PROPER('source-2a'!$A4),PROPER('source-2a'!$B4)) -> Игорь_Бормотов
A5: =full_name(PROPER('source-2a'!$A5),PROPER('source-2a'!$B5)) -> Сергей_Бусыгин
A6: =full_name(PROPER('source-2a'!$A6),PROPER('source-2a'!$B6)) -> Андрей_Буян
A7: =full_name(PROPER('source-2a'!$A7),PROPER('source-2a'!$B7)) -> Лилия_Васильева
A8: =full_name(PROPER('source-2a'!$A8),PROPER('source-2a'!$B8)) -> Софья_Веселова
A9: =full_name(PROPER('source-2a'!$A9),PROPER('source-2a'!$B9)) -> Александра_Галахова
A10: =full_name(PROPER('source-2a'!$A10),PROPER('source-2a'!$B10)) -> Семен_Галкин
A11: =full_name(PROPER('source-2a'!$A11),PROPER('source-2a'!$B11)) -> Мария_Григорьева
A12: =full_name(PROPER('source-2a'!$A12),PROPER('source-2a'!$B12)) -> Максим_Григорьян
A13: =full_name(PROPER('source-2a'!$A13),PROPER('source-2a'!$B13)) -> Мария_Гурылева
A14: =full_name(PROPER('source-2a'!$A14),PROPER('source-2a'!$B14)) -> Екатерина_Гусева
A15: =full_name(PROPER('source-2a'!$A15),PROPER('source-2a'!$B15)) -> Евгения_Елизарова
A16: =full_name(PROPER('source-2a'!$A16),PROPER('source-2a'!$B16)) -> Валерий_Заподовников
A17: =full_name(PROPER('source-2a'!$A17),PROPER('source-2a'!$B17)) -> Алексей_Зенишин
A18: =full_name(PROPER('source-2a'!$A18),PROPER('source-2a'!$B18)) -> Роман_Ириоголов
A19: =full_name(PROPER('source-2a'!$A19),PROPER('source-2a'!$B19)) -> Иван_Калугин
A20: =full_name(PROPER('source-2a'!$A20),PROPER('source-2a'!$B20)) -> Анна_Камышева
A21: =full_name(PROPER('source-2a'!$A21),PROPER('source-2a'!$B21)) -> Марина_Клименко
A22: =full_name(PROPER('source-2a'!$A22),PROPER('source-2a'!$B22)) -> Светлана_Козюлина
A23: =full_name(PROPER('source-2a'!$A23),PROPER('source-2a'!$B23)) -> Валерия_Кочнева
A24: =full_name(PROPER('source-2a'!$A24),PROPER('source-2a'!$B24)) -> Павел_Кравченко
A25: =full_name(PROPER('source-2a'!$A25),PROPER('source-2a'!$B25)) -> Арсений_Логиновский
A26: =full_name(PROPER('source-2a'!$A26),PROPER('source-2a'!$B26)) -> Андрей_Матвеев
A27: =full_name(PROPER('source-2a'!$A27),PROPER('source-2a'!$B27)) -> Екатерина_Миронова
A28: =full_name(PROPER('source-2a'!$A2),PROPER('source-2a'!$B2)) -> Надежда_Азбукина
A29: =full_name(PROPER('source-2a'!$A29),PROPER('source-2a'!$B29)) -> Иннокентий_Никитин
A30: =full_name(PROPER('source-2a'!$A30),PROPER('source-2a'!$B30)) -> Анастасия_Никишова
A31: =full_name(PROPER('source-2a'!$A31),PROPER('source-2a'!$B31)) -> Мурад_Омаров
A32: =full_name(PROPER('source-2a'!$A32),PROPER('source-2a'!$B32)) -> Юлия_Петрова
A33: =full_name(PROPER('source-2a'!$A33),PROPER('source-2a'!$B33)) -> Иван_Поддъяков
A34: =full_name(PROPER('source-2a'!$A34),PROPER('source-2a'!$B34)) -> Алексей_Попов
A35: =full_name(PROPER('source-2a'!$A35),PROPER('source-2a'!$B35)) -> Никита_Попов
A36: =full_name(PROPER('source-2a'!$A36),PROPER('source-2a'!$B36)) -> Дарья_Потанина
A37: =full_name(PROPER('source-2a'!$A37),PROPER('source-2a'!$B37)) -> Елена_Потемкина
A38: =full_name(PROPER('source-2a'!$A38),PROPER('source-2a'!$B38)) -> Василиса_Ралдугина
A39: =full_name(PROPER('source-2a'!$A39),PROPER('source-2a'!$B39)) -> Екатерина_Рюмина
A40: =full_name(PROPER('source-2a'!$A40),PROPER('source-2a'!$B40)) -> Мария_Селифанова
A41: =full_name(PROPER('source-2a'!$A41),PROPER('source-2a'!$B41)) -> Мария_Серебренникова
A42: =full_name(PROPER('source-2a'!$A42),PROPER('source-2a'!$B42)) -> Иван_Скаков
A43: =full_name(PROPER('source-2a'!$A43),PROPER('source-2a'!$B43)) -> Вера_Солонович
A44: =full_name(PROPER('source-2a'!$A44),PROPER('source-2a'!$B44)) -> Елена_Сурикова
A45: =full_name(PROPER('source-2a'!$A45),PROPER('source-2a'!$B45)) -> Ярослав_Угольков
A46: =full_name(PROPER('source-2a'!$A46),PROPER('source-2a'!$B46)) -> Екатерина_Ульянова
A47: =full_name(PROPER('source-2a'!$A47),PROPER('source-2a'!$B47)) -> Анастасия_Хара
A48: =full_name(PROPER('source-2a'!$A48),PROPER('source-2a'!$B48)) -> Анастасия_Чашникова
A49: =full_name(PROPER('source-2a'!$A49),PROPER('source-2a'!$B49)) -> Анастасия_Черкашина
A50: =full_name(PROPER('source-2a'!$A50),PROPER('source-2a'!$B50)) -> Анастасия_Шкарина
A51: =full_name(PROPER('source-2a'!$A51),PROPER('source-2a'!$B51)) -> Полина_Шпудейко
A52: =full_name(PROPER('source-2a'!$A52),PROPER('source-2a'!$B52)) -> Александр-Павел_Эрмидис
A53: =full_name(PROPER('source-2a'!$A53),PROPER('source-2a'!$B53)) -> Анастасия_Юдина

Sheet source-2a
A1: Имя | B1: Фамилия
A2: надежда | B2: азбукина
A3: екатерина | B3: бартыш
A4: Игорь | B4: бормотов
A5: сергей | B5: бусыгин
A6: андрей | B6: буян
A7: Лилия | B7: Васильева
A8: Софья | B8: веселова
A9: александра | B9: Галахова
A10: Семен | B10: Галкин
A11: Мария | B11: григорьева
A12: Максим | B12: Григорьян
A13: мария | B13: Гурылева
A14: екатерина | B14: Гусева
A15: Евгения | B15: елизарова
A16: валерий | B16: заподовников
A17: алексей | B17: Зенишин
A18: роман | B18: ириоголов
A19: иван | B19: Калугин
A20: анна | B20: камышева
A21: Марина | B21: Клименко
A22: Светлана | B22: Козюлина
A23: валерия | B23: Кочнева
A24: Павел | B24: кравченко
A25: Арсений | B25: логиновский
A26: Андрей | B26: матвеев
A27: екатерина | B27: Миронова
A28: Дмитрий | B28: Мыларщиков
A29: Иннокентий | B29: Никитин
A30: Анастасия | B30: Никишова
A31: мурад | B31: Омаров
A32: Юлия | B32: петрова
A33: Иван | B33: поддъяков
A34: алексей | B34: Попов
A35: Никита | B35: Попов
A36: дарья | B36: Потанина
A37: Елена | B37: потемкина
A38: василиса | B38: Ралдугина
A39: екатерина | B39: рюмина
A40: Мария | B40: селифанова
A41: мария | B41: серебренникова
A42: иван | B42: Скаков
A43: вера | B43: солонович
A44: Елена | B44: сурикова
A45: ярослав | B45: угольков
A46: Екатерина | B46: ульянова
A47: Анастасия | B47: Хара
A48: Анастасия | B48: Чашникова
A49: анастасия | B49: черкашина
A50: Анастасия | B50: шкарина
A51: полина | B51: Шпудейко
A52: александр-павел | B52: эрмидис
A53: Анастасия | B53: Юдина

Sheet 2b
A1: Идентификатор всего белка | B1: Начало участка | C1: Конец участка | D1: Длина участка
A2: =MID('source-2b'!$A1,2, SEARCH("/",'source-2b'!$A1) -2) -> E5T7U1_TRISP | B2: =MID('source-2b'!$A1, FIND("/",'source-2b'!$A1)+1, FIND("-",'source-2b'!$A1) - FIND("/",'source-2b'!$A1)-1 ) -> 3 | C2: =MID('source-2b'!$A1, FIND("-",'source-2b'!$A1)+1, LEN('source-2b'!$A1) - FIND("-",'source-2b'!$A1)) -> 140 | D2: =length($B2,$C2) -> 138
A3: =MID('source-2b'!$A2,2, SEARCH("/",'source-2b'!$A2) -2) -> A7T7U9_NEMVE | B3: =MID('source-2b'!$A2, FIND("/",'source-2b'!$A2)+1, FIND("-",'source-2b'!$A2) - FIND("/",'source-2b'!$A2)-1 ) -> 1 | C3: =MID('source-2b'!$A2, FIND("-",'source-2b'!$A2)+1, LEN('source-2b'!$A2) - FIND("-",'source-2b'!$A2)) -> 57 | D3: =length($B3,$C3) -> 57
A4: =MID('source-2b'!$A3,2, SEARCH("/",'source-2b'!$A3) -2) -> F8IBC0_SULAT | B4: =MID('source-2b'!$A3, FIND("/",'source-2b'!$A3)+1, FIND("-",'source-2b'!$A3) - FIND("/",'source-2b'!$A3)-1 ) -> 88 | C4: =MID('source-2b'!$A3, FIND("-",'source-2b'!$A3)+1, LEN('source-2b'!$A3) - FIND("-",'source-2b'!$A3)) -> 320 | D4: 233
A5: =MID('source-2b'!$A4,2, SEARCH("/",'source-2b'!$A4) -2) -> D7GYK1_TRICA | B5: =MID('source-2b'!$A4, FIND("/",'source-2b'!$A4)+1, FIND("-",'source-2b'!$A4) - FIND("/",'source-2b'!$A4)-1 ) -> 122 | C5: =MID('source-2b'!$A4, FIND("-",'source-2b'!$A4)+1, LEN('source-2b'!$A4) - FIND("-",'source-2b'!$A4)) -> 276 | D5: 155
A6: =MID('source-2b'!$A5,2, SEARCH("/",'source-2b'!$A5) -2) -> E2M003_MONPE | B6: =MID('source-2b'!$A5, FIND("/",'source-2b'!$A5)+1, FIND("-",'source-2b'!$A5) - FIND("/",'source-2b'!$A5)-1 ) -> 444 | C6: =MID('source-2b'!$A5, FIND("-",'source-2b'!$A5)+1, LEN('source-2b'!$A5) - FIND("-",'source-2b'!$A5)) -> 596 | D6: 153
A7: =MID('source-2b'!$A6,2, SEARCH("/",'source-2b'!$A6) -2) -> I1BIF0_RHIO9 | B7: =MID('source-2b'!$A6, FIND("/",'source-2b'!$A6)+1, FIND("-",'source-2b'!$A6) - FIND("/",'source-2b'!$A6)-1 ) -> 243 | C7: =MID('source-2b'!$A6, FIND("-",'source-2b'!$A6)+1, LEN('source-2b'!$A6) - FIND("-",'source-2b'!$A6)) -> 528 | D7: 286
A8: =MID('source-2b'!$A7,2, SEARCH("/",'source-2b'!$A7) -2) -> H3J8E0_STRPU | B8: =MID('source-2b'!$A7, FIND("/",'source-2b'!$A7)+1, FIND("-",'source-2b'!$A7) - FIND("/",'source-2b'!$A7)-1 ) -> 39 | C8: =MID('source-2b'!$A7, FIND("-",'source-2b'!$A7)+1, LEN('source-2b'!$A7) - FIND("-",'source-2b'!$A7)) -> 144 | D8: 106
A9: =MID('source-2b'!$A8,2, SEARCH("/",'source-2b'!$A8) -2) -> I1BIX9_RHIO9 | B9: =MID('source-2b'!$A8, FIND("/",'source-2b'!$A8)+1, FIND("-",'source-2b'!$A8) - FIND("/",'source-2b'!$A8)-1 ) -> 4 | C9: =MID('source-2b'!$A8, FIND("-",'source-2b'!$A8)+1, LEN('source-2b'!$A8) - FIND("-",'source-2b'!$A8)) -> 180 | D9: 177
A10: =MID('source-2b'!$A9,2, SEARCH("/",'source-2b'!$A9) -2) -> H3H9V3_PHYRM | B10: =MID('source-2b'!$A9, FIND("/",'source-2b'!$A9)+1, FIND("-",'source-2b'!$A9) - FIND("/",'source-2b'!$A9)-1 ) -> 100 | C10: =MID('source-2b'!$A9, FIND("-",'source-2b'!$A9)+1, LEN('source-2b'!$A9) - FIND("-",'source-2b'!$A9)) -> 201 | D10: 102
A11: =MID('source-2b'!$A10,2, SEARCH("/",'source-2b'!$A10) -2) -> F9Z8F3_ODOSD | B11: =MID('source-2b'!$A10, FIND("/",'source-2b'!$A10)+1, FIND("-",'source-2b'!$A10) - FIND("/",'source-2b'!$A10)-1 ) -> 69 | C11: =MID('source-2b'!$A10, FIND("-",'source-2b'!$A10)+1, LEN('source-2b'!$A10) - FIND("-",'source-2b'!$A10)) -> 268 | D11: 200
A12: =MID('source-2b'!$A11,2, SEARCH("/",'source-2b'!$A11) -2) -> H3IUA4_STRPU | B12: =MID('source-2b'!$A11, FIND("/",'source-2b'!$A11)+1, FIND("-",'source-2b'!$A11) - FIND("/",'source-2b'!$A11)-1 ) -> 2 | C12: =MID('source-2b'!$A11, FIND("-",'source-2b'!$A11)+1, LEN('source-2b'!$A11) - FIND("-",'source-2b'!$A11)) -> 125 | D12: 124
A13: =MID('source-2b'!$A12,2, SEARCH("/",'source-2b'!$A12) -2) -> Q5A773_CANAL | B13: =MID('source-2b'!$A12, FIND("/",'source-2b'!$A12)+1, FIND("-",'source-2b'!$A12) - FIND("/",'source-2b'!$A12)-1 ) -> 496 | C13: =MID('source-2b'!$A12, FIND("-",'source-2b'!$A12)+1, LEN('source-2b'!$A12) - FIND("-",'source-2b'!$A12)) -> 722 | D13: 227
A14: =MID('source-2b'!$A13,2, SEARCH("/",'source-2b'!$A13) -2) -> D2A3B1_TRICA | B14: =MID('source-2b'!$A13, FIND("/",'source-2b'!$A13)+1, FIND("-",'source-2b'!$A13) - FIND("/",'source-2b'!$A13)-1 ) -> 5 | C14: =MID('source-2b'!$A13, FIND("-",'source-2b'!$A13)+1, LEN('source-2b'!$A13) - FIND("-",'source-2b'!$A13)) -> 104 | D14: 100
A15: =MID('source-2b'!$A14,2, SEARCH("/",'source-2b'!$A14) -2) -> I1FMV6_AMPQE | B15: =MID('source-2b'!$A14, FIND("/",'source-2b'!$A14)+1, FIND("-",'source-2b'!$A14) - FIND("/",'source-2b'!$A14)-1 ) -> 1 | C15: =MID('source-2b'!$A14, FIND("-",'source-2b'!$A14)+1, LEN('source-2b'!$A14) - FIND("-",'source-2b'!$A14)) -> 122 | D15: 122
A16: =MID('source-2b'!$A15,2, SEARCH("/",'source-2b'!$A15) -2) -> C8VLF5_EMENI | B16: =MID('source-2b'!$A15, FIND("/",'source-2b'!$A15)+1, FIND("-",'source-2b'!$A15) - FIND("/",'source-2b'!$A15)-1 ) -> 572 | C16: =MID('source-2b'!$A15, FIND("-",'source-2b'!$A15)+1, LEN('source-2b'!$A15) - FIND("-",'source-2b'!$A15)) -> 637 | D16: 66
A17: =MID('source-2b'!$A16,2, SEARCH("/",'source-2b'!$A16) -2) -> H3H7N1_PHYRM | B17: =MID('source-2b'!$A16, FIND("/",'source-2b'!$A16)+1, FIND("-",'source-2b'!$A16) - FIND("/",'source-2b'!$A16)-1 ) -> 260 | C17: =MID('source-2b'!$A16, FIND("-",'source-2b'!$A16)+1, LEN('source-2b'!$A16) - FIND("-",'source-2b'!$A16)) -> 361 | D17: 102
A18: =MID('source-2b'!$A17,2, SEARCH("/",'source-2b'!$A17) -2) -> I1CIN4_RHIO9 | B18: =MID('source-2b'!$A17, FIND("/",'source-2b'!$A17)+1, FIND("-",'source-2b'!$A17) - FIND("/",'source-2b'!$A17)-1 ) -> 368 | C18: =MID('source-2b'!$A17, FIND("-",'source-2b'!$A17)+1, LEN('source-2b'!$A17) - FIND("-",'source-2b'!$A17)) -> 531 | D18: 164
A19: =MID('source-2b'!$A18,2, SEARCH("/",'source-2b'!$A18) -2) -> Q55D27_DICDI | B19: =MID('source-2b'!$A18, FIND("/",'source-2b'!$A18)+1, FIND("-",'source-2b'!$A18) - FIND("/",'source-2b'!$A18)-1 ) -> 166 | C19: =MID('source-2b'!$A18, FIND("-",'source-2b'!$A18)+1, LEN('source-2b'!$A18) - FIND("-",'source-2b'!$A18)) -> 333 | D19: 168
A20: =MID('source-2b'!$A19,2, SEARCH("/",'source-2b'!$A19) -2) -> A7EM90_SCLS1 | B20: =MID('source-2b'!$A19, FIND("/",'source-2b'!$A19)+1, FIND("-",'source-2b'!$A19) - FIND("/",'source-2b'!$A19)-1 ) -> 740 | C20: =MID('source-2b'!$A19, FIND("-",'source-2b'!$A19)+1, LEN('source-2b'!$A19) - FIND("-",'source-2b'!$A19)) -> 833 | D20: 94
A21: =MID('source-2b'!$A20,2, SEARCH("/",'source-2b'!$A20) -2) -> E4RTK6_LEAB4 | B21: =MID('source-2b'!$A20, FIND("/",'source-2b'!$A20)+1, FIND("-",'source-2b'!$A20) - FIND("/",'source-2b'!$A20)-1 ) -> 123 | C21: =MID('source-2b'!$A20, FIND("-",'source-2b'!$A20)+1, LEN('source-2b'!$A20) - FIND("-",'source-2b'!$A20)) -> 330 | D21: 208
A22: =MID('source-2b'!$A21,2, SEARCH("/",'source-2b'!$A21) -2) -> I1C4U6_RHIO9 | B22: =MID('source-2b'!$A21, FIND("/",'source-2b'!$A21)+1, FIND("-",'source-2b'!$A21) - FIND("/",'source-2b'!$A21)-1 ) -> 2 | C22: =MID('source-2b'!$A21, FIND("-",'source-2b'!$A21)+1, LEN('source-2b'!$A21) - FIND("-",'source-2b'!$A21)) -> 211 | D22: 210
A23: =MID('source-2b'!$A22,2, SEARCH("/",'source-2b'!$A22) -2) -> I1EBF7_AMPQE | B23: =MID('source-2b'!$A22, FIND("/",'source-2b'!$A22)+1, FIND("-",'source-2b'!$A22) - FIND("/",'source-2b'!$A22)-1 ) -> 1 | C23: =MID('source-2b'!$A22, FIND("-",'source-2b'!$A22)+1, LEN('source-2b'!$A22) - FIND("-",'source-2b'!$A22)) -> 159 | D23: 159
A24: =MID('source-2b'!$A23,2, SEARCH("/",'source-2b'!$A23) -2) -> Q54LM7_DICDI | B24: =MID('source-2b'!$A23, FIND("/",'source-2b'!$A23)+1, FIND("-",'source-2b'!$A23) - FIND("/",'source-2b'!$A23)-1 ) -> 85 | C24: =MID('source-2b'!$A23, FIND("-",'source-2b'!$A23)+1, LEN('source-2b'!$A23) - FIND("-",'source-2b'!$A23)) -> 334 | D24: 250
A25: =MID('source-2b'!$A24,2, SEARCH("/",'source-2b'!$A24) -2) -> A9VEJ8_MONBE | B25: =MID('source-2b'!$A24, FIND("/",'source-2b'!$A24)+1, FIND("-",'source-2b'!$A24) - FIND("/",'source-2b'!$A24)-1 ) -> 1 | C25: =MID('source-2b'!$A24, FIND("-",'source-2b'!$A24)+1, LEN('source-2b'!$A24) - FIND("-",'source-2b'!$A24)) -> 111 | D25: 111
A26: =MID('source-2b'!$A25,2, SEARCH("/",'source-2b'!$A25) -2) -> H3IRC6_STRPU | B26: =MID('source-2b'!$A25, FIND("/",'source-2b'!$A25)+1, FIND("-",'source-2b'!$A25) - FIND("/",'source-2b'!$A25)-1 ) -> 428 | C26: =MID('source-2b'!$A25, FIND("-",'source-2b'!$A25)+1, LEN('source-2b'!$A25) - FIND("-",'source-2b'!$A25)) -> 588 | D26: 161
A27: =MID('source-2b'!$A26,2, SEARCH("/",'source-2b'!$A26) -2) -> H3J2Y5_STRPU | B27: =MID('source-2b'!$A26, FIND("/",'source-2b'!$A26)+1, FIND("-",'source-2b'!$A26) - FIND("/",'source-2b'!$A26)-1 ) -> 251 | C27: =MID('source-2b'!$A26, FIND("-",'source-2b'!$A26)+1, LEN('source-2b'!$A26) - FIND("-",'source-2b'!$A26)) -> 515 | D27: 265
A28: =MID('source-2b'!$A27,2, SEARCH("/",'source-2b'!$A27) -2) -> D7EKG9_TRICA | B28: =MID('source-2b'!$A27, FIND("/",'source-2b'!$A27)+1, FIND("-",'source-2b'!$A27) - FIND("/",'source-2b'!$A27)-1 ) -> 21 | C28: =MID('source-2b'!$A27, FIND("-",'source-2b'!$A27)+1, LEN('source-2b'!$A27) - FIND("-",'source-2b'!$A27)) -> 186 | D28: 166
A29: =MID('source-2b'!$A28,2, SEARCH("/",'source-2b'!$A28) -2) -> Q9CA78_ARATH | B29: =MID('source-2b'!$A28, FIND("/",'source-2b'!$A28)+1, FIND("-",'source-2b'!$A28) - FIND("/",'source-2b'!$A28)-1 ) -> 118 | C29: =MID('source-2b'!$A28, FIND("-",'source-2b'!$A28)+1, LEN('source-2b'!$A28) - FIND("-",'source-2b'!$A28)) -> 371 | D29: 254
A30: =MID('source-2b'!$A29,2, SEARCH("/",'source-2b'!$A29) -2) -> I1C670_RHIO9 | B30: =MID('source-2b'!$A29, FIND("/",'source-2b'!$A29)+1, FIND("-",'source-2b'!$A29) - FIND("/",'source-2b'!$A29)-1 ) -> 758 | C30: =MID('source-2b'!$A29, FIND("-",'source-2b'!$A29)+1, LEN('source-2b'!$A29) - FIND("-",'source-2b'!$A29)) -> 926 | D30: 169
A31: =MID('source-2b'!$A30,2, SEARCH("/",'source-2b'!$A30) -2) -> H3HN15_STRPU | B31: =MID('source-2b'!$A30, FIND("/",'source-2b'!$A30)+1, FIND("-",'source-2b'!$A30) - FIND("/",'source-2b'!$A30)-1 ) -> 1027 | C31: =MID('source-2b'!$A30, FIND("-",'source-2b'!$A30)+1, LEN('source-2b'!$A30) - FIND("-",'source-2b'!$A30)) -> 1190 | D31: 164
A32: =MID('source-2b'!$A31,2, SEARCH("/",'source-2b'!$A31) -2) -> E2LY92_MONPE | B32: =MID('source-2b'!$A31, FIND("/",'source-2b'!$A31)+1, FIND("-",'source-2b'!$A31) - FIND("/",'source-2b'!$A31)-1 ) -> 1 | C32: =MID('source-2b'!$A31, FIND("-",'source-2b'!$A31)+1, LEN('source-2b'!$A31) - FIND("-",'source-2b'!$A31)) -> 85 | D32: 85
A33: =MID('source-2b'!$A32,2, SEARCH("/",'source-2b'!$A32) -2) -> A7EPC5_SCLS1 | B33: =MID('source-2b'!$A32, FIND("/",'source-2b'!$A32)+1, FIND("-",'source-2b'!$A32) - FIND("/",'source-2b'!$A32)-1 ) -> 166 | C33: =MID('source-2b'!$A32, FIND("-",'source-2b'!$A32)+1, LEN('source-2b'!$A32) - FIND("-",'source-2b'!$A32)) -> 418 | D33: 253
A34: =MID('source-2b'!$A33,2, SEARCH("/",'source-2b'!$A33) -2) -> G7YGH9_CLOSI | B34: =MID('source-2b'!$A33, FIND("/",'source-2b'!$A33)+1, FIND("-",'source-2b'!$A33) - FIND("/",'source-2b'!$A33)-1 ) -> 10 | C34: =MID('source-2b'!$A33, FIND("-",'source-2b'!$A33)+1, LEN('source-2b'!$A33) - FIND("-",'source-2b'!$A33)) -> 99 | D34: 90
A35: =MID('source-2b'!$A34,2, SEARCH("/",'source-2b'!$A34) -2) -> G7YIM1_CLOSI | B35: =MID('source-2b'!$A34, FIND("/",'source-2b'!$A34)+1, FIND("-",'source-2b'!$A34) - FIND("/",'source-2b'!$A34)-1 ) -> 382 | C35: =MID('source-2b'!$A34, FIND("-",'source-2b'!$A34)+1, LEN('source-2b'!$A34) - FIND("-",'source-2b'!$A34)) -> 463 | D35: 82
A36: =MID('source-2b'!$A35,2, SEARCH("/",'source-2b'!$A35) -2) -> H3HZB9_STRPU | B36: =MID('source-2b'!$A35, FIND("/",'source-2b'!$A35)+1, FIND("-",'source-2b'!$A35) - FIND("/",'source-2b'!$A35)-1 ) -> 525 | C36: =MID('source-2b'!$A35, FIND("-",'source-2b'!$A35)+1, LEN('source-2b'!$A35) - FIND("-",'source-2b'!$A35)) -> 685 | D36: 161
A37: =MID('source-2b'!$A36,2, SEARCH("/",'source-2b'!$A36) -2) -> E5SGQ8_TRISP | B37: =MID('source-2b'!$A36, FIND("/",'source-2b'!$A36)+1, FIND("-",'source-2b'!$A36) - FIND("/",'source-2b'!$A36)-1 ) -> 1 | C37: =MID('source-2b'!$A36, FIND("-",'source-2b'!$A36)+1, LEN('source-2b'!$A36) - FIND("-",'source-2b'!$A36)) -> 104 | D37: 104
A38: =MID('source-2b'!$A37,2, SEARCH("/",'source-2b'!$A37) -2) -> F9WJT7_TRYCI | B38: =MID('source-2b'!$A37, FIND("/",'source-2b'!$A37)+1, FIND("-",'source-2b'!$A37) - FIND("/",'source-2b'!$A37)-1 ) -> 1 | C38: =MID('source-2b'!$A37, FIND("-",'source-2b'!$A37)+1, LEN('source-2b'!$A37) - FIND("-",'source-2b'!$A37)) -> 233 | D38: 233
A39: =MID('source-2b'!$A38,2, SEARCH("/",'source-2b'!$A38) -2) -> D7GXY5_TRICA | B39: =MID('source-2b'!$A38, FIND("/",'source-2b'!$A38)+1, FIND("-",'source-2b'!$A38) - FIND("/",'source-2b'!$A38)-1 ) -> 683 | C39: =MID('source-2b'!$A38, FIND("-",'source-2b'!$A38)+1, LEN('source-2b'!$A38) - FIND("-",'source-2b'!$A38)) -> 845 | D39: 163
A40: =MID('source-2b'!$A39,2, SEARCH("/",'source-2b'!$A39) -2) -> H3ISG8_STRPU | B40: =MID('source-2b'!$A39, FIND("/",'source-2b'!$A39)+1, FIND("-",'source-2b'!$A39) - FIND("/",'source-2b'!$A39)-1 ) -> 252 | C40: =MID('source-2b'!$A39, FIND("-",'source-2b'!$A39)+1, LEN('source-2b'!$A39) - FIND("-",'source-2b'!$A39)) -> 411 | D40: 160
A41: =MID('source-2b'!$A40,2, SEARCH("/",'source-2b'!$A40) -2) -> I1EN70_AMPQE | B41: =MID('source-2b'!$A40, FIND("/",'source-2b'!$A40)+1, FIND("-",'source-2b'!$A40) - FIND("/",'source-2b'!$A40)-1 ) -> 59 | C41: =MID('source-2b'!$A40, FIND("-",'source-2b'!$A40)+1, LEN('source-2b'!$A40) - FIND("-",'source-2b'!$A40)) -> 216 | D41: 158
A42: =MID('source-2b'!$A41,2, SEARCH("/",'source-2b'!$A41) -2) -> Q550L0_DICDI | B42: =MID('source-2b'!$A41, FIND("/",'source-2b'!$A41)+1, FIND("-",'source-2b'!$A41) - FIND("/",'source-2b'!$A41)-1 ) -> 1 | C42: =MID('source-2b'!$A41, FIND("-",'source-2b'!$A41)+1, LEN('source-2b'!$A41) - FIND("-",'source-2b'!$A41)) -> 136 | D42: 136
A43: =MID('source-2b'!$A42,2, SEARCH("/",'source-2b'!$A42) -2) -> G7YC95_CLOSI | B43: =MID('source-2b'!$A42, FIND("/",'source-2b'!$A42)+1, FIND("-",'source-2b'!$A42) - FIND("/",'source-2b'!$A42)-1 ) -> 7 | C43: =MID('source-2b'!$A42, FIND("-",'source-2b'!$A42)+1, LEN('source-2b'!$A42) - FIND("-",'source-2b'!$A42)) -> 99 | D43: 93
A44: =MID('source-2b'!$A43,2, SEARCH("/",'source-2b'!$A43) -2) -> C7PE56_CHIPD | B44: =MID('source-2b'!$A43, FIND("/",'source-2b'!$A43)+1, FIND("-",'source-2b'!$A43) - FIND("/",'source-2b'!$A43)-1 ) -> 181 | C44: =MID('source-2b'!$A43, FIND("-",'source-2b'!$A43)+1, LEN('source-2b'!$A43) - FIND("-",'source-2b'!$A43)) -> 394 | D44: 214
A45: =MID('source-2b'!$A44,2, SEARCH("/",'source-2b'!$A44) -2) -> Q556X2_DICDI | B45: =MID('source-2b'!$A44, FIND("/",'source-2b'!$A44)+1, FIND("-",'source-2b'!$A44) - FIND("/",'source-2b'!$A44)-1 ) -> 391 | C45: =MID('source-2b'!$A44, FIND("-",'source-2b'!$A44)+1, LEN('source-2b'!$A44) - FIND("-",'source-2b'!$A44)) -> 640 | D45: 250
A46: =MID('source-2b'!$A45,2, SEARCH("/",'source-2b'!$A45) -2) -> Q024N3_SOLUE | B46: =MID('source-2b'!$A45, FIND("/",'source-2b'!$A45)+1, FIND("-",'source-2b'!$A45) - FIND("/",'source-2b'!$A45)-1 ) -> 94 | C46: =MID('source-2b'!$A45, FIND("-",'source-2b'!$A45)+1, LEN('source-2b'!$A45) - FIND("-",'source-2b'!$A45)) -> 316 | D46: 223
A47: =MID('source-2b'!$A46,2, SEARCH("/",'source-2b'!$A46) -2) -> I1CU67_RHIO9 | B47: =MID('source-2b'!$A46, FIND("/",'source-2b'!$A46)+1, FIND("-",'source-2b'!$A46) - FIND("/",'source-2b'!$A46)-1 ) -> 450 | C47: =MID('source-2b'!$A46, FIND("-",'source-2b'!$A46)+1, LEN('source-2b'!$A46) - FIND("-",'source-2b'!$A46)) -> 738 | D47: 289
A48: =MID('source-2b'!$A47,2, SEARCH("/",'source-2b'!$A47) -2) -> E4X9I5_OIKDI | B48: =MID('source-2b'!$A47, FIND("/",'source-2b'!$A47)+1, FIND("-",'source-2b'!$A47) - FIND("/",'source-2b'!$A47)-1 ) -> 1903 | C48: =MID('source-2b'!$A47, FIND("-",'source-2b'!$A47)+1, LEN('source-2b'!$A47) - FIND("-",'source-2b'!$A47)) -> 2254 | D48: 352
A49: =MID('source-2b'!$A48,2, SEARCH("/",'source-2b'!$A48) -2) -> F9WBF6_TRYCI | B49: =MID('source-2b'!$A48, FIND("/",'source-2b'!$A48)+1, FIND("-",'source-2b'!$A48) - FIND("/",'source-2b'!$A48)-1 ) -> 18 | C49: =MID('source-2b'!$A48, FIND("-",'source-2b'!$A48)+1, LEN('source-2b'!$A48) - FIND("-",'source-2b'!$A48)) -> 183 | D49: 166
A50: =MID('source-2b'!$A49,2, SEARCH("/",'source-2b'!$A49) -2) -> E4X141_OIKDI | B50: =MID('source-2b'!$A49, FIND("/",'source-2b'!$A49)+1, FIND("-",'source-2b'!$A49) - FIND("/",'source-2b'!$A49)-1 ) -> 740 | C50: =MID('source-2b'!$A49, FIND("-",'source-2b'!$A49)+1, LEN('source-2b'!$A49) - FIND("-",'source-2b'!$A49)) -> 904 | D50: 165
A51: =MID('source-2b'!$A50,2, SEARCH("/",'source-2b'!$A50) -2) -> H3EIB2_PRIPA | B51: =MID('source-2b'!$A50, FIND("/",'source-2b'!$A50)+1, FIND("-",'source-2b'!$A50) - FIND("/",'source-2b'!$A50)-1 ) -> 629 | C51: =MID('source-2b'!$A50, FIND("-",'source-2b'!$A50)+1, LEN('source-2b'!$A50) - FIND("-",'source-2b'!$A50)) -> 842 | D51: 214
A52: =MID('source-2b'!$A51,2, SEARCH("/",'source-2b'!$A51) -2) -> H3HWP3_STRPU | B52: =MID('source-2b'!$A51, FIND("/",'source-2b'!$A51)+1, FIND("-",'source-2b'!$A51) - FIND("/",'source-2b'!$A51)-1 ) -> 123 | C52: =MID('source-2b'!$A51, FIND("-",'source-2b'!$A51)+1, LEN('source-2b'!$A51) - FIND("-",'source-2b'!$A51)) -> 370 | D52: 248
A53: =MID('source-2b'!$A52,2, SEARCH("/",'source-2b'!$A52) -2) -> G4TQ54_PIRID | B53: =MID('source-2b'!$A52, FIND("/",'source-2b'!$A52)+1, FIND("-",'source-2b'!$A52) - FIND("/",'source-2b'!$A52)-1 ) -> 444 | C53: =MID('source-2b'!$A52, FIND("-",'source-2b'!$A52)+1, LEN('source-2b'!$A52) - FIND("-",'source-2b'!$A52)) -> 646 | D53: 203
A54: =MID('source-2b'!$A53,2, SEARCH("/",'source-2b'!$A53) -2) -> H3GQB0_PHYRM | B54: =MID('source-2b'!$A53, FIND("/",'source-2b'!$A53)+1, FIND("-",'source-2b'!$A53) - FIND("/",'source-2b'!$A53)-1 ) -> 752 | C54: =MID('source-2b'!$A53, FIND("-",'source-2b'!$A53)+1, LEN('source-2b'!$A53) - FIND("-",'source-2b'!$A53)) -> 849 | D54: 98
A55: =MID('source-2b'!$A54,2, SEARCH("/",'source-2b'!$A54) -2) -> C4K431_HAMD5 | B55: =MID('source-2b'!$A54, FIND("/",'source-2b'!$A54)+1, FIND("-",'source-2b'!$A54) - FIND("/",'source-2b'!$A54)-1 ) -> 115 | C55: =MID('source-2b'!$A54, FIND("-",'source-2b'!$A54)+1, LEN('source-2b'!$A54) - FIND("-",'source-2b'!$A54)) -> 331 | D55: 217
A56: =MID('source-2b'!$A55,2, SEARCH("/",'source-2b'!$A55) -2) -> I1C9U6_RHIO9 | B56: =MID('source-2b'!$A55, FIND("/",'source-2b'!$A55)+1, FIND("-",'source-2b'!$A55) - FIND("/",'source-2b'!$A55)-1 ) -> 1 | C56: =MID('source-2b'!$A55, FIND("-",'source-2b'!$A55)+1, LEN('source-2b'!$A55) - FIND("-",'source-2b'!$A55)) -> 152 | D56: 152
A57: =MID('source-2b'!$A56,2, SEARCH("/",'source-2b'!$A56) -2) -> H3JH59_STRPU | B57: =MID('source-2b'!$A56, FIND("/",'source-2b'!$A56)+1, FIND("-",'source-2b'!$A56) - FIND("/",'source-2b'!$A56)-1 ) -> 746 | C57: =MID('source-2b'!$A56, FIND("-",'source-2b'!$A56)+1, LEN('source-2b'!$A56) - FIND("-",'source-2b'!$A56)) -> 906 | D57: 161
A58: =MID('source-2b'!$A57,2, SEARCH("/",'source-2b'!$A57) -2) -> H3HNX4_STRPU | B58: =MID('source-2b'!$A57, FIND("/",'source-2b'!$A57)+1, FIND("-",'source-2b'!$A57) - FIND("/",'source-2b'!$A57)-1 ) -> 789 | C58: =MID('source-2b'!$A57, FIND("-",'source-2b'!$A57)+1, LEN('source-2b'!$A57) - FIND("-",'source-2b'!$A57)) -> 949 | D58: 161
A59: =MID('source-2b'!$A58,2, SEARCH("/",'source-2b'!$A58) -2) -> I1EKU1_AMPQE | B59: =MID('source-2b'!$A58, FIND("/",'source-2b'!$A58)+1, FIND("-",'source-2b'!$A58) - FIND("/",'source-2b'!$A58)-1 ) -> 229 | C59: =MID('source-2b'!$A58, FIND("-",'source-2b'!$A58)+1, LEN('source-2b'!$A58) - FIND("-",'source-2b'!$A58)) -> 455 | D59: 227
A60: =MID('source-2b'!$A59,2, SEARCH("/",'source-2b'!$A59) -2) -> I1CNG3_RHIO9 | B60: =MID('source-2b'!$A59, FIND("/",'source-2b'!$A59)+1, FIND("-",'source-2b'!$A59) - FIND("/",'source-2b'!$A59)-1 ) -> 732 | C60: =MID('source-2b'!$A59, FIND("-",'source-2b'!$A59)+1, LEN('source-2b'!$A59) - FIND("-",'source-2b'!$A59)) -> 899 | D60: 168
A61: =MID('source-2b'!$A60,2, SEARCH("/",'source-2b'!$A60) -2) -> D7EID3_TRICA | B61: =MID('source-2b'!$A60, FIND("/",'source-2b'!$A60)+1, FIND("-",'source-2b'!$A60) - FIND("/",'source-2b'!$A60)-1 ) -> 193 | C61: =MID('source-2b'!$A60, FIND("-",'source-2b'!$A60)+1, LEN('source-2b'!$A60) - FIND("-",'source-2b'!$A60)) -> 433 | D61: 241
A62: =MID('source-2b'!$A61,2, SEARCH("/",'source-2b'!$A61) -2) -> I1FW60_AMPQE | B62: =MID('source-2b'!$A61, FIND("/",'source-2b'!$A61)+1, FIND("-",'source-2b'!$A61) - FIND("/",'source-2b'!$A61)-1 ) -> 22 | C62: =MID('source-2b'!$A61, FIND("-",'source-2b'!$A61)+1, LEN('source-2b'!$A61) - FIND("-",'source-2b'!$A61)) -> 180 | D62: 159
A63: =MID('source-2b'!$A62,2, SEARCH("/",'source-2b'!$A62) -2) -> H3H7U3_PHYRM | B63: =MID('source-2b'!$A62, FIND("/",'source-2b'!$A62)+1, FIND("-",'source-2b'!$A62) - FIND("/",'source-2b'!$A62)-1 ) -> 236 | C63: =MID('source-2b'!$A62, FIND("-",'source-2b'!$A62)+1, LEN('source-2b'!$A62) - FIND("-",'source-2b'!$A62)) -> 379 | D63: 144
A64: =MID('source-2b'!$A63,2, SEARCH("/",'source-2b'!$A63) -2) -> Q55GX6_DICDI | B64: =MID('source-2b'!$A63, FIND("/",'source-2b'!$A63)+1, FIND("-",'source-2b'!$A63) - FIND("/",'source-2b'!$A63)-1 ) -> 364 | C64: =MID('source-2b'!$A63, FIND("-",'source-2b'!$A63)+1, LEN('source-2b'!$A63) - FIND("-",'source-2b'!$A63)) -> 523 | D64: 160
A65: =MID('source-2b'!$A64,2, SEARCH("/",'source-2b'!$A64) -2) -> D7GYB2_TRICA | B65: =MID('source-2b'!$A64, FIND("/",'source-2b'!$A64)+1, FIND("-",'source-2b'!$A64) - FIND("/",'source-2b'!$A64)-1 ) -> 85 | C65: =MID('source-2b'!$A64, FIND("-",'source-2b'!$A64)+1, LEN('source-2b'!$A64) - FIND("-",'source-2b'!$A64)) -> 200 | D65: 116
A66: =MID('source-2b'!$A65,2, SEARCH("/",'source-2b'!$A65) -2) -> H3HG19_STRPU | B66: =MID('source-2b'!$A65, FIND("/",'source-2b'!$A65)+1, FIND("-",'source-2b'!$A65) - FIND("/",'source-2b'!$A65)-1 ) -> 54 | C66: =MID('source-2b'!$A65, FIND("-",'source-2b'!$A65)+1, LEN('source-2b'!$A65) - FIND("-",'source-2b'!$A65)) -> 137 | D66: 84
A67: =MID('source-2b'!$A66,2, SEARCH("/",'source-2b'!$A66) -2) -> C5KRI1_PERM5 | B67: =MID('source-2b'!$A66, FIND("/",'source-2b'!$A66)+1, FIND("-",'source-2b'!$A66) - FIND("/",'source-2b'!$A66)-1 ) -> 14 | C67: =MID('source-2b'!$A66, FIND("-",'source-2b'!$A66)+1, LEN('source-2b'!$A66) - FIND("-",'source-2b'!$A66)) -> 177 | D67: =length($B67,$C67) -> 164
A68: =MID('source-2b'!$A67,2, SEARCH("/",'source-2b'!$A67) -2) -> I1EYU7_AMPQE | B68: =MID('source-2b'!$A67, FIND("/",'source-2b'!$A67)+1, FIND("-",'source-2b'!$A67) - FIND("/",'source-2b'!$A67)-1 ) -> 72 | C68: =MID('source-2b'!$A67, FIND("-",'source-2b'!$A67)+1, LEN('source-2b'!$A67) - FIND("-",'source-2b'!$A67)) -> 248 | D68: 177
A69: =MID('source-2b'!$A68,2, SEARCH("/",'source-2b'!$A68) -2) -> H3JJW9_STRPU | B69: =MID('source-2b'!$A68, FIND("/",'source-2b'!$A68)+1, FIND("-",'source-2b'!$A68) - FIND("/",'source-2b'!$A68)-1 ) -> 672 | C69: =MID('source-2b'!$A68, FIND("-",'source-2b'!$A68)+1, LEN('source-2b'!$A68) - FIND("-",'source-2b'!$A68)) -> 818 | D69: 147
A70: =MID('source-2b'!$A69,2, SEARCH("/",'source-2b'!$A69) -2) -> H3JK88_STRPU | B70: =MID('source-2b'!$A69, FIND("/",'source-2b'!$A69)+1, FIND("-",'source-2b'!$A69) - FIND("/",'source-2b'!$A69)-1 ) -> 628 | C70: =MID('source-2b'!$A69, FIND("-",'source-2b'!$A69)+1, LEN('source-2b'!$A69) - FIND("-",'source-2b'!$A69)) -> 836 | D70: 209
A71: =MID('source-2b'!$A70,2, SEARCH("/",'source-2b'!$A70) -2) -> E3WRG8_ANODA | B71: =MID('source-2b'!$A70, FIND("/",'source-2b'!$A70)+1, FIND("-",'source-2b'!$A70) - FIND("/",'source-2b'!$A70)-1 ) -> 550 | C71: =MID('source-2b'!$A70, FIND("-",'source-2b'!$A70)+1, LEN('source-2b'!$A70) - FIND("-",'source-2b'!$A70)) -> 801 | D71: 252
A72: =MID('source-2b'!$A71,2, SEARCH("/",'source-2b'!$A71) -2) -> I1BQD7_RHIO9 | B72: =MID('source-2b'!$A71, FIND("/",'source-2b'!$A71)+1, FIND("-",'source-2b'!$A71) - FIND("/",'source-2b'!$A71)-1 ) -> 316 | C72: =MID('source-2b'!$A71, FIND("-",'source-2b'!$A71)+1, LEN('source-2b'!$A71) - FIND("-",'source-2b'!$A71)) -> 568 | D72: 253
A73: =MID('source-2b'!$A72,2, SEARCH("/",'source-2b'!$A72) -2) -> C5L6U7_PERM5 | B73: =MID('source-2b'!$A72, FIND("/",'source-2b'!$A72)+1, FIND("-",'source-2b'!$A72) - FIND("/",'source-2b'!$A72)-1 ) -> 180 | C73: =MID('source-2b'!$A72, FIND("-",'source-2b'!$A72)+1, LEN('source-2b'!$A72) - FIND("-",'source-2b'!$A72)) -> 312 | D73: 133
A74: =MID('source-2b'!$A73,2, SEARCH("/",'source-2b'!$A73) -2) -> H3HHD5_STRPU | B74: =MID('source-2b'!$A73, FIND("/",'source-2b'!$A73)+1, FIND("-",'source-2b'!$A73) - FIND("/",'source-2b'!$A73)-1 ) -> 1 | C74: =MID('source-2b'!$A73, FIND("-",'source-2b'!$A73)+1, LEN('source-2b'!$A73) - FIND("-",'source-2b'!$A73)) -> 216 | D74: 216
A75: =MID('source-2b'!$A74,2, SEARCH("/",'source-2b'!$A74) -2) -> A7SEG6_NEMVE | B75: =MID('source-2b'!$A74, FIND("/",'source-2b'!$A74)+1, FIND("-",'source-2b'!$A74) - FIND("/",'source-2b'!$A74)-1 ) -> 419 | C75: =MID('source-2b'!$A74, FIND("-",'source-2b'!$A74)+1, LEN('source-2b'!$A74) - FIND("-",'source-2b'!$A74)) -> 647 | D75: 229
A76: =MID('source-2b'!$A75,2, SEARCH("/",'source-2b'!$A75) -2) -> A8PYE9_BRUMA | B76: =MID('source-2b'!$A75, FIND("/",'source-2b'!$A75)+1, FIND("-",'source-2b'!$A75) - FIND("/",'source-2b'!$A75)-1 ) -> 787 | C76: =MID('source-2b'!$A75, FIND("-",'source-2b'!$A75)+1, LEN('source-2b'!$A75) - FIND("-",'source-2b'!$A75)) -> 953 | D76: 167
A77: =MID('source-2b'!$A76,2, SEARCH("/",'source-2b'!$A76) -2) -> H3I7K5_STRPU | B77: =MID('source-2b'!$A76, FIND("/",'source-2b'!$A76)+1, FIND("-",'source-2b'!$A76) - FIND("/",'source-2b'!$A76)-1 ) -> 340 | C77: =MID('source-2b'!$A76, FIND("-",'source-2b'!$A76)+1, LEN('source-2b'!$A76) - FIND("-",'source-2b'!$A76)) -> 497 | D77: 158
A78: =MID('source-2b'!$A77,2, SEARCH("/",'source-2b'!$A77) -2) -> G7YG25_CLOSI | B78: =MID('source-2b'!$A77, FIND("/",'source-2b'!$A77)+1, FIND("-",'source-2b'!$A77) - FIND("/",'source-2b'!$A77)-1 ) -> 279 | C78: =MID('source-2b'!$A77, FIND("-",'source-2b'!$A77)+1, LEN('source-2b'!$A77) - FIND("-",'source-2b'!$A77)) -> 437 | D78: 159
A79: =MID('source-2b'!$A78,2, SEARCH("/",'source-2b'!$A78) -2) -> I1CED0_RHIO9 | B79: =MID('source-2b'!$A78, FIND("/",'source-2b'!$A78)+1, FIND("-",'source-2b'!$A78) - FIND("/",'source-2b'!$A78)-1 ) -> 1 | C79: =MID('source-2b'!$A78, FIND("-",'source-2b'!$A78)+1, LEN('source-2b'!$A78) - FIND("-",'source-2b'!$A78)) -> 243 | D79: 243
A80: =MID('source-2b'!$A79,2, SEARCH("/",'source-2b'!$A79) -2) -> I1G3N9_AMPQE | B80: =MID('source-2b'!$A79, FIND("/",'source-2b'!$A79)+1, FIND("-",'source-2b'!$A79) - FIND("/",'source-2b'!$A79)-1 ) -> 25 | C80: =MID('source-2b'!$A79, FIND("-",'source-2b'!$A79)+1, LEN('source-2b'!$A79) - FIND("-",'source-2b'!$A79)) -> 187 | D80: 163
A81: =MID('source-2b'!$A80,2, SEARCH("/",'source-2b'!$A80) -2) -> H3H2H5_PHYRM | B81: =MID('source-2b'!$A80, FIND("/",'source-2b'!$A80)+1, FIND("-",'source-2b'!$A80) - FIND("/",'source-2b'!$A80)-1 ) -> 152 | C81: =MID('source-2b'!$A80, FIND("-",'source-2b'!$A80)+1, LEN('source-2b'!$A80) - FIND("-",'source-2b'!$A80)) -> 318 | D81: 167
A82: =MID('source-2b'!$A81,2, SEARCH("/",'source-2b'!$A81) -2) -> H3J424_STRPU | B82: =MID('source-2b'!$A81, FIND("/",'source-2b'!$A81)+1, FIND("-",'source-2b'!$A81) - FIND("/",'source-2b'!$A81)-1 ) -> 419 | C82: =MID('source-2b'!$A81, FIND("-",'source-2b'!$A81)+1, LEN('source-2b'!$A81) - FIND("-",'source-2b'!$A81)) -> 579 | D82: 161
A83: =MID('source-2b'!$A82,2, SEARCH("/",'source-2b'!$A82) -2) -> I1FW84_AMPQE | B83: =MID('source-2b'!$A82, FIND("/",'source-2b'!$A82)+1, FIND("-",'source-2b'!$A82) - FIND("/",'source-2b'!$A82)-1 ) -> 14 | C83: =MID('source-2b'!$A82, FIND("-",'source-2b'!$A82)+1, LEN('source-2b'!$A82) - FIND("-",'source-2b'!$A82)) -> 115 | D83: 102
A84: =MID('source-2b'!$A83,2, SEARCH("/",'source-2b'!$A83) -2) -> H3IFF0_STRPU | B84: =MID('source-2b'!$A83, FIND("/",'source-2b'!$A83)+1, FIND("-",'source-2b'!$A83) - FIND("/",'source-2b'!$A83)-1 ) -> 1040 | C84: =MID('source-2b'!$A83, FIND("-",'source-2b'!$A83)+1, LEN('source-2b'!$A83) - FIND("-",'source-2b'!$A83)) -> 1239 | D84: 200
A85: =MID('source-2b'!$A84,2, SEARCH("/",'source-2b'!$A84) -2) -> I1G1R1_AMPQE | B85: =MID('source-2b'!$A84, FIND("/",'source-2b'!$A84)+1, FIND("-",'source-2b'!$A84) - FIND("/",'source-2b'!$A84)-1 ) -> 4 | C85: =MID('source-2b'!$A84, FIND("-",'source-2b'!$A84)+1, LEN('source-2b'!$A84) - FIND("-",'source-2b'!$A84)) -> 66 | D85: 63
A86: =MID('source-2b'!$A85,2, SEARCH("/",'source-2b'!$A85) -2) -> I1BL69_RHIO9 | B86: =MID('source-2b'!$A85, FIND("/",'source-2b'!$A85)+1, FIND("-",'source-2b'!$A85) - FIND("/",'source-2b'!$A85)-1 ) -> 141 | C86: =MID('source-2b'!$A85, FIND("-",'source-2b'!$A85)+1, LEN('source-2b'!$A85) - FIND("-",'source-2b'!$A85)) -> 266 | D86: 126
A87: =MID('source-2b'!$A86,2, SEARCH("/",'source-2b'!$A86) -2) -> I1GJS4_AMPQE | B87: =MID('source-2b'!$A86, FIND("/",'source-2b'!$A86)+1, FIND("-",'source-2b'!$A86) - FIND("/",'source-2b'!$A86)-1 ) -> 8 | C87: =MID('source-2b'!$A86, FIND("-",'source-2b'!$A86)+1, LEN('source-2b'!$A86) - FIND("-",'source-2b'!$A86)) -> 156 | D87: 149
A88: =MID('source-2b'!$A87,2, SEARCH("/",'source-2b'!$A87) -2) -> Q7MTH7_PORGI | B88: =MID('source-2b'!$A87, FIND("/",'source-2b'!$A87)+1, FIND("-",'source-2b'!$A87) - FIND("/",'source-2b'!$A87)-1 ) -> 348 | C88: =MID('source-2b'!$A87, FIND("-",'source-2b'!$A87)+1, LEN('source-2b'!$A87) - FIND("-",'source-2b'!$A87)) -> 559 | D88: 212
A89: =MID('source-2b'!$A88,2, SEARCH("/",'source-2b'!$A88) -2) -> C5LX35_PERM5 | B89: =MID('source-2b'!$A88, FIND("/",'source-2b'!$A88)+1, FIND("-",'source-2b'!$A88) - FIND("/",'source-2b'!$A88)-1 ) -> 50 | C89: =MID('source-2b'!$A88, FIND("-",'source-2b'!$A88)+1, LEN('source-2b'!$A88) - FIND("-",'source-2b'!$A88)) -> 232 | D89: 183
A90: =MID('source-2b'!$A89,2, SEARCH("/",'source-2b'!$A89) -2) -> E4XHY6_OIKDI | B90: =MID('source-2b'!$A89, FIND("/",'source-2b'!$A89)+1, FIND("-",'source-2b'!$A89) - FIND("/",'source-2b'!$A89)-1 ) -> 1209 | C90: =MID('source-2b'!$A89, FIND("-",'source-2b'!$A89)+1, LEN('source-2b'!$A89) - FIND("-",'source-2b'!$A89)) -> 1456 | D90: 248
A91: =MID('source-2b'!$A90,2, SEARCH("/",'source-2b'!$A90) -2) -> A7RRD7_NEMVE | B91: =MID('source-2b'!$A90, FIND("/",'source-2b'!$A90)+1, FIND("-",'source-2b'!$A90) - FIND("/",'source-2b'!$A90)-1 ) -> 1 | C91: =MID('source-2b'!$A90, FIND("-",'source-2b'!$A90)+1, LEN('source-2b'!$A90) - FIND("-",'source-2b'!$A90)) -> 103 | D91: 103
A92: =MID('source-2b'!$A91,2, SEARCH("/",'source-2b'!$A91) -2) -> I1EV08_AMPQE | B92: =MID('source-2b'!$A91, FIND("/",'source-2b'!$A91)+1, FIND("-",'source-2b'!$A91) - FIND("/",'source-2b'!$A91)-1 ) -> 73 | C92: =MID('source-2b'!$A91, FIND("-",'source-2b'!$A91)+1, LEN('source-2b'!$A91) - FIND("-",'source-2b'!$A91)) -> 243 | D92: 171
A93: =MID('source-2b'!$A92,2, SEARCH("/",'source-2b'!$A92) -2) -> H3HJB7_STRPU | B93: =MID('source-2b'!$A92, FIND("/",'source-2b'!$A92)+1, FIND("-",'source-2b'!$A92) - FIND("/",'source-2b'!$A92)-1 ) -> 1 | C93: =MID('source-2b'!$A92, FIND("-",'source-2b'!$A92)+1, LEN('source-2b'!$A92) - FIND("-",'source-2b'!$A92)) -> 88 | D93: 88
A94: =MID('source-2b'!$A93,2, SEARCH("/",'source-2b'!$A93) -2) -> I1CVZ3_RHIO9 | B94: =MID('source-2b'!$A93, FIND("/",'source-2b'!$A93)+1, FIND("-",'source-2b'!$A93) - FIND("/",'source-2b'!$A93)-1 ) -> 159 | C94: =MID('source-2b'!$A93, FIND("-",'source-2b'!$A93)+1, LEN('source-2b'!$A93) - FIND("-",'source-2b'!$A93)) -> 319 | D94: 161
A95: =MID('source-2b'!$A94,2, SEARCH("/",'source-2b'!$A94) -2) -> A7ELY0_SCLS1 | B95: =MID('source-2b'!$A94, FIND("/",'source-2b'!$A94)+1, FIND("-",'source-2b'!$A94) - FIND("/",'source-2b'!$A94)-1 ) -> 84 | C95: =MID('source-2b'!$A94, FIND("-",'source-2b'!$A94)+1, LEN('source-2b'!$A94) - FIND("-",'source-2b'!$A94)) -> 198 | D95: 115
A96: =MID('source-2b'!$A95,2, SEARCH("/",'source-2b'!$A95) -2) -> H3I122_STRPU | B96: =MID('source-2b'!$A95, FIND("/",'source-2b'!$A95)+1, FIND("-",'source-2b'!$A95) - FIND("/",'source-2b'!$A95)-1 ) -> 120 | C96: =MID('source-2b'!$A95, FIND("-",'source-2b'!$A95)+1, LEN('source-2b'!$A95) - FIND("-",'source-2b'!$A95)) -> 314 | D96: 195
A97: =MID('source-2b'!$A96,2, SEARCH("/",'source-2b'!$A96) -2) -> A9VEG2_MONBE | B97: =MID('source-2b'!$A96, FIND("/",'source-2b'!$A96)+1, FIND("-",'source-2b'!$A96) - FIND("/",'source-2b'!$A96)-1 ) -> 558 | C97: =MID('source-2b'!$A96, FIND("-",'source-2b'!$A96)+1, LEN('source-2b'!$A96) - FIND("-",'source-2b'!$A96)) -> 799 | D97: 242
A98: =MID('source-2b'!$A97,2, SEARCH("/",'source-2b'!$A97) -2) -> H3GU70_PHYRM | B98: =MID('source-2b'!$A97, FIND("/",'source-2b'!$A97)+1, FIND("-",'source-2b'!$A97) - FIND("/",'source-2b'!$A97)-1 ) -> 165 | C98: =MID('source-2b'!$A97, FIND("-",'source-2b'!$A97)+1, LEN('source-2b'!$A97) - FIND("-",'source-2b'!$A97)) -> 352 | D98: 188
A99: =MID('source-2b'!$A98,2, SEARCH("/",'source-2b'!$A98) -2) -> Q5BFZ4_EMENI | B99: =MID('source-2b'!$A98, FIND("/",'source-2b'!$A98)+1, FIND("-",'source-2b'!$A98) - FIND("/",'source-2b'!$A98)-1 ) -> 8 | C99: =MID('source-2b'!$A98, FIND("-",'source-2b'!$A98)+1, LEN('source-2b'!$A98) - FIND("-",'source-2b'!$A98)) -> 86 | D99: 79
A100: =MID('source-2b'!$A99,2, SEARCH("/",'source-2b'!$A99) -2) -> I1EWE1_AMPQE | B100: =MID('source-2b'!$A99, FIND("/",'source-2b'!$A99)+1, FIND("-",'source-2b'!$A99) - FIND("/",'source-2b'!$A99)-1 ) -> 76 | C100: =MID('source-2b'!$A99, FIND("-",'source-2b'!$A99)+1, LEN('source-2b'!$A99) - FIND("-",'source-2b'!$A99)) -> 290 | D100: 215
A101: =MID('source-2b'!$A100,2, SEARCH("/",'source-2b'!$A100) -2) -> H3IG06_STRPU | B101: =MID('source-2b'!$A100, FIND("/",'source-2b'!$A100)+1, FIND("-",'source-2b'!$A100) - FIND("/",'source-2b'!$A100)-1 ) -> 1 | C101: =MID('source-2b'!$A100, FIND("-",'source-2b'!$A100)+1, LEN('source-2b'!$A100) - FIND("-",'source-2b'!$A100)) -> 75 | D101: 75
A102: =MID('source-2b'!$A101,2, SEARCH("/",'source-2b'!$A101) -2) -> H3IQT8_STRPU | B102: =MID('source-2b'!$A101, FIND("/",'source-2b'!$A101)+1, FIND("-",'source-2b'!$A101) - FIND("/",'source-2b'!$A101)-1 ) -> 386 | C102: =MID('source-2b'!$A101, FIND("-",'source-2b'!$A101)+1, LEN('source-2b'!$A101) - FIND("-",'source-2b'!$A101)) -> 644 | D102: 259
A103: =MID('source-2b'!$A102,2, SEARCH("/",'source-2b'!$A102) -2) -> I1CFM4_RHIO9 | B103: =MID('source-2b'!$A102, FIND("/",'source-2b'!$A102)+1, FIND("-",'source-2b'!$A102) - FIND("/",'source-2b'!$A102)-1 ) -> 666 | C103: =MID('source-2b'!$A102, FIND("-",'source-2b'!$A102)+1, LEN('source-2b'!$A102) - FIND("-",'source-2b'!$A102)) -> 862 | D103: 197
A104: =MID('source-2b'!$A103,2, SEARCH("/",'source-2b'!$A103) -2) -> H3GHY8_PHYRM | B104: =MID('source-2b'!$A103, FIND("/",'source-2b'!$A103)+1, FIND("-",'source-2b'!$A103) - FIND("/",'source-2b'!$A103)-1 ) -> 510 | C104: =MID('source-2b'!$A103, FIND("-",'source-2b'!$A103)+1, LEN('source-2b'!$A103) - FIND("-",'source-2b'!$A103)) -> 671 | D104: 162
A105: =MID('source-2b'!$A104,2, SEARCH("/",'source-2b'!$A104) -2) -> I1G0H7_AMPQE | B105: =MID('source-2b'!$A104, FIND("/",'source-2b'!$A104)+1, FIND("-",'source-2b'!$A104) - FIND("/",'source-2b'!$A104)-1 ) -> 151 | C105: =MID('source-2b'!$A104, FIND("-",'source-2b'!$A104)+1, LEN('source-2b'!$A104) - FIND("-",'source-2b'!$A104)) -> 294 | D105: 144
A106: =MID('source-2b'!$A105,2, SEARCH("/",'source-2b'!$A105) -2) -> E0VEY2_PEDHC | B106: =MID('source-2b'!$A105, FIND("/",'source-2b'!$A105)+1, FIND("-",'source-2b'!$A105) - FIND("/",'source-2b'!$A105)-1 ) -> 279 | C106: =MID('source-2b'!$A105, FIND("-",'source-2b'!$A105)+1, LEN('source-2b'!$A105) - FIND("-",'source-2b'!$A105)) -> 373 | D106: 95
A107: =MID('source-2b'!$A106,2, SEARCH("/",'source-2b'!$A106) -2) -> D3B7X1_POLPA | B107: =MID('source-2b'!$A106, FIND("/",'source-2b'!$A106)+1, FIND("-",'source-2b'!$A106) - FIND("/",'source-2b'!$A106)-1 ) -> 95 | C107: =MID('source-2b'!$A106, FIND("-",'source-2b'!$A106)+1, LEN('source-2b'!$A106) - FIND("-",'source-2b'!$A106)) -> 254 | D107: 160
A108: =MID('source-2b'!$A107,2, SEARCH("/",'source-2b'!$A107) -2) -> I1CCH3_RHIO9 | B108: =MID('source-2b'!$A107, FIND("/",'source-2b'!$A107)+1, FIND("-",'source-2b'!$A107) - FIND("/",'source-2b'!$A107)-1 ) -> 149 | C108: =MID('source-2b'!$A107, FIND("-",'source-2b'!$A107)+1, LEN('source-2b'!$A107) - FIND("-",'source-2b'!$A107)) -> 313 | D108: 165
A109: =MID('source-2b'!$A108,2, SEARCH("/",'source-2b'!$A108) -2) -> I1CTW6_RHIO9 | B109: =MID('source-2b'!$A108, FIND("/",'source-2b'!$A108)+1, FIND("-",'source-2b'!$A108) - FIND("/",'source-2b'!$A108)-1 ) -> 354 | C109: =MID('source-2b'!$A108, FIND("-",'source-2b'!$A108)+1, LEN('source-2b'!$A108) - FIND("-",'source-2b'!$A108)) -> 517 | D109: 164
A110: =MID('source-2b'!$A109,2, SEARCH("/",'source-2b'!$A109) -2) -> H3HNS2_STRPU | B110: =MID('source-2b'!$A109, FIND("/",'source-2b'!$A109)+1, FIND("-",'source-2b'!$A109) - FIND("/",'source-2b'!$A109)-1 ) -> 670 | C110: =MID('source-2b'!$A109, FIND("-",'source-2b'!$A109)+1, LEN('source-2b'!$A109) - FIND("-",'source-2b'!$A109)) -> 824 | D110: 155
A111: =MID('source-2b'!$A110,2, SEARCH("/",'source-2b'!$A110) -2) -> D6XTQ3_BACIE | B111: =MID('source-2b'!$A110, FIND("/",'source-2b'!$A110)+1, FIND("-",'source-2b'!$A110) - FIND("/",'source-2b'!$A110)-1 ) -> 67 | C111: =MID('source-2b'!$A110, FIND("-",'source-2b'!$A110)+1, LEN('source-2b'!$A110) - FIND("-",'source-2b'!$A110)) -> 274 | D111: 208
A112: =MID('source-2b'!$A111,2, SEARCH("/",'source-2b'!$A111) -2) -> D7EJM9_TRICA | B112: =MID('source-2b'!$A111, FIND("/",'source-2b'!$A111)+1, FIND("-",'source-2b'!$A111) - FIND("/",'source-2b'!$A111)-1 ) -> 896 | C112: =MID('source-2b'!$A111, FIND("-",'source-2b'!$A111)+1, LEN('source-2b'!$A111) - FIND("-",'source-2b'!$A111)) -> 1054 | D112: 159
A113: =MID('source-2b'!$A112,2, SEARCH("/",'source-2b'!$A112) -2) -> H3HN19_STRPU | B113: =MID('source-2b'!$A112, FIND("/",'source-2b'!$A112)+1, FIND("-",'source-2b'!$A112) - FIND("/",'source-2b'!$A112)-1 ) -> 1061 | C113: =MID('source-2b'!$A112, FIND("-",'source-2b'!$A112)+1, LEN('source-2b'!$A112) - FIND("-",'source-2b'!$A112)) -> 1219 | D113: 159
A114: =MID('source-2b'!$A113,2, SEARCH("/",'source-2b'!$A113) -2) -> A7ERU2_SCLS1 | B114: =MID('source-2b'!$A113, FIND("/",'source-2b'!$A113)+1, FIND("-",'source-2b'!$A113) - FIND("/",'source-2b'!$A113)-1 ) -> 878 | C114: =MID('source-2b'!$A113, FIND("-",'source-2b'!$A113)+1, LEN('source-2b'!$A113) - FIND("-",'source-2b'!$A113)) -> 1130 | D114: 253
A115: =MID('source-2b'!$A114,2, SEARCH("/",'source-2b'!$A114) -2) -> E4X201_OIKDI | B115: =MID('source-2b'!$A114, FIND("/",'source-2b'!$A114)+1, FIND("-",'source-2b'!$A114) - FIND("/",'source-2b'!$A114)-1 ) -> 1 | C115: =MID('source-2b'!$A114, FIND("-",'source-2b'!$A114)+1, LEN('source-2b'!$A114) - FIND("-",'source-2b'!$A114)) -> 129 | D115: 129
A116: =MID('source-2b'!$A115,2, SEARCH("/",'source-2b'!$A115) -2) -> A7EWC3_SCLS1 | B116: =MID('source-2b'!$A115, FIND("/",'source-2b'!$A115)+1, FIND("-",'source-2b'!$A115) - FIND("/",'source-2b'!$A115)-1 ) -> 129 | C116: =MID('source-2b'!$A115, FIND("-",'source-2b'!$A115)+1, LEN('source-2b'!$A115) - FIND("-",'source-2b'!$A115)) -> 383 | D116: 255
A117: =MID('source-2b'!$A116,2, SEARCH("/",'source-2b'!$A116) -2) -> I1BS93_RHIO9 | B117: =MID('source-2b'!$A116, FIND("/",'source-2b'!$A116)+1, FIND("-",'source-2b'!$A116) - FIND("/",'source-2b'!$A116)-1 ) -> 684 | C117: =MID('source-2b'!$A116, FIND("-",'source-2b'!$A116)+1, LEN('source-2b'!$A116) - FIND("-",'source-2b'!$A116)) -> 881 | D117: 198
A118: =MID('source-2b'!$A117,2, SEARCH("/",'source-2b'!$A117) -2) -> C5KZI4_PERM5 | B118: =MID('source-2b'!$A117, FIND("/",'source-2b'!$A117)+1, FIND("-",'source-2b'!$A117) - FIND("/",'source-2b'!$A117)-1 ) -> 1 | C118: =MID('source-2b'!$A117, FIND("-",'source-2b'!$A117)+1, LEN('source-2b'!$A117) - FIND("-",'source-2b'!$A117)) -> 188 | D118: 188
A119: =MID('source-2b'!$A118,2, SEARCH("/",'source-2b'!$A118) -2) -> A7SLA7_NEMVE | B119: =MID('source-2b'!$A118, FIND("/",'source-2b'!$A118)+1, FIND("-",'source-2b'!$A118) - FIND("/",'source-2b'!$A118)-1 ) -> 163 | C119: =MID('source-2b'!$A118, FIND("-",'source-2b'!$A118)+1, LEN('source-2b'!$A118) - FIND("-",'source-2b'!$A118)) -> 257 | D119: 95
A120: =MID('source-2b'!$A119,2, SEARCH("/",'source-2b'!$A119) -2) -> A8PZP2_BRUMA | B120: =MID('source-2b'!$A119, FIND("/",'source-2b'!$A119)+1, FIND("-",'source-2b'!$A119) - FIND("/",'source-2b'!$A119)-1 ) -> 5 | C120: =MID('source-2b'!$A119, FIND("-",'source-2b'!$A119)+1, LEN('source-2b'!$A119) - FIND("-",'source-2b'!$A119)) -> 135 | D120: 131
A121: =MID('source-2b'!$A120,2, SEARCH("/",'source-2b'!$A120) -2) -> A4J3V8_DESRM | B121: =MID('source-2b'!$A120, FIND("/",'source-2b'!$A120)+1, FIND("-",'source-2b'!$A120) - FIND("/",'source-2b'!$A120)-1 ) -> 70 | C121: =MID('source-2b'!$A120, FIND("-",'source-2b'!$A120)+1, LEN('source-2b'!$A120) - FIND("-",'source-2b'!$A120)) -> 277 | D121: 208
A122: =MID('source-2b'!$A121,2, SEARCH("/",'source-2b'!$A121) -2) -> H3JCK3_STRPU | B122: =MID('source-2b'!$A121, FIND("/",'source-2b'!$A121)+1, FIND("-",'source-2b'!$A121) - FIND("/",'source-2b'!$A121)-1 ) -> 635 | C122: =MID('source-2b'!$A121, FIND("-",'source-2b'!$A121)+1, LEN('source-2b'!$A121) - FIND("-",'source-2b'!$A121)) -> 769 | D122: 135
A123: =MID('source-2b'!$A122,2, SEARCH("/",'source-2b'!$A122) -2) -> I1CRS6_RHIO9 | B123: =MID('source-2b'!$A122, FIND("/",'source-2b'!$A122)+1, FIND("-",'source-2b'!$A122) - FIND("/",'source-2b'!$A122)-1 ) -> 1003 | C123: =MID('source-2b'!$A122, FIND("-",'source-2b'!$A122)+1, LEN('source-2b'!$A122) - FIND("-",'source-2b'!$A122)) -> 1163 | D123: 161
A124: =MID('source-2b'!$A123,2, SEARCH("/",'source-2b'!$A123) -2) -> H3IQZ7_STRPU | B124: =MID('source-2b'!$A123, FIND("/",'source-2b'!$A123)+1, FIND("-",'source-2b'!$A123) - FIND("/",'source-2b'!$A123)-1 ) -> 1 | C124: =MID('source-2b'!$A123, FIND("-",'source-2b'!$A123)+1, LEN('source-2b'!$A123) - FIND("-",'source-2b'!$A123)) -> 133 | D124: 133
A125: =MID('source-2b'!$A124,2, SEARCH("/",'source-2b'!$A124) -2) -> D2CG20_TRICA | B125: =MID('source-2b'!$A124, FIND("/",'source-2b'!$A124)+1, FIND("-",'source-2b'!$A124) - FIND("/",'source-2b'!$A124)-1 ) -> 10 | C125: =MID('source-2b'!$A124, FIND("-",'source-2b'!$A124)+1, LEN('source-2b'!$A124) - FIND("-",'source-2b'!$A124)) -> 206 | D125: 197
A126: =MID('source-2b'!$A125,2, SEARCH("/",'source-2b'!$A125) -2) -> H3F0P5_PRIPA | B126: =MID('source-2b'!$A125, FIND("/",'source-2b'!$A125)+1, FIND("-",'source-2b'!$A125) - FIND("/",'source-2b'!$A125)-1 ) -> 3 | C126: =MID('source-2b'!$A125, FIND("-",'source-2b'!$A125)+1, LEN('source-2b'!$A125) - FIND("-",'source-2b'!$A125)) -> 85 | D126: 83
A127: =MID('source-2b'!$A126,2, SEARCH("/",'source-2b'!$A126) -2) -> H3IRH6_STRPU | B127: =MID('source-2b'!$A126, FIND("/",'source-2b'!$A126)+1, FIND("-",'source-2b'!$A126) - FIND("/",'source-2b'!$A126)-1 ) -> 2 | C127: =MID('source-2b'!$A126, FIND("-",'source-2b'!$A126)+1, LEN('source-2b'!$A126) - FIND("-",'source-2b'!$A126)) -> 214 | D127: 213
A128: =MID('source-2b'!$A127,2, SEARCH("/",'source-2b'!$A127) -2) -> E4XEH5_OIKDI | B128: =MID('source-2b'!$A127, FIND("/",'source-2b'!$A127)+1, FIND("-",'source-2b'!$A127) - FIND("/",'source-2b'!$A127)-1 ) -> 625 | C128: =MID('source-2b'!$A127, FIND("-",'source-2b'!$A127)+1, LEN('source-2b'!$A127) - FIND("-",'source-2b'!$A127)) -> 790 | D128: 166
A129: =MID('source-2b'!$A128,2, SEARCH("/",'source-2b'!$A128) -2) -> I1FGY3_AMPQE | B129: =MID('source-2b'!$A128, FIND("/",'source-2b'!$A128)+1, FIND("-",'source-2b'!$A128) - FIND("/",'source-2b'!$A128)-1 ) -> 3 | C129: =MID('source-2b'!$A128, FIND("-",'source-2b'!$A128)+1, LEN('source-2b'!$A128) - FIND("-",'source-2b'!$A128)) -> 186 | D129: 184
A130: =MID('source-2b'!$A129,2, SEARCH("/",'source-2b'!$A129) -2) -> I1F5N3_AMPQE | B130: =MID('source-2b'!$A129, FIND("/",'source-2b'!$A129)+1, FIND("-",'source-2b'!$A129) - FIND("/",'source-2b'!$A129)-1 ) -> 29 | C130: =MID('source-2b'!$A129, FIND("-",'source-2b'!$A129)+1, LEN('source-2b'!$A129) - FIND("-",'source-2b'!$A129)) -> 111 | D130: 83
A131: =MID('source-2b'!$A130,2, SEARCH("/",'source-2b'!$A130) -2) -> Q5A2V1_CANAL | B131: =MID('source-2b'!$A130, FIND("/",'source-2b'!$A130)+1, FIND("-",'source-2b'!$A130) - FIND("/",'source-2b'!$A130)-1 ) -> 293 | C131: =MID('source-2b'!$A130, FIND("-",'source-2b'!$A130)+1, LEN('source-2b'!$A130) - FIND("-",'source-2b'!$A130)) -> 454 | D131: =length($B131,$C131) -> 162
A132: =MID('source-2b'!$A131,2, SEARCH("/",'source-2b'!$A131) -2) -> H3IEA6_STRPU | B132: =MID('source-2b'!$A131, FIND("/",'source-2b'!$A131)+1, FIND("-",'source-2b'!$A131) - FIND("/",'source-2b'!$A131)-1 ) -> 581 | C132: =MID('source-2b'!$A131, FIND("-",'source-2b'!$A131)+1, LEN('source-2b'!$A131) - FIND("-",'source-2b'!$A131)) -> 741 | D132: 161
A133: =MID('source-2b'!$A132,2, SEARCH("/",'source-2b'!$A132) -2) -> H3H6I8_PHYRM | B133: =MID('source-2b'!$A132, FIND("/",'source-2b'!$A132)+1, FIND("-",'source-2b'!$A132) - FIND("/",'source-2b'!$A132)-1 ) -> 152 | C133: =MID('source-2b'!$A132, FIND("-",'source-2b'!$A132)+1, LEN('source-2b'!$A132) - FIND("-",'source-2b'!$A132)) -> 318 | D133: 167
A134: =MID('source-2b'!$A133,2, SEARCH("/",'source-2b'!$A133) -2) -> E4XQC9_OIKDI | B134: =MID('source-2b'!$A133, FIND("/",'source-2b'!$A133)+1, FIND("-",'source-2b'!$A133) - FIND("/",'source-2b'!$A133)-1 ) -> 188 | C134: =MID('source-2b'!$A133, FIND("-",'source-2b'!$A133)+1, LEN('source-2b'!$A133) - FIND("-",'source-2b'!$A133)) -> 348 | D134: 161
A135: =MID('source-2b'!$A134,2, SEARCH("/",'source-2b'!$A134) -2) -> E5SXL0_TRISP | B135: =MID('source-2b'!$A134, FIND("/",'source-2b'!$A134)+1, FIND("-",'source-2b'!$A134) - FIND("/",'source-2b'!$A134)-1 ) -> 13 | C135: =MID('source-2b'!$A134, FIND("-",'source-2b'!$A134)+1, LEN('source-2b'!$A134) - FIND("-",'source-2b'!$A134)) -> 174 | D135: 162
A136: =MID('source-2b'!$A135,2, SEARCH("/",'source-2b'!$A135) -2) -> B7QBI4_IXOSC | B136: =MID('source-2b'!$A135, FIND("/",'source-2b'!$A135)+1, FIND("-",'source-2b'!$A135) - FIND("/",'source-2b'!$A135)-1 ) -> 414 | C136: =MID('source-2b'!$A135, FIND("-",'source-2b'!$A135)+1, LEN('source-2b'!$A135) - FIND("-",'source-2b'!$A135)) -> 562 | D136: 149
A137: =MID('source-2b'!$A136,2, SEARCH("/",'source-2b'!$A136) -2) -> H3JHM9_STRPU | B137: =MID('source-2b'!$A136, FIND("/",'source-2b'!$A136)+1, FIND("-",'source-2b'!$A136) - FIND("/",'source-2b'!$A136)-1 ) -> 480 | C137: =MID('source-2b'!$A136, FIND("-",'source-2b'!$A136)+1, LEN('source-2b'!$A136) - FIND("-",'source-2b'!$A136)) -> 729 | D137: 250
A138: =MID('source-2b'!$A137,2, SEARCH("/",'source-2b'!$A137) -2) -> F2G4W7_ALTMD | B138: =MID('source-2b'!$A137, FIND("/",'source-2b'!$A137)+1, FIND("-",'source-2b'!$A137) - FIND("/",'source-2b'!$A137)-1 ) -> 71 | C138: =MID('source-2b'!$A137, FIND("-",'source-2b'!$A137)+1, LEN('source-2b'!$A137) - FIND("-",'source-2b'!$A137)) -> 280 | D138: 210
A139: =MID('source-2b'!$A138,2, SEARCH("/",'source-2b'!$A138) -2) -> H3IDE9_STRPU | B139: =MID('source-2b'!$A138, FIND("/",'source-2b'!$A138)+1, FIND("-",'source-2b'!$A138) - FIND("/",'source-2b'!$A138)-1 ) -> 172 | C139: =MID('source-2b'!$A138, FIND("-",'source-2b'!$A138)+1, LEN('source-2b'!$A138) - FIND("-",'source-2b'!$A138)) -> 324 | D139: 153
A140: =MID('source-2b'!$A139,2, SEARCH("/",'source-2b'!$A139) -2) -> I1BIH1_RHIO9 | B140: =MID('source-2b'!$A139, FIND("/",'source-2b'!$A139)+1, FIND("-",'source-2b'!$A139) - FIND("/",'source-2b'!$A139)-1 ) -> 758 | C140: =MID('source-2b'!$A139, FIND("-",'source-2b'!$A139)+1, LEN('source-2b'!$A139) - FIND("-",'source-2b'!$A139)) -> 854 | D140: 97
A141: =MID('source-2b'!$A140,2, SEARCH("/",'source-2b'!$A140) -2) -> C5KCK3_PERM5 | B141: =MID('source-2b'!$A140, FIND("/",'source-2b'!$A140)+1, FIND("-",'source-2b'!$A140) - FIND("/",'source-2b'!$A140)-1 ) -> 879 | C141: =MID('source-2b'!$A140, FIND("-",'source-2b'!$A140)+1, LEN('source-2b'!$A140) - FIND("-",'source-2b'!$A140)) -> 1028 | D141: 150
A142: =MID('source-2b'!$A141,2, SEARCH("/",'source-2b'!$A141) -2) -> F2IGZ5_FLUTR | B142: =MID('source-2b'!$A141, FIND("/",'source-2b'!$A141)+1, FIND("-",'source-2b'!$A141) - FIND("/",'source-2b'!$A141)-1 ) -> 77 | C142: =MID('source-2b'!$A141, FIND("-",'source-2b'!$A141)+1, LEN('source-2b'!$A141) - FIND("-",'source-2b'!$A141)) -> 385 | D142: 309
A143: =MID('source-2b'!$A142,2, SEARCH("/",'source-2b'!$A142) -2) -> D8Q933_SCHCM | B143: =MID('source-2b'!$A142, FIND("/",'source-2b'!$A142)+1, FIND("-",'source-2b'!$A142) - FIND("/",'source-2b'!$A142)-1 ) -> 386 | C143: =MID('source-2b'!$A142, FIND("-",'source-2b'!$A142)+1, LEN('source-2b'!$A142) - FIND("-",'source-2b'!$A142)) -> 604 | D143: 219
A144: =MID('source-2b'!$A143,2, SEARCH("/",'source-2b'!$A143) -2) -> E0VA19_PEDHC | B144: =MID('source-2b'!$A143, FIND("/",'source-2b'!$A143)+1, FIND("-",'source-2b'!$A143) - FIND("/",'source-2b'!$A143)-1 ) -> 68 | C144: =MID('source-2b'!$A143, FIND("-",'source-2b'!$A143)+1, LEN('source-2b'!$A143) - FIND("-",'source-2b'!$A143)) -> 328 | D144: 261
A145: =MID('source-2b'!$A144,2, SEARCH("/",'source-2b'!$A144) -2) -> E4XCL8_OIKDI | B145: =MID('source-2b'!$A144, FIND("/",'source-2b'!$A144)+1, FIND("-",'source-2b'!$A144) - FIND("/",'source-2b'!$A144)-1 ) -> 17 | C145: =MID('source-2b'!$A144, FIND("-",'source-2b'!$A144)+1, LEN('source-2b'!$A144) - FIND("-",'source-2b'!$A144)) -> 183 | D145: 167
A146: =MID('source-2b'!$A145,2, SEARCH("/",'source-2b'!$A145) -2) -> Q9KPI3_VIBCH | B146: =MID('source-2b'!$A145, FIND("/",'source-2b'!$A145)+1, FIND("-",'source-2b'!$A145) - FIND("/",'source-2b'!$A145)-1 ) -> 46 | C146: =MID('source-2b'!$A145, FIND("-",'source-2b'!$A145)+1, LEN('source-2b'!$A145) - FIND("-",'source-2b'!$A145)) -> 252 | D146: 207
A147: =MID('source-2b'!$A146,2, SEARCH("/",'source-2b'!$A146) -2) -> H3J678_STRPU | B147: =MID('source-2b'!$A146, FIND("/",'source-2b'!$A146)+1, FIND("-",'source-2b'!$A146) - FIND("/",'source-2b'!$A146)-1 ) -> 2 | C147: =MID('source-2b'!$A146, FIND("-",'source-2b'!$A146)+1, LEN('source-2b'!$A146) - FIND("-",'source-2b'!$A146)) -> 137 | D147: 136
A148: =MID('source-2b'!$A147,2, SEARCH("/",'source-2b'!$A147) -2) -> F9W9M7_TRYCI | B148: =MID('source-2b'!$A147, FIND("/",'source-2b'!$A147)+1, FIND("-",'source-2b'!$A147) - FIND("/",'source-2b'!$A147)-1 ) -> 48 | C148: =MID('source-2b'!$A147, FIND("-",'source-2b'!$A147)+1, LEN('source-2b'!$A147) - FIND("-",'source-2b'!$A147)) -> 224 | D148: 177
A149: =MID('source-2b'!$A148,2, SEARCH("/",'source-2b'!$A148) -2) -> A7F0G4_SCLS1 | B149: =MID('source-2b'!$A148, FIND("/",'source-2b'!$A148)+1, FIND("-",'source-2b'!$A148) - FIND("/",'source-2b'!$A148)-1 ) -> 776 | C149: =MID('source-2b'!$A148, FIND("-",'source-2b'!$A148)+1, LEN('source-2b'!$A148) - FIND("-",'source-2b'!$A148)) -> 1035 | D149: 260
A150: =MID('source-2b'!$A149,2, SEARCH("/",'source-2b'!$A149) -2) -> H3IH46_STRPU | B150: =MID('source-2b'!$A149, FIND("/",'source-2b'!$A149)+1, FIND("-",'source-2b'!$A149) - FIND("/",'source-2b'!$A149)-1 ) -> 254 | C150: =MID('source-2b'!$A149, FIND("-",'source-2b'!$A149)+1, LEN('source-2b'!$A149) - FIND("-",'source-2b'!$A149)) -> 499 | D150: 246
A151: =MID('source-2b'!$A150,2, SEARCH("/",'source-2b'!$A150) -2) -> H3JP35_STRPU | B151: =MID('source-2b'!$A150, FIND("/",'source-2b'!$A150)+1, FIND("-",'source-2b'!$A150) - FIND("/",'source-2b'!$A150)-1 ) -> 369 | C151: =MID('source-2b'!$A150, FIND("-",'source-2b'!$A150)+1, LEN('source-2b'!$A150) - FIND("-",'source-2b'!$A150)) -> 531 | D151: 163
A152: =MID('source-2b'!$A151,2, SEARCH("/",'source-2b'!$A151) -2) -> H3HT90_STRPU | B152: =MID('source-2b'!$A151, FIND("/",'source-2b'!$A151)+1, FIND("-",'source-2b'!$A151) - FIND("/",'source-2b'!$A151)-1 ) -> 4 | C152: =MID('source-2b'!$A151, FIND("-",'source-2b'!$A151)+1, LEN('source-2b'!$A151) - FIND("-",'source-2b'!$A151)) -> 105 | D152: 102
A153: =MID('source-2b'!$A152,2, SEARCH("/",'source-2b'!$A152) -2) -> H3HA55_PHYRM | B153: =MID('source-2b'!$A152, FIND("/",'source-2b'!$A152)+1, FIND("-",'source-2b'!$A152) - FIND("/",'source-2b'!$A152)-1 ) -> 37 | C153: =MID('source-2b'!$A152, FIND("-",'source-2b'!$A152)+1, LEN('source-2b'!$A152) - FIND("-",'source-2b'!$A152)) -> 204 | D153: 168
A154: =MID('source-2b'!$A153,2, SEARCH("/",'source-2b'!$A153) -2) -> F2I625_AERUA | B154: =MID('source-2b'!$A153, FIND("/",'source-2b'!$A153)+1, FIND("-",'source-2b'!$A153) - FIND("/",'source-2b'!$A153)-1 ) -> 111 | C154: =MID('source-2b'!$A153, FIND("-",'source-2b'!$A153)+1, LEN('source-2b'!$A153) - FIND("-",'source-2b'!$A153)) -> 328 | D154: 218
A155: =MID('source-2b'!$A154,2, SEARCH("/",'source-2b'!$A154) -2) -> C5KHR7_PERM5 | B155: =MID('source-2b'!$A154, FIND("/",'source-2b'!$A154)+1, FIND("-",'source-2b'!$A154) - FIND("/",'source-2b'!$A154)-1 ) -> 26 | C155: =MID('source-2b'!$A154, FIND("-",'source-2b'!$A154)+1, LEN('source-2b'!$A154) - FIND("-",'source-2b'!$A154)) -> 186 | D155: 161
A156: =MID('source-2b'!$A155,2, SEARCH("/",'source-2b'!$A155) -2) -> I1E5Y4_AMPQE | B156: =MID('source-2b'!$A155, FIND("/",'source-2b'!$A155)+1, FIND("-",'source-2b'!$A155) - FIND("/",'source-2b'!$A155)-1 ) -> 1 | C156: =MID('source-2b'!$A155, FIND("-",'source-2b'!$A155)+1, LEN('source-2b'!$A155) - FIND("-",'source-2b'!$A155)) -> 230 | D156: 230
A157: =MID('source-2b'!$A156,2, SEARCH("/",'source-2b'!$A156) -2) -> A7E5Y1_SCLS1 | B157: =MID('source-2b'!$A156, FIND("/",'source-2b'!$A156)+1, FIND("-",'source-2b'!$A156) - FIND("/",'source-2b'!$A156)-1 ) -> 34 | C157: =MID('source-2b'!$A156, FIND("-",'source-2b'!$A156)+1, LEN('source-2b'!$A156) - FIND("-",'source-2b'!$A156)) -> 147 | D157: 114
A158: =MID('source-2b'!$A157,2, SEARCH("/",'source-2b'!$A157) -2) -> H3J325_STRPU | B158: =MID('source-2b'!$A157, FIND("/",'source-2b'!$A157)+1, FIND("-",'source-2b'!$A157) - FIND("/",'source-2b'!$A157)-1 ) -> 67 | C158: =MID('source-2b'!$A157, FIND("-",'source-2b'!$A157)+1, LEN('source-2b'!$A157) - FIND("-",'source-2b'!$A157)) -> 246 | D158: 180
A159: =MID('source-2b'!$A158,2, SEARCH("/",'source-2b'!$A158) -2) -> H3H0G2_PHYRM | B159: =MID('source-2b'!$A158, FIND("/",'source-2b'!$A158)+1, FIND("-",'source-2b'!$A158) - FIND("/",'source-2b'!$A158)-1 ) -> 259 | C159: =MID('source-2b'!$A158, FIND("-",'source-2b'!$A158)+1, LEN('source-2b'!$A158) - FIND("-",'source-2b'!$A158)) -> 433 | D159: 175
A160: =MID('source-2b'!$A159,2, SEARCH("/",'source-2b'!$A159) -2) -> D2CG41_TRICA | B160: =MID('source-2b'!$A159, FIND("/",'source-2b'!$A159)+1, FIND("-",'source-2b'!$A159) - FIND("/",'source-2b'!$A159)-1 ) -> 348 | C160: =MID('source-2b'!$A159, FIND("-",'source-2b'!$A159)+1, LEN('source-2b'!$A159) - FIND("-",'source-2b'!$A159)) -> 434 | D160: 87
A161: =MID('source-2b'!$A160,2, SEARCH("/",'source-2b'!$A160) -2) -> E2LQR5_MONPE | B161: =MID('source-2b'!$A160, FIND("/",'source-2b'!$A160)+1, FIND("-",'source-2b'!$A160) - FIND("/",'source-2b'!$A160)-1 ) -> 216 | C161: =MID('source-2b'!$A160, FIND("-",'source-2b'!$A160)+1, LEN('source-2b'!$A160) - FIND("-",'source-2b'!$A160)) -> 422 | D161: 207
A162: =MID('source-2b'!$A161,2, SEARCH("/",'source-2b'!$A161) -2) -> I1CKV5_RHIO9 | B162: =MID('source-2b'!$A161, FIND("/",'source-2b'!$A161)+1, FIND("-",'source-2b'!$A161) - FIND("/",'source-2b'!$A161)-1 ) -> 314 | C162: =MID('source-2b'!$A161, FIND("-",'source-2b'!$A161)+1, LEN('source-2b'!$A161) - FIND("-",'source-2b'!$A161)) -> 589 | D162: 276
A163: =MID('source-2b'!$A162,2, SEARCH("/",'source-2b'!$A162) -2) -> Q59JU5_CANAL | B163: =MID('source-2b'!$A162, FIND("/",'source-2b'!$A162)+1, FIND("-",'source-2b'!$A162) - FIND("/",'source-2b'!$A162)-1 ) -> 11 | C163: =MID('source-2b'!$A162, FIND("-",'source-2b'!$A162)+1, LEN('source-2b'!$A162) - FIND("-",'source-2b'!$A162)) -> 224 | D163: 214
A164: =MID('source-2b'!$A163,2, SEARCH("/",'source-2b'!$A163) -2) -> A7S0X8_NEMVE | B164: =MID('source-2b'!$A163, FIND("/",'source-2b'!$A163)+1, FIND("-",'source-2b'!$A163) - FIND("/",'source-2b'!$A163)-1 ) -> 207 | C164: =MID('source-2b'!$A163, FIND("-",'source-2b'!$A163)+1, LEN('source-2b'!$A163) - FIND("-",'source-2b'!$A163)) -> 358 | D164: 152
A165: =MID('source-2b'!$A164,2, SEARCH("/",'source-2b'!$A164) -2) -> I1F7X8_AMPQE | B165: =MID('source-2b'!$A164, FIND("/",'source-2b'!$A164)+1, FIND("-",'source-2b'!$A164) - FIND("/",'source-2b'!$A164)-1 ) -> 8 | C165: =MID('source-2b'!$A164, FIND("-",'source-2b'!$A164)+1, LEN('source-2b'!$A164) - FIND("-",'source-2b'!$A164)) -> 118 | D165: 111
A166: =MID('source-2b'!$A165,2, SEARCH("/",'source-2b'!$A165) -2) -> G0T1W7_RHOG2 | B166: =MID('source-2b'!$A165, FIND("/",'source-2b'!$A165)+1, FIND("-",'source-2b'!$A165) - FIND("/",'source-2b'!$A165)-1 ) -> 186 | C166: =MID('source-2b'!$A165, FIND("-",'source-2b'!$A165)+1, LEN('source-2b'!$A165) - FIND("-",'source-2b'!$A165)) -> 288 | D166: 103
A167: =MID('source-2b'!$A166,2, SEARCH("/",'source-2b'!$A166) -2) -> H3J3P8_STRPU | B167: =MID('source-2b'!$A166, FIND("/",'source-2b'!$A166)+1, FIND("-",'source-2b'!$A166) - FIND("/",'source-2b'!$A166)-1 ) -> 189 | C167: =MID('source-2b'!$A166, FIND("-",'source-2b'!$A166)+1, LEN('source-2b'!$A166) - FIND("-",'source-2b'!$A166)) -> 441 | D167: 253
A168: =MID('source-2b'!$A167,2, SEARCH("/",'source-2b'!$A167) -2) -> I1EUV6_AMPQE | B168: =MID('source-2b'!$A167, FIND("/",'source-2b'!$A167)+1, FIND("-",'source-2b'!$A167) - FIND("/",'source-2b'!$A167)-1 ) -> 1 | C168: =MID('source-2b'!$A167, FIND("-",'source-2b'!$A167)+1, LEN('source-2b'!$A167) - FIND("-",'source-2b'!$A167)) -> 70 | D168: 70
A169: =MID('source-2b'!$A168,2, SEARCH("/",'source-2b'!$A168) -2) -> B7PIQ5_IXOSC | B169: =MID('source-2b'!$A168, FIND("/",'source-2b'!$A168)+1, FIND("-",'source-2b'!$A168) - FIND("/",'source-2b'!$A168)-1 ) -> 82 | C169: =MID('source-2b'!$A168, FIND("-",'source-2b'!$A168)+1, LEN('source-2b'!$A168) - FIND("-",'source-2b'!$A168)) -> 172 | D169: 91
A170: =MID('source-2b'!$A169,2, SEARCH("/",'source-2b'!$A169) -2) -> I1C7G2_RHIO9 | B170: =MID('source-2b'!$A169, FIND("/",'source-2b'!$A169)+1, FIND("-",'source-2b'!$A169) - FIND("/",'source-2b'!$A169)-1 ) -> 2 | C170: =MID('source-2b'!$A169, FIND("-",'source-2b'!$A169)+1, LEN('source-2b'!$A169) - FIND("-",'source-2b'!$A169)) -> 219 | D170: 218
A171: =MID('source-2b'!$A170,2, SEARCH("/",'source-2b'!$A170) -2) -> D2A3B2_TRICA | B171: =MID('source-2b'!$A170, FIND("/",'source-2b'!$A170)+1, FIND("-",'source-2b'!$A170) - FIND("/",'source-2b'!$A170)-1 ) -> 10 | C171: =MID('source-2b'!$A170, FIND("-",'source-2b'!$A170)+1, LEN('source-2b'!$A170) - FIND("-",'source-2b'!$A170)) -> 116 | D171: 107
A172: =MID('source-2b'!$A171,2, SEARCH("/",'source-2b'!$A171) -2) -> Q5ATA1_EMENI | B172: =MID('source-2b'!$A171, FIND("/",'source-2b'!$A171)+1, FIND("-",'source-2b'!$A171) - FIND("/",'source-2b'!$A171)-1 ) -> 422 | C172: =MID('source-2b'!$A171, FIND("-",'source-2b'!$A171)+1, LEN('source-2b'!$A171) - FIND("-",'source-2b'!$A171)) -> 600 | D172: 179
A173: =MID('source-2b'!$A172,2, SEARCH("/",'source-2b'!$A172) -2) -> H3HLR8_STRPU | B173: =MID('source-2b'!$A172, FIND("/",'source-2b'!$A172)+1, FIND("-",'source-2b'!$A172) - FIND("/",'source-2b'!$A172)-1 ) -> 244 | C173: =MID('source-2b'!$A172, FIND("-",'source-2b'!$A172)+1, LEN('source-2b'!$A172) - FIND("-",'source-2b'!$A172)) -> 404 | D173: 161
A174: =MID('source-2b'!$A173,2, SEARCH("/",'source-2b'!$A173) -2) -> H3GJB5_PHYRM | B174: =MID('source-2b'!$A173, FIND("/",'source-2b'!$A173)+1, FIND("-",'source-2b'!$A173) - FIND("/",'source-2b'!$A173)-1 ) -> 151 | C174: =MID('source-2b'!$A173, FIND("-",'source-2b'!$A173)+1, LEN('source-2b'!$A173) - FIND("-",'source-2b'!$A173)) -> 318 | D174: 168
A175: =MID('source-2b'!$A174,2, SEARCH("/",'source-2b'!$A174) -2) -> H3IRD1_STRPU | B175: =MID('source-2b'!$A174, FIND("/",'source-2b'!$A174)+1, FIND("-",'source-2b'!$A174) - FIND("/",'source-2b'!$A174)-1 ) -> 327 | C175: =MID('source-2b'!$A174, FIND("-",'source-2b'!$A174)+1, LEN('source-2b'!$A174) - FIND("-",'source-2b'!$A174)) -> 487 | D175: 161
A176: =MID('source-2b'!$A175,2, SEARCH("/",'source-2b'!$A175) -2) -> Q2G689_NOVAD | B176: =MID('source-2b'!$A175, FIND("/",'source-2b'!$A175)+1, FIND("-",'source-2b'!$A175) - FIND("/",'source-2b'!$A175)-1 ) -> 89 | C176: =MID('source-2b'!$A175, FIND("-",'source-2b'!$A175)+1, LEN('source-2b'!$A175) - FIND("-",'source-2b'!$A175)) -> 369 | D176: 281
A177: =MID('source-2b'!$A176,2, SEARCH("/",'source-2b'!$A176) -2) -> H3IN38_STRPU | B177: =MID('source-2b'!$A176, FIND("/",'source-2b'!$A176)+1, FIND("-",'source-2b'!$A176) - FIND("/",'source-2b'!$A176)-1 ) -> 547 | C177: =MID('source-2b'!$A176, FIND("-",'source-2b'!$A176)+1, LEN('source-2b'!$A176) - FIND("-",'source-2b'!$A176)) -> 654 | D177: 108
A178: =MID('source-2b'!$A177,2, SEARCH("/",'source-2b'!$A177) -2) -> D7EJY0_TRICA | B178: =MID('source-2b'!$A177, FIND("/",'source-2b'!$A177)+1, FIND("-",'source-2b'!$A177) - FIND("/",'source-2b'!$A177)-1 ) -> 63 | C178: =MID('source-2b'!$A177, FIND("-",'source-2b'!$A177)+1, LEN('source-2b'!$A177) - FIND("-",'source-2b'!$A177)) -> 259 | D178: 197
A179: =MID('source-2b'!$A178,2, SEARCH("/",'source-2b'!$A178) -2) -> Q54EA8_DICDI | B179: =MID('source-2b'!$A178, FIND("/",'source-2b'!$A178)+1, FIND("-",'source-2b'!$A178) - FIND("/",'source-2b'!$A178)-1 ) -> 349 | C179: =MID('source-2b'!$A178, FIND("-",'source-2b'!$A178)+1, LEN('source-2b'!$A178) - FIND("-",'source-2b'!$A178)) -> 594 | D179: 246
A180: =MID('source-2b'!$A179,2, SEARCH("/",'source-2b'!$A179) -2) -> D7ELM0_TRICA | B180: =MID('source-2b'!$A179, FIND("/",'source-2b'!$A179)+1, FIND("-",'source-2b'!$A179) - FIND("/",'source-2b'!$A179)-1 ) -> 152 | C180: =MID('source-2b'!$A179, FIND("-",'source-2b'!$A179)+1, LEN('source-2b'!$A179) - FIND("-",'source-2b'!$A179)) -> 289 | D180: 138
A181: =MID('source-2b'!$A180,2, SEARCH("/",'source-2b'!$A180) -2) -> F9WEA1_TRYCI | B181: =MID('source-2b'!$A180, FIND("/",'source-2b'!$A180)+1, FIND("-",'source-2b'!$A180) - FIND("/",'source-2b'!$A180)-1 ) -> 2 | C181: =MID('source-2b'!$A180, FIND("-",'source-2b'!$A180)+1, LEN('source-2b'!$A180) - FIND("-",'source-2b'!$A180)) -> 141 | D181: 140
A182: =MID('source-2b'!$A181,2, SEARCH("/",'source-2b'!$A181) -2) -> H3GNY1_PHYRM | B182: =MID('source-2b'!$A181, FIND("/",'source-2b'!$A181)+1, FIND("-",'source-2b'!$A181) - FIND("/",'source-2b'!$A181)-1 ) -> 251 | C182: =MID('source-2b'!$A181, FIND("-",'source-2b'!$A181)+1, LEN('source-2b'!$A181) - FIND("-",'source-2b'!$A181)) -> 370 | D182: 120
A183: =MID('source-2b'!$A182,2, SEARCH("/",'source-2b'!$A182) -2) -> H3GXR2_PHYRM | B183: =MID('source-2b'!$A182, FIND("/",'source-2b'!$A182)+1, FIND("-",'source-2b'!$A182) - FIND("/",'source-2b'!$A182)-1 ) -> 126 | C183: =MID('source-2b'!$A182, FIND("-",'source-2b'!$A182)+1, LEN('source-2b'!$A182) - FIND("-",'source-2b'!$A182)) -> 329 | D183: 204
A184: =MID('source-2b'!$A183,2, SEARCH("/",'source-2b'!$A183) -2) -> I1F4M3_AMPQE | B184: =MID('source-2b'!$A183, FIND("/",'source-2b'!$A183)+1, FIND("-",'source-2b'!$A183) - FIND("/",'source-2b'!$A183)-1 ) -> 7 | C184: =MID('source-2b'!$A183, FIND("-",'source-2b'!$A183)+1, LEN('source-2b'!$A183) - FIND("-",'source-2b'!$A183)) -> 180 | D184: 174
A185: =MID('source-2b'!$A184,2, SEARCH("/",'source-2b'!$A184) -2) -> F5XT32_MICPN | B185: =MID('source-2b'!$A184, FIND("/",'source-2b'!$A184)+1, FIND("-",'source-2b'!$A184) - FIND("/",'source-2b'!$A184)-1 ) -> 127 | C185: =MID('source-2b'!$A184, FIND("-",'source-2b'!$A184)+1, LEN('source-2b'!$A184) - FIND("-",'source-2b'!$A184)) -> 347 | D185: 221
A186: =MID('source-2b'!$A185,2, SEARCH("/",'source-2b'!$A185) -2) -> H3IA50_STRPU | B186: =MID('source-2b'!$A185, FIND("/",'source-2b'!$A185)+1, FIND("-",'source-2b'!$A185) - FIND("/",'source-2b'!$A185)-1 ) -> 1 | C186: =MID('source-2b'!$A185, FIND("-",'source-2b'!$A185)+1, LEN('source-2b'!$A185) - FIND("-",'source-2b'!$A185)) -> 148 | D186: 148
A187: =MID('source-2b'!$A186,2, SEARCH("/",'source-2b'!$A186) -2) -> H3HYF0_STRPU | B187: =MID('source-2b'!$A186, FIND("/",'source-2b'!$A186)+1, FIND("-",'source-2b'!$A186) - FIND("/",'source-2b'!$A186)-1 ) -> 325 | C187: =MID('source-2b'!$A186, FIND("-",'source-2b'!$A186)+1, LEN('source-2b'!$A186) - FIND("-",'source-2b'!$A186)) -> 583 | D187: 259
A188: =MID('source-2b'!$A187,2, SEARCH("/",'source-2b'!$A187) -2) -> I1CL79_RHIO9 | B188: =MID('source-2b'!$A187, FIND("/",'source-2b'!$A187)+1, FIND("-",'source-2b'!$A187) - FIND("/",'source-2b'!$A187)-1 ) -> 827 | C188: =MID('source-2b'!$A187, FIND("-",'source-2b'!$A187)+1, LEN('source-2b'!$A187) - FIND("-",'source-2b'!$A187)) -> 992 | D188: 166
A189: =MID('source-2b'!$A188,2, SEARCH("/",'source-2b'!$A188) -2) -> H3J2A8_STRPU | B189: =MID('source-2b'!$A188, FIND("/",'source-2b'!$A188)+1, FIND("-",'source-2b'!$A188) - FIND("/",'source-2b'!$A188)-1 ) -> 732 | C189: =MID('source-2b'!$A188, FIND("-",'source-2b'!$A188)+1, LEN('source-2b'!$A188) - FIND("-",'source-2b'!$A188)) -> 980 | D189: 249
A190: =MID('source-2b'!$A189,2, SEARCH("/",'source-2b'!$A189) -2) -> Q55CH5_DICDI | B190: =MID('source-2b'!$A189, FIND("/",'source-2b'!$A189)+1, FIND("-",'source-2b'!$A189) - FIND("/",'source-2b'!$A189)-1 ) -> 391 | C190: =MID('source-2b'!$A189, FIND("-",'source-2b'!$A189)+1, LEN('source-2b'!$A189) - FIND("-",'source-2b'!$A189)) -> 640 | D190: 250
A191: =MID('source-2b'!$A190,2, SEARCH("/",'source-2b'!$A190) -2) -> I1CCG9_RHIO9 | B191: =MID('source-2b'!$A190, FIND("/",'source-2b'!$A190)+1, FIND("-",'source-2b'!$A190) - FIND("/",'source-2b'!$A190)-1 ) -> 657 | C191: =MID('source-2b'!$A190, FIND("-",'source-2b'!$A190)+1, LEN('source-2b'!$A190) - FIND("-",'source-2b'!$A190)) -> 819 | D191: 163
A192: =MID('source-2b'!$A191,2, SEARCH("/",'source-2b'!$A191) -2) -> I1CAN2_RHIO9 | B192: =MID('source-2b'!$A191, FIND("/",'source-2b'!$A191)+1, FIND("-",'source-2b'!$A191) - FIND("/",'source-2b'!$A191)-1 ) -> 694 | C192: =MID('source-2b'!$A191, FIND("-",'source-2b'!$A191)+1, LEN('source-2b'!$A191) - FIND("-",'source-2b'!$A191)) -> 894 | D192: 201
A193: =MID('source-2b'!$A192,2, SEARCH("/",'source-2b'!$A192) -2) -> H3I6D3_STRPU | B193: =MID('source-2b'!$A192, FIND("/",'source-2b'!$A192)+1, FIND("-",'source-2b'!$A192) - FIND("/",'source-2b'!$A192)-1 ) -> 1 | C193: =MID('source-2b'!$A192, FIND("-",'source-2b'!$A192)+1, LEN('source-2b'!$A192) - FIND("-",'source-2b'!$A192)) -> 98 | D193: 98
A194: =MID('source-2b'!$A193,2, SEARCH("/",'source-2b'!$A193) -2) -> H3IFG2_STRPU | B194: =MID('source-2b'!$A193, FIND("/",'source-2b'!$A193)+1, FIND("-",'source-2b'!$A193) - FIND("/",'source-2b'!$A193)-1 ) -> 30 | C194: =MID('source-2b'!$A193, FIND("-",'source-2b'!$A193)+1, LEN('source-2b'!$A193) - FIND("-",'source-2b'!$A193)) -> 189 | D194: 160
A195: =MID('source-2b'!$A194,2, SEARCH("/",'source-2b'!$A194) -2) -> I1CU45_RHIO9 | B195: =MID('source-2b'!$A194, FIND("/",'source-2b'!$A194)+1, FIND("-",'source-2b'!$A194) - FIND("/",'source-2b'!$A194)-1 ) -> 732 | C195: =MID('source-2b'!$A194, FIND("-",'source-2b'!$A194)+1, LEN('source-2b'!$A194) - FIND("-",'source-2b'!$A194)) -> 899 | D195: =length($B195,$C195) -> 168
A196: =MID('source-2b'!$A195,2, SEARCH("/",'source-2b'!$A195) -2) -> D2A3B6_TRICA | B196: =MID('source-2b'!$A195, FIND("/",'source-2b'!$A195)+1, FIND("-",'source-2b'!$A195) - FIND("/",'source-2b'!$A195)-1 ) -> 612 | C196: =MID('source-2b'!$A195, FIND("-",'source-2b'!$A195)+1, LEN('source-2b'!$A195) - FIND("-",'source-2b'!$A195)) -> 772 | D196: 161
A197: =MID('source-2b'!$A196,2, SEARCH("/",'source-2b'!$A196) -2) -> H3IYQ6_STRPU | B197: =MID('source-2b'!$A196, FIND("/",'source-2b'!$A196)+1, FIND("-",'source-2b'!$A196) - FIND("/",'source-2b'!$A196)-1 ) -> 7 | C197: =MID('source-2b'!$A196, FIND("-",'source-2b'!$A196)+1, LEN('source-2b'!$A196) - FIND("-",'source-2b'!$A196)) -> 140 | D197: 134
A198: =MID('source-2b'!$A197,2, SEARCH("/",'source-2b'!$A197) -2) -> C8VFC1_EMENI | B198: =MID('source-2b'!$A197, FIND("/",'source-2b'!$A197)+1, FIND("-",'source-2b'!$A197) - FIND("/",'source-2b'!$A197)-1 ) -> 551 | C198: =MID('source-2b'!$A197, FIND("-",'source-2b'!$A197)+1, LEN('source-2b'!$A197) - FIND("-",'source-2b'!$A197)) -> 712 | D198: 162
A199: =MID('source-2b'!$A198,2, SEARCH("/",'source-2b'!$A198) -2) -> H3J134_STRPU | B199: =MID('source-2b'!$A198, FIND("/",'source-2b'!$A198)+1, FIND("-",'source-2b'!$A198) - FIND("/",'source-2b'!$A198)-1 ) -> 449 | C199: =MID('source-2b'!$A198, FIND("-",'source-2b'!$A198)+1, LEN('source-2b'!$A198) - FIND("-",'source-2b'!$A198)) -> 700 | D199: 252
A200: =MID('source-2b'!$A199,2, SEARCH("/",'source-2b'!$A199) -2) -> I1C0Q6_RHIO9 | B200: =MID('source-2b'!$A199, FIND("/",'source-2b'!$A199)+1, FIND("-",'source-2b'!$A199) - FIND("/",'source-2b'!$A199)-1 ) -> 88 | C200: =MID('source-2b'!$A199, FIND("-",'source-2b'!$A199)+1, LEN('source-2b'!$A199) - FIND("-",'source-2b'!$A199)) -> 250 | D200: 163
... 3405 more rows

Sheet source-2b
A1: >E5T7U1_TRISP/3-140
A2: >A7T7U9_NEMVE/1-57
A3: >F8IBC0_SULAT/88-320
A4: >D7GYK1_TRICA/122-276
A5: >E2M003_MONPE/444-596
A6: >I1BIF0_RHIO9/243-528
A7: >H3J8E0_STRPU/39-144
A8: >I1BIX9_RHIO9/4-180
A9: >H3H9V3_PHYRM/100-201
A10: >F9Z8F3_ODOSD/69-268
A11: >H3IUA4_STRPU/2-125
A12: >Q5A773_CANAL/496-722
A13: >D2A3B1_TRICA/5-104
A14: >I1FMV6_AMPQE/1-122
A15: >C8VLF5_EMENI/572-637
A16: >H3H7N1_PHYRM/260-361
A17: >I1CIN4_RHIO9/368-531
A18: >Q55D27_DICDI/166-333
A19: >A7EM90_SCLS1/740-833
A20: >E4RTK6_LEAB4/123-330
A21: >I1C4U6_RHIO9/2-211
A22: >I1EBF7_AMPQE/1-159
A23: >Q54LM7_DICDI/85-334
A24: >A9VEJ8_MONBE/1-111
A25: >H3IRC6_STRPU/428-588
A26: >H3J2Y5_STRPU/251-515
A27: >D7EKG9_TRICA/21-186
A28: >Q9CA78_ARATH/118-371
A29: >I1C670_RHIO9/758-926
A30: >H3HN15_STRPU/1027-1190
A31: >E2LY92_MONPE/1-85
A32: >A7EPC5_SCLS1/166-418
A33: >G7YGH9_CLOSI/10-99
A34: >G7YIM1_CLOSI/382-463
A35: >H3HZB9_STRPU/525-685
A36: >E5SGQ8_TRISP/1-104
A37: >F9WJT7_TRYCI/1-233
A38: >D7GXY5_TRICA/683-845
A39: >H3ISG8_STRPU/252-411
A40: >I1EN70_AMPQE/59-216
A41: >Q550L0_DICDI/1-136
A42: >G7YC95_CLOSI/7-99
A43: >C7PE56_CHIPD/181-394
A44: >Q556X2_DICDI/391-640
A45: >Q024N3_SOLUE/94-316
A46: >I1CU67_RHIO9/450-738
A47: >E4X9I5_OIKDI/1903-2254
A48: >F9WBF6_TRYCI/18-183
A49: >E4X141_OIKDI/740-904
A50: >H3EIB2_PRIPA/629-842
A51: >H3HWP3_STRPU/123-370
A52: >G4TQ54_PIRID/444-646
A53: >H3GQB0_PHYRM/752-849
A54: >C4K431_HAMD5/115-331
A55: >I1C9U6_RHIO9/1-152
A56: >H3JH59_STRPU/746-906
A57: >H3HNX4_STRPU/789-949
A58: >I1EKU1_AMPQE/229-455
A59: >I1CNG3_RHIO9/732-899
A60: >D7EID3_TRICA/193-433
A61: >I1FW60_AMPQE/22-180
A62: >H3H7U3_PHYRM/236-379
A63: >Q55GX6_DICDI/364-523
A64: >D7GYB2_TRICA/85-200
A65: >H3HG19_STRPU/54-137
A66: >C5KRI1_PERM5/14-177
A67: >I1EYU7_AMPQE/72-248
A68: >H3JJW9_STRPU/672-818
A69: >H3JK88_STRPU/628-836
A70: >E3WRG8_ANODA/550-801
A71: >I1BQD7_RHIO9/316-568
A72: >C5L6U7_PERM5/180-312
A73: >H3HHD5_STRPU/1-216
A74: >A7SEG6_NEMVE/419-647
A75: >A8PYE9_BRUMA/787-953
A76: >H3I7K5_STRPU/340-497
A77: >G7YG25_CLOSI/279-437
A78: >I1CED0_RHIO9/1-243
A79: >I1G3N9_AMPQE/25-187
A80: >H3H2H5_PHYRM/152-318
A81: >H3J424_STRPU/419-579
A82: >I1FW84_AMPQE/14-115
A83: >H3IFF0_STRPU/1040-1239
A84: >I1G1R1_AMPQE/4-66
A85: >I1BL69_RHIO9/141-266
A86: >I1GJS4_AMPQE/8-156
A87: >Q7MTH7_PORGI/348-559
A88: >C5LX35_PERM5/50-232
A89: >E4XHY6_OIKDI/1209-1456
A90: >A7RRD7_NEMVE/1-103
A91: >I1EV08_AMPQE/73-243
A92: >H3HJB7_STRPU/1-88
A93: >I1CVZ3_RHIO9/159-319
A94: >A7ELY0_SCLS1/84-198
A95: >H3I122_STRPU/120-314
A96: >A9VEG2_MONBE/558-799
A97: >H3GU70_PHYRM/165-352
A98: >Q5BFZ4_EMENI/8-86
A99: >I1EWE1_AMPQE/76-290
A100: >H3IG06_STRPU/1-75
A101: >H3IQT8_STRPU/386-644
A102: >I1CFM4_RHIO9/666-862
A103: >H3GHY8_PHYRM/510-671
A104: >I1G0H7_AMPQE/151-294
A105: >E0VEY2_PEDHC/279-373
A106: >D3B7X1_POLPA/95-254
A107: >I1CCH3_RHIO9/149-313
A108: >I1CTW6_RHIO9/354-517
A109: >H3HNS2_STRPU/670-824
A110: >D6XTQ3_BACIE/67-274
A111: >D7EJM9_TRICA/896-1054
A112: >H3HN19_STRPU/1061-1219
A113: >A7ERU2_SCLS1/878-1130
A114: >E4X201_OIKDI/1-129
A115: >A7EWC3_SCLS1/129-383
A116: >I1BS93_RHIO9/684-881
A117: >C5KZI4_PERM5/1-188
A118: >A7SLA7_NEMVE/163-257
A119: >A8PZP2_BRUMA/5-135
A120: >A4J3V8_DESRM/70-277
A121: >H3JCK3_STRPU/635-769
A122: >I1CRS6_RHIO9/1003-1163
A123: >H3IQZ7_STRPU/1-133
A124: >D2CG20_TRICA/10-206
A125: >H3F0P5_PRIPA/3-85
A126: >H3IRH6_STRPU/2-214
A127: >E4XEH5_OIKDI/625-790
A128: >I1FGY3_AMPQE/3-186
A129: >I1F5N3_AMPQE/29-111
A130: >Q5A2V1_CANAL/293-454
A131: >H3IEA6_STRPU/581-741
A132: >H3H6I8_PHYRM/152-318
A133: >E4XQC9_OIKDI/188-348
A134: >E5SXL0_TRISP/13-174
A135: >B7QBI4_IXOSC/414-562
A136: >H3JHM9_STRPU/480-729
A137: >F2G4W7_ALTMD/71-280
A138: >H3IDE9_STRPU/172-324
A139: >I1BIH1_RHIO9/758-854
A140: >C5KCK3_PERM5/879-1028
A141: >F2IGZ5_FLUTR/77-385
A142: >D8Q933_SCHCM/386-604
A143: >E0VA19_PEDHC/68-328
A144: >E4XCL8_OIKDI/17-183
A145: >Q9KPI3_VIBCH/46-252
A146: >H3J678_STRPU/2-137
A147: >F9W9M7_TRYCI/48-224
A148: >A7F0G4_SCLS1/776-1035
A149: >H3IH46_STRPU/254-499
A150: >H3JP35_STRPU/369-531
A151: >H3HT90_STRPU/4-105
A152: >H3HA55_PHYRM/37-204
A153: >F2I625_AERUA/111-328
A154: >C5KHR7_PERM5/26-186
A155: >I1E5Y4_AMPQE/1-230
A156: >A7E5Y1_SCLS1/34-147
A157: >H3J325_STRPU/67-246
A158: >H3H0G2_PHYRM/259-433
A159: >D2CG41_TRICA/348-434
A160: >E2LQR5_MONPE/216-422
A161: >I1CKV5_RHIO9/314-589
A162: >Q59JU5_CANAL/11-224
A163: >A7S0X8_NEMVE/207-358
A164: >I1F7X8_AMPQE/8-118
A165: >G0T1W7_RHOG2/186-288
A166: >H3J3P8_STRPU/189-441
A167: >I1EUV6_AMPQE/1-70
A168: >B7PIQ5_IXOSC/82-172
A169: >I1C7G2_RHIO9/2-219
A170: >D2A3B2_TRICA/10-116
A171: >Q5ATA1_EMENI/422-600
A172: >H3HLR8_STRPU/244-404
A173: >H3GJB5_PHYRM/151-318
A174: >H3IRD1_STRPU/327-487
A175: >Q2G689_NOVAD/89-369
A176: >H3IN38_STRPU/547-654
A177: >D7EJY0_TRICA/63-259
A178: >Q54EA8_DICDI/349-594
A179: >D7ELM0_TRICA/152-289
A180: >F9WEA1_TRYCI/2-141
A181: >H3GNY1_PHYRM/251-370
A182: >H3GXR2_PHYRM/126-329
A183: >I1F4M3_AMPQE/7-180
A184: >F5XT32_MICPN/127-347
A185: >H3IA50_STRPU/1-148
A186: >H3HYF0_STRPU/325-583
A187: >I1CL79_RHIO9/827-992
A188: >H3J2A8_STRPU/732-980
A189: >Q55CH5_DICDI/391-640
A190: >I1CCG9_RHIO9/657-819
A191: >I1CAN2_RHIO9/694-894
A192: >H3I6D3_STRPU/1-98
A193: >H3IFG2_STRPU/30-189
A194: >I1CU45_RHIO9/732-899
A195: >D2A3B6_TRICA/612-772
A196: >H3IYQ6_STRPU/7-140
A197: >C8VFC1_EMENI/551-712
A198: >H3J134_STRPU/449-700
A199: >I1C0Q6_RHIO9/88-250
A200: >A0LK30_SYNFM/115-295
... 3404 more rows

Sheet 2с
A1: Organism Name | B1: Short Name
A2: Acaryochloris marina MBIC11017 | B2: =IF(SUM(LEN(A2),-LEN(SUBSTITUTE(A2," ","")))>1,CONCATENATE(LEFT(A2),".",MID(A2,FIND(" ",A2)+1,FIND("]",SUBSTITUTE(A2," ","]",2))-FIND(" ",A2)-1)),CONCATENATE(LEFT(A2),".",MID(A2,FIND(" ",A2)+1,LEN(A2)-FIND(" ",A2)))) -> A.marina
A3: Acetobacter ghanensis strain LMG 23848T | B3: =IF(SUM(LEN(A3),-LEN(SUBSTITUTE(A3," ","")))>1,CONCATENATE(LEFT(A3),".",MID(A3,FIND(" ",A3)+1,FIND("]",SUBSTITUTE(A3," ","]",2))-FIND(" ",A3)-1)),CONCATENATE(LEFT(A3),".",MID(A3,FIND(" ",A3)+1,LEN(A3)-FIND(" ",A3)))) -> A.ghanensis
A4: Acetobacter pasteurianus 386B | B4: A.pasteurianus
A5: Acetobacter pasteurianus IFO 3283-01 | B5: A.pasteurianus
A6: Acetobacter pasteurianus IFO 3283-01-42C | B6: A.pasteurianus
A7: Acetobacter pasteurianus IFO 3283-03 | B7: A.pasteurianus
A8: Acetobacter pasteurianus IFO 3283-07 | B8: A.pasteurianus
A9: Acetobacter pasteurianus IFO 3283-12 | B9: A.pasteurianus
A10: Acetobacter pasteurianus IFO 3283-22 | B10: A.pasteurianus
A11: Acetobacter pasteurianus IFO 3283-26 | B11: A.pasteurianus
A12: Acetobacter pasteurianus IFO 3283-32 | B12: A.pasteurianus
A13: Acetobacter pasteurianus strain Ab3 | B13: A.pasteurianus
A14: Acetobacter senegalensis strain 108B | B14: A.senegalensis
A15: Acetobacter sp. SLV-7 | B15: A.sp.
A16: Acetobacterium woodii DSM 1030 | B16: A.woodii
A17: Acetohalobium arabaticum DSM 5501 | B17: A.arabaticum
A18: Acholeplasma brassicae strain 0502 | B18: A.brassicae
A19: Acholeplasma laidlawii PG-8A | B19: A.laidlawii
A20: Acholeplasma oculi | B20: A.oculi
A21: Acholeplasma palmae J233 | B21: A.palmae
A22: Achromobacter denitrificans strain USDA-ARS-USMARC-56712 | B22: A.denitrificans
A23: Achromobacter xylosoxidans A8 | B23: A.xylosoxidans
A24: Achromobacter xylosoxidans C54 | B24: A.xylosoxidans
A25: Achromobacter xylosoxidans NBRC 15126 = ATCC 27061 | B25: A.xylosoxidans
A26: Achromobacter xylosoxidans NH44784-1996 | B26: A.xylosoxidans
A27: Achromobacter xylosoxidans strain FDAARGOS_147 | B27: A.xylosoxidans
A28: Achromobacter xylosoxidans strain FDAARGOS_150 | B28: A.xylosoxidans
A29: Achromobacter xylosoxidans strain FDAARGOS_162 | B29: A.xylosoxidans
A30: Achromobacter xylosoxidans strain MN001 | B30: A.xylosoxidans
A31: Achromobacter xylosoxidans strain NCTC10807 | B31: A.xylosoxidans
A32: Acidaminococcus fermentans DSM 20731 | B32: A.fermentans
A33: Acidaminococcus intestini RyC-MR95 | B33: A.intestini
A34: Acidianus hospitalis W1 | B34: A.hospitalis
A35: Acidilobus saccharovorans 345-15 | B35: A.saccharovorans
A36: Acidimicrobium ferrooxidans DSM 10331 | B36: A.ferrooxidans
A37: Acidiphilium cryptum JF-5 | B37: A.cryptum
A38: Acidiphilium multivorum AIU301 | B38: A.multivorum
A39: Acidithiobacillus caldus SM-1 | B39: A.caldus
A40: Acidithiobacillus ferrooxidans ATCC 23270 | B40: A.ferrooxidans
A41: Acidithiobacillus ferrooxidans ATCC 53993 | B41: A.ferrooxidans
A42: Acidobacteria bacterium DSM 100886 | B42: A.bacterium
A43: Acidobacteria bacterium Mor1 | B43: A.bacterium
A44: Acidobacterium capsulatum ATCC 51196 | B44: A.capsulatum
A45: Acidothermus cellulolyticus 11B | B45: A.cellulolyticus
A46: Acidovorax avenae subsp. avenae ATCC 19860 | B46: A.avenae
A47: Acidovorax citrulli AAC00-1 | B47: A.citrulli
A48: Acidovorax ebreus TPSY | B48: A.ebreus
A49: Acidovorax sp. JS42 | B49: A.sp.
A50: Acidovorax sp. KKS102 | B50: A.sp.
A51: Aciduliprofundum boonei T469 | B51: A.boonei
A52: Aciduliprofundum sp. MAR08-339 | B52: A.sp.
A53: Acinetobacter baumannii | B53: A.baumannii
A54: Acinetobacter baumannii | B54: A.baumannii
A55: Acinetobacter baumannii | B55: A.baumannii
A56: Acinetobacter baumannii 1656-2 | B56: A.baumannii
A57: Acinetobacter baumannii 6200 | B57: A.baumannii
A58: Acinetobacter baumannii 6411 | B58: A.baumannii
A59: Acinetobacter baumannii A1 | B59: A.baumannii
A60: Acinetobacter baumannii AB0057 | B60: A.baumannii
A61: Acinetobacter baumannii AB07 | B61: A.baumannii
A62: Acinetobacter baumannii AB307-0294 | B62: A.baumannii
A63: Acinetobacter baumannii AbH12O-A2 | B63: A.baumannii
A64: Acinetobacter baumannii ACICU | B64: A.baumannii
A65: Acinetobacter baumannii ATCC 17978 | B65: A.baumannii
A66: Acinetobacter baumannii AYE | B66: A.baumannii
A67: Acinetobacter baumannii BJAB07104 | B67: =IF(SUM(LEN(A67),-LEN(SUBSTITUTE(A67," ","")))>1,CONCATENATE(LEFT(A67),".",MID(A67,FIND(" ",A67)+1,FIND("]",SUBSTITUTE(A67," ","]",2))-FIND(" ",A67)-1)),CONCATENATE(LEFT(A67),".",MID(A67,FIND(" ",A67)+1,LEN(A67)-FIND(" ",A67)))) -> A.baumannii
A68: Acinetobacter baumannii BJAB0715 | B68: A.baumannii
A69: Acinetobacter baumannii BJAB0868 | B69: A.baumannii
A70: Acinetobacter baumannii IOMTU 433 | B70: A.baumannii
A71: Acinetobacter baumannii LAC-4 | B71: A.baumannii
A72: Acinetobacter baumannii MDR-ZJ06 | B72: A.baumannii
A73: Acinetobacter baumannii NCGM 237 | B73: A.baumannii
A74: Acinetobacter baumannii SDF | B74: A.baumannii
A75: Acinetobacter baumannii strain 3027STDY5784958 | B75: A.baumannii
A76: Acinetobacter baumannii strain 3207 | B76: A.baumannii
A77: Acinetobacter baumannii strain Ab04-mff | B77: A.baumannii
A78: Acinetobacter baumannii strain AB30 | B78: A.baumannii
A79: Acinetobacter baumannii strain AB31 | B79: A.baumannii
A80: Acinetobacter baumannii strain Ab421_GEIH-2010 | B80: A.baumannii
A81: Acinetobacter baumannii strain AB5075-UW | B81: A.baumannii
A82: Acinetobacter baumannii strain AC29 | B82: A.baumannii
A83: Acinetobacter baumannii strain ATCC 17978-mff | B83: A.baumannii
A84: Acinetobacter baumannii strain B8300 | B84: A.baumannii
A85: Acinetobacter baumannii strain B8342 | B85: A.baumannii
A86: Acinetobacter baumannii strain CR17 | B86: A.baumannii
A87: Acinetobacter baumannii strain CSO1 | B87: A.baumannii
A88: Acinetobacter baumannii strain D36 | B88: A.baumannii
A89: Acinetobacter baumannii strain KBN10P02143 | B89: A.baumannii
A90: Acinetobacter baumannii strain XH386 | B90: A.baumannii
A91: Acinetobacter baumannii strain XH856 | B91: A.baumannii
A92: Acinetobacter baumannii strain XH857 | B92: A.baumannii
A93: Acinetobacter baumannii strain XH858 | B93: A.baumannii
A94: Acinetobacter baumannii strain XH859 | B94: A.baumannii
A95: Acinetobacter baumannii strain XH860 | B95: A.baumannii
A96: Acinetobacter baumannii strain YU-R612 | B96: A.baumannii
A97: Acinetobacter baumannii TCDC-AB0715 | B97: A.baumannii
A98: Acinetobacter baumannii TYTH-1 | B98: A.baumannii
A99: Acinetobacter baumannii ZW85-1 | B99: A.baumannii
A100: Acinetobacter calcoaceticus PHEA-2 | B100: A.calcoaceticus
A101: Acinetobacter johnsonii XBB1 | B101: A.johnsonii
A102: Acinetobacter nosocomialis strain 6411 | B102: A.nosocomialis
A103: Acinetobacter oleivorans DR1 | B103: A.oleivorans
A104: Acinetobacter pittii strain AP_882 | B104: A.pittii
A105: Acinetobacter pittii strain IEC338SC | B105: A.pittii
A106: Acinetobacter sp. 114 | B106: A.sp.
A107: Acinetobacter sp. ADP1 | B107: A.sp.
A108: Acinetobacter sp. DUT-2 | B108: A.sp.
A109: Acinetobacter sp. NCu2D-2 | B109: A.sp.
A110: Acinetobacter sp. TGL-Y2 | B110: A.sp.
A111: Acinetobacter sp. TTH0-4 | B111: A.sp.
A112: Acinetobacter venetianus VE-C3 | B112: A.venetianus
A113: Actinobacillus equuli subsp. equuli 19392 | B113: A.equuli
A114: Actinobacillus pleuropneumoniae serovar 3 str. JL03 | B114: A.pleuropneumoniae
A115: Actinobacillus pleuropneumoniae serovar 5b str. L20 | B115: A.pleuropneumoniae
A116: Actinobacillus pleuropneumoniae serovar 7 str. AP76 | B116: A.pleuropneumoniae
A117: Actinobacillus pleuropneumoniae serovar 8 | B117: A.pleuropneumoniae
A118: Actinobacillus succinogenes 130Z | B118: A.succinogenes
A119: Actinobacillus suis ATCC 33415 | B119: A.suis
A120: Actinobacillus suis H91-0380 | B120: A.suis
A121: Actinobacteria bacterium IMCC26256 | B121: A.bacterium
A122: Actinobaculum schaalii strain CCUG 27420 | B122: A.schaalii
A123: Actinomyces meyeri strain W712 | B123: A.meyeri
A124: Actinomyces oris strain T14V | B124: A.oris
A125: Actinomyces radicidentis strain CCUG 36733 | B125: A.radicidentis
A126: Actinomyces sp. oral taxon 414 strain F0588 | B126: A.sp.
A127: Actinoplanes friuliensis DSM 7358 | B127: A.friuliensis
A128: Actinoplanes missouriensis 431 | B128: A.missouriensis
A129: Actinoplanes sp. N902-109 | B129: A.sp.
A130: Actinoplanes sp. SE50/110 | B130: A.sp.
A131: Actinosynnema mirum DSM 43827 | B131: =IF(SUM(LEN(A131),-LEN(SUBSTITUTE(A131," ","")))>1,CONCATENATE(LEFT(A131),".",MID(A131,FIND(" ",A131)+1,FIND("]",SUBSTITUTE(A131," ","]",2))-FIND(" ",A131)-1)),CONCATENATE(LEFT(A131),".",MID(A131,FIND(" ",A131)+1,LEN(A131)-FIND(" ",A131)))) -> A.mirum
A132: Adlercreutzia equolifaciens DSM 19450 | B132: A.equolifaciens
A133: Advenella mimigardefordensis DPN7 | B133: A.mimigardefordensis
A134: Aequorivita sublithincola DSM 14238 | B134: A.sublithincola
A135: Aerococcus christensenii strain CCUG28831 | B135: A.christensenii
A136: Aerococcus sanguinicola strain CCUG43001 | B136: A.sanguinicola
A137: Aerococcus urinae ACS-120-V-Col10a | B137: A.urinae
A138: Aerococcus urinae strain CCUG36881 | B138: A.urinae
A139: Aerococcus urinaeequi strain CCUG28094 | B139: A.urinaeequi
A140: Aerococcus urinaeequi strain USDA-ARS-USMARC-56713 | B140: A.urinaeequi
A141: Aerococcus urinaehominis strain CCUG42038B | B141: A.urinaehominis
A142: Aerococcus viridans strain CCUG4311 | B142: A.viridans
A143: Aeromicrobium erythreum strain AR18 | B143: A.erythreum
A144: Aeromicrobium sp. Root236 | B144: A.sp.
A145: Aeromicrobium sp. Root344 | B145: A.sp.
A146: Aeromonas caviae strain FDAARGOS_72 | B146: A.caviae
A147: Aeromonas caviae strain FDAARGOS_75 | B147: A.caviae
A148: Aeromonas hydrophila 4AK4 | B148: A.hydrophila
A149: Aeromonas hydrophila AL09-71 | B149: A.hydrophila
A150: Aeromonas hydrophila J-1 | B150: A.hydrophila
A151: Aeromonas hydrophila ML09-119 | B151: A.hydrophila
A152: Aeromonas hydrophila NJ-35 | B152: A.hydrophila
A153: Aeromonas hydrophila pc104A | B153: A.hydrophila
A154: Aeromonas hydrophila strain AH10 | B154: A.hydrophila
A155: Aeromonas hydrophila strain AL06-06 | B155: A.hydrophila
A156: Aeromonas hydrophila strain D4 | B156: A.hydrophila
A157: Aeromonas hydrophila strain JBN2301 | B157: A.hydrophila
A158: Aeromonas hydrophila subsp. hydrophila ATCC 7966 | B158: A.hydrophila
A159: Aeromonas hydrophila YL17 | B159: A.hydrophila
A160: Aeromonas salmonicida subsp. salmonicida A449 | B160: A.salmonicida
A161: Aeromonas schubertii strain WL1483 | B161: A.schubertii
A162: Aeromonas veronii B565 | B162: A.veronii
A163: Aeromonas veronii strain AVNIH1 | B163: A.veronii
A164: Aeromonas veronii strain CB51 | B164: A.veronii
A165: Aeromonas veronii strain TH0426 | B165: A.veronii
A166: Aeropyrum camini SY1 = JCM 12091 | B166: A.camini
A167: Aeropyrum pernix K1 | B167: A.pernix
A168: Agarivorans gilvus strain WH0801 | B168: A.gilvus
A169: Aggregatibacter actinomycetemcomitans ANH9381 | B169: A.actinomycetemcomitans
A170: Aggregatibacter actinomycetemcomitans D11S-1 | B170: A.actinomycetemcomitans
A171: Aggregatibacter actinomycetemcomitans HK1651 | B171: A.actinomycetemcomitans
A172: Aggregatibacter actinomycetemcomitans HK1651 | B172: A.actinomycetemcomitans
A173: Aggregatibacter actinomycetemcomitans NUM4039 | B173: A.actinomycetemcomitans
A174: Aggregatibacter actinomycetemcomitans strain 624 | B174: A.actinomycetemcomitans
A175: Aggregatibacter actinomycetemcomitans strain VT1169 | B175: A.actinomycetemcomitans
A176: Aggregatibacter aphrophilus NJ8700 | B176: A.aphrophilus
A177: Aggregatibacter aphrophilus NJ8700 | B177: A.aphrophilus
A178: Aggregatibacter aphrophilus strain W10433 | B178: A.aphrophilus
A179: Agrobacterium fabrum str. C58 | B179: A.fabrum
A180: Agrobacterium radiobacter K84 | B180: A.radiobacter
A181: Agrobacterium sp. H13-3 | B181: A.sp.
A182: Agrobacterium tumefaciens LBA4213 (Ach5) | B182: A.tumefaciens
A183: Agrobacterium tumefaciens P4 | B183: A.tumefaciens
A184: Agrobacterium tumefaciens strain Ach5 | B184: A.tumefaciens
A185: Agrobacterium tumefaciens strain S33 | B185: A.tumefaciens
A186: Agrobacterium vitis S4 | B186: A.vitis
A187: Agromyces sp. AR33 | B187: A.sp.
A188: Akkermansia muciniphila ATCC BAA-835 | B188: A.muciniphila
A189: Alcanivorax borkumensis SK2 | B189: A.borkumensis
A190: Alcanivorax dieselolei B5 | B190: A.dieselolei
A191: Alcanivorax sp. NBRC 101098 | B191: A.sp.
A192: Algibacter sp. HZ22 | B192: A.sp.
A193: Algoriphagus sp. M8-2 | B193: A.sp.
A194: Alicycliphilus denitrificans BC | B194: A.denitrificans
A195: Alicycliphilus denitrificans K601 | B195: =IF(SUM(LEN(A195),-LEN(SUBSTITUTE(A195," ","")))>1,CONCATENATE(LEFT(A195),".",MID(A195,FIND(" ",A195)+1,FIND("]",SUBSTITUTE(A195," ","]",2))-FIND(" ",A195)-1)),CONCATENATE(LEFT(A195),".",MID(A195,FIND(" ",A195)+1,LEN(A195)-FIND(" ",A195)))) -> A.denitrificans
A196: Alicyclobacillus acidocaldarius subsp. acidocaldarius DSM 446 | B196: A.acidocaldarius
A197: Alicyclobacillus acidocaldarius subsp. acidocaldarius Tc-4-1 | B197: A.acidocaldarius
A198: Aliivibrio salmonicida LFI1238 | B198: A.salmonicida
A199: Aliivibrio wodanis strain 06/09/139 | B199: A.wodanis
A200: Alistipes finegoldii DSM 17242 | B200: A.finegoldii
... 5944 more rows

Sheet 3a
A1: Нуклеотид | B1: Число встреч | C1: Процент от общего числа нуклеотидов
A2: A | B2: =COUNTIF('source-3a'!$A$2:$A$661,$A2) -> 119 | C2: =$B2/SUM($B$2:$B$5) -> 0.1803030303
A3: T | B3: =COUNTIF('source-3a'!$A$2:$A$661,$A3) -> 138 | C3: =$B3/SUM($B$2:$B$5) -> 0.2090909091
A4: G | B4: =COUNTIF('source-3a'!$A$2:$A$661,$A4) -> 193 | C4: 0.2924242424
A5: C | B5: =COUNTIF('source-3a'!$A$2:$A$661,$A5) -> 210 | C5: 0.3181818182

Sheet source-3a
A1: sequence1.txt
A2: C
A3: T
A4: G
A5: A
A6: T
A7: G
A8: A
A9: A
A10: A
A11: A
A12: T
A13: G
A14: G
A15: A
A16: C
A17: A
A18: G
A19: T
A20: G
A21: C
A22: C
A23: G
A24: T
A25: C
A26: A
A27: G
A28: C
A29: G
A30: A
A31: G
A32: G
A33: A
A34: A
A35: G
A36: C
A37: T
A38: T
A39: T
A40: C
A41: G
A42: A
A43: G
A44: C
A45: G
A46: T
A47: T
A48: T
A49: G
A50: A
A51: C
A52: G
A53: G
A54: C
A55: C
A56: A
A57: A
A58: G
A59: C
A60: T
A61: C
A62: A
A63: A
A64: G
A65: G
A66: C
A67: A
A68: C
A69: G
A70: G
A71: G
A72: T
A73: T
A74: G
A75: G
A76: C
A77: G
A78: G
A79: C
A80: G
A81: A
A82: G
A83: A
A84: T
A85: T
A86: T
A87: A
A88: T
A89: T
A90: C
A91: G
A92: A
A93: G
A94: C
A95: T
A96: G
A97: G
A98: T
A99: T
A100: T
A101: G
A102: G
A103: C
A104: C
A105: G
A106: G
A107: C
A108: T
A109: G
A110: A
A111: A
A112: G
A113: C
A114: T
A115: G
A116: G
A117: A
A118: C
A119: G
A120: A
A121: T
A122: A
A123: T
A124: T
A125: T
A126: C
A127: C
A128: A
A129: A
A130: G
A131: A
A132: G
A133: C
A134: A
A135: T
A136: C
A137: G
A138: T
A139: G
A140: C
A141: G
A142: C
A143: C
A144: T
A145: T
A146: T
A147: C
A148: G
A149: G
A150: T
A151: T
A152: C
A153: C
A154: C
A155: A
A156: C
A157: C
A158: G
A159: C
A160: A
A161: T
A162: T
A163: T
A164: T
A165: T
A166: G
A167: C
A168: G
A169: C
A170: T
A171: C
A172: C
A173: T
A174: G
A175: G
A176: A
A177: T
A178: C
A179: A
A180: A
A181: C
A182: A
A183: A
A184: T
A185: C
A186: A
A187: T
A188: T
A189: A
A190: T
A191: T
A192: C
A193: C
A194: G
A195: A
A196: A
A197: C
A198: T
A199: G
A200: C
... 461 more rows

Sheet 3b
A1: my_protein
A2: =IF(INT(ROW(X70)/LEN('source-3b'!$A$2))=1,MID('source-3b'!$A$2, MOD(ROW(X70),LEN('source-3b'!$A$2))+1,1),IF(INT(ROW(X70)/LEN('source-3b'!$A$2))=2,MID('source-3b'!$A$3, MOD(ROW(X70),LEN('source-3b'!$A$2))+1,1), IF(INT(ROW(X70)/LEN('source-3b'!$A$2))=3,MID('source-3b'!$A$4, MOD(ROW(X70),LEN('source-3b'!$A$2))+1,1),IF(INT(ROW(X70)/LEN('source-3b'!$A$2))=4,MID('source-3b'!$A$5, MOD(ROW(X70),LEN('source-3b'!$A$2))+1,1),IF(INT(ROW(X70)/LEN('source-3b'!$A$2))=5,MID('source-3b'!$A$6, MOD(ROW(X70),LEN('source-3b'!$A$2))+1,1)))))) -> M
A3: =IF(INT(ROW(X71)/LEN('source-3b'!$A$2))=1,MID('source-3b'!$A$2, MOD(ROW(X71),LEN('source-3b'!$A$2))+1,1),IF(INT(ROW(X71)/LEN('source-3b'!$A$2))=2,MID('source-3b'!$A$3, MOD(ROW(X71),LEN('source-3b'!$A$2))+1,1), IF(INT(ROW(X71)/LEN('source-3b'!$A$2))=3,MID('source-3b'!$A$4, MOD(ROW(X71),LEN('source-3b'!$A$2))+1,1),IF(INT(ROW(X71)/LEN('source-3b'!$A$2))=4,MID('source-3b'!$A$5, MOD(ROW(X71),LEN('source-3b'!$A$2))+1,1),IF(INT(ROW(X71)/LEN('source-3b'!$A$2))=5,MID('source-3b'!$A$6, MOD(ROW(X71),LEN('source-3b'!$A$2))+1,1)))))) -> Y
A4: =IF(INT(ROW(X72)/LEN('source-3b'!$A$2))=1,MID('source-3b'!$A$2, MOD(ROW(X72),LEN('source-3b'!$A$2))+1,1),IF(INT(ROW(X72)/LEN('source-3b'!$A$2))=2,MID('source-3b'!$A$3, MOD(ROW(X72),LEN('source-3b'!$A$2))+1,1), IF(INT(ROW(X72)/LEN('source-3b'!$A$2))=3,MID('source-3b'!$A$4, MOD(ROW(X72),LEN('source-3b'!$A$2))+1,1),IF(INT(ROW(X72)/LEN('source-3b'!$A$2))=4,MID('source-3b'!$A$5, MOD(ROW(X72),LEN('source-3b'!$A$2))+1,1),IF(INT(ROW(X72)/LEN('source-3b'!$A$2))=5,MID('source-3b'!$A$6, MOD(ROW(X72),LEN('source-3b'!$A$2))+1,1)))))) -> V
A5: =IF(INT(ROW(X73)/LEN('source-3b'!$A$2))=1,MID('source-3b'!$A$2, MOD(ROW(X73),LEN('source-3b'!$A$2))+1,1),IF(INT(ROW(X73)/LEN('source-3b'!$A$2))=2,MID('source-3b'!$A$3, MOD(ROW(X73),LEN('source-3b'!$A$2))+1,1), IF(INT(ROW(X73)/LEN('source-3b'!$A$2))=3,MID('source-3b'!$A$4, MOD(ROW(X73),LEN('source-3b'!$A$2))+1,1),IF(INT(ROW(X73)/LEN('source-3b'!$A$2))=4,MID('source-3b'!$A$5, MOD(ROW(X73),LEN('source-3b'!$A$2))+1,1),IF(INT(ROW(X73)/LEN('source-3b'!$A$2))=5,MID('source-3b'!$A$6, MOD(ROW(X73),LEN('source-3b'!$A$2))+1,1)))))) -> T
A6: =IF(INT(ROW(X74)/LEN('source-3b'!$A$2))=1,MID('source-3b'!$A$2, MOD(ROW(X74),LEN('source-3b'!$A$2))+1,1),IF(INT(ROW(X74)/LEN('source-3b'!$A$2))=2,MID('source-3b'!$A$3, MOD(ROW(X74),LEN('source-3b'!$A$2))+1,1), IF(INT(ROW(X74)/LEN('source-3b'!$A$2))=3,MID('source-3b'!$A$4, MOD(ROW(X74),LEN('source-3b'!$A$2))+1,1),IF(INT(ROW(X74)/LEN('source-3b'!$A$2))=4,MID('source-3b'!$A$5, MOD(ROW(X74),LEN('source-3b'!$A$2))+1,1),IF(INT(ROW(X74)/LEN('source-3b'!$A$2))=5,MID('source-3b'!$A$6, MOD(ROW(X74),LEN('source-3b'!$A$2))+1,1)))))) -> P
A7: =IF(INT(ROW(X75)/LEN('source-3b'!$A$2))=1,MID('source-3b'!$A$2, MOD(ROW(X75),LEN('source-3b'!$A$2))+1,1),IF(INT(ROW(X75)/LEN('source-3b'!$A$2))=2,MID('source-3b'!$A$3, MOD(ROW(X75),LEN('source-3b'!$A$2))+1,1), IF(INT(ROW(X75)/LEN('source-3b'!$A$2))=3,MID('source-3b'!$A$4, MOD(ROW(X75),LEN('source-3b'!$A$2))+1,1),IF(INT(ROW(X75)/LEN('source-3b'!$A$2))=4,MID('source-3b'!$A$5, MOD(ROW(X75),LEN('source-3b'!$A$2))+1,1),IF(INT(ROW(X75)/LEN('source-3b'!$A$2))=5,MID('source-3b'!$A$6, MOD(ROW(X75),LEN('source-3b'!$A$2))+1,1)))))) -> E
A8: =IF(INT(ROW(X76)/LEN('source-3b'!$A$2))=1,MID('source-3b'!$A$2, MOD(ROW(X76),LEN('source-3b'!$A$2))+1,1),IF(INT(ROW(X76)/LEN('source-3b'!$A$2))=2,MID('source-3b'!$A$3, MOD(ROW(X76),LEN('source-3b'!$A$2))+1,1), IF(INT(ROW(X76)/LEN('source-3b'!$A$2))=3,MID('source-3b'!$A$4, MOD(ROW(X76),LEN('source-3b'!$A$2))+1,1),IF(INT(ROW(X76)/LEN('source-3b'!$A$2))=4,MID('source-3b'!$A$5, MOD(ROW(X76),LEN('source-3b'!$A$2))+1,1),IF(INT(ROW(X76)/LEN('source-3b'!$A$2))=5,MID('source-3b'!$A$6, MOD(ROW(X76),LEN('source-3b'!$A$2))+1,1)))))) -> K
A9: =IF(INT(ROW(X77)/LEN('source-3b'!$A$2))=1,MID('source-3b'!$A$2, MOD(ROW(X77),LEN('source-3b'!$A$2))+1,1),IF(INT(ROW(X77)/LEN('source-3b'!$A$2))=2,MID('source-3b'!$A$3, MOD(ROW(X77),LEN('source-3b'!$A$2))+1,1), IF(INT(ROW(X77)/LEN('source-3b'!$A$2))=3,MID('source-3b'!$A$4, MOD(ROW(X77),LEN('source-3b'!$A$2))+1,1),IF(INT(ROW(X77)/LEN('source-3b'!$A$2))=4,MID('source-3b'!$A$5, MOD(ROW(X77),LEN('source-3b'!$A$2))+1,1),IF(INT(ROW(X77)/LEN('source-3b'!$A$2))=5,MID('source-3b'!$A$6, MOD(ROW(X77),LEN('source-3b'!$A$2))+1,1)))))) -> I
A10: =IF(INT(ROW(X78)/LEN('source-3b'!$A$2))=1,MID('source-3b'!$A$2, MOD(ROW(X78),LEN('source-3b'!$A$2))+1,1),IF(INT(ROW(X78)/LEN('source-3b'!$A$2))=2,MID('source-3b'!$A$3, MOD(ROW(X78),LEN('source-3b'!$A$2))+1,1), IF(INT(ROW(X78)/LEN('source-3b'!$A$2))=3,MID('source-3b'!$A$4, MOD(ROW(X78),LEN('source-3b'!$A$2))+1,1),IF(INT(ROW(X78)/LEN('source-3b'!$A$2))=4,MID('source-3b'!$A$5, MOD(ROW(X78),LEN('source-3b'!$A$2))+1,1),IF(INT(ROW(X78)/LEN('source-3b'!$A$2))=5,MID('source-3b'!$A$6, MOD(ROW(X78),LEN('source-3b'!$A$2))+1,1)))))) -> R
A11: =IF(INT(ROW(X79)/LEN('source-3b'!$A$2))=1,MID('source-3b'!$A$2, MOD(ROW(X79),LEN('source-3b'!$A$2))+1,1),IF(INT(ROW(X79)/LEN('source-3b'!$A$2))=2,MID('source-3b'!$A$3, MOD(ROW(X79),LEN('source-3b'!$A$2))+1,1), IF(INT(ROW(X79)/LEN('source-3b'!$A$2))=3,MID('source-3b'!$A$4, MOD(ROW(X79),LEN('source-3b'!$A$2))+1,1),IF(INT(ROW(X79)/LEN('source-3b'!$A$2))=4,MID('source-3b'!$A$5, MOD(ROW(X79),LEN('source-3b'!$A$2))+1,1),IF(INT(ROW(X79)/LEN('source-3b'!$A$2))=5,MID('source-3b'!$A$6, MOD(ROW(X79),LEN('source-3b'!$A$2))+1,1)))))) -> K
A12: =IF(INT(ROW(X80)/LEN('source-3b'!$A$2))=1,MID('source-3b'!$A$2, MOD(ROW(X80),LEN('source-3b'!$A$2))+1,1),IF(INT(ROW(X80)/LEN('source-3b'!$A$2))=2,MID('source-3b'!$A$3, MOD(ROW(X80),LEN('source-3b'!$A$2))+1,1), IF(INT(ROW(X80)/LEN('source-3b'!$A$2))=3,MID('source-3b'!$A$4, MOD(ROW(X80),LEN('source-3b'!$A$2))+1,1),IF(INT(ROW(X80)/LEN('source-3b'!$A$2))=4,MID('source-3b'!$A$5, MOD(ROW(X80),LEN('source-3b'!$A$2))+1,1),IF(INT(ROW(X80)/LEN('source-3b'!$A$2))=5,MID('source-3b'!$A$6, MOD(ROW(X80),LEN('source-3b'!$A$2))+1,1)))))) -> L
A13: =IF(INT(ROW(X81)/LEN('source-3b'!$A$2))=1,MID('source-3b'!$A$2, MOD(ROW(X81),LEN('source-3b'!$A$2))+1,1),IF(INT(ROW(X81)/LEN('source-3b'!$A$2))=2,MID('source-3b'!$A$3, MOD(ROW(X81),LEN('source-3b'!$A$2))+1,1), IF(INT(ROW(X81)/LEN('source-3b'!$A$2))=3,MID('source-3b'!$A$4, MOD(ROW(X81),LEN('source-3b'!$A$2))+1,1),IF(INT(ROW(X81)/LEN('source-3b'!$A$2))=4,MID('source-3b'!$A$5, MOD(ROW(X81),LEN('source-3b'!$A$2))+1,1),IF(INT(ROW(X81)/LEN('source-3b'!$A$2))=5,MID('source-3b'!$A$6, MOD(ROW(X81),LEN('source-3b'!$A$2))+1,1)))))) -> A
A14: =IF(INT(ROW(X82)/LEN('source-3b'!$A$2))=1,MID('source-3b'!$A$2, MOD(ROW(X82),LEN('source-3b'!$A$2))+1,1),IF(INT(ROW(X82)/LEN('source-3b'!$A$2))=2,MID('source-3b'!$A$3, MOD(ROW(X82),LEN('source-3b'!$A$2))+1,1), IF(INT(ROW(X82)/LEN('source-3b'!$A$2))=3,MID('source-3b'!$A$4, MOD(ROW(X82),LEN('source-3b'!$A$2))+1,1),IF(INT(ROW(X82)/LEN('source-3b'!$A$2))=4,MID('source-3b'!$A$5, MOD(ROW(X82),LEN('source-3b'!$A$2))+1,1),IF(INT(ROW(X82)/LEN('source-3b'!$A$2))=5,MID('source-3b'!$A$6, MOD(ROW(X82),LEN('source-3b'!$A$2))+1,1)))))) -> D
A15: =IF(INT(ROW(X83)/LEN('source-3b'!$A$2))=1,MID('source-3b'!$A$2, MOD(ROW(X83),LEN('source-3b'!$A$2))+1,1),IF(INT(ROW(X83)/LEN('source-3b'!$A$2))=2,MID('source-3b'!$A$3, MOD(ROW(X83),LEN('source-3b'!$A$2))+1,1), IF(INT(ROW(X83)/LEN('source-3b'!$A$2))=3,MID('source-3b'!$A$4, MOD(ROW(X83),LEN('source-3b'!$A$2))+1,1),IF(INT(ROW(X83)/LEN('source-3b'!$A$2))=4,MID('source-3b'!$A$5, MOD(ROW(X83),LEN('source-3b'!$A$2))+1,1),IF(INT(ROW(X83)/LEN('source-3b'!$A$2))=5,MID('source-3b'!$A$6, MOD(ROW(X83),LEN('source-3b'!$A$2))+1,1)))))) -> E
A16: =IF(INT(ROW(X84)/LEN('source-3b'!$A$2))=1,MID('source-3b'!$A$2, MOD(ROW(X84),LEN('source-3b'!$A$2))+1,1),IF(INT(ROW(X84)/LEN('source-3b'!$A$2))=2,MID('source-3b'!$A$3, MOD(ROW(X84),LEN('source-3b'!$A$2))+1,1), IF(INT(ROW(X84)/LEN('source-3b'!$A$2))=3,MID('source-3b'!$A$4, MOD(ROW(X84),LEN('source-3b'!$A$2))+1,1),IF(INT(ROW(X84)/LEN('source-3b'!$A$2))=4,MID('source-3b'!$A$5, MOD(ROW(X84),LEN('source-3b'!$A$2))+1,1),IF(INT(ROW(X84)/LEN('source-3b'!$A$2))=5,MID('source-3b'!$A$6, MOD(ROW(X84),LEN('source-3b'!$A$2))+1,1)))))) -> K
A17: =IF(INT(ROW(X85)/LEN('source-3b'!$A$2))=1,MID('source-3b'!$A$2, MOD(ROW(X85),LEN('source-3b'!$A$2))+1,1),IF(INT(ROW(X85)/LEN('source-3b'!$A$2))=2,MID('source-3b'!$A$3, MOD(ROW(X85),LEN('source-3b'!$A$2))+1,1), IF(INT(ROW(X85)/LEN('source-3b'!$A$2))=3,MID('source-3b'!$A$4, MOD(ROW(X85),LEN('source-3b'!$A$2))+1,1),IF(INT(ROW(X85)/LEN('source-3b'!$A$2))=4,MID('source-3b'!$A$5, MOD(ROW(X85),LEN('source-3b'!$A$2))+1,1),IF(INT(ROW(X85)/LEN('source-3b'!$A$2))=5,MID('source-3b'!$A$6, MOD(ROW(X85),LEN('source-3b'!$A$2))+1,1)))))) -> G
A18: =IF(INT(ROW(X86)/LEN('source-3b'!$A$2))=1,MID('source-3b'!$A$2, MOD(ROW(X86),LEN('source-3b'!$A$2))+1,1),IF(INT(ROW(X86)/LEN('source-3b'!$A$2))=2,MID('source-3b'!$A$3, MOD(ROW(X86),LEN('source-3b'!$A$2))+1,1), IF(INT(ROW(X86)/LEN('source-3b'!$A$2))=3,MID('source-3b'!$A$4, MOD(ROW(X86),LEN('source-3b'!$A$2))+1,1),IF(INT(ROW(X86)/LEN('source-3b'!$A$2))=4,MID('source-3b'!$A$5, MOD(ROW(X86),LEN('source-3b'!$A$2))+1,1),IF(INT(ROW(X86)/LEN('source-3b'!$A$2))=5,MID('source-3b'!$A$6, MOD(ROW(X86),LEN('source-3b'!$A$2))+1,1)))))) -> Y
A19: =IF(INT(ROW(X87)/LEN('source-3b'!$A$2))=1,MID('source-3b'!$A$2, MOD(ROW(X87),LEN('source-3b'!$A$2))+1,1),IF(INT(ROW(X87)/LEN('source-3b'!$A$2))=2,MID('source-3b'!$A$3, MOD(ROW(X87),LEN('source-3b'!$A$2))+1,1), IF(INT(ROW(X87)/LEN('source-3b'!$A$2))=3,MID('source-3b'!$A$4, MOD(ROW(X87),LEN('source-3b'!$A$2))+1,1),IF(INT(ROW(X87)/LEN('source-3b'!$A$2))=4,MID('source-3b'!$A$5, MOD(ROW(X87),LEN('source-3b'!$A$2))+1,1),IF(INT(ROW(X87)/LEN('source-3b'!$A$2))=5,MID('source-3b'!$A$6, MOD(ROW(X87),LEN('source-3b'!$A$2))+1,1)))))) -> I
A20: =IF(INT(ROW(X88)/LEN('source-3b'!$A$2))=1,MID('source-3b'!$A$2, MOD(ROW(X88),LEN('source-3b'!$A$2))+1,1),IF(INT(ROW(X88)/LEN('source-3b'!$A$2))=2,MID('source-3b'!$A$3, MOD(ROW(X88),LEN('source-3b'!$A$2))+1,1), IF(INT(ROW(X88)/LEN('source-3b'!$A$2))=3,MID('source-3b'!$A$4, MOD(ROW(X88),LEN('source-3b'!$A$2))+1,1),IF(INT(ROW(X88)/LEN('source-3b'!$A$2))=4,MID('source-3b'!$A$5, MOD(ROW(X88),LEN('source-3b'!$A$2))+1,1),IF(INT(ROW(X88)/LEN('source-3b'!$A$2))=5,MID('source-3b'!$A$6, MOD(ROW(X88),LEN('source-3b'!$A$2))+1,1)))))) -> I
A21: =IF(INT(ROW(X89)/LEN('source-3b'!$A$2))=1,MID('source-3b'!$A$2, MOD(ROW(X89),LEN('source-3b'!$A$2))+1,1),IF(INT(ROW(X89)/LEN('source-3b'!$A$2))=2,MID('source-3b'!$A$3, MOD(ROW(X89),LEN('source-3b'!$A$2))+1,1), IF(INT(ROW(X89)/LEN('source-3b'!$A$2))=3,MID('source-3b'!$A$4, MOD(ROW(X89),LEN('source-3b'!$A$2))+1,1),IF(INT(ROW(X89)/LEN('source-3b'!$A$2))=4,MID('source-3b'!$A$5, MOD(ROW(X89),LEN('source-3b'!$A$2))+1,1),IF(INT(ROW(X89)/LEN('source-3b'!$A$2))=5,MID('source-3b'!$A$6, MOD(ROW(X89),LEN('source-3b'!$A$2))+1,1)))))) -> V
A22: =IF(INT(ROW(X90)/LEN('source-3b'!$A$2))=1,MID('source-3b'!$A$2, MOD(ROW(X90),LEN('source-3b'!$A$2))+1,1),IF(INT(ROW(X90)/LEN('source-3b'!$A$2))=2,MID('source-3b'!$A$3, MOD(ROW(X90),LEN('source-3b'!$A$2))+1,1), IF(INT(ROW(X90)/LEN('source-3b'!$A$2))=3,MID('source-3b'!$A$4, MOD(ROW(X90),LEN('source-3b'!$A$2))+1,1),IF(INT(ROW(X90)/LEN('source-3b'!$A$2))=4,MID('source-3b'!$A$5, MOD(ROW(X90),LEN('source-3b'!$A$2))+1,1),IF(INT(ROW(X90)/LEN('source-3b'!$A$2))=5,MID('source-3b'!$A$6, MOD(ROW(X90),LEN('source-3b'!$A$2))+1,1)))))) -> A
A23: =IF(INT(ROW(X91)/LEN('source-3b'!$A$2))=1,MID('source-3b'!$A$2, MOD(ROW(X91),LEN('source-3b'!$A$2))+1,1),IF(INT(ROW(X91)/LEN('source-3b'!$A$2))=2,MID('source-3b'!$A$3, MOD(ROW(X91),LEN('source-3b'!$A$2))+1,1), IF(INT(ROW(X91)/LEN('source-3b'!$A$2))=3,MID('source-3b'!$A$4, MOD(ROW(X91),LEN('source-3b'!$A$2))+1,1),IF(INT(ROW(X91)/LEN('source-3b'!$A$2))=4,MID('source-3b'!$A$5, MOD(ROW(X91),LEN('source-3b'!$A$2))+1,1),IF(INT(ROW(X91)/LEN('source-3b'!$A$2))=5,MID('source-3b'!$A$6, MOD(ROW(X91),LEN('source-3b'!$A$2))+1,1)))))) -> H
A24: =IF(INT(ROW(X92)/LEN('source-3b'!$A$2))=1,MID('source-3b'!$A$2, MOD(ROW(X92),LEN('source-3b'!$A$2))+1,1),IF(INT(ROW(X92)/LEN('source-3b'!$A$2))=2,MID('source-3b'!$A$3, MOD(ROW(X92),LEN('source-3b'!$A$2))+1,1), IF(INT(ROW(X92)/LEN('source-3b'!$A$2))=3,MID('source-3b'!$A$4, MOD(ROW(X92),LEN('source-3b'!$A$2))+1,1),IF(INT(ROW(X92)/LEN('source-3b'!$A$2))=4,MID('source-3b'!$A$5, MOD(ROW(X92),LEN('source-3b'!$A$2))+1,1),IF(INT(ROW(X92)/LEN('source-3b'!$A$2))=5,MID('source-3b'!$A$6, MOD(ROW(X92),LEN('source-3b'!$A$2))+1,1)))))) -> N
A25: =IF(INT(ROW(X93)/LEN('source-3b'!$A$2))=1,MID('source-3b'!$A$2, MOD(ROW(X93),LEN('source-3b'!$A$2))+1,1),IF(INT(ROW(X93)/LEN('source-3b'!$A$2))=2,MID('source-3b'!$A$3, MOD(ROW(X93),LEN('source-3b'!$A$2))+1,1), IF(INT(ROW(X93)/LEN('source-3b'!$A$2))=3,MID('source-3b'!$A$4, MOD(ROW(X93),LEN('source-3b'!$A$2))+1,1),IF(INT(ROW(X93)/LEN('source-3b'!$A$2))=4,MID('source-3b'!$A$5, MOD(ROW(X93),LEN('source-3b'!$A$2))+1,1),IF(INT(ROW(X93)/LEN('source-3b'!$A$2))=5,MID('source-3b'!$A$6, MOD(ROW(X93),LEN('source-3b'!$A$2))+1,1)))))) -> Y
A26: =IF(INT(ROW(X94)/LEN('source-3b'!$A$2))=1,MID('source-3b'!$A$2, MOD(ROW(X94),LEN('source-3b'!$A$2))+1,1),IF(INT(ROW(X94)/LEN('source-3b'!$A$2))=2,MID('source-3b'!$A$3, MOD(ROW(X94),LEN('source-3b'!$A$2))+1,1), IF(INT(ROW(X94)/LEN('source-3b'!$A$2))=3,MID('source-3b'!$A$4, MOD(ROW(X94),LEN('source-3b'!$A$2))+1,1),IF(INT(ROW(X94)/LEN('source-3b'!$A$2))=4,MID('source-3b'!$A$5, MOD(ROW(X94),LEN('source-3b'!$A$2))+1,1),IF(INT(ROW(X94)/LEN('source-3b'!$A$2))=5,MID('source-3b'!$A$6, MOD(ROW(X94),LEN('source-3b'!$A$2))+1,1)))))) -> Q
A27: =IF(INT(ROW(X95)/LEN('source-3b'!$A$2))=1,MID('source-3b'!$A$2, MOD(ROW(X95),LEN('source-3b'!$A$2))+1,1),IF(INT(ROW(X95)/LEN('source-3b'!$A$2))=2,MID('source-3b'!$A$3, MOD(ROW(X95),LEN('source-3b'!$A$2))+1,1), IF(INT(ROW(X95)/LEN('source-3b'!$A$2))=3,MID('source-3b'!$A$4, MOD(ROW(X95),LEN('source-3b'!$A$2))+1,1),IF(INT(ROW(X95)/LEN('source-3b'!$A$2))=4,MID('source-3b'!$A$5, MOD(ROW(X95),LEN('source-3b'!$A$2))+1,1),IF(INT(ROW(X95)/LEN('source-3b'!$A$2))=5,MID('source-3b'!$A$6, MOD(ROW(X95),LEN('source-3b'!$A$2))+1,1)))))) -> I
A28: =IF(INT(ROW(X96)/LEN('source-3b'!$A$2))=1,MID('source-3b'!$A$2, MOD(ROW(X96),LEN('source-3b'!$A$2))+1,1),IF(INT(ROW(X96)/LEN('source-3b'!$A$2))=2,MID('source-3b'!$A$3, MOD(ROW(X96),LEN('source-3b'!$A$2))+1,1), IF(INT(ROW(X96)/LEN('source-3b'!$A$2))=3,MID('source-3b'!$A$4, MOD(ROW(X96),LEN('source-3b'!$A$2))+1,1),IF(INT(ROW(X96)/LEN('source-3b'!$A$2))=4,MID('source-3b'!$A$5, MOD(ROW(X96),LEN('source-3b'!$A$2))+1,1),IF(INT(ROW(X96)/LEN('source-3b'!$A$2))=5,MID('source-3b'!$A$6, MOD(ROW(X96),LEN('source-3b'!$A$2))+1,1)))))) -> P
A29: =IF(INT(ROW(X97)/LEN('source-3b'!$A$2))=1,MID('source-3b'!$A$2, MOD(ROW(X97),LEN('source-3b'!$A$2))+1,1),IF(INT(ROW(X97)/LEN('source-3b'!$A$2))=2,MID('source-3b'!$A$3, MOD(ROW(X97),LEN('source-3b'!$A$2))+1,1), IF(INT(ROW(X97)/LEN('source-3b'!$A$2))=3,MID('source-3b'!$A$4, MOD(ROW(X97),LEN('source-3b'!$A$2))+1,1),IF(INT(ROW(X97)/LEN('source-3b'!$A$2))=4,MID('source-3b'!$A$5, MOD(ROW(X97),LEN('source-3b'!$A$2))+1,1),IF(INT(ROW(X97)/LEN('source-3b'!$A$2))=5,MID('source-3b'!$A$6, MOD(ROW(X97),LEN('source-3b'!$A$2))+1,1)))))) -> E
A30: =IF(INT(ROW(X98)/LEN('source-3b'!$A$2))=1,MID('source-3b'!$A$2, MOD(ROW(X98),LEN('source-3b'!$A$2))+1,1),IF(INT(ROW(X98)/LEN('source-3b'!$A$2))=2,MID('source-3b'!$A$3, MOD(ROW(X98),LEN('source-3b'!$A$2))+1,1), IF(INT(ROW(X98)/LEN('source-3b'!$A$2))=3,MID('source-3b'!$A$4, MOD(ROW(X98),LEN('source-3b'!$A$2))+1,1),IF(INT(ROW(X98)/LEN('source-3b'!$A$2))=4,MID('source-3b'!$A$5, MOD(ROW(X98),LEN('source-3b'!$A$2))+1,1),IF(INT(ROW(X98)/LEN('source-3b'!$A$2))=5,MID('source-3b'!$A$6, MOD(ROW(X98),LEN('source-3b'!$A$2))+1,1)))))) -> L
A31: =IF(INT(ROW(X99)/LEN('source-3b'!$A$2))=1,MID('source-3b'!$A$2, MOD(ROW(X99),LEN('source-3b'!$A$2))+1,1),IF(INT(ROW(X99)/LEN('source-3b'!$A$2))=2,MID('source-3b'!$A$3, MOD(ROW(X99),LEN('source-3b'!$A$2))+1,1), IF(INT(ROW(X99)/LEN('source-3b'!$A$2))=3,MID('source-3b'!$A$4, MOD(ROW(X99),LEN('source-3b'!$A$2))+1,1),IF(INT(ROW(X99)/LEN('source-3b'!$A$2))=4,MID('source-3b'!$A$5, MOD(ROW(X99),LEN('source-3b'!$A$2))+1,1),IF(INT(ROW(X99)/LEN('source-3b'!$A$2))=5,MID('source-3b'!$A$6, MOD(ROW(X99),LEN('source-3b'!$A$2))+1,1)))))) -> Q
A32: =IF(INT(ROW(X100)/LEN('source-3b'!$A$2))=1,MID('source-3b'!$A$2, MOD(ROW(X100),LEN('source-3b'!$A$2))+1,1),IF(INT(ROW(X100)/LEN('source-3b'!$A$2))=2,MID('source-3b'!$A$3, MOD(ROW(X100),LEN('source-3b'!$A$2))+1,1), IF(INT(ROW(X100)/LEN('source-3b'!$A$2))=3,MID('source-3b'!$A$4, MOD(ROW(X100),LEN('source-3b'!$A$2))+1,1),IF(INT(ROW(X100)/LEN('source-3b'!$A$2))=4,MID('source-3b'!$A$5, MOD(ROW(X100),LEN('source-3b'!$A$2))+1,1),IF(INT(ROW(X100)/LEN('source-3b'!$A$2))=5,MID('source-3b'!$A$6, MOD(ROW(X100),LEN('source-3b'!$A$2))+1,1)))))) -> Q
A33: =IF(INT(ROW(X101)/LEN('source-3b'!$A$2))=1,MID('source-3b'!$A$2, MOD(ROW(X101),LEN('source-3b'!$A$2))+1,1),IF(INT(ROW(X101)/LEN('source-3b'!$A$2))=2,MID('source-3b'!$A$3, MOD(ROW(X101),LEN('source-3b'!$A$2))+1,1), IF(INT(ROW(X101)/LEN('source-3b'!$A$2))=3,MID('source-3b'!$A$4, MOD(ROW(X101),LEN('source-3b'!$A$2))+1,1),IF(INT(ROW(X101)/LEN('source-3b'!$A$2))=4,MID('source-3b'!$A$5, MOD(ROW(X101),LEN('source-3b'!$A$2))+1,1),IF(INT(ROW(X101)/LEN('source-3b'!$A$2))=5,MID('source-3b'!$A$6, MOD(ROW(X101),LEN('source-3b'!$A$2))+1,1)))))) -> I
A34: =IF(INT(ROW(X102)/LEN('source-3b'!$A$2))=1,MID('source-3b'!$A$2, MOD(ROW(X102),LEN('source-3b'!$A$2))+1,1),IF(INT(ROW(X102)/LEN('source-3b'!$A$2))=2,MID('source-3b'!$A$3, MOD(ROW(X102),LEN('source-3b'!$A$2))+1,1), IF(INT(ROW(X102)/LEN('source-3b'!$A$2))=3,MID('source-3b'!$A$4, MOD(ROW(X102),LEN('source-3b'!$A$2))+1,1),IF(INT(ROW(X102)/LEN('source-3b'!$A$2))=4,MID('source-3b'!$A$5, MOD(ROW(X102),LEN('source-3b'!$A$2))+1,1),IF(INT(ROW(X102)/LEN('source-3b'!$A$2))=5,MID('source-3b'!$A$6, MOD(ROW(X102),LEN('source-3b'!$A$2))+1,1)))))) -> A
A35: =IF(INT(ROW(X103)/LEN('source-3b'!$A$2))=1,MID('source-3b'!$A$2, MOD(ROW(X103),LEN('source-3b'!$A$2))+1,1),IF(INT(ROW(X103)/LEN('source-3b'!$A$2))=2,MID('source-3b'!$A$3, MOD(ROW(X103),LEN('source-3b'!$A$2))+1,1), IF(INT(ROW(X103)/LEN('source-3b'!$A$2))=3,MID('source-3b'!$A$4, MOD(ROW(X103),LEN('source-3b'!$A$2))+1,1),IF(INT(ROW(X103)/LEN('source-3b'!$A$2))=4,MID('source-3b'!$A$5, MOD(ROW(X103),LEN('source-3b'!$A$2))+1,1),IF(INT(ROW(X103)/LEN('source-3b'!$A$2))=5,MID('source-3b'!$A$6, MOD(ROW(X103),LEN('source-3b'!$A$2))+1,1)))))) -> D
A36: =IF(INT(ROW(X104)/LEN('source-3b'!$A$2))=1,MID('source-3b'!$A$2, MOD(ROW(X104),LEN('source-3b'!$A$2))+1,1),IF(INT(ROW(X104)/LEN('source-3b'!$A$2))=2,MID('source-3b'!$A$3, MOD(ROW(X104),LEN('source-3b'!$A$2))+1,1), IF(INT(ROW(X104)/LEN('source-3b'!$A$2))=3,MID('source-3b'!$A$4, MOD(ROW(X104),LEN('source-3b'!$A$2))+1,1),IF(INT(ROW(X104)/LEN('source-3b'!$A$2))=4,MID('source-3b'!$A$5, MOD(ROW(X104),LEN('source-3b'!$A$2))+1,1),IF(INT(ROW(X104)/LEN('source-3b'!$A$2))=5,MID('source-3b'!$A$6, MOD(ROW(X104),LEN('source-3b'!$A$2))+1,1)))))) -> Y
A37: =IF(INT(ROW(X105)/LEN('source-3b'!$A$2))=1,MID('source-3b'!$A$2, MOD(ROW(X105),LEN('source-3b'!$A$2))+1,1),IF(INT(ROW(X105)/LEN('source-3b'!$A$2))=2,MID('source-3b'!$A$3, MOD(ROW(X105),LEN('source-3b'!$A$2))+1,1), IF(INT(ROW(X105)/LEN('source-3b'!$A$2))=3,MID('source-3b'!$A$4, MOD(ROW(X105),LEN('source-3b'!$A$2))+1,1),IF(INT(ROW(X105)/LEN('source-3b'!$A$2))=4,MID('source-3b'!$A$5, MOD(ROW(X105),LEN('source-3b'!$A$2))+1,1),IF(INT(ROW(X105)/LEN('source-3b'!$A$2))=5,MID('source-3b'!$A$6, MOD(ROW(X105),LEN('source-3b'!$A$2))+1,1)))))) -> L
A38: =IF(INT(ROW(X106)/LEN('source-3b'!$A$2))=1,MID('source-3b'!$A$2, MOD(ROW(X106),LEN('source-3b'!$A$2))+1,1),IF(INT(ROW(X106)/LEN('source-3b'!$A$2))=2,MID('source-3b'!$A$3, MOD(ROW(X106),LEN('source-3b'!$A$2))+1,1), IF(INT(ROW(X106)/LEN('source-3b'!$A$2))=3,MID('source-3b'!$A$4, MOD(ROW(X106),LEN('source-3b'!$A$2))+1,1),IF(INT(ROW(X106)/LEN('source-3b'!$A$2))=4,MID('source-3b'!$A$5, MOD(ROW(X106),LEN('source-3b'!$A$2))+1,1),IF(INT(ROW(X106)/LEN('source-3b'!$A$2))=5,MID('source-3b'!$A$6, MOD(ROW(X106),LEN('source-3b'!$A$2))+1,1)))))) -> G
A39: =IF(INT(ROW(X107)/LEN('source-3b'!$A$2))=1,MID('source-3b'!$A$2, MOD(ROW(X107),LEN('source-3b'!$A$2))+1,1),IF(INT(ROW(X107)/LEN('source-3b'!$A$2))=2,MID('source-3b'!$A$3, MOD(ROW(X107),LEN('source-3b'!$A$2))+1,1), IF(INT(ROW(X107)/LEN('source-3b'!$A$2))=3,MID('source-3b'!$A$4, MOD(ROW(X107),LEN('source-3b'!$A$2))+1,1),IF(INT(ROW(X107)/LEN('source-3b'!$A$2))=4,MID('source-3b'!$A$5, MOD(ROW(X107),LEN('source-3b'!$A$2))+1,1),IF(INT(ROW(X107)/LEN('source-3b'!$A$2))=5,MID('source-3b'!$A$6, MOD(ROW(X107),LEN('source-3b'!$A$2))+1,1)))))) -> D
A40: =IF(INT(ROW(X108)/LEN('source-3b'!$A$2))=1,MID('source-3b'!$A$2, MOD(ROW(X108),LEN('source-3b'!$A$2))+1,1),IF(INT(ROW(X108)/LEN('source-3b'!$A$2))=2,MID('source-3b'!$A$3, MOD(ROW(X108),LEN('source-3b'!$A$2))+1,1), IF(INT(ROW(X108)/LEN('source-3b'!$A$2))=3,MID('source-3b'!$A$4, MOD(ROW(X108),LEN('source-3b'!$A$2))+1,1),IF(INT(ROW(X108)/LEN('source-3b'!$A$2))=4,MID('source-3b'!$A$5, MOD(ROW(X108),LEN('source-3b'!$A$2))+1,1),IF(INT(ROW(X108)/LEN('source-3b'!$A$2))=5,MID('source-3b'!$A$6, MOD(ROW(X108),LEN('source-3b'!$A$2))+1,1)))))) -> S
A41: =IF(INT(ROW(X109)/LEN('source-3b'!$A$2))=1,MID('source-3b'!$A$2, MOD(ROW(X109),LEN('source-3b'!$A$2))+1,1),IF(INT(ROW(X109)/LEN('source-3b'!$A$2))=2,MID('source-3b'!$A$3, MOD(ROW(X109),LEN('source-3b'!$A$2))+1,1), IF(INT(ROW(X109)/LEN('source-3b'!$A$2))=3,MID('source-3b'!$A$4, MOD(ROW(X109),LEN('source-3b'!$A$2))+1,1),IF(INT(ROW(X109)/LEN('source-3b'!$A$2))=4,MID('source-3b'!$A$5, MOD(ROW(X109),LEN('source-3b'!$A$2))+1,1),IF(INT(ROW(X109)/LEN('source-3b'!$A$2))=5,MID('source-3b'!$A$6, MOD(ROW(X109),LEN('source-3b'!$A$2))+1,1)))))) -> L
A42: =IF(INT(ROW(X110)/LEN('source-3b'!$A$2))=1,MID('source-3b'!$A$2, MOD(ROW(X110),LEN('source-3b'!$A$2))+1,1),IF(INT(ROW(X110)/LEN('source-3b'!$A$2))=2,MID('source-3b'!$A$3, MOD(ROW(X110),LEN('source-3b'!$A$2))+1,1), IF(INT(ROW(X110)/LEN('source-3b'!$A$2))=3,MID('source-3b'!$A$4, MOD(ROW(X110),LEN('source-3b'!$A$2))+1,1),IF(INT(ROW(X110)/LEN('source-3b'!$A$2))=4,MID('source-3b'!$A$5, MOD(ROW(X110),LEN('source-3b'!$A$2))+1,1),IF(INT(ROW(X110)/LEN('source-3b'!$A$2))=5,MID('source-3b'!$A$6, MOD(ROW(X110),LEN('source-3b'!$A$2))+1,1)))))) -> Q
A43: =IF(INT(ROW(X111)/LEN('source-3b'!$A$2))=1,MID('source-3b'!$A$2, MOD(ROW(X111),LEN('source-3b'!$A$2))+1,1),IF(INT(ROW(X111)/LEN('source-3b'!$A$2))=2,MID('source-3b'!$A$3, MOD(ROW(X111),LEN('source-3b'!$A$2))+1,1), IF(INT(ROW(X111)/LEN('source-3b'!$A$2))=3,MID('source-3b'!$A$4, MOD(ROW(X111),LEN('source-3b'!$A$2))+1,1),IF(INT(ROW(X111)/LEN('source-3b'!$A$2))=4,MID('source-3b'!$A$5, MOD(ROW(X111),LEN('source-3b'!$A$2))+1,1),IF(INT(ROW(X111)/LEN('source-3b'!$A$2))=5,MID('source-3b'!$A$6, MOD(ROW(X111),LEN('source-3b'!$A$2))+1,1)))))) -> L
A44: =IF(INT(ROW(X112)/LEN('source-3b'!$A$2))=1,MID('source-3b'!$A$2, MOD(ROW(X112),LEN('source-3b'!$A$2))+1,1),IF(INT(ROW(X112)/LEN('source-3b'!$A$2))=2,MID('source-3b'!$A$3, MOD(ROW(X112),LEN('source-3b'!$A$2))+1,1), IF(INT(ROW(X112)/LEN('source-3b'!$A$2))=3,MID('source-3b'!$A$4, MOD(ROW(X112),LEN('source-3b'!$A$2))+1,1),IF(INT(ROW(X112)/LEN('source-3b'!$A$2))=4,MID('source-3b'!$A$5, MOD(ROW(X112),LEN('source-3b'!$A$2))+1,1),IF(INT(ROW(X112)/LEN('source-3b'!$A$2))=5,MID('source-3b'!$A$6, MOD(ROW(X112),LEN('source-3b'!$A$2))+1,1)))))) -> A
A45: =IF(INT(ROW(X113)/LEN('source-3b'!$A$2))=1,MID('source-3b'!$A$2, MOD(ROW(X113),LEN('source-3b'!$A$2))+1,1),IF(INT(ROW(X113)/LEN('source-3b'!$A$2))=2,MID('source-3b'!$A$3, MOD(ROW(X113),LEN('source-3b'!$A$2))+1,1), IF(INT(ROW(X113)/LEN('source-3b'!$A$2))=3,MID('source-3b'!$A$4, MOD(ROW(X113),LEN('source-3b'!$A$2))+1,1),IF(INT(ROW(X113)/LEN('source-3b'!$A$2))=4,MID('source-3b'!$A$5, MOD(ROW(X113),LEN('source-3b'!$A$2))+1,1),IF(INT(ROW(X113)/LEN('source-3b'!$A$2))=5,MID('source-3b'!$A$6, MOD(ROW(X113),LEN('source-3b'!$A$2))+1,1)))))) -> R
A46: =IF(INT(ROW(X114)/LEN('source-3b'!$A$2))=1,MID('source-3b'!$A$2, MOD(ROW(X114),LEN('source-3b'!$A$2))+1,1),IF(INT(ROW(X114)/LEN('source-3b'!$A$2))=2,MID('source-3b'!$A$3, MOD(ROW(X114),LEN('source-3b'!$A$2))+1,1), IF(INT(ROW(X114)/LEN('source-3b'!$A$2))=3,MID('source-3b'!$A$4, MOD(ROW(X114),LEN('source-3b'!$A$2))+1,1),IF(INT(ROW(X114)/LEN('source-3b'!$A$2))=4,MID('source-3b'!$A$5, MOD(ROW(X114),LEN('source-3b'!$A$2))+1,1),IF(INT(ROW(X114)/LEN('source-3b'!$A$2))=5,MID('source-3b'!$A$6, MOD(ROW(X114),LEN('source-3b'!$A$2))+1,1)))))) -> I
A47: =IF(INT(ROW(X115)/LEN('source-3b'!$A$2))=1,MID('source-3b'!$A$2, MOD(ROW(X115),LEN('source-3b'!$A$2))+1,1),IF(INT(ROW(X115)/LEN('source-3b'!$A$2))=2,MID('source-3b'!$A$3, MOD(ROW(X115),LEN('source-3b'!$A$2))+1,1), IF(INT(ROW(X115)/LEN('source-3b'!$A$2))=3,MID('source-3b'!$A$4, MOD(ROW(X115),LEN('source-3b'!$A$2))+1,1),IF(INT(ROW(X115)/LEN('source-3b'!$A$2))=4,MID('source-3b'!$A$5, MOD(ROW(X115),LEN('source-3b'!$A$2))+1,1),IF(INT(ROW(X115)/LEN('source-3b'!$A$2))=5,MID('source-3b'!$A$6, MOD(ROW(X115),LEN('source-3b'!$A$2))+1,1)))))) -> V
A48: =IF(INT(ROW(X116)/LEN('source-3b'!$A$2))=1,MID('source-3b'!$A$2, MOD(ROW(X116),LEN('source-3b'!$A$2))+1,1),IF(INT(ROW(X116)/LEN('source-3b'!$A$2))=2,MID('source-3b'!$A$3, MOD(ROW(X116),LEN('source-3b'!$A$2))+1,1), IF(INT(ROW(X116)/LEN('source-3b'!$A$2))=3,MID('source-3b'!$A$4, MOD(ROW(X116),LEN('source-3b'!$A$2))+1,1),IF(INT(ROW(X116)/LEN('source-3b'!$A$2))=4,MID('source-3b'!$A$5, MOD(ROW(X116),LEN('source-3b'!$A$2))+1,1),IF(INT(ROW(X116)/LEN('source-3b'!$A$2))=5,MID('source-3b'!$A$6, MOD(ROW(X116),LEN('source-3b'!$A$2))+1,1)))))) -> T
A49: =IF(INT(ROW(X117)/LEN('source-3b'!$A$2))=1,MID('source-3b'!$A$2, MOD(ROW(X117),LEN('source-3b'!$A$2))+1,1),IF(INT(ROW(X117)/LEN('source-3b'!$A$2))=2,MID('source-3b'!$A$3, MOD(ROW(X117),LEN('source-3b'!$A$2))+1,1), IF(INT(ROW(X117)/LEN('source-3b'!$A$2))=3,MID('source-3b'!$A$4, MOD(ROW(X117),LEN('source-3b'!$A$2))+1,1),IF(INT(ROW(X117)/LEN('source-3b'!$A$2))=4,MID('source-3b'!$A$5, MOD(ROW(X117),LEN('source-3b'!$A$2))+1,1),IF(INT(ROW(X117)/LEN('source-3b'!$A$2))=5,MID('source-3b'!$A$6, MOD(ROW(X117),LEN('source-3b'!$A$2))+1,1)))))) -> R
A50: =IF(INT(ROW(X118)/LEN('source-3b'!$A$2))=1,MID('source-3b'!$A$2, MOD(ROW(X118),LEN('source-3b'!$A$2))+1,1),IF(INT(ROW(X118)/LEN('source-3b'!$A$2))=2,MID('source-3b'!$A$3, MOD(ROW(X118),LEN('source-3b'!$A$2))+1,1), IF(INT(ROW(X118)/LEN('source-3b'!$A$2))=3,MID('source-3b'!$A$4, MOD(ROW(X118),LEN('source-3b'!$A$2))+1,1),IF(INT(ROW(X118)/LEN('source-3b'!$A$2))=4,MID('source-3b'!$A$5, MOD(ROW(X118),LEN('source-3b'!$A$2))+1,1),IF(INT(ROW(X118)/LEN('source-3b'!$A$2))=5,MID('source-3b'!$A$6, MOD(ROW(X118),LEN('source-3b'!$A$2))+1,1)))))) -> I
A51: =IF(INT(ROW(X119)/LEN('source-3b'!$A$2))=1,MID('source-3b'!$A$2, MOD(ROW(X119),LEN('source-3b'!$A$2))+1,1),IF(INT(ROW(X119)/LEN('source-3b'!$A$2))=2,MID('source-3b'!$A$3, MOD(ROW(X119),LEN('source-3b'!$A$2))+1,1), IF(INT(ROW(X119)/LEN('source-3b'!$A$2))=3,MID('source-3b'!$A$4, MOD(ROW(X119),LEN('source-3b'!$A$2))+1,1),IF(INT(ROW(X119)/LEN('source-3b'!$A$2))=4,MID('source-3b'!$A$5, MOD(ROW(X119),LEN('source-3b'!$A$2))+1,1),IF(INT(ROW(X119)/LEN('source-3b'!$A$2))=5,MID('source-3b'!$A$6, MOD(ROW(X119),LEN('source-3b'!$A$2))+1,1)))))) -> D
A52: =IF(INT(ROW(X120)/LEN('source-3b'!$A$2))=1,MID('source-3b'!$A$2, MOD(ROW(X120),LEN('source-3b'!$A$2))+1,1),IF(INT(ROW(X120)/LEN('source-3b'!$A$2))=2,MID('source-3b'!$A$3, MOD(ROW(X120),LEN('source-3b'!$A$2))+1,1), IF(INT(ROW(X120)/LEN('source-3b'!$A$2))=3,MID('source-3b'!$A$4, MOD(ROW(X120),LEN('source-3b'!$A$2))+1,1),IF(INT(ROW(X120)/LEN('source-3b'!$A$2))=4,MID('source-3b'!$A$5, MOD(ROW(X120),LEN('source-3b'!$A$2))+1,1),IF(INT(ROW(X120)/LEN('source-3b'!$A$2))=5,MID('source-3b'!$A$6, MOD(ROW(X120),LEN('source-3b'!$A$2))+1,1)))))) -> A
A53: =IF(INT(ROW(X121)/LEN('source-3b'!$A$2))=1,MID('source-3b'!$A$2, MOD(ROW(X121),LEN('source-3b'!$A$2))+1,1),IF(INT(ROW(X121)/LEN('source-3b'!$A$2))=2,MID('source-3b'!$A$3, MOD(ROW(X121),LEN('source-3b'!$A$2))+1,1), IF(INT(ROW(X121)/LEN('source-3b'!$A$2))=3,MID('source-3b'!$A$4, MOD(ROW(X121),LEN('source-3b'!$A$2))+1,1),IF(INT(ROW(X121)/LEN('source-3b'!$A$2))=4,MID('source-3b'!$A$5, MOD(ROW(X121),LEN('source-3b'!$A$2))+1,1),IF(INT(ROW(X121)/LEN('source-3b'!$A$2))=5,MID('source-3b'!$A$6, MOD(ROW(X121),LEN('source-3b'!$A$2))+1,1)))))) -> K
A54: =IF(INT(ROW(X122)/LEN('source-3b'!$A$2))=1,MID('source-3b'!$A$2, MOD(ROW(X122),LEN('source-3b'!$A$2))+1,1),IF(INT(ROW(X122)/LEN('source-3b'!$A$2))=2,MID('source-3b'!$A$3, MOD(ROW(X122),LEN('source-3b'!$A$2))+1,1), IF(INT(ROW(X122)/LEN('source-3b'!$A$2))=3,MID('source-3b'!$A$4, MOD(ROW(X122),LEN('source-3b'!$A$2))+1,1),IF(INT(ROW(X122)/LEN('source-3b'!$A$2))=4,MID('source-3b'!$A$5, MOD(ROW(X122),LEN('source-3b'!$A$2))+1,1),IF(INT(ROW(X122)/LEN('source-3b'!$A$2))=5,MID('source-3b'!$A$6, MOD(ROW(X122),LEN('source-3b'!$A$2))+1,1)))))) -> K
A55: =IF(INT(ROW(X123)/LEN('source-3b'!$A$2))=1,MID('source-3b'!$A$2, MOD(ROW(X123),LEN('source-3b'!$A$2))+1,1),IF(INT(ROW(X123)/LEN('source-3b'!$A$2))=2,MID('source-3b'!$A$3, MOD(ROW(X123),LEN('source-3b'!$A$2))+1,1), IF(INT(ROW(X123)/LEN('source-3b'!$A$2))=3,MID('source-3b'!$A$4, MOD(ROW(X123),LEN('source-3b'!$A$2))+1,1),IF(INT(ROW(X123)/LEN('source-3b'!$A$2))=4,MID('source-3b'!$A$5, MOD(ROW(X123),LEN('source-3b'!$A$2))+1,1),IF(INT(ROW(X123)/LEN('source-3b'!$A$2))=5,MID('source-3b'!$A$6, MOD(ROW(X123),LEN('source-3b'!$A$2))+1,1)))))) -> I
A56: =IF(INT(ROW(X124)/LEN('source-3b'!$A$2))=1,MID('source-3b'!$A$2, MOD(ROW(X124),LEN('source-3b'!$A$2))+1,1),IF(INT(ROW(X124)/LEN('source-3b'!$A$2))=2,MID('source-3b'!$A$3, MOD(ROW(X124),LEN('source-3b'!$A$2))+1,1), IF(INT(ROW(X124)/LEN('source-3b'!$A$2))=3,MID('source-3b'!$A$4, MOD(ROW(X124),LEN('source-3b'!$A$2))+1,1),IF(INT(ROW(X124)/LEN('source-3b'!$A$2))=4,MID('source-3b'!$A$5, MOD(ROW(X124),LEN('source-3b'!$A$2))+1,1),IF(INT(ROW(X124)/LEN('source-3b'!$A$2))=5,MID('source-3b'!$A$6, MOD(ROW(X124),LEN('source-3b'!$A$2))+1,1)))))) -> L
A57: =IF(INT(ROW(X125)/LEN('source-3b'!$A$2))=1,MID('source-3b'!$A$2, MOD(ROW(X125),LEN('source-3b'!$A$2))+1,1),IF(INT(ROW(X125)/LEN('source-3b'!$A$2))=2,MID('source-3b'!$A$3, MOD(ROW(X125),LEN('source-3b'!$A$2))+1,1), IF(INT(ROW(X125)/LEN('source-3b'!$A$2))=3,MID('source-3b'!$A$4, MOD(ROW(X125),LEN('source-3b'!$A$2))+1,1),IF(INT(ROW(X125)/LEN('source-3b'!$A$2))=4,MID('source-3b'!$A$5, MOD(ROW(X125),LEN('source-3b'!$A$2))+1,1),IF(INT(ROW(X125)/LEN('source-3b'!$A$2))=5,MID('source-3b'!$A$6, MOD(ROW(X125),LEN('source-3b'!$A$2))+1,1)))))) -> F
A58: =IF(INT(ROW(X126)/LEN('source-3b'!$A$2))=1,MID('source-3b'!$A$2, MOD(ROW(X126),LEN('source-3b'!$A$2))+1,1),IF(INT(ROW(X126)/LEN('source-3b'!$A$2))=2,MID('source-3b'!$A$3, MOD(ROW(X126),LEN('source-3b'!$A$2))+1,1), IF(INT(ROW(X126)/LEN('source-3b'!$A$2))=3,MID('source-3b'!$A$4, MOD(ROW(X126),LEN('source-3b'!$A$2))+1,1),IF(INT(ROW(X126)/LEN('source-3b'!$A$2))=4,MID('source-3b'!$A$5, MOD(ROW(X126),LEN('source-3b'!$A$2))+1,1),IF(INT(ROW(X126)/LEN('source-3b'!$A$2))=5,MID('source-3b'!$A$6, MOD(ROW(X126),LEN('source-3b'!$A$2))+1,1)))))) -> L
A59: =IF(INT(ROW(X127)/LEN('source-3b'!$A$2))=1,MID('source-3b'!$A$2, MOD(ROW(X127),LEN('source-3b'!$A$2))+1,1),IF(INT(ROW(X127)/LEN('source-3b'!$A$2))=2,MID('source-3b'!$A$3, MOD(ROW(X127),LEN('source-3b'!$A$2))+1,1), IF(INT(ROW(X127)/LEN('source-3b'!$A$2))=3,MID('source-3b'!$A$4, MOD(ROW(X127),LEN('source-3b'!$A$2))+1,1),IF(INT(ROW(X127)/LEN('source-3b'!$A$2))=4,MID('source-3b'!$A$5, MOD(ROW(X127),LEN('source-3b'!$A$2))+1,1),IF(INT(ROW(X127)/LEN('source-3b'!$A$2))=5,MID('source-3b'!$A$6, MOD(ROW(X127),LEN('source-3b'!$A$2))+1,1)))))) -> G
A60: =IF(INT(ROW(X128)/LEN('source-3b'!$A$2))=1,MID('source-3b'!$A$2, MOD(ROW(X128),LEN('source-3b'!$A$2))+1,1),IF(INT(ROW(X128)/LEN('source-3b'!$A$2))=2,MID('source-3b'!$A$3, MOD(ROW(X128),LEN('source-3b'!$A$2))+1,1), IF(INT(ROW(X128)/LEN('source-3b'!$A$2))=3,MID('source-3b'!$A$4, MOD(ROW(X128),LEN('source-3b'!$A$2))+1,1),IF(INT(ROW(X128)/LEN('source-3b'!$A$2))=4,MID('source-3b'!$A$5, MOD(ROW(X128),LEN('source-3b'!$A$2))+1,1),IF(INT(ROW(X128)/LEN('source-3b'!$A$2))=5,MID('source-3b'!$A$6, MOD(ROW(X128),LEN('source-3b'!$A$2))+1,1)))))) -> V
A61: =IF(INT(ROW(X129)/LEN('source-3b'!$A$2))=1,MID('source-3b'!$A$2, MOD(ROW(X129),LEN('source-3b'!$A$2))+1,1),IF(INT(ROW(X129)/LEN('source-3b'!$A$2))=2,MID('source-3b'!$A$3, MOD(ROW(X129),LEN('source-3b'!$A$2))+1,1), IF(INT(ROW(X129)/LEN('source-3b'!$A$2))=3,MID('source-3b'!$A$4, MOD(ROW(X129),LEN('source-3b'!$A$2))+1,1),IF(INT(ROW(X129)/LEN('source-3b'!$A$2))=4,MID('source-3b'!$A$5, MOD(ROW(X129),LEN('source-3b'!$A$2))+1,1),IF(INT(ROW(X129)/LEN('source-3b'!$A$2))=5,MID('source-3b'!$A$6, MOD(ROW(X129),LEN('source-3b'!$A$2))+1,1)))))) -> D
A62: =IF(INT(ROW(X130)/LEN('source-3b'!$A$2))=1,MID('source-3b'!$A$2, MOD(ROW(X130),LEN('source-3b'!$A$2))+1,1),IF(INT(ROW(X130)/LEN('source-3b'!$A$2))=2,MID('source-3b'!$A$3, MOD(ROW(X130),LEN('source-3b'!$A$2))+1,1), IF(INT(ROW(X130)/LEN('source-3b'!$A$2))=3,MID('source-3b'!$A$4, MOD(ROW(X130),LEN('source-3b'!$A$2))+1,1),IF(INT(ROW(X130)/LEN('source-3b'!$A$2))=4,MID('source-3b'!$A$5, MOD(ROW(X130),LEN('source-3b'!$A$2))+1,1),IF(INT(ROW(X130)/LEN('source-3b'!$A$2))=5,MID('source-3b'!$A$6, MOD(ROW(X130),LEN('source-3b'!$A$2))+1,1)))))) -> F
A63: =IF(INT(ROW(X131)/LEN('source-3b'!$A$2))=1,MID('source-3b'!$A$2, MOD(ROW(X131),LEN('source-3b'!$A$2))+1,1),IF(INT(ROW(X131)/LEN('source-3b'!$A$2))=2,MID('source-3b'!$A$3, MOD(ROW(X131),LEN('source-3b'!$A$2))+1,1), IF(INT(ROW(X131)/LEN('source-3b'!$A$2))=3,MID('source-3b'!$A$4, MOD(ROW(X131),LEN('source-3b'!$A$2))+1,1),IF(INT(ROW(X131)/LEN('source-3b'!$A$2))=4,MID('source-3b'!$A$5, MOD(ROW(X131),LEN('source-3b'!$A$2))+1,1),IF(INT(ROW(X131)/LEN('source-3b'!$A$2))=5,MID('source-3b'!$A$6, MOD(ROW(X131),LEN('source-3b'!$A$2))+1,1)))))) -> M
A64: =IF(INT(ROW(X132)/LEN('source-3b'!$A$2))=1,MID('source-3b'!$A$2, MOD(ROW(X132),LEN('source-3b'!$A$2))+1,1),IF(INT(ROW(X132)/LEN('source-3b'!$A$2))=2,MID('source-3b'!$A$3, MOD(ROW(X132),LEN('source-3b'!$A$2))+1,1), IF(INT(ROW(X132)/LEN('source-3b'!$A$2))=3,MID('source-3b'!$A$4, MOD(ROW(X132),LEN('source-3b'!$A$2))+1,1),IF(INT(ROW(X132)/LEN('source-3b'!$A$2))=4,MID('source-3b'!$A$5, MOD(ROW(X132),LEN('source-3b'!$A$2))+1,1),IF(INT(ROW(X132)/LEN('source-3b'!$A$2))=5,MID('source-3b'!$A$6, MOD(ROW(X132),LEN('source-3b'!$A$2))+1,1)))))) -> A
A65: =IF(INT(ROW(X133)/LEN('source-3b'!$A$2))=1,MID('source-3b'!$A$2, MOD(ROW(X133),LEN('source-3b'!$A$2))+1,1),IF(INT(ROW(X133)/LEN('source-3b'!$A$2))=2,MID('source-3b'!$A$3, MOD(ROW(X133),LEN('source-3b'!$A$2))+1,1), IF(INT(ROW(X133)/LEN('source-3b'!$A$2))=3,MID('source-3b'!$A$4, MOD(ROW(X133),LEN('source-3b'!$A$2))+1,1),IF(INT(ROW(X133)/LEN('source-3b'!$A$2))=4,MID('source-3b'!$A$5, MOD(ROW(X133),LEN('source-3b'!$A$2))+1,1),IF(INT(ROW(X133)/LEN('source-3b'!$A$2))=5,MID('source-3b'!$A$6, MOD(ROW(X133),LEN('source-3b'!$A$2))+1,1)))))) -> E
A66: =IF(INT(ROW(X134)/LEN('source-3b'!$A$2))=1,MID('source-3b'!$A$2, MOD(ROW(X134),LEN('source-3b'!$A$2))+1,1),IF(INT(ROW(X134)/LEN('source-3b'!$A$2))=2,MID('source-3b'!$A$3, MOD(ROW(X134),LEN('source-3b'!$A$2))+1,1), IF(INT(ROW(X134)/LEN('source-3b'!$A$2))=3,MID('source-3b'!$A$4, MOD(ROW(X134),LEN('source-3b'!$A$2))+1,1),IF(INT(ROW(X134)/LEN('source-3b'!$A$2))=4,MID('source-3b'!$A$5, MOD(ROW(X134),LEN('source-3b'!$A$2))+1,1),IF(INT(ROW(X134)/LEN('source-3b'!$A$2))=5,MID('source-3b'!$A$6, MOD(ROW(X134),LEN('source-3b'!$A$2))+1,1)))))) -> V
A67: =IF(INT(ROW(X135)/LEN('source-3b'!$A$2))=1,MID('source-3b'!$A$2, MOD(ROW(X135),LEN('source-3b'!$A$2))+1,1),IF(INT(ROW(X135)/LEN('source-3b'!$A$2))=2,MID('source-3b'!$A$3, MOD(ROW(X135),LEN('source-3b'!$A$2))+1,1), IF(INT(ROW(X135)/LEN('source-3b'!$A$2))=3,MID('source-3b'!$A$4, MOD(ROW(X135),LEN('source-3b'!$A$2))+1,1),IF(INT(ROW(X135)/LEN('source-3b'!$A$2))=4,MID('source-3b'!$A$5, MOD(ROW(X135),LEN('source-3b'!$A$2))+1,1),IF(INT(ROW(X135)/LEN('source-3b'!$A$2))=5,MID('source-3b'!$A$6, MOD(ROW(X135),LEN('source-3b'!$A$2))+1,1)))))) -> M
A68: =IF(INT(ROW(X136)/LEN('source-3b'!$A$2))=1,MID('source-3b'!$A$2, MOD(ROW(X136),LEN('source-3b'!$A$2))+1,1),IF(INT(ROW(X136)/LEN('source-3b'!$A$2))=2,MID('source-3b'!$A$3, MOD(ROW(X136),LEN('source-3b'!$A$2))+1,1), IF(INT(ROW(X136)/LEN('source-3b'!$A$2))=3,MID('source-3b'!$A$4, MOD(ROW(X136),LEN('source-3b'!$A$2))+1,1),IF(INT(ROW(X136)/LEN('source-3b'!$A$2))=4,MID('source-3b'!$A$5, MOD(ROW(X136),LEN('source-3b'!$A$2))+1,1),IF(INT(ROW(X136)/LEN('source-3b'!$A$2))=5,MID('source-3b'!$A$6, MOD(ROW(X136),LEN('source-3b'!$A$2))+1,1)))))) -> K
A69: =IF(INT(ROW(X137)/LEN('source-3b'!$A$2))=1,MID('source-3b'!$A$2, MOD(ROW(X137),LEN('source-3b'!$A$2))+1,1),IF(INT(ROW(X137)/LEN('source-3b'!$A$2))=2,MID('source-3b'!$A$3, MOD(ROW(X137),LEN('source-3b'!$A$2))+1,1), IF(INT(ROW(X137)/LEN('source-3b'!$A$2))=3,MID('source-3b'!$A$4, MOD(ROW(X137),LEN('source-3b'!$A$2))+1,1),IF(INT(ROW(X137)/LEN('source-3b'!$A$2))=4,MID('source-3b'!$A$5, MOD(ROW(X137),LEN('source-3b'!$A$2))+1,1),IF(INT(ROW(X137)/LEN('source-3b'!$A$2))=5,MID('source-3b'!$A$6, MOD(ROW(X137),LEN('source-3b'!$A$2))+1,1)))))) -> V
A70: =IF(INT(ROW(X138)/LEN('source-3b'!$A$2))=1,MID('source-3b'!$A$2, MOD(ROW(X138),LEN('source-3b'!$A$2))+1,1),IF(INT(ROW(X138)/LEN('source-3b'!$A$2))=2,MID('source-3b'!$A$3, MOD(ROW(X138),LEN('source-3b'!$A$2))+1,1), IF(INT(ROW(X138)/LEN('source-3b'!$A$2))=3,MID('source-3b'!$A$4, MOD(ROW(X138),LEN('source-3b'!$A$2))+1,1),IF(INT(ROW(X138)/LEN('source-3b'!$A$2))=4,MID('source-3b'!$A$5, MOD(ROW(X138),LEN('source-3b'!$A$2))+1,1),IF(INT(ROW(X138)/LEN('source-3b'!$A$2))=5,MID('source-3b'!$A$6, MOD(ROW(X138),LEN('source-3b'!$A$2))+1,1)))))) -> L
A71: =IF(INT(ROW(X139)/LEN('source-3b'!$A$2))=1,MID('source-3b'!$A$2, MOD(ROW(X139),LEN('source-3b'!$A$2))+1,1),IF(INT(ROW(X139)/LEN('source-3b'!$A$2))=2,MID('source-3b'!$A$3, MOD(ROW(X139),LEN('source-3b'!$A$2))+1,1), IF(INT(ROW(X139)/LEN('source-3b'!$A$2))=3,MID('source-3b'!$A$4, MOD(ROW(X139),LEN('source-3b'!$A$2))+1,1),IF(INT(ROW(X139)/LEN('source-3b'!$A$2))=4,MID('source-3b'!$A$5, MOD(ROW(X139),LEN('source-3b'!$A$2))+1,1),IF(INT(ROW(X139)/LEN('source-3b'!$A$2))=5,MID('source-3b'!$A$6, MOD(ROW(X139),LEN('source-3b'!$A$2))+1,1)))))) -> N
A72: =IF(INT(ROW(X140)/LEN('source-3b'!$A$2))=1,MID('source-3b'!$A$2, MOD(ROW(X140),LEN('source-3b'!$A$2))+1,1),IF(INT(ROW(X140)/LEN('source-3b'!$A$2))=2,MID('source-3b'!$A$3, MOD(ROW(X140),LEN('source-3b'!$A$2))+1,1), IF(INT(ROW(X140)/LEN('source-3b'!$A$2))=3,MID('source-3b'!$A$4, MOD(ROW(X140),LEN('source-3b'!$A$2))+1,1),IF(INT(ROW(X140)/LEN('source-3b'!$A$2))=4,MID('source-3b'!$A$5, MOD(ROW(X140),LEN('source-3b'!$A$2))+1,1),IF(INT(ROW(X140)/LEN('source-3b'!$A$2))=5,MID('source-3b'!$A$6, MOD(ROW(X140),LEN('source-3b'!$A$2))+1,1)))))) -> P
A73: =IF(INT(ROW(X141)/LEN('source-3b'!$A$2))=1,MID('source-3b'!$A$2, MOD(ROW(X141),LEN('source-3b'!$A$2))+1,1),IF(INT(ROW(X141)/LEN('source-3b'!$A$2))=2,MID('source-3b'!$A$3, MOD(ROW(X141),LEN('source-3b'!$A$2))+1,1), IF(INT(ROW(X141)/LEN('source-3b'!$A$2))=3,MID('source-3b'!$A$4, MOD(ROW(X141),LEN('source-3b'!$A$2))+1,1),IF(INT(ROW(X141)/LEN('source-3b'!$A$2))=4,MID('source-3b'!$A$5, MOD(ROW(X141),LEN('source-3b'!$A$2))+1,1),IF(INT(ROW(X141)/LEN('source-3b'!$A$2))=5,MID('source-3b'!$A$6, MOD(ROW(X141),LEN('source-3b'!$A$2))+1,1)))))) -> E
A74: =IF(INT(ROW(X142)/LEN('source-3b'!$A$2))=1,MID('source-3b'!$A$2, MOD(ROW(X142),LEN('source-3b'!$A$2))+1,1),IF(INT(ROW(X142)/LEN('source-3b'!$A$2))=2,MID('source-3b'!$A$3, MOD(ROW(X142),LEN('source-3b'!$A$2))+1,1), IF(INT(ROW(X142)/LEN('source-3b'!$A$2))=3,MID('source-3b'!$A$4, MOD(ROW(X142),LEN('source-3b'!$A$2))+1,1),IF(INT(ROW(X142)/LEN('source-3b'!$A$2))=4,MID('source-3b'!$A$5, MOD(ROW(X142),LEN('source-3b'!$A$2))+1,1),IF(INT(ROW(X142)/LEN('source-3b'!$A$2))=5,MID('source-3b'!$A$6, MOD(ROW(X142),LEN('source-3b'!$A$2))+1,1)))))) -> K
A75: =IF(INT(ROW(X143)/LEN('source-3b'!$A$2))=1,MID('source-3b'!$A$2, MOD(ROW(X143),LEN('source-3b'!$A$2))+1,1),IF(INT(ROW(X143)/LEN('source-3b'!$A$2))=2,MID('source-3b'!$A$3, MOD(ROW(X143),LEN('source-3b'!$A$2))+1,1), IF(INT(ROW(X143)/LEN('source-3b'!$A$2))=3,MID('source-3b'!$A$4, MOD(ROW(X143),LEN('source-3b'!$A$2))+1,1),IF(INT(ROW(X143)/LEN('source-3b'!$A$2))=4,MID('source-3b'!$A$5, MOD(ROW(X143),LEN('source-3b'!$A$2))+1,1),IF(INT(ROW(X143)/LEN('source-3b'!$A$2))=5,MID('source-3b'!$A$6, MOD(ROW(X143),LEN('source-3b'!$A$2))+1,1)))))) -> K
A76: =IF(INT(ROW(X144)/LEN('source-3b'!$A$2))=1,MID('source-3b'!$A$2, MOD(ROW(X144),LEN('source-3b'!$A$2))+1,1),IF(INT(ROW(X144)/LEN('source-3b'!$A$2))=2,MID('source-3b'!$A$3, MOD(ROW(X144),LEN('source-3b'!$A$2))+1,1), IF(INT(ROW(X144)/LEN('source-3b'!$A$2))=3,MID('source-3b'!$A$4, MOD(ROW(X144),LEN('source-3b'!$A$2))+1,1),IF(INT(ROW(X144)/LEN('source-3b'!$A$2))=4,MID('source-3b'!$A$5, MOD(ROW(X144),LEN('source-3b'!$A$2))+1,1),IF(INT(ROW(X144)/LEN('source-3b'!$A$2))=5,MID('source-3b'!$A$6, MOD(ROW(X144),LEN('source-3b'!$A$2))+1,1)))))) -> I
A77: =IF(INT(ROW(X145)/LEN('source-3b'!$A$2))=1,MID('source-3b'!$A$2, MOD(ROW(X145),LEN('source-3b'!$A$2))+1,1),IF(INT(ROW(X145)/LEN('source-3b'!$A$2))=2,MID('source-3b'!$A$3, MOD(ROW(X145),LEN('source-3b'!$A$2))+1,1), IF(INT(ROW(X145)/LEN('source-3b'!$A$2))=3,MID('source-3b'!$A$4, MOD(ROW(X145),LEN('source-3b'!$A$2))+1,1),IF(INT(ROW(X145)/LEN('source-3b'!$A$2))=4,MID('source-3b'!$A$5, MOD(ROW(X145),LEN('source-3b'!$A$2))+1,1),IF(INT(ROW(X145)/LEN('source-3b'!$A$2))=5,MID('source-3b'!$A$6, MOD(ROW(X145),LEN('source-3b'!$A$2))+1,1)))))) -> I
A78: =IF(INT(ROW(X146)/LEN('source-3b'!$A$2))=1,MID('source-3b'!$A$2, MOD(ROW(X146),LEN('source-3b'!$A$2))+1,1),IF(INT(ROW(X146)/LEN('source-3b'!$A$2))=2,MID('source-3b'!$A$3, MOD(ROW(X146),LEN('source-3b'!$A$2))+1,1), IF(INT(ROW(X146)/LEN('source-3b'!$A$2))=3,MID('source-3b'!$A$4, MOD(ROW(X146),LEN('source-3b'!$A$2))+1,1),IF(INT(ROW(X146)/LEN('source-3b'!$A$2))=4,MID('source-3b'!$A$5, MOD(ROW(X146),LEN('source-3b'!$A$2))+1,1),IF(INT(ROW(X146)/LEN('source-3b'!$A$2))=5,MID('source-3b'!$A$6, MOD(ROW(X146),LEN('source-3b'!$A$2))+1,1)))))) -> V
A79: =IF(INT(ROW(X147)/LEN('source-3b'!$A$2))=1,MID('source-3b'!$A$2, MOD(ROW(X147),LEN('source-3b'!$A$2))+1,1),IF(INT(ROW(X147)/LEN('source-3b'!$A$2))=2,MID('source-3b'!$A$3, MOD(ROW(X147),LEN('source-3b'!$A$2))+1,1), IF(INT(ROW(X147)/LEN('source-3b'!$A$2))=3,MID('source-3b'!$A$4, MOD(ROW(X147),LEN('source-3b'!$A$2))+1,1),IF(INT(ROW(X147)/LEN('source-3b'!$A$2))=4,MID('source-3b'!$A$5, MOD(ROW(X147),LEN('source-3b'!$A$2))+1,1),IF(INT(ROW(X147)/LEN('source-3b'!$A$2))=5,MID('source-3b'!$A$6, MOD(ROW(X147),LEN('source-3b'!$A$2))+1,1)))))) -> P
A80: =IF(INT(ROW(X148)/LEN('source-3b'!$A$2))=1,MID('source-3b'!$A$2, MOD(ROW(X148),LEN('source-3b'!$A$2))+1,1),IF(INT(ROW(X148)/LEN('source-3b'!$A$2))=2,MID('source-3b'!$A$3, MOD(ROW(X148),LEN('source-3b'!$A$2))+1,1), IF(INT(ROW(X148)/LEN('source-3b'!$A$2))=3,MID('source-3b'!$A$4, MOD(ROW(X148),LEN('source-3b'!$A$2))+1,1),IF(INT(ROW(X148)/LEN('source-3b'!$A$2))=4,MID('source-3b'!$A$5, MOD(ROW(X148),LEN('source-3b'!$A$2))+1,1),IF(INT(ROW(X148)/LEN('source-3b'!$A$2))=5,MID('source-3b'!$A$6, MOD(ROW(X148),LEN('source-3b'!$A$2))+1,1)))))) -> V
A81: =IF(INT(ROW(X149)/LEN('source-3b'!$A$2))=1,MID('source-3b'!$A$2, MOD(ROW(X149),LEN('source-3b'!$A$2))+1,1),IF(INT(ROW(X149)/LEN('source-3b'!$A$2))=2,MID('source-3b'!$A$3, MOD(ROW(X149),LEN('source-3b'!$A$2))+1,1), IF(INT(ROW(X149)/LEN('source-3b'!$A$2))=3,MID('source-3b'!$A$4, MOD(ROW(X149),LEN('source-3b'!$A$2))+1,1),IF(INT(ROW(X149)/LEN('source-3b'!$A$2))=4,MID('source-3b'!$A$5, MOD(ROW(X149),LEN('source-3b'!$A$2))+1,1),IF(INT(ROW(X149)/LEN('source-3b'!$A$2))=5,MID('source-3b'!$A$6, MOD(ROW(X149),LEN('source-3b'!$A$2))+1,1)))))) -> R
A82: =IF(INT(ROW(X150)/LEN('source-3b'!$A$2))=1,MID('source-3b'!$A$2, MOD(ROW(X150),LEN('source-3b'!$A$2))+1,1),IF(INT(ROW(X150)/LEN('source-3b'!$A$2))=2,MID('source-3b'!$A$3, MOD(ROW(X150),LEN('source-3b'!$A$2))+1,1), IF(INT(ROW(X150)/LEN('source-3b'!$A$2))=3,MID('source-3b'!$A$4, MOD(ROW(X150),LEN('source-3b'!$A$2))+1,1),IF(INT(ROW(X150)/LEN('source-3b'!$A$2))=4,MID('source-3b'!$A$5, MOD(ROW(X150),LEN('source-3b'!$A$2))+1,1),IF(INT(ROW(X150)/LEN('source-3b'!$A$2))=5,MID('source-3b'!$A$6, MOD(ROW(X150),LEN('source-3b'!$A$2))+1,1)))))) -> Y
A83: =IF(INT(ROW(X151)/LEN('source-3b'!$A$2))=1,MID('source-3b'!$A$2, MOD(ROW(X151),LEN('source-3b'!$A$2))+1,1),IF(INT(ROW(X151)/LEN('source-3b'!$A$2))=2,MID('source-3b'!$A$3, MOD(ROW(X151),LEN('source-3b'!$A$2))+1,1), IF(INT(ROW(X151)/LEN('source-3b'!$A$2))=3,MID('source-3b'!$A$4, MOD(ROW(X151),LEN('source-3b'!$A$2))+1,1),IF(INT(ROW(X151)/LEN('source-3b'!$A$2))=4,MID('source-3b'!$A$5, MOD(ROW(X151),LEN('source-3b'!$A$2))+1,1),IF(INT(ROW(X151)/LEN('source-3b'!$A$2))=5,MID('source-3b'!$A$6, MOD(ROW(X151),LEN('source-3b'!$A$2))+1,1)))))) -> S
A84: =IF(INT(ROW(X152)/LEN('source-3b'!$A$2))=1,MID('source-3b'!$A$2, MOD(ROW(X152),LEN('source-3b'!$A$2))+1,1),IF(INT(ROW(X152)/LEN('source-3b'!$A$2))=2,MID('source-3b'!$A$3, MOD(ROW(X152),LEN('source-3b'!$A$2))+1,1), IF(INT(ROW(X152)/LEN('source-3b'!$A$2))=3,MID('source-3b'!$A$4, MOD(ROW(X152),LEN('source-3b'!$A$2))+1,1),IF(INT(ROW(X152)/LEN('source-3b'!$A$2))=4,MID('source-3b'!$A$5, MOD(ROW(X152),LEN('source-3b'!$A$2))+1,1),IF(INT(ROW(X152)/LEN('source-3b'!$A$2))=5,MID('source-3b'!$A$6, MOD(ROW(X152),LEN('source-3b'!$A$2))+1,1)))))) -> T
A85: =IF(INT(ROW(X153)/LEN('source-3b'!$A$2))=1,MID('source-3b'!$A$2, MOD(ROW(X153),LEN('source-3b'!$A$2))+1,1),IF(INT(ROW(X153)/LEN('source-3b'!$A$2))=2,MID('source-3b'!$A$3, MOD(ROW(X153),LEN('source-3b'!$A$2))+1,1), IF(INT(ROW(X153)/LEN('source-3b'!$A$2))=3,MID('source-3b'!$A$4, MOD(ROW(X153),LEN('source-3b'!$A$2))+1,1),IF(INT(ROW(X153)/LEN('source-3b'!$A$2))=4,MID('source-3b'!$A$5, MOD(ROW(X153),LEN('source-3b'!$A$2))+1,1),IF(INT(ROW(X153)/LEN('source-3b'!$A$2))=5,MID('source-3b'!$A$6, MOD(ROW(X153),LEN('source-3b'!$A$2))+1,1)))))) -> C
A86: =IF(INT(ROW(X154)/LEN('source-3b'!$A$2))=1,MID('source-3b'!$A$2, MOD(ROW(X154),LEN('source-3b'!$A$2))+1,1),IF(INT(ROW(X154)/LEN('source-3b'!$A$2))=2,MID('source-3b'!$A$3, MOD(ROW(X154),LEN('source-3b'!$A$2))+1,1), IF(INT(ROW(X154)/LEN('source-3b'!$A$2))=3,MID('source-3b'!$A$4, MOD(ROW(X154),LEN('source-3b'!$A$2))+1,1),IF(INT(ROW(X154)/LEN('source-3b'!$A$2))=4,MID('source-3b'!$A$5, MOD(ROW(X154),LEN('source-3b'!$A$2))+1,1),IF(INT(ROW(X154)/LEN('source-3b'!$A$2))=5,MID('source-3b'!$A$6, MOD(ROW(X154),LEN('source-3b'!$A$2))+1,1)))))) -> P
A87: =IF(INT(ROW(X155)/LEN('source-3b'!$A$2))=1,MID('source-3b'!$A$2, MOD(ROW(X155),LEN('source-3b'!$A$2))+1,1),IF(INT(ROW(X155)/LEN('source-3b'!$A$2))=2,MID('source-3b'!$A$3, MOD(ROW(X155),LEN('source-3b'!$A$2))+1,1), IF(INT(ROW(X155)/LEN('source-3b'!$A$2))=3,MID('source-3b'!$A$4, MOD(ROW(X155),LEN('source-3b'!$A$2))+1,1),IF(INT(ROW(X155)/LEN('source-3b'!$A$2))=4,MID('source-3b'!$A$5, MOD(ROW(X155),LEN('source-3b'!$A$2))+1,1),IF(INT(ROW(X155)/LEN('source-3b'!$A$2))=5,MID('source-3b'!$A$6, MOD(ROW(X155),LEN('source-3b'!$A$2))+1,1)))))) -> M
A88: =IF(INT(ROW(X156)/LEN('source-3b'!$A$2))=1,MID('source-3b'!$A$2, MOD(ROW(X156),LEN('source-3b'!$A$2))+1,1),IF(INT(ROW(X156)/LEN('source-3b'!$A$2))=2,MID('source-3b'!$A$3, MOD(ROW(X156),LEN('source-3b'!$A$2))+1,1), IF(INT(ROW(X156)/LEN('source-3b'!$A$2))=3,MID('source-3b'!$A$4, MOD(ROW(X156),LEN('source-3b'!$A$2))+1,1),IF(INT(ROW(X156)/LEN('source-3b'!$A$2))=4,MID('source-3b'!$A$5, MOD(ROW(X156),LEN('source-3b'!$A$2))+1,1),IF(INT(ROW(X156)/LEN('source-3b'!$A$2))=5,MID('source-3b'!$A$6, MOD(ROW(X156),LEN('source-3b'!$A$2))+1,1)))))) -> A
A89: =IF(INT(ROW(X157)/LEN('source-3b'!$A$2))=1,MID('source-3b'!$A$2, MOD(ROW(X157),LEN('source-3b'!$A$2))+1,1),IF(INT(ROW(X157)/LEN('source-3b'!$A$2))=2,MID('source-3b'!$A$3, MOD(ROW(X157),LEN('source-3b'!$A$2))+1,1), IF(INT(ROW(X157)/LEN('source-3b'!$A$2))=3,MID('source-3b'!$A$4, MOD(ROW(X157),LEN('source-3b'!$A$2))+1,1),IF(INT(ROW(X157)/LEN('source-3b'!$A$2))=4,MID('source-3b'!$A$5, MOD(ROW(X157),LEN('source-3b'!$A$2))+1,1),IF(INT(ROW(X157)/LEN('source-3b'!$A$2))=5,MID('source-3b'!$A$6, MOD(ROW(X157),LEN('source-3b'!$A$2))+1,1)))))) -> N
A90: =IF(INT(ROW(X158)/LEN('source-3b'!$A$2))=1,MID('source-3b'!$A$2, MOD(ROW(X158),LEN('source-3b'!$A$2))+1,1),IF(INT(ROW(X158)/LEN('source-3b'!$A$2))=2,MID('source-3b'!$A$3, MOD(ROW(X158),LEN('source-3b'!$A$2))+1,1), IF(INT(ROW(X158)/LEN('source-3b'!$A$2))=3,MID('source-3b'!$A$4, MOD(ROW(X158),LEN('source-3b'!$A$2))+1,1),IF(INT(ROW(X158)/LEN('source-3b'!$A$2))=4,MID('source-3b'!$A$5, MOD(ROW(X158),LEN('source-3b'!$A$2))+1,1),IF(INT(ROW(X158)/LEN('source-3b'!$A$2))=5,MID('source-3b'!$A$6, MOD(ROW(X158),LEN('source-3b'!$A$2))+1,1)))))) -> S
A91: =IF(INT(ROW(X159)/LEN('source-3b'!$A$2))=1,MID('source-3b'!$A$2, MOD(ROW(X159),LEN('source-3b'!$A$2))+1,1),IF(INT(ROW(X159)/LEN('source-3b'!$A$2))=2,MID('source-3b'!$A$3, MOD(ROW(X159),LEN('source-3b'!$A$2))+1,1), IF(INT(ROW(X159)/LEN('source-3b'!$A$2))=3,MID('source-3b'!$A$4, MOD(ROW(X159),LEN('source-3b'!$A$2))+1,1),IF(INT(ROW(X159)/LEN('source-3b'!$A$2))=4,MID('source-3b'!$A$5, MOD(ROW(X159),LEN('source-3b'!$A$2))+1,1),IF(INT(ROW(X159)/LEN('source-3b'!$A$2))=5,MID('source-3b'!$A$6, MOD(ROW(X159),LEN('source-3b'!$A$2))+1,1)))))) -> L
A92: =IF(INT(ROW(X160)/LEN('source-3b'!$A$2))=1,MID('source-3b'!$A$2, MOD(ROW(X160),LEN('source-3b'!$A$2))+1,1),IF(INT(ROW(X160)/LEN('source-3b'!$A$2))=2,MID('source-3b'!$A$3, MOD(ROW(X160),LEN('source-3b'!$A$2))+1,1), IF(INT(ROW(X160)/LEN('source-3b'!$A$2))=3,MID('source-3b'!$A$4, MOD(ROW(X160),LEN('source-3b'!$A$2))+1,1),IF(INT(ROW(X160)/LEN('source-3b'!$A$2))=4,MID('source-3b'!$A$5, MOD(ROW(X160),LEN('source-3b'!$A$2))+1,1),IF(INT(ROW(X160)/LEN('source-3b'!$A$2))=5,MID('source-3b'!$A$6, MOD(ROW(X160),LEN('source-3b'!$A$2))+1,1)))))) -> T
A93: =IF(INT(ROW(X161)/LEN('source-3b'!$A$2))=1,MID('source-3b'!$A$2, MOD(ROW(X161),LEN('source-3b'!$A$2))+1,1),IF(INT(ROW(X161)/LEN('source-3b'!$A$2))=2,MID('source-3b'!$A$3, MOD(ROW(X161),LEN('source-3b'!$A$2))+1,1), IF(INT(ROW(X161)/LEN('source-3b'!$A$2))=3,MID('source-3b'!$A$4, MOD(ROW(X161),LEN('source-3b'!$A$2))+1,1),IF(INT(ROW(X161)/LEN('source-3b'!$A$2))=4,MID('source-3b'!$A$5, MOD(ROW(X161),LEN('source-3b'!$A$2))+1,1),IF(INT(ROW(X161)/LEN('source-3b'!$A$2))=5,MID('source-3b'!$A$6, MOD(ROW(X161),LEN('source-3b'!$A$2))+1,1)))))) -> V
A94: =IF(INT(ROW(X162)/LEN('source-3b'!$A$2))=1,MID('source-3b'!$A$2, MOD(ROW(X162),LEN('source-3b'!$A$2))+1,1),IF(INT(ROW(X162)/LEN('source-3b'!$A$2))=2,MID('source-3b'!$A$3, MOD(ROW(X162),LEN('source-3b'!$A$2))+1,1), IF(INT(ROW(X162)/LEN('source-3b'!$A$2))=3,MID('source-3b'!$A$4, MOD(ROW(X162),LEN('source-3b'!$A$2))+1,1),IF(INT(ROW(X162)/LEN('source-3b'!$A$2))=4,MID('source-3b'!$A$5, MOD(ROW(X162),LEN('source-3b'!$A$2))+1,1),IF(INT(ROW(X162)/LEN('source-3b'!$A$2))=5,MID('source-3b'!$A$6, MOD(ROW(X162),LEN('source-3b'!$A$2))+1,1)))))) -> E
A95: =IF(INT(ROW(X163)/LEN('source-3b'!$A$2))=1,MID('source-3b'!$A$2, MOD(ROW(X163),LEN('source-3b'!$A$2))+1,1),IF(INT(ROW(X163)/LEN('source-3b'!$A$2))=2,MID('source-3b'!$A$3, MOD(ROW(X163),LEN('source-3b'!$A$2))+1,1), IF(INT(ROW(X163)/LEN('source-3b'!$A$2))=3,MID('source-3b'!$A$4, MOD(ROW(X163),LEN('source-3b'!$A$2))+1,1),IF(INT(ROW(X163)/LEN('source-3b'!$A$2))=4,MID('source-3b'!$A$5, MOD(ROW(X163),LEN('source-3b'!$A$2))+1,1),IF(INT(ROW(X163)/LEN('source-3b'!$A$2))=5,MID('source-3b'!$A$6, MOD(ROW(X163),LEN('source-3b'!$A$2))+1,1)))))) -> D
A96: =IF(INT(ROW(X164)/LEN('source-3b'!$A$2))=1,MID('source-3b'!$A$2, MOD(ROW(X164),LEN('source-3b'!$A$2))+1,1),IF(INT(ROW(X164)/LEN('source-3b'!$A$2))=2,MID('source-3b'!$A$3, MOD(ROW(X164),LEN('source-3b'!$A$2))+1,1), IF(INT(ROW(X164)/LEN('source-3b'!$A$2))=3,MID('source-3b'!$A$4, MOD(ROW(X164),LEN('source-3b'!$A$2))+1,1),IF(INT(ROW(X164)/LEN('source-3b'!$A$2))=4,MID('source-3b'!$A$5, MOD(ROW(X164),LEN('source-3b'!$A$2))+1,1),IF(INT(ROW(X164)/LEN('source-3b'!$A$2))=5,MID('source-3b'!$A$6, MOD(ROW(X164),LEN('source-3b'!$A$2))+1,1)))))) -> V
A97: =IF(INT(ROW(X165)/LEN('source-3b'!$A$2))=1,MID('source-3b'!$A$2, MOD(ROW(X165),LEN('source-3b'!$A$2))+1,1),IF(INT(ROW(X165)/LEN('source-3b'!$A$2))=2,MID('source-3b'!$A$3, MOD(ROW(X165),LEN('source-3b'!$A$2))+1,1), IF(INT(ROW(X165)/LEN('source-3b'!$A$2))=3,MID('source-3b'!$A$4, MOD(ROW(X165),LEN('source-3b'!$A$2))+1,1),IF(INT(ROW(X165)/LEN('source-3b'!$A$2))=4,MID('source-3b'!$A$5, MOD(ROW(X165),LEN('source-3b'!$A$2))+1,1),IF(INT(ROW(X165)/LEN('source-3b'!$A$2))=5,MID('source-3b'!$A$6, MOD(ROW(X165),LEN('source-3b'!$A$2))+1,1)))))) -> L
A98: =IF(INT(ROW(X166)/LEN('source-3b'!$A$2))=1,MID('source-3b'!$A$2, MOD(ROW(X166),LEN('source-3b'!$A$2))+1,1),IF(INT(ROW(X166)/LEN('source-3b'!$A$2))=2,MID('source-3b'!$A$3, MOD(ROW(X166),LEN('source-3b'!$A$2))+1,1), IF(INT(ROW(X166)/LEN('source-3b'!$A$2))=3,MID('source-3b'!$A$4, MOD(ROW(X166),LEN('source-3b'!$A$2))+1,1),IF(INT(ROW(X166)/LEN('source-3b'!$A$2))=4,MID('source-3b'!$A$5, MOD(ROW(X166),LEN('source-3b'!$A$2))+1,1),IF(INT(ROW(X166)/LEN('source-3b'!$A$2))=5,MID('source-3b'!$A$6, MOD(ROW(X166),LEN('source-3b'!$A$2))+1,1)))))) -> K
A99: =IF(INT(ROW(X167)/LEN('source-3b'!$A$2))=1,MID('source-3b'!$A$2, MOD(ROW(X167),LEN('source-3b'!$A$2))+1,1),IF(INT(ROW(X167)/LEN('source-3b'!$A$2))=2,MID('source-3b'!$A$3, MOD(ROW(X167),LEN('source-3b'!$A$2))+1,1), IF(INT(ROW(X167)/LEN('source-3b'!$A$2))=3,MID('source-3b'!$A$4, MOD(ROW(X167),LEN('source-3b'!$A$2))+1,1),IF(INT(ROW(X167)/LEN('source-3b'!$A$2))=4,MID('source-3b'!$A$5, MOD(ROW(X167),LEN('source-3b'!$A$2))+1,1),IF(INT(ROW(X167)/LEN('source-3b'!$A$2))=5,MID('source-3b'!$A$6, MOD(ROW(X167),LEN('source-3b'!$A$2))+1,1)))))) -> Y
A100: =IF(INT(ROW(X168)/LEN('source-3b'!$A$2))=1,MID('source-3b'!$A$2, MOD(ROW(X168),LEN('source-3b'!$A$2))+1,1),IF(INT(ROW(X168)/LEN('source-3b'!$A$2))=2,MID('source-3b'!$A$3, MOD(ROW(X168),LEN('source-3b'!$A$2))+1,1), IF(INT(ROW(X168)/LEN('source-3b'!$A$2))=3,MID('source-3b'!$A$4, MOD(ROW(X168),LEN('source-3b'!$A$2))+1,1),IF(INT(ROW(X168)/LEN('source-3b'!$A$2))=4,MID('source-3b'!$A$5, MOD(ROW(X168),LEN('source-3b'!$A$2))+1,1),IF(INT(ROW(X168)/LEN('source-3b'!$A$2))=5,MID('source-3b'!$A$6, MOD(ROW(X168),LEN('source-3b'!$A$2))+1,1)))))) -> K
A101: =IF(INT(ROW(X169)/LEN('source-3b'!$A$2))=1,MID('source-3b'!$A$2, MOD(ROW(X169),LEN('source-3b'!$A$2))+1,1),IF(INT(ROW(X169)/LEN('source-3b'!$A$2))=2,MID('source-3b'!$A$3, MOD(ROW(X169),LEN('source-3b'!$A$2))+1,1), IF(INT(ROW(X169)/LEN('source-3b'!$A$2))=3,MID('source-3b'!$A$4, MOD(ROW(X169),LEN('source-3b'!$A$2))+1,1),IF(INT(ROW(X169)/LEN('source-3b'!$A$2))=4,MID('source-3b'!$A$5, MOD(ROW(X169),LEN('source-3b'!$A$2))+1,1),IF(INT(ROW(X169)/LEN('source-3b'!$A$2))=5,MID('source-3b'!$A$6, MOD(ROW(X169),LEN('source-3b'!$A$2))+1,1)))))) -> E
A102: =IF(INT(ROW(X170)/LEN('source-3b'!$A$2))=1,MID('source-3b'!$A$2, MOD(ROW(X170),LEN('source-3b'!$A$2))+1,1),IF(INT(ROW(X170)/LEN('source-3b'!$A$2))=2,MID('source-3b'!$A$3, MOD(ROW(X170),LEN('source-3b'!$A$2))+1,1), IF(INT(ROW(X170)/LEN('source-3b'!$A$2))=3,MID('source-3b'!$A$4, MOD(ROW(X170),LEN('source-3b'!$A$2))+1,1),IF(INT(ROW(X170)/LEN('source-3b'!$A$2))=4,MID('source-3b'!$A$5, MOD(ROW(X170),LEN('source-3b'!$A$2))+1,1),IF(INT(ROW(X170)/LEN('source-3b'!$A$2))=5,MID('source-3b'!$A$6, MOD(ROW(X170),LEN('source-3b'!$A$2))+1,1)))))) -> I
A103: =IF(INT(ROW(X171)/LEN('source-3b'!$A$2))=1,MID('source-3b'!$A$2, MOD(ROW(X171),LEN('source-3b'!$A$2))+1,1),IF(INT(ROW(X171)/LEN('source-3b'!$A$2))=2,MID('source-3b'!$A$3, MOD(ROW(X171),LEN('source-3b'!$A$2))+1,1), IF(INT(ROW(X171)/LEN('source-3b'!$A$2))=3,MID('source-3b'!$A$4, MOD(ROW(X171),LEN('source-3b'!$A$2))+1,1),IF(INT(ROW(X171)/LEN('source-3b'!$A$2))=4,MID('source-3b'!$A$5, MOD(ROW(X171),LEN('source-3b'!$A$2))+1,1),IF(INT(ROW(X171)/LEN('source-3b'!$A$2))=5,MID('source-3b'!$A$6, MOD(ROW(X171),LEN('source-3b'!$A$2))+1,1)))))) -> Y
A104: =IF(INT(ROW(X172)/LEN('source-3b'!$A$2))=1,MID('source-3b'!$A$2, MOD(ROW(X172),LEN('source-3b'!$A$2))+1,1),IF(INT(ROW(X172)/LEN('source-3b'!$A$2))=2,MID('source-3b'!$A$3, MOD(ROW(X172),LEN('source-3b'!$A$2))+1,1), IF(INT(ROW(X172)/LEN('source-3b'!$A$2))=3,MID('source-3b'!$A$4, MOD(ROW(X172),LEN('source-3b'!$A$2))+1,1),IF(INT(ROW(X172)/LEN('source-3b'!$A$2))=4,MID('source-3b'!$A$5, MOD(ROW(X172),LEN('source-3b'!$A$2))+1,1),IF(INT(ROW(X172)/LEN('source-3b'!$A$2))=5,MID('source-3b'!$A$6, MOD(ROW(X172),LEN('source-3b'!$A$2))+1,1)))))) -> K
A105: =IF(INT(ROW(X173)/LEN('source-3b'!$A$2))=1,MID('source-3b'!$A$2, MOD(ROW(X173),LEN('source-3b'!$A$2))+1,1),IF(INT(ROW(X173)/LEN('source-3b'!$A$2))=2,MID('source-3b'!$A$3, MOD(ROW(X173),LEN('source-3b'!$A$2))+1,1), IF(INT(ROW(X173)/LEN('source-3b'!$A$2))=3,MID('source-3b'!$A$4, MOD(ROW(X173),LEN('source-3b'!$A$2))+1,1),IF(INT(ROW(X173)/LEN('source-3b'!$A$2))=4,MID('source-3b'!$A$5, MOD(ROW(X173),LEN('source-3b'!$A$2))+1,1),IF(INT(ROW(X173)/LEN('source-3b'!$A$2))=5,MID('source-3b'!$A$6, MOD(ROW(X173),LEN('source-3b'!$A$2))+1,1)))))) -> G
A106: =IF(INT(ROW(X174)/LEN('source-3b'!$A$2))=1,MID('source-3b'!$A$2, MOD(ROW(X174),LEN('source-3b'!$A$2))+1,1),IF(INT(ROW(X174)/LEN('source-3b'!$A$2))=2,MID('source-3b'!$A$3, MOD(ROW(X174),LEN('source-3b'!$A$2))+1,1), IF(INT(ROW(X174)/LEN('source-3b'!$A$2))=3,MID('source-3b'!$A$4, MOD(ROW(X174),LEN('source-3b'!$A$2))+1,1),IF(INT(ROW(X174)/LEN('source-3b'!$A$2))=4,MID('source-3b'!$A$5, MOD(ROW(X174),LEN('source-3b'!$A$2))+1,1),IF(INT(ROW(X174)/LEN('source-3b'!$A$2))=5,MID('source-3b'!$A$6, MOD(ROW(X174),LEN('source-3b'!$A$2))+1,1)))))) -> V
A107: =IF(INT(ROW(X175)/LEN('source-3b'!$A$2))=1,MID('source-3b'!$A$2, MOD(ROW(X175),LEN('source-3b'!$A$2))+1,1),IF(INT(ROW(X175)/LEN('source-3b'!$A$2))=2,MID('source-3b'!$A$3, MOD(ROW(X175),LEN('source-3b'!$A$2))+1,1), IF(INT(ROW(X175)/LEN('source-3b'!$A$2))=3,MID('source-3b'!$A$4, MOD(ROW(X175),LEN('source-3b'!$A$2))+1,1),IF(INT(ROW(X175)/LEN('source-3b'!$A$2))=4,MID('source-3b'!$A$5, MOD(ROW(X175),LEN('source-3b'!$A$2))+1,1),IF(INT(ROW(X175)/LEN('source-3b'!$A$2))=5,MID('source-3b'!$A$6, MOD(ROW(X175),LEN('source-3b'!$A$2))+1,1)))))) -> P
A108: =IF(INT(ROW(X176)/LEN('source-3b'!$A$2))=1,MID('source-3b'!$A$2, MOD(ROW(X176),LEN('source-3b'!$A$2))+1,1),IF(INT(ROW(X176)/LEN('source-3b'!$A$2))=2,MID('source-3b'!$A$3, MOD(ROW(X176),LEN('source-3b'!$A$2))+1,1), IF(INT(ROW(X176)/LEN('source-3b'!$A$2))=3,MID('source-3b'!$A$4, MOD(ROW(X176),LEN('source-3b'!$A$2))+1,1),IF(INT(ROW(X176)/LEN('source-3b'!$A$2))=4,MID('source-3b'!$A$5, MOD(ROW(X176),LEN('source-3b'!$A$2))+1,1),IF(INT(ROW(X176)/LEN('source-3b'!$A$2))=5,MID('source-3b'!$A$6, MOD(ROW(X176),LEN('source-3b'!$A$2))+1,1)))))) -> V
A109: =IF(INT(ROW(X177)/LEN('source-3b'!$A$2))=1,MID('source-3b'!$A$2, MOD(ROW(X177),LEN('source-3b'!$A$2))+1,1),IF(INT(ROW(X177)/LEN('source-3b'!$A$2))=2,MID('source-3b'!$A$3, MOD(ROW(X177),LEN('source-3b'!$A$2))+1,1), IF(INT(ROW(X177)/LEN('source-3b'!$A$2))=3,MID('source-3b'!$A$4, MOD(ROW(X177),LEN('source-3b'!$A$2))+1,1),IF(INT(ROW(X177)/LEN('source-3b'!$A$2))=4,MID('source-3b'!$A$5, MOD(ROW(X177),LEN('source-3b'!$A$2))+1,1),IF(INT(ROW(X177)/LEN('source-3b'!$A$2))=5,MID('source-3b'!$A$6, MOD(ROW(X177),LEN('source-3b'!$A$2))+1,1)))))) -> V
A110: =IF(INT(ROW(X178)/LEN('source-3b'!$A$2))=1,MID('source-3b'!$A$2, MOD(ROW(X178),LEN('source-3b'!$A$2))+1,1),IF(INT(ROW(X178)/LEN('source-3b'!$A$2))=2,MID('source-3b'!$A$3, MOD(ROW(X178),LEN('source-3b'!$A$2))+1,1), IF(INT(ROW(X178)/LEN('source-3b'!$A$2))=3,MID('source-3b'!$A$4, MOD(ROW(X178),LEN('source-3b'!$A$2))+1,1),IF(INT(ROW(X178)/LEN('source-3b'!$A$2))=4,MID('source-3b'!$A$5, MOD(ROW(X178),LEN('source-3b'!$A$2))+1,1),IF(INT(ROW(X178)/LEN('source-3b'!$A$2))=5,MID('source-3b'!$A$6, MOD(ROW(X178),LEN('source-3b'!$A$2))+1,1)))))) -> V
A111: =IF(INT(ROW(X179)/LEN('source-3b'!$A$2))=1,MID('source-3b'!$A$2, MOD(ROW(X179),LEN('source-3b'!$A$2))+1,1),IF(INT(ROW(X179)/LEN('source-3b'!$A$2))=2,MID('source-3b'!$A$3, MOD(ROW(X179),LEN('source-3b'!$A$2))+1,1), IF(INT(ROW(X179)/LEN('source-3b'!$A$2))=3,MID('source-3b'!$A$4, MOD(ROW(X179),LEN('source-3b'!$A$2))+1,1),IF(INT(ROW(X179)/LEN('source-3b'!$A$2))=4,MID('source-3b'!$A$5, MOD(ROW(X179),LEN('source-3b'!$A$2))+1,1),IF(INT(ROW(X179)/LEN('source-3b'!$A$2))=5,MID('source-3b'!$A$6, MOD(ROW(X179),LEN('source-3b'!$A$2))+1,1)))))) -> Y
A112: =IF(INT(ROW(X180)/LEN('source-3b'!$A$2))=1,MID('source-3b'!$A$2, MOD(ROW(X180),LEN('source-3b'!$A$2))+1,1),IF(INT(ROW(X180)/LEN('source-3b'!$A$2))=2,MID('source-3b'!$A$3, MOD(ROW(X180),LEN('source-3b'!$A$2))+1,1), IF(INT(ROW(X180)/LEN('source-3b'!$A$2))=3,MID('source-3b'!$A$4, MOD(ROW(X180),LEN('source-3b'!$A$2))+1,1),IF(INT(ROW(X180)/LEN('source-3b'!$A$2))=4,MID('source-3b'!$A$5, MOD(ROW(X180),LEN('source-3b'!$A$2))+1,1),IF(INT(ROW(X180)/LEN('source-3b'!$A$2))=5,MID('source-3b'!$A$6, MOD(ROW(X180),LEN('source-3b'!$A$2))+1,1)))))) -> V
A113: =IF(INT(ROW(X181)/LEN('source-3b'!$A$2))=1,MID('source-3b'!$A$2, MOD(ROW(X181),LEN('source-3b'!$A$2))+1,1),IF(INT(ROW(X181)/LEN('source-3b'!$A$2))=2,MID('source-3b'!$A$3, MOD(ROW(X181),LEN('source-3b'!$A$2))+1,1), IF(INT(ROW(X181)/LEN('source-3b'!$A$2))=3,MID('source-3b'!$A$4, MOD(ROW(X181),LEN('source-3b'!$A$2))+1,1),IF(INT(ROW(X181)/LEN('source-3b'!$A$2))=4,MID('source-3b'!$A$5, MOD(ROW(X181),LEN('source-3b'!$A$2))+1,1),IF(INT(ROW(X181)/LEN('source-3b'!$A$2))=5,MID('source-3b'!$A$6, MOD(ROW(X181),LEN('source-3b'!$A$2))+1,1)))))) -> N
A114: =IF(INT(ROW(X182)/LEN('source-3b'!$A$2))=1,MID('source-3b'!$A$2, MOD(ROW(X182),LEN('source-3b'!$A$2))+1,1),IF(INT(ROW(X182)/LEN('source-3b'!$A$2))=2,MID('source-3b'!$A$3, MOD(ROW(X182),LEN('source-3b'!$A$2))+1,1), IF(INT(ROW(X182)/LEN('source-3b'!$A$2))=3,MID('source-3b'!$A$4, MOD(ROW(X182),LEN('source-3b'!$A$2))+1,1),IF(INT(ROW(X182)/LEN('source-3b'!$A$2))=4,MID('source-3b'!$A$5, MOD(ROW(X182),LEN('source-3b'!$A$2))+1,1),IF(INT(ROW(X182)/LEN('source-3b'!$A$2))=5,MID('source-3b'!$A$6, MOD(ROW(X182),LEN('source-3b'!$A$2))+1,1)))))) -> S
A115: =IF(INT(ROW(X183)/LEN('source-3b'!$A$2))=1,MID('source-3b'!$A$2, MOD(ROW(X183),LEN('source-3b'!$A$2))+1,1),IF(INT(ROW(X183)/LEN('source-3b'!$A$2))=2,MID('source-3b'!$A$3, MOD(ROW(X183),LEN('source-3b'!$A$2))+1,1), IF(INT(ROW(X183)/LEN('source-3b'!$A$2))=3,MID('source-3b'!$A$4, MOD(ROW(X183),LEN('source-3b'!$A$2))+1,1),IF(INT(ROW(X183)/LEN('source-3b'!$A$2))=4,MID('source-3b'!$A$5, MOD(ROW(X183),LEN('source-3b'!$A$2))+1,1),IF(INT(ROW(X183)/LEN('source-3b'!$A$2))=5,MID('source-3b'!$A$6, MOD(ROW(X183),LEN('source-3b'!$A$2))+1,1)))))) -> R
A116: =IF(INT(ROW(X184)/LEN('source-3b'!$A$2))=1,MID('source-3b'!$A$2, MOD(ROW(X184),LEN('source-3b'!$A$2))+1,1),IF(INT(ROW(X184)/LEN('source-3b'!$A$2))=2,MID('source-3b'!$A$3, MOD(ROW(X184),LEN('source-3b'!$A$2))+1,1), IF(INT(ROW(X184)/LEN('source-3b'!$A$2))=3,MID('source-3b'!$A$4, MOD(ROW(X184),LEN('source-3b'!$A$2))+1,1),IF(INT(ROW(X184)/LEN('source-3b'!$A$2))=4,MID('source-3b'!$A$5, MOD(ROW(X184),LEN('source-3b'!$A$2))+1,1),IF(INT(ROW(X184)/LEN('source-3b'!$A$2))=5,MID('source-3b'!$A$6, MOD(ROW(X184),LEN('source-3b'!$A$2))+1,1)))))) -> T
A117: =IF(INT(ROW(X185)/LEN('source-3b'!$A$2))=1,MID('source-3b'!$A$2, MOD(ROW(X185),LEN('source-3b'!$A$2))+1,1),IF(INT(ROW(X185)/LEN('source-3b'!$A$2))=2,MID('source-3b'!$A$3, MOD(ROW(X185),LEN('source-3b'!$A$2))+1,1), IF(INT(ROW(X185)/LEN('source-3b'!$A$2))=3,MID('source-3b'!$A$4, MOD(ROW(X185),LEN('source-3b'!$A$2))+1,1),IF(INT(ROW(X185)/LEN('source-3b'!$A$2))=4,MID('source-3b'!$A$5, MOD(ROW(X185),LEN('source-3b'!$A$2))+1,1),IF(INT(ROW(X185)/LEN('source-3b'!$A$2))=5,MID('source-3b'!$A$6, MOD(ROW(X185),LEN('source-3b'!$A$2))+1,1)))))) -> E
A118: =IF(INT(ROW(X186)/LEN('source-3b'!$A$2))=1,MID('source-3b'!$A$2, MOD(ROW(X186),LEN('source-3b'!$A$2))+1,1),IF(INT(ROW(X186)/LEN('source-3b'!$A$2))=2,MID('source-3b'!$A$3, MOD(ROW(X186),LEN('source-3b'!$A$2))+1,1), IF(INT(ROW(X186)/LEN('source-3b'!$A$2))=3,MID('source-3b'!$A$4, MOD(ROW(X186),LEN('source-3b'!$A$2))+1,1),IF(INT(ROW(X186)/LEN('source-3b'!$A$2))=4,MID('source-3b'!$A$5, MOD(ROW(X186),LEN('source-3b'!$A$2))+1,1),IF(INT(ROW(X186)/LEN('source-3b'!$A$2))=5,MID('source-3b'!$A$6, MOD(ROW(X186),LEN('source-3b'!$A$2))+1,1)))))) -> V
A119: =IF(INT(ROW(X187)/LEN('source-3b'!$A$2))=1,MID('source-3b'!$A$2, MOD(ROW(X187),LEN('source-3b'!$A$2))+1,1),IF(INT(ROW(X187)/LEN('source-3b'!$A$2))=2,MID('source-3b'!$A$3, MOD(ROW(X187),LEN('source-3b'!$A$2))+1,1), IF(INT(ROW(X187)/LEN('source-3b'!$A$2))=3,MID('source-3b'!$A$4, MOD(ROW(X187),LEN('source-3b'!$A$2))+1,1),IF(INT(ROW(X187)/LEN('source-3b'!$A$2))=4,MID('source-3b'!$A$5, MOD(ROW(X187),LEN('source-3b'!$A$2))+1,1),IF(INT(ROW(X187)/LEN('source-3b'!$A$2))=5,MID('source-3b'!$A$6, MOD(ROW(X187),LEN('source-3b'!$A$2))+1,1)))))) -> K
A120: =IF(INT(ROW(X188)/LEN('source-3b'!$A$2))=1,MID('source-3b'!$A$2, MOD(ROW(X188),LEN('source-3b'!$A$2))+1,1),IF(INT(ROW(X188)/LEN('source-3b'!$A$2))=2,MID('source-3b'!$A$3, MOD(ROW(X188),LEN('source-3b'!$A$2))+1,1), IF(INT(ROW(X188)/LEN('source-3b'!$A$2))=3,MID('source-3b'!$A$4, MOD(ROW(X188),LEN('source-3b'!$A$2))+1,1),IF(INT(ROW(X188)/LEN('source-3b'!$A$2))=4,MID('source-3b'!$A$5, MOD(ROW(X188),LEN('source-3b'!$A$2))+1,1),IF(INT(ROW(X188)/LEN('source-3b'!$A$2))=5,MID('source-3b'!$A$6, MOD(ROW(X188),LEN('source-3b'!$A$2))+1,1)))))) -> A
A121: =IF(INT(ROW(X189)/LEN('source-3b'!$A$2))=1,MID('source-3b'!$A$2, MOD(ROW(X189),LEN('source-3b'!$A$2))+1,1),IF(INT(ROW(X189)/LEN('source-3b'!$A$2))=2,MID('source-3b'!$A$3, MOD(ROW(X189),LEN('source-3b'!$A$2))+1,1), IF(INT(ROW(X189)/LEN('source-3b'!$A$2))=3,MID('source-3b'!$A$4, MOD(ROW(X189),LEN('source-3b'!$A$2))+1,1),IF(INT(ROW(X189)/LEN('source-3b'!$A$2))=4,MID('source-3b'!$A$5, MOD(ROW(X189),LEN('source-3b'!$A$2))+1,1),IF(INT(ROW(X189)/LEN('source-3b'!$A$2))=5,MID('source-3b'!$A$6, MOD(ROW(X189),LEN('source-3b'!$A$2))+1,1)))))) -> V
A122: =IF(INT(ROW(X190)/LEN('source-3b'!$A$2))=1,MID('source-3b'!$A$2, MOD(ROW(X190),LEN('source-3b'!$A$2))+1,1),IF(INT(ROW(X190)/LEN('source-3b'!$A$2))=2,MID('source-3b'!$A$3, MOD(ROW(X190),LEN('source-3b'!$A$2))+1,1), IF(INT(ROW(X190)/LEN('source-3b'!$A$2))=3,MID('source-3b'!$A$4, MOD(ROW(X190),LEN('source-3b'!$A$2))+1,1),IF(INT(ROW(X190)/LEN('source-3b'!$A$2))=4,MID('source-3b'!$A$5, MOD(ROW(X190),LEN('source-3b'!$A$2))+1,1),IF(INT(ROW(X190)/LEN('source-3b'!$A$2))=5,MID('source-3b'!$A$6, MOD(ROW(X190),LEN('source-3b'!$A$2))+1,1)))))) -> A
A123: =IF(INT(ROW(X191)/LEN('source-3b'!$A$2))=1,MID('source-3b'!$A$2, MOD(ROW(X191),LEN('source-3b'!$A$2))+1,1),IF(INT(ROW(X191)/LEN('source-3b'!$A$2))=2,MID('source-3b'!$A$3, MOD(ROW(X191),LEN('source-3b'!$A$2))+1,1), IF(INT(ROW(X191)/LEN('source-3b'!$A$2))=3,MID('source-3b'!$A$4, MOD(ROW(X191),LEN('source-3b'!$A$2))+1,1),IF(INT(ROW(X191)/LEN('source-3b'!$A$2))=4,MID('source-3b'!$A$5, MOD(ROW(X191),LEN('source-3b'!$A$2))+1,1),IF(INT(ROW(X191)/LEN('source-3b'!$A$2))=5,MID('source-3b'!$A$6, MOD(ROW(X191),LEN('source-3b'!$A$2))+1,1)))))) -> D
A124: =IF(INT(ROW(X192)/LEN('source-3b'!$A$2))=1,MID('source-3b'!$A$2, MOD(ROW(X192),LEN('source-3b'!$A$2))+1,1),IF(INT(ROW(X192)/LEN('source-3b'!$A$2))=2,MID('source-3b'!$A$3, MOD(ROW(X192),LEN('source-3b'!$A$2))+1,1), IF(INT(ROW(X192)/LEN('source-3b'!$A$2))=3,MID('source-3b'!$A$4, MOD(ROW(X192),LEN('source-3b'!$A$2))+1,1),IF(INT(ROW(X192)/LEN('source-3b'!$A$2))=4,MID('source-3b'!$A$5, MOD(ROW(X192),LEN('source-3b'!$A$2))+1,1),IF(INT(ROW(X192)/LEN('source-3b'!$A$2))=5,MID('source-3b'!$A$6, MOD(ROW(X192),LEN('source-3b'!$A$2))+1,1)))))) -> V
A125: =IF(INT(ROW(X193)/LEN('source-3b'!$A$2))=1,MID('source-3b'!$A$2, MOD(ROW(X193),LEN('source-3b'!$A$2))+1,1),IF(INT(ROW(X193)/LEN('source-3b'!$A$2))=2,MID('source-3b'!$A$3, MOD(ROW(X193),LEN('source-3b'!$A$2))+1,1), IF(INT(ROW(X193)/LEN('source-3b'!$A$2))=3,MID('source-3b'!$A$4, MOD(ROW(X193),LEN('source-3b'!$A$2))+1,1),IF(INT(ROW(X193)/LEN('source-3b'!$A$2))=4,MID('source-3b'!$A$5, MOD(ROW(X193),LEN('source-3b'!$A$2))+1,1),IF(INT(ROW(X193)/LEN('source-3b'!$A$2))=5,MID('source-3b'!$A$6, MOD(ROW(X193),LEN('source-3b'!$A$2))+1,1)))))) -> V
A126: =IF(INT(ROW(X194)/LEN('source-3b'!$A$2))=1,MID('source-3b'!$A$2, MOD(ROW(X194),LEN('source-3b'!$A$2))+1,1),IF(INT(ROW(X194)/LEN('source-3b'!$A$2))=2,MID('source-3b'!$A$3, MOD(ROW(X194),LEN('source-3b'!$A$2))+1,1), IF(INT(ROW(X194)/LEN('source-3b'!$A$2))=3,MID('source-3b'!$A$4, MOD(ROW(X194),LEN('source-3b'!$A$2))+1,1),IF(INT(ROW(X194)/LEN('source-3b'!$A$2))=4,MID('source-3b'!$A$5, MOD(ROW(X194),LEN('source-3b'!$A$2))+1,1),IF(INT(ROW(X194)/LEN('source-3b'!$A$2))=5,MID('source-3b'!$A$6, MOD(ROW(X194),LEN('source-3b'!$A$2))+1,1)))))) -> C
A127: =IF(INT(ROW(X195)/LEN('source-3b'!$A$2))=1,MID('source-3b'!$A$2, MOD(ROW(X195),LEN('source-3b'!$A$2))+1,1),IF(INT(ROW(X195)/LEN('source-3b'!$A$2))=2,MID('source-3b'!$A$3, MOD(ROW(X195),LEN('source-3b'!$A$2))+1,1), IF(INT(ROW(X195)/LEN('source-3b'!$A$2))=3,MID('source-3b'!$A$4, MOD(ROW(X195),LEN('source-3b'!$A$2))+1,1),IF(INT(ROW(X195)/LEN('source-3b'!$A$2))=4,MID('source-3b'!$A$5, MOD(ROW(X195),LEN('source-3b'!$A$2))+1,1),IF(INT(ROW(X195)/LEN('source-3b'!$A$2))=5,MID('source-3b'!$A$6, MOD(ROW(X195),LEN('source-3b'!$A$2))+1,1)))))) -> T
A128: =IF(INT(ROW(X196)/LEN('source-3b'!$A$2))=1,MID('source-3b'!$A$2, MOD(ROW(X196),LEN('source-3b'!$A$2))+1,1),IF(INT(ROW(X196)/LEN('source-3b'!$A$2))=2,MID('source-3b'!$A$3, MOD(ROW(X196),LEN('source-3b'!$A$2))+1,1), IF(INT(ROW(X196)/LEN('source-3b'!$A$2))=3,MID('source-3b'!$A$4, MOD(ROW(X196),LEN('source-3b'!$A$2))+1,1),IF(INT(ROW(X196)/LEN('source-3b'!$A$2))=4,MID('source-3b'!$A$5, MOD(ROW(X196),LEN('source-3b'!$A$2))+1,1),IF(INT(ROW(X196)/LEN('source-3b'!$A$2))=5,MID('source-3b'!$A$6, MOD(ROW(X196),LEN('source-3b'!$A$2))+1,1)))))) -> S
A129: =IF(INT(ROW(X197)/LEN('source-3b'!$A$2))=1,MID('source-3b'!$A$2, MOD(ROW(X197),LEN('source-3b'!$A$2))+1,1),IF(INT(ROW(X197)/LEN('source-3b'!$A$2))=2,MID('source-3b'!$A$3, MOD(ROW(X197),LEN('source-3b'!$A$2))+1,1), IF(INT(ROW(X197)/LEN('source-3b'!$A$2))=3,MID('source-3b'!$A$4, MOD(ROW(X197),LEN('source-3b'!$A$2))+1,1),IF(INT(ROW(X197)/LEN('source-3b'!$A$2))=4,MID('source-3b'!$A$5, MOD(ROW(X197),LEN('source-3b'!$A$2))+1,1),IF(INT(ROW(X197)/LEN('source-3b'!$A$2))=5,MID('source-3b'!$A$6, MOD(ROW(X197),LEN('source-3b'!$A$2))+1,1)))))) -> A
A130: =IF(INT(ROW(X198)/LEN('source-3b'!$A$2))=1,MID('source-3b'!$A$2, MOD(ROW(X198),LEN('source-3b'!$A$2))+1,1),IF(INT(ROW(X198)/LEN('source-3b'!$A$2))=2,MID('source-3b'!$A$3, MOD(ROW(X198),LEN('source-3b'!$A$2))+1,1), IF(INT(ROW(X198)/LEN('source-3b'!$A$2))=3,MID('source-3b'!$A$4, MOD(ROW(X198),LEN('source-3b'!$A$2))+1,1),IF(INT(ROW(X198)/LEN('source-3b'!$A$2))=4,MID('source-3b'!$A$5, MOD(ROW(X198),LEN('source-3b'!$A$2))+1,1),IF(INT(ROW(X198)/LEN('source-3b'!$A$2))=5,MID('source-3b'!$A$6, MOD(ROW(X198),LEN('source-3b'!$A$2))+1,1)))))) -> N
A131: =IF(INT(ROW(X199)/LEN('source-3b'!$A$2))=1,MID('source-3b'!$A$2, MOD(ROW(X199),LEN('source-3b'!$A$2))+1,1),IF(INT(ROW(X199)/LEN('source-3b'!$A$2))=2,MID('source-3b'!$A$3, MOD(ROW(X199),LEN('source-3b'!$A$2))+1,1), IF(INT(ROW(X199)/LEN('source-3b'!$A$2))=3,MID('source-3b'!$A$4, MOD(ROW(X199),LEN('source-3b'!$A$2))+1,1),IF(INT(ROW(X199)/LEN('source-3b'!$A$2))=4,MID('source-3b'!$A$5, MOD(ROW(X199),LEN('source-3b'!$A$2))+1,1),IF(INT(ROW(X199)/LEN('source-3b'!$A$2))=5,MID('source-3b'!$A$6, MOD(ROW(X199),LEN('source-3b'!$A$2))+1,1)))))) -> A
A132: =IF(INT(ROW(X200)/LEN('source-3b'!$A$2))=1,MID('source-3b'!$A$2, MOD(ROW(X200),LEN('source-3b'!$A$2))+1,1),IF(INT(ROW(X200)/LEN('source-3b'!$A$2))=2,MID('source-3b'!$A$3, MOD(ROW(X200),LEN('source-3b'!$A$2))+1,1), IF(INT(ROW(X200)/LEN('source-3b'!$A$2))=3,MID('source-3b'!$A$4, MOD(ROW(X200),LEN('source-3b'!$A$2))+1,1),IF(INT(ROW(X200)/LEN('source-3b'!$A$2))=4,MID('source-3b'!$A$5, MOD(ROW(X200),LEN('source-3b'!$A$2))+1,1),IF(INT(ROW(X200)/LEN('source-3b'!$A$2))=5,MID('source-3b'!$A$6, MOD(ROW(X200),LEN('source-3b'!$A$2))+1,1)))))) -> V
A133: =IF(INT(ROW(X201)/LEN('source-3b'!$A$2))=1,MID('source-3b'!$A$2, MOD(ROW(X201),LEN('source-3b'!$A$2))+1,1),IF(INT(ROW(X201)/LEN('source-3b'!$A$2))=2,MID('source-3b'!$A$3, MOD(ROW(X201),LEN('source-3b'!$A$2))+1,1), IF(INT(ROW(X201)/LEN('source-3b'!$A$2))=3,MID('source-3b'!$A$4, MOD(ROW(X201),LEN('source-3b'!$A$2))+1,1),IF(INT(ROW(X201)/LEN('source-3b'!$A$2))=4,MID('source-3b'!$A$5, MOD(ROW(X201),LEN('source-3b'!$A$2))+1,1),IF(INT(ROW(X201)/LEN('source-3b'!$A$2))=5,MID('source-3b'!$A$6, MOD(ROW(X201),LEN('source-3b'!$A$2))+1,1)))))) -> D
A134: =IF(INT(ROW(X202)/LEN('source-3b'!$A$2))=1,MID('source-3b'!$A$2, MOD(ROW(X202),LEN('source-3b'!$A$2))+1,1),IF(INT(ROW(X202)/LEN('source-3b'!$A$2))=2,MID('source-3b'!$A$3, MOD(ROW(X202),LEN('source-3b'!$A$2))+1,1), IF(INT(ROW(X202)/LEN('source-3b'!$A$2))=3,MID('source-3b'!$A$4, MOD(ROW(X202),LEN('source-3b'!$A$2))+1,1),IF(INT(ROW(X202)/LEN('source-3b'!$A$2))=4,MID('source-3b'!$A$5, MOD(ROW(X202),LEN('source-3b'!$A$2))+1,1),IF(INT(ROW(X202)/LEN('source-3b'!$A$2))=5,MID('source-3b'!$A$6, MOD(ROW(X202),LEN('source-3b'!$A$2))+1,1)))))) -> V
A135: =IF(INT(ROW(X203)/LEN('source-3b'!$A$2))=1,MID('source-3b'!$A$2, MOD(ROW(X203),LEN('source-3b'!$A$2))+1,1),IF(INT(ROW(X203)/LEN('source-3b'!$A$2))=2,MID('source-3b'!$A$3, MOD(ROW(X203),LEN('source-3b'!$A$2))+1,1), IF(INT(ROW(X203)/LEN('source-3b'!$A$2))=3,MID('source-3b'!$A$4, MOD(ROW(X203),LEN('source-3b'!$A$2))+1,1),IF(INT(ROW(X203)/LEN('source-3b'!$A$2))=4,MID('source-3b'!$A$5, MOD(ROW(X203),LEN('source-3b'!$A$2))+1,1),IF(INT(ROW(X203)/LEN('source-3b'!$A$2))=5,MID('source-3b'!$A$6, MOD(ROW(X203),LEN('source-3b'!$A$2))+1,1)))))) -> V
A136: =IF(INT(ROW(X204)/LEN('source-3b'!$A$2))=1,MID('source-3b'!$A$2, MOD(ROW(X204),LEN('source-3b'!$A$2))+1,1),IF(INT(ROW(X204)/LEN('source-3b'!$A$2))=2,MID('source-3b'!$A$3, MOD(ROW(X204),LEN('source-3b'!$A$2))+1,1), IF(INT(ROW(X204)/LEN('source-3b'!$A$2))=3,MID('source-3b'!$A$4, MOD(ROW(X204),LEN('source-3b'!$A$2))+1,1),IF(INT(ROW(X204)/LEN('source-3b'!$A$2))=4,MID('source-3b'!$A$5, MOD(ROW(X204),LEN('source-3b'!$A$2))+1,1),IF(INT(ROW(X204)/LEN('source-3b'!$A$2))=5,MID('source-3b'!$A$6, MOD(ROW(X204),LEN('source-3b'!$A$2))+1,1)))))) -> K
A137: =IF(INT(ROW(X205)/LEN('source-3b'!$A$2))=1,MID('source-3b'!$A$2, MOD(ROW(X205),LEN('source-3b'!$A$2))+1,1),IF(INT(ROW(X205)/LEN('source-3b'!$A$2))=2,MID('source-3b'!$A$3, MOD(ROW(X205),LEN('source-3b'!$A$2))+1,1), IF(INT(ROW(X205)/LEN('source-3b'!$A$2))=3,MID('source-3b'!$A$4, MOD(ROW(X205),LEN('source-3b'!$A$2))+1,1),IF(INT(ROW(X205)/LEN('source-3b'!$A$2))=4,MID('source-3b'!$A$5, MOD(ROW(X205),LEN('source-3b'!$A$2))+1,1),IF(INT(ROW(X205)/LEN('source-3b'!$A$2))=5,MID('source-3b'!$A$6, MOD(ROW(X205),LEN('source-3b'!$A$2))+1,1)))))) -> A
A138: =IF(INT(ROW(X206)/LEN('source-3b'!$A$2))=1,MID('source-3b'!$A$2, MOD(ROW(X206),LEN('source-3b'!$A$2))+1,1),IF(INT(ROW(X206)/LEN('source-3b'!$A$2))=2,MID('source-3b'!$A$3, MOD(ROW(X206),LEN('source-3b'!$A$2))+1,1), IF(INT(ROW(X206)/LEN('source-3b'!$A$2))=3,MID('source-3b'!$A$4, MOD(ROW(X206),LEN('source-3b'!$A$2))+1,1),IF(INT(ROW(X206)/LEN('source-3b'!$A$2))=4,MID('source-3b'!$A$5, MOD(ROW(X206),LEN('source-3b'!$A$2))+1,1),IF(INT(ROW(X206)/LEN('source-3b'!$A$2))=5,MID('source-3b'!$A$6, MOD(ROW(X206),LEN('source-3b'!$A$2))+1,1)))))) -> L
A139: =IF(INT(ROW(X207)/LEN('source-3b'!$A$2))=1,MID('source-3b'!$A$2, MOD(ROW(X207),LEN('source-3b'!$A$2))+1,1),IF(INT(ROW(X207)/LEN('source-3b'!$A$2))=2,MID('source-3b'!$A$3, MOD(ROW(X207),LEN('source-3b'!$A$2))+1,1), IF(INT(ROW(X207)/LEN('source-3b'!$A$2))=3,MID('source-3b'!$A$4, MOD(ROW(X207),LEN('source-3b'!$A$2))+1,1),IF(INT(ROW(X207)/LEN('source-3b'!$A$2))=4,MID('source-3b'!$A$5, MOD(ROW(X207),LEN('source-3b'!$A$2))+1,1),IF(INT(ROW(X207)/LEN('source-3b'!$A$2))=5,MID('source-3b'!$A$6, MOD(ROW(X207),LEN('source-3b'!$A$2))+1,1)))))) -> D
A140: =IF(INT(ROW(X208)/LEN('source-3b'!$A$2))=1,MID('source-3b'!$A$2, MOD(ROW(X208),LEN('source-3b'!$A$2))+1,1),IF(INT(ROW(X208)/LEN('source-3b'!$A$2))=2,MID('source-3b'!$A$3, MOD(ROW(X208),LEN('source-3b'!$A$2))+1,1), IF(INT(ROW(X208)/LEN('source-3b'!$A$2))=3,MID('source-3b'!$A$4, MOD(ROW(X208),LEN('source-3b'!$A$2))+1,1),IF(INT(ROW(X208)/LEN('source-3b'!$A$2))=4,MID('source-3b'!$A$5, MOD(ROW(X208),LEN('source-3b'!$A$2))+1,1),IF(INT(ROW(X208)/LEN('source-3b'!$A$2))=5,MID('source-3b'!$A$6, MOD(ROW(X208),LEN('source-3b'!$A$2))+1,1)))))) -> S
A141: =IF(INT(ROW(X209)/LEN('source-3b'!$A$2))=1,MID('source-3b'!$A$2, MOD(ROW(X209),LEN('source-3b'!$A$2))+1,1),IF(INT(ROW(X209)/LEN('source-3b'!$A$2))=2,MID('source-3b'!$A$3, MOD(ROW(X209),LEN('source-3b'!$A$2))+1,1), IF(INT(ROW(X209)/LEN('source-3b'!$A$2))=3,MID('source-3b'!$A$4, MOD(ROW(X209),LEN('source-3b'!$A$2))+1,1),IF(INT(ROW(X209)/LEN('source-3b'!$A$2))=4,MID('source-3b'!$A$5, MOD(ROW(X209),LEN('source-3b'!$A$2))+1,1),IF(INT(ROW(X209)/LEN('source-3b'!$A$2))=5,MID('source-3b'!$A$6, MOD(ROW(X209),LEN('source-3b'!$A$2))+1,1)))))) -> D
A142: =IF(INT(ROW(X210)/LEN('source-3b'!$A$2))=1,MID('source-3b'!$A$2, MOD(ROW(X210),LEN('source-3b'!$A$2))+1,1),IF(INT(ROW(X210)/LEN('source-3b'!$A$2))=2,MID('source-3b'!$A$3, MOD(ROW(X210),LEN('source-3b'!$A$2))+1,1), IF(INT(ROW(X210)/LEN('source-3b'!$A$2))=3,MID('source-3b'!$A$4, MOD(ROW(X210),LEN('source-3b'!$A$2))+1,1),IF(INT(ROW(X210)/LEN('source-3b'!$A$2))=4,MID('source-3b'!$A$5, MOD(ROW(X210),LEN('source-3b'!$A$2))+1,1),IF(INT(ROW(X210)/LEN('source-3b'!$A$2))=5,MID('source-3b'!$A$6, MOD(ROW(X210),LEN('source-3b'!$A$2))+1,1)))))) -> T
A143: =IF(INT(ROW(X211)/LEN('source-3b'!$A$2))=1,MID('source-3b'!$A$2, MOD(ROW(X211),LEN('source-3b'!$A$2))+1,1),IF(INT(ROW(X211)/LEN('source-3b'!$A$2))=2,MID('source-3b'!$A$3, MOD(ROW(X211),LEN('source-3b'!$A$2))+1,1), IF(INT(ROW(X211)/LEN('source-3b'!$A$2))=3,MID('source-3b'!$A$4, MOD(ROW(X211),LEN('source-3b'!$A$2))+1,1),IF(INT(ROW(X211)/LEN('source-3b'!$A$2))=4,MID('source-3b'!$A$5, MOD(ROW(X211),LEN('source-3b'!$A$2))+1,1),IF(INT(ROW(X211)/LEN('source-3b'!$A$2))=5,MID('source-3b'!$A$6, MOD(ROW(X211),LEN('source-3b'!$A$2))+1,1)))))) -> I
A144: =IF(INT(ROW(X212)/LEN('source-3b'!$A$2))=1,MID('source-3b'!$A$2, MOD(ROW(X212),LEN('source-3b'!$A$2))+1,1),IF(INT(ROW(X212)/LEN('source-3b'!$A$2))=2,MID('source-3b'!$A$3, MOD(ROW(X212),LEN('source-3b'!$A$2))+1,1), IF(INT(ROW(X212)/LEN('source-3b'!$A$2))=3,MID('source-3b'!$A$4, MOD(ROW(X212),LEN('source-3b'!$A$2))+1,1),IF(INT(ROW(X212)/LEN('source-3b'!$A$2))=4,MID('source-3b'!$A$5, MOD(ROW(X212),LEN('source-3b'!$A$2))+1,1),IF(INT(ROW(X212)/LEN('source-3b'!$A$2))=5,MID('source-3b'!$A$6, MOD(ROW(X212),LEN('source-3b'!$A$2))+1,1)))))) -> L
A145: =IF(INT(ROW(X213)/LEN('source-3b'!$A$2))=1,MID('source-3b'!$A$2, MOD(ROW(X213),LEN('source-3b'!$A$2))+1,1),IF(INT(ROW(X213)/LEN('source-3b'!$A$2))=2,MID('source-3b'!$A$3, MOD(ROW(X213),LEN('source-3b'!$A$2))+1,1), IF(INT(ROW(X213)/LEN('source-3b'!$A$2))=3,MID('source-3b'!$A$4, MOD(ROW(X213),LEN('source-3b'!$A$2))+1,1),IF(INT(ROW(X213)/LEN('source-3b'!$A$2))=4,MID('source-3b'!$A$5, MOD(ROW(X213),LEN('source-3b'!$A$2))+1,1),IF(INT(ROW(X213)/LEN('source-3b'!$A$2))=5,MID('source-3b'!$A$6, MOD(ROW(X213),LEN('source-3b'!$A$2))+1,1)))))) -> F
A146: =IF(INT(ROW(X214)/LEN('source-3b'!$A$2))=1,MID('source-3b'!$A$2, MOD(ROW(X214),LEN('source-3b'!$A$2))+1,1),IF(INT(ROW(X214)/LEN('source-3b'!$A$2))=2,MID('source-3b'!$A$3, MOD(ROW(X214),LEN('source-3b'!$A$2))+1,1), IF(INT(ROW(X214)/LEN('source-3b'!$A$2))=3,MID('source-3b'!$A$4, MOD(ROW(X214),LEN('source-3b'!$A$2))+1,1),IF(INT(ROW(X214)/LEN('source-3b'!$A$2))=4,MID('source-3b'!$A$5, MOD(ROW(X214),LEN('source-3b'!$A$2))+1,1),IF(INT(ROW(X214)/LEN('source-3b'!$A$2))=5,MID('source-3b'!$A$6, MOD(ROW(X214),LEN('source-3b'!$A$2))+1,1)))))) -> G
A147: =IF(INT(ROW(X215)/LEN('source-3b'!$A$2))=1,MID('source-3b'!$A$2, MOD(ROW(X215),LEN('source-3b'!$A$2))+1,1),IF(INT(ROW(X215)/LEN('source-3b'!$A$2))=2,MID('source-3b'!$A$3, MOD(ROW(X215),LEN('source-3b'!$A$2))+1,1), IF(INT(ROW(X215)/LEN('source-3b'!$A$2))=3,MID('source-3b'!$A$4, MOD(ROW(X215),LEN('source-3b'!$A$2))+1,1),IF(INT(ROW(X215)/LEN('source-3b'!$A$2))=4,MID('source-3b'!$A$5, MOD(ROW(X215),LEN('source-3b'!$A$2))+1,1),IF(INT(ROW(X215)/LEN('source-3b'!$A$2))=5,MID('source-3b'!$A$6, MOD(ROW(X215),LEN('source-3b'!$A$2))+1,1)))))) -> P
A148: =IF(INT(ROW(X216)/LEN('source-3b'!$A$2))=1,MID('source-3b'!$A$2, MOD(ROW(X216),LEN('source-3b'!$A$2))+1,1),IF(INT(ROW(X216)/LEN('source-3b'!$A$2))=2,MID('source-3b'!$A$3, MOD(ROW(X216),LEN('source-3b'!$A$2))+1,1), IF(INT(ROW(X216)/LEN('source-3b'!$A$2))=3,MID('source-3b'!$A$4, MOD(ROW(X216),LEN('source-3b'!$A$2))+1,1),IF(INT(ROW(X216)/LEN('source-3b'!$A$2))=4,MID('source-3b'!$A$5, MOD(ROW(X216),LEN('source-3b'!$A$2))+1,1),IF(INT(ROW(X216)/LEN('source-3b'!$A$2))=5,MID('source-3b'!$A$6, MOD(ROW(X216),LEN('source-3b'!$A$2))+1,1)))))) -> D
A149: =IF(INT(ROW(X217)/LEN('source-3b'!$A$2))=1,MID('source-3b'!$A$2, MOD(ROW(X217),LEN('source-3b'!$A$2))+1,1),IF(INT(ROW(X217)/LEN('source-3b'!$A$2))=2,MID('source-3b'!$A$3, MOD(ROW(X217),LEN('source-3b'!$A$2))+1,1), IF(INT(ROW(X217)/LEN('source-3b'!$A$2))=3,MID('source-3b'!$A$4, MOD(ROW(X217),LEN('source-3b'!$A$2))+1,1),IF(INT(ROW(X217)/LEN('source-3b'!$A$2))=4,MID('source-3b'!$A$5, MOD(ROW(X217),LEN('source-3b'!$A$2))+1,1),IF(INT(ROW(X217)/LEN('source-3b'!$A$2))=5,MID('source-3b'!$A$6, MOD(ROW(X217),LEN('source-3b'!$A$2))+1,1)))))) -> K
A150: =IF(INT(ROW(X218)/LEN('source-3b'!$A$2))=1,MID('source-3b'!$A$2, MOD(ROW(X218),LEN('source-3b'!$A$2))+1,1),IF(INT(ROW(X218)/LEN('source-3b'!$A$2))=2,MID('source-3b'!$A$3, MOD(ROW(X218),LEN('source-3b'!$A$2))+1,1), IF(INT(ROW(X218)/LEN('source-3b'!$A$2))=3,MID('source-3b'!$A$4, MOD(ROW(X218),LEN('source-3b'!$A$2))+1,1),IF(INT(ROW(X218)/LEN('source-3b'!$A$2))=4,MID('source-3b'!$A$5, MOD(ROW(X218),LEN('source-3b'!$A$2))+1,1),IF(INT(ROW(X218)/LEN('source-3b'!$A$2))=5,MID('source-3b'!$A$6, MOD(ROW(X218),LEN('source-3b'!$A$2))+1,1)))))) -> N
A151: =IF(INT(ROW(X219)/LEN('source-3b'!$A$2))=1,MID('source-3b'!$A$2, MOD(ROW(X219),LEN('source-3b'!$A$2))+1,1),IF(INT(ROW(X219)/LEN('source-3b'!$A$2))=2,MID('source-3b'!$A$3, MOD(ROW(X219),LEN('source-3b'!$A$2))+1,1), IF(INT(ROW(X219)/LEN('source-3b'!$A$2))=3,MID('source-3b'!$A$4, MOD(ROW(X219),LEN('source-3b'!$A$2))+1,1),IF(INT(ROW(X219)/LEN('source-3b'!$A$2))=4,MID('source-3b'!$A$5, MOD(ROW(X219),LEN('source-3b'!$A$2))+1,1),IF(INT(ROW(X219)/LEN('source-3b'!$A$2))=5,MID('source-3b'!$A$6, MOD(ROW(X219),LEN('source-3b'!$A$2))+1,1)))))) -> L
A152: =IF(INT(ROW(X220)/LEN('source-3b'!$A$2))=1,MID('source-3b'!$A$2, MOD(ROW(X220),LEN('source-3b'!$A$2))+1,1),IF(INT(ROW(X220)/LEN('source-3b'!$A$2))=2,MID('source-3b'!$A$3, MOD(ROW(X220),LEN('source-3b'!$A$2))+1,1), IF(INT(ROW(X220)/LEN('source-3b'!$A$2))=3,MID('source-3b'!$A$4, MOD(ROW(X220),LEN('source-3b'!$A$2))+1,1),IF(INT(ROW(X220)/LEN('source-3b'!$A$2))=4,MID('source-3b'!$A$5, MOD(ROW(X220),LEN('source-3b'!$A$2))+1,1),IF(INT(ROW(X220)/LEN('source-3b'!$A$2))=5,MID('source-3b'!$A$6, MOD(ROW(X220),LEN('source-3b'!$A$2))+1,1)))))) -> T
A153: =IF(INT(ROW(X221)/LEN('source-3b'!$A$2))=1,MID('source-3b'!$A$2, MOD(ROW(X221),LEN('source-3b'!$A$2))+1,1),IF(INT(ROW(X221)/LEN('source-3b'!$A$2))=2,MID('source-3b'!$A$3, MOD(ROW(X221),LEN('source-3b'!$A$2))+1,1), IF(INT(ROW(X221)/LEN('source-3b'!$A$2))=3,MID('source-3b'!$A$4, MOD(ROW(X221),LEN('source-3b'!$A$2))+1,1),IF(INT(ROW(X221)/LEN('source-3b'!$A$2))=4,MID('source-3b'!$A$5, MOD(ROW(X221),LEN('source-3b'!$A$2))+1,1),IF(INT(ROW(X221)/LEN('source-3b'!$A$2))=5,MID('source-3b'!$A$6, MOD(ROW(X221),LEN('source-3b'!$A$2))+1,1)))))) -> S
A154: =IF(INT(ROW(X222)/LEN('source-3b'!$A$2))=1,MID('source-3b'!$A$2, MOD(ROW(X222),LEN('source-3b'!$A$2))+1,1),IF(INT(ROW(X222)/LEN('source-3b'!$A$2))=2,MID('source-3b'!$A$3, MOD(ROW(X222),LEN('source-3b'!$A$2))+1,1), IF(INT(ROW(X222)/LEN('source-3b'!$A$2))=3,MID('source-3b'!$A$4, MOD(ROW(X222),LEN('source-3b'!$A$2))+1,1),IF(INT(ROW(X222)/LEN('source-3b'!$A$2))=4,MID('source-3b'!$A$5, MOD(ROW(X222),LEN('source-3b'!$A$2))+1,1),IF(INT(ROW(X222)/LEN('source-3b'!$A$2))=5,MID('source-3b'!$A$6, MOD(ROW(X222),LEN('source-3b'!$A$2))+1,1)))))) -> Y
A155: =IF(INT(ROW(X223)/LEN('source-3b'!$A$2))=1,MID('source-3b'!$A$2, MOD(ROW(X223),LEN('source-3b'!$A$2))+1,1),IF(INT(ROW(X223)/LEN('source-3b'!$A$2))=2,MID('source-3b'!$A$3, MOD(ROW(X223),LEN('source-3b'!$A$2))+1,1), IF(INT(ROW(X223)/LEN('source-3b'!$A$2))=3,MID('source-3b'!$A$4, MOD(ROW(X223),LEN('source-3b'!$A$2))+1,1),IF(INT(ROW(X223)/LEN('source-3b'!$A$2))=4,MID('source-3b'!$A$5, MOD(ROW(X223),LEN('source-3b'!$A$2))+1,1),IF(INT(ROW(X223)/LEN('source-3b'!$A$2))=5,MID('source-3b'!$A$6, MOD(ROW(X223),LEN('source-3b'!$A$2))+1,1)))))) -> V
A156: =IF(INT(ROW(X224)/LEN('source-3b'!$A$2))=1,MID('source-3b'!$A$2, MOD(ROW(X224),LEN('source-3b'!$A$2))+1,1),IF(INT(ROW(X224)/LEN('source-3b'!$A$2))=2,MID('source-3b'!$A$3, MOD(ROW(X224),LEN('source-3b'!$A$2))+1,1), IF(INT(ROW(X224)/LEN('source-3b'!$A$2))=3,MID('source-3b'!$A$4, MOD(ROW(X224),LEN('source-3b'!$A$2))+1,1),IF(INT(ROW(X224)/LEN('source-3b'!$A$2))=4,MID('source-3b'!$A$5, MOD(ROW(X224),LEN('source-3b'!$A$2))+1,1),IF(INT(ROW(X224)/LEN('source-3b'!$A$2))=5,MID('source-3b'!$A$6, MOD(ROW(X224),LEN('source-3b'!$A$2))+1,1)))))) -> A
A157: =IF(INT(ROW(X225)/LEN('source-3b'!$A$2))=1,MID('source-3b'!$A$2, MOD(ROW(X225),LEN('source-3b'!$A$2))+1,1),IF(INT(ROW(X225)/LEN('source-3b'!$A$2))=2,MID('source-3b'!$A$3, MOD(ROW(X225),LEN('source-3b'!$A$2))+1,1), IF(INT(ROW(X225)/LEN('source-3b'!$A$2))=3,MID('source-3b'!$A$4, MOD(ROW(X225),LEN('source-3b'!$A$2))+1,1),IF(INT(ROW(X225)/LEN('source-3b'!$A$2))=4,MID('source-3b'!$A$5, MOD(ROW(X225),LEN('source-3b'!$A$2))+1,1),IF(INT(ROW(X225)/LEN('source-3b'!$A$2))=5,MID('source-3b'!$A$6, MOD(ROW(X225),LEN('source-3b'!$A$2))+1,1)))))) -> E
A158: =IF(INT(ROW(X226)/LEN('source-3b'!$A$2))=1,MID('source-3b'!$A$2, MOD(ROW(X226),LEN('source-3b'!$A$2))+1,1),IF(INT(ROW(X226)/LEN('source-3b'!$A$2))=2,MID('source-3b'!$A$3, MOD(ROW(X226),LEN('source-3b'!$A$2))+1,1), IF(INT(ROW(X226)/LEN('source-3b'!$A$2))=3,MID('source-3b'!$A$4, MOD(ROW(X226),LEN('source-3b'!$A$2))+1,1),IF(INT(ROW(X226)/LEN('source-3b'!$A$2))=4,MID('source-3b'!$A$5, MOD(ROW(X226),LEN('source-3b'!$A$2))+1,1),IF(INT(ROW(X226)/LEN('source-3b'!$A$2))=5,MID('source-3b'!$A$6, MOD(ROW(X226),LEN('source-3b'!$A$2))+1,1)))))) -> K
A159: =IF(INT(ROW(X227)/LEN('source-3b'!$A$2))=1,MID('source-3b'!$A$2, MOD(ROW(X227),LEN('source-3b'!$A$2))+1,1),IF(INT(ROW(X227)/LEN('source-3b'!$A$2))=2,MID('source-3b'!$A$3, MOD(ROW(X227),LEN('source-3b'!$A$2))+1,1), IF(INT(ROW(X227)/LEN('source-3b'!$A$2))=3,MID('source-3b'!$A$4, MOD(ROW(X227),LEN('source-3b'!$A$2))+1,1),IF(INT(ROW(X227)/LEN('source-3b'!$A$2))=4,MID('source-3b'!$A$5, MOD(ROW(X227),LEN('source-3b'!$A$2))+1,1),IF(INT(ROW(X227)/LEN('source-3b'!$A$2))=5,MID('source-3b'!$A$6, MOD(ROW(X227),LEN('source-3b'!$A$2))+1,1)))))) -> T
A160: =IF(INT(ROW(X228)/LEN('source-3b'!$A$2))=1,MID('source-3b'!$A$2, MOD(ROW(X228),LEN('source-3b'!$A$2))+1,1),IF(INT(ROW(X228)/LEN('source-3b'!$A$2))=2,MID('source-3b'!$A$3, MOD(ROW(X228),LEN('source-3b'!$A$2))+1,1), IF(INT(ROW(X228)/LEN('source-3b'!$A$2))=3,MID('source-3b'!$A$4, MOD(ROW(X228),LEN('source-3b'!$A$2))+1,1),IF(INT(ROW(X228)/LEN('source-3b'!$A$2))=4,MID('source-3b'!$A$5, MOD(ROW(X228),LEN('source-3b'!$A$2))+1,1),IF(INT(ROW(X228)/LEN('source-3b'!$A$2))=5,MID('source-3b'!$A$6, MOD(ROW(X228),LEN('source-3b'!$A$2))+1,1)))))) -> G
A161: =IF(INT(ROW(X229)/LEN('source-3b'!$A$2))=1,MID('source-3b'!$A$2, MOD(ROW(X229),LEN('source-3b'!$A$2))+1,1),IF(INT(ROW(X229)/LEN('source-3b'!$A$2))=2,MID('source-3b'!$A$3, MOD(ROW(X229),LEN('source-3b'!$A$2))+1,1), IF(INT(ROW(X229)/LEN('source-3b'!$A$2))=3,MID('source-3b'!$A$4, MOD(ROW(X229),LEN('source-3b'!$A$2))+1,1),IF(INT(ROW(X229)/LEN('source-3b'!$A$2))=4,MID('source-3b'!$A$5, MOD(ROW(X229),LEN('source-3b'!$A$2))+1,1),IF(INT(ROW(X229)/LEN('source-3b'!$A$2))=5,MID('source-3b'!$A$6, MOD(ROW(X229),LEN('source-3b'!$A$2))+1,1)))))) -> K
A162: =IF(INT(ROW(X230)/LEN('source-3b'!$A$2))=1,MID('source-3b'!$A$2, MOD(ROW(X230),LEN('source-3b'!$A$2))+1,1),IF(INT(ROW(X230)/LEN('source-3b'!$A$2))=2,MID('source-3b'!$A$3, MOD(ROW(X230),LEN('source-3b'!$A$2))+1,1), IF(INT(ROW(X230)/LEN('source-3b'!$A$2))=3,MID('source-3b'!$A$4, MOD(ROW(X230),LEN('source-3b'!$A$2))+1,1),IF(INT(ROW(X230)/LEN('source-3b'!$A$2))=4,MID('source-3b'!$A$5, MOD(ROW(X230),LEN('source-3b'!$A$2))+1,1),IF(INT(ROW(X230)/LEN('source-3b'!$A$2))=5,MID('source-3b'!$A$6, MOD(ROW(X230),LEN('source-3b'!$A$2))+1,1)))))) -> N
A163: =IF(INT(ROW(X231)/LEN('source-3b'!$A$2))=1,MID('source-3b'!$A$2, MOD(ROW(X231),LEN('source-3b'!$A$2))+1,1),IF(INT(ROW(X231)/LEN('source-3b'!$A$2))=2,MID('source-3b'!$A$3, MOD(ROW(X231),LEN('source-3b'!$A$2))+1,1), IF(INT(ROW(X231)/LEN('source-3b'!$A$2))=3,MID('source-3b'!$A$4, MOD(ROW(X231),LEN('source-3b'!$A$2))+1,1),IF(INT(ROW(X231)/LEN('source-3b'!$A$2))=4,MID('source-3b'!$A$5, MOD(ROW(X231),LEN('source-3b'!$A$2))+1,1),IF(INT(ROW(X231)/LEN('source-3b'!$A$2))=5,MID('source-3b'!$A$6, MOD(ROW(X231),LEN('source-3b'!$A$2))+1,1)))))) -> I
A164: =IF(INT(ROW(X232)/LEN('source-3b'!$A$2))=1,MID('source-3b'!$A$2, MOD(ROW(X232),LEN('source-3b'!$A$2))+1,1),IF(INT(ROW(X232)/LEN('source-3b'!$A$2))=2,MID('source-3b'!$A$3, MOD(ROW(X232),LEN('source-3b'!$A$2))+1,1), IF(INT(ROW(X232)/LEN('source-3b'!$A$2))=3,MID('source-3b'!$A$4, MOD(ROW(X232),LEN('source-3b'!$A$2))+1,1),IF(INT(ROW(X232)/LEN('source-3b'!$A$2))=4,MID('source-3b'!$A$5, MOD(ROW(X232),LEN('source-3b'!$A$2))+1,1),IF(INT(ROW(X232)/LEN('source-3b'!$A$2))=5,MID('source-3b'!$A$6, MOD(ROW(X232),LEN('source-3b'!$A$2))+1,1)))))) -> I
A165: =IF(INT(ROW(X233)/LEN('source-3b'!$A$2))=1,MID('source-3b'!$A$2, MOD(ROW(X233),LEN('source-3b'!$A$2))+1,1),IF(INT(ROW(X233)/LEN('source-3b'!$A$2))=2,MID('source-3b'!$A$3, MOD(ROW(X233),LEN('source-3b'!$A$2))+1,1), IF(INT(ROW(X233)/LEN('source-3b'!$A$2))=3,MID('source-3b'!$A$4, MOD(ROW(X233),LEN('source-3b'!$A$2))+1,1),IF(INT(ROW(X233)/LEN('source-3b'!$A$2))=4,MID('source-3b'!$A$5, MOD(ROW(X233),LEN('source-3b'!$A$2))+1,1),IF(INT(ROW(X233)/LEN('source-3b'!$A$2))=5,MID('source-3b'!$A$6, MOD(ROW(X233),LEN('source-3b'!$A$2))+1,1)))))) -> P
A166: =IF(INT(ROW(X234)/LEN('source-3b'!$A$2))=1,MID('source-3b'!$A$2, MOD(ROW(X234),LEN('source-3b'!$A$2))+1,1),IF(INT(ROW(X234)/LEN('source-3b'!$A$2))=2,MID('source-3b'!$A$3, MOD(ROW(X234),LEN('source-3b'!$A$2))+1,1), IF(INT(ROW(X234)/LEN('source-3b'!$A$2))=3,MID('source-3b'!$A$4, MOD(ROW(X234),LEN('source-3b'!$A$2))+1,1),IF(INT(ROW(X234)/LEN('source-3b'!$A$2))=4,MID('source-3b'!$A$5, MOD(ROW(X234),LEN('source-3b'!$A$2))+1,1),IF(INT(ROW(X234)/LEN('source-3b'!$A$2))=5,MID('source-3b'!$A$6, MOD(ROW(X234),LEN('source-3b'!$A$2))+1,1)))))) -> I
A167: =IF(INT(ROW(X235)/LEN('source-3b'!$A$2))=1,MID('source-3b'!$A$2, MOD(ROW(X235),LEN('source-3b'!$A$2))+1,1),IF(INT(ROW(X235)/LEN('source-3b'!$A$2))=2,MID('source-3b'!$A$3, MOD(ROW(X235),LEN('source-3b'!$A$2))+1,1), IF(INT(ROW(X235)/LEN('source-3b'!$A$2))=3,MID('source-3b'!$A$4, MOD(ROW(X235),LEN('source-3b'!$A$2))+1,1),IF(INT(ROW(X235)/LEN('source-3b'!$A$2))=4,MID('source-3b'!$A$5, MOD(ROW(X235),LEN('source-3b'!$A$2))+1,1),IF(INT(ROW(X235)/LEN('source-3b'!$A$2))=5,MID('source-3b'!$A$6, MOD(ROW(X235),LEN('source-3b'!$A$2))+1,1)))))) -> P
A168: =IF(INT(ROW(X236)/LEN('source-3b'!$A$2))=1,MID('source-3b'!$A$2, MOD(ROW(X236),LEN('source-3b'!$A$2))+1,1),IF(INT(ROW(X236)/LEN('source-3b'!$A$2))=2,MID('source-3b'!$A$3, MOD(ROW(X236),LEN('source-3b'!$A$2))+1,1), IF(INT(ROW(X236)/LEN('source-3b'!$A$2))=3,MID('source-3b'!$A$4, MOD(ROW(X236),LEN('source-3b'!$A$2))+1,1),IF(INT(ROW(X236)/LEN('source-3b'!$A$2))=4,MID('source-3b'!$A$5, MOD(ROW(X236),LEN('source-3b'!$A$2))+1,1),IF(INT(ROW(X236)/LEN('source-3b'!$A$2))=5,MID('source-3b'!$A$6, MOD(ROW(X236),LEN('source-3b'!$A$2))+1,1)))))) -> G
A169: =IF(INT(ROW(X237)/LEN('source-3b'!$A$2))=1,MID('source-3b'!$A$2, MOD(ROW(X237),LEN('source-3b'!$A$2))+1,1),IF(INT(ROW(X237)/LEN('source-3b'!$A$2))=2,MID('source-3b'!$A$3, MOD(ROW(X237),LEN('source-3b'!$A$2))+1,1), IF(INT(ROW(X237)/LEN('source-3b'!$A$2))=3,MID('source-3b'!$A$4, MOD(ROW(X237),LEN('source-3b'!$A$2))+1,1),IF(INT(ROW(X237)/LEN('source-3b'!$A$2))=4,MID('source-3b'!$A$5, MOD(ROW(X237),LEN('source-3b'!$A$2))+1,1),IF(INT(ROW(X237)/LEN('source-3b'!$A$2))=5,MID('source-3b'!$A$6, MOD(ROW(X237),LEN('source-3b'!$A$2))+1,1)))))) -> E
A170: =IF(INT(ROW(X238)/LEN('source-3b'!$A$2))=1,MID('source-3b'!$A$2, MOD(ROW(X238),LEN('source-3b'!$A$2))+1,1),IF(INT(ROW(X238)/LEN('source-3b'!$A$2))=2,MID('source-3b'!$A$3, MOD(ROW(X238),LEN('source-3b'!$A$2))+1,1), IF(INT(ROW(X238)/LEN('source-3b'!$A$2))=3,MID('source-3b'!$A$4, MOD(ROW(X238),LEN('source-3b'!$A$2))+1,1),IF(INT(ROW(X238)/LEN('source-3b'!$A$2))=4,MID('source-3b'!$A$5, MOD(ROW(X238),LEN('source-3b'!$A$2))+1,1),IF(INT(ROW(X238)/LEN('source-3b'!$A$2))=5,MID('source-3b'!$A$6, MOD(ROW(X238),LEN('source-3b'!$A$2))+1,1)))))) -> T
A171: =IF(INT(ROW(X239)/LEN('source-3b'!$A$2))=1,MID('source-3b'!$A$2, MOD(ROW(X239),LEN('source-3b'!$A$2))+1,1),IF(INT(ROW(X239)/LEN('source-3b'!$A$2))=2,MID('source-3b'!$A$3, MOD(ROW(X239),LEN('source-3b'!$A$2))+1,1), IF(INT(ROW(X239)/LEN('source-3b'!$A$2))=3,MID('source-3b'!$A$4, MOD(ROW(X239),LEN('source-3b'!$A$2))+1,1),IF(INT(ROW(X239)/LEN('source-3b'!$A$2))=4,MID('source-3b'!$A$5, MOD(ROW(X239),LEN('source-3b'!$A$2))+1,1),IF(INT(ROW(X239)/LEN('source-3b'!$A$2))=5,MID('source-3b'!$A$6, MOD(ROW(X239),LEN('source-3b'!$A$2))+1,1)))))) -> G
A172: =IF(INT(ROW(X240)/LEN('source-3b'!$A$2))=1,MID('source-3b'!$A$2, MOD(ROW(X240),LEN('source-3b'!$A$2))+1,1),IF(INT(ROW(X240)/LEN('source-3b'!$A$2))=2,MID('source-3b'!$A$3, MOD(ROW(X240),LEN('source-3b'!$A$2))+1,1), IF(INT(ROW(X240)/LEN('source-3b'!$A$2))=3,MID('source-3b'!$A$4, MOD(ROW(X240),LEN('source-3b'!$A$2))+1,1),IF(INT(ROW(X240)/LEN('source-3b'!$A$2))=4,MID('source-3b'!$A$5, MOD(ROW(X240),LEN('source-3b'!$A$2))+1,1),IF(INT(ROW(X240)/LEN('source-3b'!$A$2))=5,MID('source-3b'!$A$6, MOD(ROW(X240),LEN('source-3b'!$A$2))+1,1)))))) -> Y
A173: =IF(INT(ROW(X241)/LEN('source-3b'!$A$2))=1,MID('source-3b'!$A$2, MOD(ROW(X241),LEN('source-3b'!$A$2))+1,1),IF(INT(ROW(X241)/LEN('source-3b'!$A$2))=2,MID('source-3b'!$A$3, MOD(ROW(X241),LEN('source-3b'!$A$2))+1,1), IF(INT(ROW(X241)/LEN('source-3b'!$A$2))=3,MID('source-3b'!$A$4, MOD(ROW(X241),LEN('source-3b'!$A$2))+1,1),IF(INT(ROW(X241)/LEN('source-3b'!$A$2))=4,MID('source-3b'!$A$5, MOD(ROW(X241),LEN('source-3b'!$A$2))+1,1),IF(INT(ROW(X241)/LEN('source-3b'!$A$2))=5,MID('source-3b'!$A$6, MOD(ROW(X241),LEN('source-3b'!$A$2))+1,1)))))) -> C
A174: =IF(INT(ROW(X242)/LEN('source-3b'!$A$2))=1,MID('source-3b'!$A$2, MOD(ROW(X242),LEN('source-3b'!$A$2))+1,1),IF(INT(ROW(X242)/LEN('source-3b'!$A$2))=2,MID('source-3b'!$A$3, MOD(ROW(X242),LEN('source-3b'!$A$2))+1,1), IF(INT(ROW(X242)/LEN('source-3b'!$A$2))=3,MID('source-3b'!$A$4, MOD(ROW(X242),LEN('source-3b'!$A$2))+1,1),IF(INT(ROW(X242)/LEN('source-3b'!$A$2))=4,MID('source-3b'!$A$5, MOD(ROW(X242),LEN('source-3b'!$A$2))+1,1),IF(INT(ROW(X242)/LEN('source-3b'!$A$2))=5,MID('source-3b'!$A$6, MOD(ROW(X242),LEN('source-3b'!$A$2))+1,1)))))) -> Y
A175: =IF(INT(ROW(X243)/LEN('source-3b'!$A$2))=1,MID('source-3b'!$A$2, MOD(ROW(X243),LEN('source-3b'!$A$2))+1,1),IF(INT(ROW(X243)/LEN('source-3b'!$A$2))=2,MID('source-3b'!$A$3, MOD(ROW(X243),LEN('source-3b'!$A$2))+1,1), IF(INT(ROW(X243)/LEN('source-3b'!$A$2))=3,MID('source-3b'!$A$4, MOD(ROW(X243),LEN('source-3b'!$A$2))+1,1),IF(INT(ROW(X243)/LEN('source-3b'!$A$2))=4,MID('source-3b'!$A$5, MOD(ROW(X243),LEN('source-3b'!$A$2))+1,1),IF(INT(ROW(X243)/LEN('source-3b'!$A$2))=5,MID('source-3b'!$A$6, MOD(ROW(X243),LEN('source-3b'!$A$2))+1,1)))))) -> V
A176: =IF(INT(ROW(X244)/LEN('source-3b'!$A$2))=1,MID('source-3b'!$A$2, MOD(ROW(X244),LEN('source-3b'!$A$2))+1,1),IF(INT(ROW(X244)/LEN('source-3b'!$A$2))=2,MID('source-3b'!$A$3, MOD(ROW(X244),LEN('source-3b'!$A$2))+1,1), IF(INT(ROW(X244)/LEN('source-3b'!$A$2))=3,MID('source-3b'!$A$4, MOD(ROW(X244),LEN('source-3b'!$A$2))+1,1),IF(INT(ROW(X244)/LEN('source-3b'!$A$2))=4,MID('source-3b'!$A$5, MOD(ROW(X244),LEN('source-3b'!$A$2))+1,1),IF(INT(ROW(X244)/LEN('source-3b'!$A$2))=5,MID('source-3b'!$A$6, MOD(ROW(X244),LEN('source-3b'!$A$2))+1,1)))))) -> H
A177: =IF(INT(ROW(X245)/LEN('source-3b'!$A$2))=1,MID('source-3b'!$A$2, MOD(ROW(X245),LEN('source-3b'!$A$2))+1,1),IF(INT(ROW(X245)/LEN('source-3b'!$A$2))=2,MID('source-3b'!$A$3, MOD(ROW(X245),LEN('source-3b'!$A$2))+1,1), IF(INT(ROW(X245)/LEN('source-3b'!$A$2))=3,MID('source-3b'!$A$4, MOD(ROW(X245),LEN('source-3b'!$A$2))+1,1),IF(INT(ROW(X245)/LEN('source-3b'!$A$2))=4,MID('source-3b'!$A$5, MOD(ROW(X245),LEN('source-3b'!$A$2))+1,1),IF(INT(ROW(X245)/LEN('source-3b'!$A$2))=5,MID('source-3b'!$A$6, MOD(ROW(X245),LEN('source-3b'!$A$2))+1,1)))))) -> N
A178: =IF(INT(ROW(X246)/LEN('source-3b'!$A$2))=1,MID('source-3b'!$A$2, MOD(ROW(X246),LEN('source-3b'!$A$2))+1,1),IF(INT(ROW(X246)/LEN('source-3b'!$A$2))=2,MID('source-3b'!$A$3, MOD(ROW(X246),LEN('source-3b'!$A$2))+1,1), IF(INT(ROW(X246)/LEN('source-3b'!$A$2))=3,MID('source-3b'!$A$4, MOD(ROW(X246),LEN('source-3b'!$A$2))+1,1),IF(INT(ROW(X246)/LEN('source-3b'!$A$2))=4,MID('source-3b'!$A$5, MOD(ROW(X246),LEN('source-3b'!$A$2))+1,1),IF(INT(ROW(X246)/LEN('source-3b'!$A$2))=5,MID('source-3b'!$A$6, MOD(ROW(X246),LEN('source-3b'!$A$2))+1,1)))))) -> Y
A179: =IF(INT(ROW(X247)/LEN('source-3b'!$A$2))=1,MID('source-3b'!$A$2, MOD(ROW(X247),LEN('source-3b'!$A$2))+1,1),IF(INT(ROW(X247)/LEN('source-3b'!$A$2))=2,MID('source-3b'!$A$3, MOD(ROW(X247),LEN('source-3b'!$A$2))+1,1), IF(INT(ROW(X247)/LEN('source-3b'!$A$2))=3,MID('source-3b'!$A$4, MOD(ROW(X247),LEN('source-3b'!$A$2))+1,1),IF(INT(ROW(X247)/LEN('source-3b'!$A$2))=4,MID('source-3b'!$A$5, MOD(ROW(X247),LEN('source-3b'!$A$2))+1,1),IF(INT(ROW(X247)/LEN('source-3b'!$A$2))=5,MID('source-3b'!$A$6, MOD(ROW(X247),LEN('source-3b'!$A$2))+1,1)))))) -> V
A180: =IF(INT(ROW(X248)/LEN('source-3b'!$A$2))=1,MID('source-3b'!$A$2, MOD(ROW(X248),LEN('source-3b'!$A$2))+1,1),IF(INT(ROW(X248)/LEN('source-3b'!$A$2))=2,MID('source-3b'!$A$3, MOD(ROW(X248),LEN('source-3b'!$A$2))+1,1), IF(INT(ROW(X248)/LEN('source-3b'!$A$2))=3,MID('source-3b'!$A$4, MOD(ROW(X248),LEN('source-3b'!$A$2))+1,1),IF(INT(ROW(X248)/LEN('source-3b'!$A$2))=4,MID('source-3b'!$A$5, MOD(ROW(X248),LEN('source-3b'!$A$2))+1,1),IF(INT(ROW(X248)/LEN('source-3b'!$A$2))=5,MID('source-3b'!$A$6, MOD(ROW(X248),LEN('source-3b'!$A$2))+1,1)))))) -> K
A181: =IF(INT(ROW(X249)/LEN('source-3b'!$A$2))=1,MID('source-3b'!$A$2, MOD(ROW(X249),LEN('source-3b'!$A$2))+1,1),IF(INT(ROW(X249)/LEN('source-3b'!$A$2))=2,MID('source-3b'!$A$3, MOD(ROW(X249),LEN('source-3b'!$A$2))+1,1), IF(INT(ROW(X249)/LEN('source-3b'!$A$2))=3,MID('source-3b'!$A$4, MOD(ROW(X249),LEN('source-3b'!$A$2))+1,1),IF(INT(ROW(X249)/LEN('source-3b'!$A$2))=4,MID('source-3b'!$A$5, MOD(ROW(X249),LEN('source-3b'!$A$2))+1,1),IF(INT(ROW(X249)/LEN('source-3b'!$A$2))=5,MID('source-3b'!$A$6, MOD(ROW(X249),LEN('source-3b'!$A$2))+1,1)))))) -> D
A182: =IF(INT(ROW(X250)/LEN('source-3b'!$A$2))=1,MID('source-3b'!$A$2, MOD(ROW(X250),LEN('source-3b'!$A$2))+1,1),IF(INT(ROW(X250)/LEN('source-3b'!$A$2))=2,MID('source-3b'!$A$3, MOD(ROW(X250),LEN('source-3b'!$A$2))+1,1), IF(INT(ROW(X250)/LEN('source-3b'!$A$2))=3,MID('source-3b'!$A$4, MOD(ROW(X250),LEN('source-3b'!$A$2))+1,1),IF(INT(ROW(X250)/LEN('source-3b'!$A$2))=4,MID('source-3b'!$A$5, MOD(ROW(X250),LEN('source-3b'!$A$2))+1,1),IF(INT(ROW(X250)/LEN('source-3b'!$A$2))=5,MID('source-3b'!$A$6, MOD(ROW(X250),LEN('source-3b'!$A$2))+1,1)))))) -> S
A183: =IF(INT(ROW(X251)/LEN('source-3b'!$A$2))=1,MID('source-3b'!$A$2, MOD(ROW(X251),LEN('source-3b'!$A$2))+1,1),IF(INT(ROW(X251)/LEN('source-3b'!$A$2))=2,MID('source-3b'!$A$3, MOD(ROW(X251),LEN('source-3b'!$A$2))+1,1), IF(INT(ROW(X251)/LEN('source-3b'!$A$2))=3,MID('source-3b'!$A$4, MOD(ROW(X251),LEN('source-3b'!$A$2))+1,1),IF(INT(ROW(X251)/LEN('source-3b'!$A$2))=4,MID('source-3b'!$A$5, MOD(ROW(X251),LEN('source-3b'!$A$2))+1,1),IF(INT(ROW(X251)/LEN('source-3b'!$A$2))=5,MID('source-3b'!$A$6, MOD(ROW(X251),LEN('source-3b'!$A$2))+1,1)))))) -> E
A184: =IF(INT(ROW(X252)/LEN('source-3b'!$A$2))=1,MID('source-3b'!$A$2, MOD(ROW(X252),LEN('source-3b'!$A$2))+1,1),IF(INT(ROW(X252)/LEN('source-3b'!$A$2))=2,MID('source-3b'!$A$3, MOD(ROW(X252),LEN('source-3b'!$A$2))+1,1), IF(INT(ROW(X252)/LEN('source-3b'!$A$2))=3,MID('source-3b'!$A$4, MOD(ROW(X252),LEN('source-3b'!$A$2))+1,1),IF(INT(ROW(X252)/LEN('source-3b'!$A$2))=4,MID('source-3b'!$A$5, MOD(ROW(X252),LEN('source-3b'!$A$2))+1,1),IF(INT(ROW(X252)/LEN('source-3b'!$A$2))=5,MID('source-3b'!$A$6, MOD(ROW(X252),LEN('source-3b'!$A$2))+1,1)))))) -> I
A185: =IF(INT(ROW(X253)/LEN('source-3b'!$A$2))=1,MID('source-3b'!$A$2, MOD(ROW(X253),LEN('source-3b'!$A$2))+1,1),IF(INT(ROW(X253)/LEN('source-3b'!$A$2))=2,MID('source-3b'!$A$3, MOD(ROW(X253),LEN('source-3b'!$A$2))+1,1), IF(INT(ROW(X253)/LEN('source-3b'!$A$2))=3,MID('source-3b'!$A$4, MOD(ROW(X253),LEN('source-3b'!$A$2))+1,1),IF(INT(ROW(X253)/LEN('source-3b'!$A$2))=4,MID('source-3b'!$A$5, MOD(ROW(X253),LEN('source-3b'!$A$2))+1,1),IF(INT(ROW(X253)/LEN('source-3b'!$A$2))=5,MID('source-3b'!$A$6, MOD(ROW(X253),LEN('source-3b'!$A$2))+1,1)))))) -> K
A186: =IF(INT(ROW(X254)/LEN('source-3b'!$A$2))=1,MID('source-3b'!$A$2, MOD(ROW(X254),LEN('source-3b'!$A$2))+1,1),IF(INT(ROW(X254)/LEN('source-3b'!$A$2))=2,MID('source-3b'!$A$3, MOD(ROW(X254),LEN('source-3b'!$A$2))+1,1), IF(INT(ROW(X254)/LEN('source-3b'!$A$2))=3,MID('source-3b'!$A$4, MOD(ROW(X254),LEN('source-3b'!$A$2))+1,1),IF(INT(ROW(X254)/LEN('source-3b'!$A$2))=4,MID('source-3b'!$A$5, MOD(ROW(X254),LEN('source-3b'!$A$2))+1,1),IF(INT(ROW(X254)/LEN('source-3b'!$A$2))=5,MID('source-3b'!$A$6, MOD(ROW(X254),LEN('source-3b'!$A$2))+1,1)))))) -> K
A187: =IF(INT(ROW(X255)/LEN('source-3b'!$A$2))=1,MID('source-3b'!$A$2, MOD(ROW(X255),LEN('source-3b'!$A$2))+1,1),IF(INT(ROW(X255)/LEN('source-3b'!$A$2))=2,MID('source-3b'!$A$3, MOD(ROW(X255),LEN('source-3b'!$A$2))+1,1), IF(INT(ROW(X255)/LEN('source-3b'!$A$2))=3,MID('source-3b'!$A$4, MOD(ROW(X255),LEN('source-3b'!$A$2))+1,1),IF(INT(ROW(X255)/LEN('source-3b'!$A$2))=4,MID('source-3b'!$A$5, MOD(ROW(X255),LEN('source-3b'!$A$2))+1,1),IF(INT(ROW(X255)/LEN('source-3b'!$A$2))=5,MID('source-3b'!$A$6, MOD(ROW(X255),LEN('source-3b'!$A$2))+1,1)))))) -> M
A188: =IF(INT(ROW(X256)/LEN('source-3b'!$A$2))=1,MID('source-3b'!$A$2, MOD(ROW(X256),LEN('source-3b'!$A$2))+1,1),IF(INT(ROW(X256)/LEN('source-3b'!$A$2))=2,MID('source-3b'!$A$3, MOD(ROW(X256),LEN('source-3b'!$A$2))+1,1), IF(INT(ROW(X256)/LEN('source-3b'!$A$2))=3,MID('source-3b'!$A$4, MOD(ROW(X256),LEN('source-3b'!$A$2))+1,1),IF(INT(ROW(X256)/LEN('source-3b'!$A$2))=4,MID('source-3b'!$A$5, MOD(ROW(X256),LEN('source-3b'!$A$2))+1,1),IF(INT(ROW(X256)/LEN('source-3b'!$A$2))=5,MID('source-3b'!$A$6, MOD(ROW(X256),LEN('source-3b'!$A$2))+1,1)))))) -> M
A189: =IF(INT(ROW(X257)/LEN('source-3b'!$A$2))=1,MID('source-3b'!$A$2, MOD(ROW(X257),LEN('source-3b'!$A$2))+1,1),IF(INT(ROW(X257)/LEN('source-3b'!$A$2))=2,MID('source-3b'!$A$3, MOD(ROW(X257),LEN('source-3b'!$A$2))+1,1), IF(INT(ROW(X257)/LEN('source-3b'!$A$2))=3,MID('source-3b'!$A$4, MOD(ROW(X257),LEN('source-3b'!$A$2))+1,1),IF(INT(ROW(X257)/LEN('source-3b'!$A$2))=4,MID('source-3b'!$A$5, MOD(ROW(X257),LEN('source-3b'!$A$2))+1,1),IF(INT(ROW(X257)/LEN('source-3b'!$A$2))=5,MID('source-3b'!$A$6, MOD(ROW(X257),LEN('source-3b'!$A$2))+1,1)))))) -> S
A190: =IF(INT(ROW(X258)/LEN('source-3b'!$A$2))=1,MID('source-3b'!$A$2, MOD(ROW(X258),LEN('source-3b'!$A$2))+1,1),IF(INT(ROW(X258)/LEN('source-3b'!$A$2))=2,MID('source-3b'!$A$3, MOD(ROW(X258),LEN('source-3b'!$A$2))+1,1), IF(INT(ROW(X258)/LEN('source-3b'!$A$2))=3,MID('source-3b'!$A$4, MOD(ROW(X258),LEN('source-3b'!$A$2))+1,1),IF(INT(ROW(X258)/LEN('source-3b'!$A$2))=4,MID('source-3b'!$A$5, MOD(ROW(X258),LEN('source-3b'!$A$2))+1,1),IF(INT(ROW(X258)/LEN('source-3b'!$A$2))=5,MID('source-3b'!$A$6, MOD(ROW(X258),LEN('source-3b'!$A$2))+1,1)))))) -> K
A191: =IF(INT(ROW(X259)/LEN('source-3b'!$A$2))=1,MID('source-3b'!$A$2, MOD(ROW(X259),LEN('source-3b'!$A$2))+1,1),IF(INT(ROW(X259)/LEN('source-3b'!$A$2))=2,MID('source-3b'!$A$3, MOD(ROW(X259),LEN('source-3b'!$A$2))+1,1), IF(INT(ROW(X259)/LEN('source-3b'!$A$2))=3,MID('source-3b'!$A$4, MOD(ROW(X259),LEN('source-3b'!$A$2))+1,1),IF(INT(ROW(X259)/LEN('source-3b'!$A$2))=4,MID('source-3b'!$A$5, MOD(ROW(X259),LEN('source-3b'!$A$2))+1,1),IF(INT(ROW(X259)/LEN('source-3b'!$A$2))=5,MID('source-3b'!$A$6, MOD(ROW(X259),LEN('source-3b'!$A$2))+1,1)))))) -> Y
A192: =IF(INT(ROW(X260)/LEN('source-3b'!$A$2))=1,MID('source-3b'!$A$2, MOD(ROW(X260),LEN('source-3b'!$A$2))+1,1),IF(INT(ROW(X260)/LEN('source-3b'!$A$2))=2,MID('source-3b'!$A$3, MOD(ROW(X260),LEN('source-3b'!$A$2))+1,1), IF(INT(ROW(X260)/LEN('source-3b'!$A$2))=3,MID('source-3b'!$A$4, MOD(ROW(X260),LEN('source-3b'!$A$2))+1,1),IF(INT(ROW(X260)/LEN('source-3b'!$A$2))=4,MID('source-3b'!$A$5, MOD(ROW(X260),LEN('source-3b'!$A$2))+1,1),IF(INT(ROW(X260)/LEN('source-3b'!$A$2))=5,MID('source-3b'!$A$6, MOD(ROW(X260),LEN('source-3b'!$A$2))+1,1)))))) -> P
A193: =IF(INT(ROW(X261)/LEN('source-3b'!$A$2))=1,MID('source-3b'!$A$2, MOD(ROW(X261),LEN('source-3b'!$A$2))+1,1),IF(INT(ROW(X261)/LEN('source-3b'!$A$2))=2,MID('source-3b'!$A$3, MOD(ROW(X261),LEN('source-3b'!$A$2))+1,1), IF(INT(ROW(X261)/LEN('source-3b'!$A$2))=3,MID('source-3b'!$A$4, MOD(ROW(X261),LEN('source-3b'!$A$2))+1,1),IF(INT(ROW(X261)/LEN('source-3b'!$A$2))=4,MID('source-3b'!$A$5, MOD(ROW(X261),LEN('source-3b'!$A$2))+1,1),IF(INT(ROW(X261)/LEN('source-3b'!$A$2))=5,MID('source-3b'!$A$6, MOD(ROW(X261),LEN('source-3b'!$A$2))+1,1)))))) -> N
A194: =IF(INT(ROW(X262)/LEN('source-3b'!$A$2))=1,MID('source-3b'!$A$2, MOD(ROW(X262),LEN('source-3b'!$A$2))+1,1),IF(INT(ROW(X262)/LEN('source-3b'!$A$2))=2,MID('source-3b'!$A$3, MOD(ROW(X262),LEN('source-3b'!$A$2))+1,1), IF(INT(ROW(X262)/LEN('source-3b'!$A$2))=3,MID('source-3b'!$A$4, MOD(ROW(X262),LEN('source-3b'!$A$2))+1,1),IF(INT(ROW(X262)/LEN('source-3b'!$A$2))=4,MID('source-3b'!$A$5, MOD(ROW(X262),LEN('source-3b'!$A$2))+1,1),IF(INT(ROW(X262)/LEN('source-3b'!$A$2))=5,MID('source-3b'!$A$6, MOD(ROW(X262),LEN('source-3b'!$A$2))+1,1)))))) -> A
A195: =IF(INT(ROW(X263)/LEN('source-3b'!$A$2))=1,MID('source-3b'!$A$2, MOD(ROW(X263),LEN('source-3b'!$A$2))+1,1),IF(INT(ROW(X263)/LEN('source-3b'!$A$2))=2,MID('source-3b'!$A$3, MOD(ROW(X263),LEN('source-3b'!$A$2))+1,1), IF(INT(ROW(X263)/LEN('source-3b'!$A$2))=3,MID('source-3b'!$A$4, MOD(ROW(X263),LEN('source-3b'!$A$2))+1,1),IF(INT(ROW(X263)/LEN('source-3b'!$A$2))=4,MID('source-3b'!$A$5, MOD(ROW(X263),LEN('source-3b'!$A$2))+1,1),IF(INT(ROW(X263)/LEN('source-3b'!$A$2))=5,MID('source-3b'!$A$6, MOD(ROW(X263),LEN('source-3b'!$A$2))+1,1)))))) -> E
A196: =IF(INT(ROW(X264)/LEN('source-3b'!$A$2))=1,MID('source-3b'!$A$2, MOD(ROW(X264),LEN('source-3b'!$A$2))+1,1),IF(INT(ROW(X264)/LEN('source-3b'!$A$2))=2,MID('source-3b'!$A$3, MOD(ROW(X264),LEN('source-3b'!$A$2))+1,1), IF(INT(ROW(X264)/LEN('source-3b'!$A$2))=3,MID('source-3b'!$A$4, MOD(ROW(X264),LEN('source-3b'!$A$2))+1,1),IF(INT(ROW(X264)/LEN('source-3b'!$A$2))=4,MID('source-3b'!$A$5, MOD(ROW(X264),LEN('source-3b'!$A$2))+1,1),IF(INT(ROW(X264)/LEN('source-3b'!$A$2))=5,MID('source-3b'!$A$6, MOD(ROW(X264),LEN('source-3b'!$A$2))+1,1)))))) -> V
A197: =IF(INT(ROW(X265)/LEN('source-3b'!$A$2))=1,MID('source-3b'!$A$2, MOD(ROW(X265),LEN('source-3b'!$A$2))+1,1),IF(INT(ROW(X265)/LEN('source-3b'!$A$2))=2,MID('source-3b'!$A$3, MOD(ROW(X265),LEN('source-3b'!$A$2))+1,1), IF(INT(ROW(X265)/LEN('source-3b'!$A$2))=3,MID('source-3b'!$A$4, MOD(ROW(X265),LEN('source-3b'!$A$2))+1,1),IF(INT(ROW(X265)/LEN('source-3b'!$A$2))=4,MID('source-3b'!$A$5, MOD(ROW(X265),LEN('source-3b'!$A$2))+1,1),IF(INT(ROW(X265)/LEN('source-3b'!$A$2))=5,MID('source-3b'!$A$6, MOD(ROW(X265),LEN('source-3b'!$A$2))+1,1)))))) -> M
A198: =IF(INT(ROW(X266)/LEN('source-3b'!$A$2))=1,MID('source-3b'!$A$2, MOD(ROW(X266),LEN('source-3b'!$A$2))+1,1),IF(INT(ROW(X266)/LEN('source-3b'!$A$2))=2,MID('source-3b'!$A$3, MOD(ROW(X266),LEN('source-3b'!$A$2))+1,1), IF(INT(ROW(X266)/LEN('source-3b'!$A$2))=3,MID('source-3b'!$A$4, MOD(ROW(X266),LEN('source-3b'!$A$2))+1,1),IF(INT(ROW(X266)/LEN('source-3b'!$A$2))=4,MID('source-3b'!$A$5, MOD(ROW(X266),LEN('source-3b'!$A$2))+1,1),IF(INT(ROW(X266)/LEN('source-3b'!$A$2))=5,MID('source-3b'!$A$6, MOD(ROW(X266),LEN('source-3b'!$A$2))+1,1)))))) -> V
A199: =IF(INT(ROW(X267)/LEN('source-3b'!$A$2))=1,MID('source-3b'!$A$2, MOD(ROW(X267),LEN('source-3b'!$A$2))+1,1),IF(INT(ROW(X267)/LEN('source-3b'!$A$2))=2,MID('source-3b'!$A$3, MOD(ROW(X267),LEN('source-3b'!$A$2))+1,1), IF(INT(ROW(X267)/LEN('source-3b'!$A$2))=3,MID('source-3b'!$A$4, MOD(ROW(X267),LEN('source-3b'!$A$2))+1,1),IF(INT(ROW(X267)/LEN('source-3b'!$A$2))=4,MID('source-3b'!$A$5, MOD(ROW(X267),LEN('source-3b'!$A$2))+1,1),IF(INT(ROW(X267)/LEN('source-3b'!$A$2))=5,MID('source-3b'!$A$6, MOD(ROW(X267),LEN('source-3b'!$A$2))+1,1)))))) -> H
A200: =IF(INT(ROW(X268)/LEN('source-3b'!$A$2))=1,MID('source-3b'!$A$2, MOD(ROW(X268),LEN('source-3b'!$A$2))+1,1),IF(INT(ROW(X268)/LEN('source-3b'!$A$2))=2,MID('source-3b'!$A$3, MOD(ROW(X268),LEN('source-3b'!$A$2))+1,1), IF(INT(ROW(X268)/LEN('source-3b'!$A$2))=3,MID('source-3b'!$A$4, MOD(ROW(X268),LEN('source-3b'!$A$2))+1,1),IF(INT(ROW(X268)/LEN('source-3b'!$A$2))=4,MID('source-3b'!$A$5, MOD(ROW(X268),LEN('source-3b'!$A$2))+1,1),IF(INT(ROW(X268)/LEN('source-3b'!$A$2))=5,MID('source-3b'!$A$6, MOD(ROW(X268),LEN('source-3b'!$A$2))+1,1)))))) -> P
... 161 more rows

Sheet source-3b
A1: >AMW33787.1 quinolinate synthase A [Fervidobacterium islandicum]
A2: MYVTPEKIRKLADEKGYIIVAHNYQIPELQQIADYLGDSLQLARIVTRIDAKKILFLGVDFMAEVMKVLN
A3: PEKKIIVPVRYSTCPMANSLTVEDVLKYKEIYKGVPVVVYVNSRTEVKAVADVVCTSANAVDVVKALDSD
A4: TILFGPDKNLTSYVAEKTGKNIIPIPGETGYCYVHNYVKDSEIKKMMSKYPNAEVMVHPEVPKNIRNLAH
A5: FIGSTSQMEKYPASSKANEFIVVTEVGMPAKLEKLYPDKVFIPVPSMVCYNMKKNNLRNTYLALLEEKIE
A6: VTLDSELIAKARKAIERMLEITEGAERSERKVVKSA

Sheet 3c
A1: Аминокислота | B1: Число встреч в AMW33787.1 | C1: Процент от общего числа аминокислот в AMW33787.1
A2: G | B2: =COUNTIF('3b'!$A$2:$A$317,$A2) -> 11 | C2: =$B2/SUM($B$2:$B$21) -> 0.03481012658 | D2: Неполярные алифатические
A3: A | B3: =COUNTIF('3b'!$A$2:$A$317,$A3) -> 24 | C3: =$B3/SUM($B$2:$B$21) -> 0.07594936709
A4: V | B4: =COUNTIF('3b'!$A$2:$A$317,$A4) -> 37 | C4: 0.1170886076
A5: L | B5: =COUNTIF('3b'!$A$2:$A$317,$A5) -> 23 | C5: 0.07278481013
A6: I | B6: =COUNTIF('3b'!$A$2:$A$317,$A6) -> 24 | C6: 0.07594936709
A7: P | B7: =COUNTIF('3b'!$A$2:$A$317,$A7) -> 17 | C7: 0.05379746835
A8: F | B8: =COUNTIF('3b'!$A$2:$A$317,$A8) -> 6 | C8: 0.01898734177 | D8: Ароматические
A9: Y | B9: =COUNTIF('3b'!$A$2:$A$317,$A9) -> 17 | C9: 0.05379746835
A10: W | B10: =COUNTIF('3b'!$A$2:$A$317,$A10) -> 0 | C10: 0
A11: S | B11: =COUNTIF('3b'!$A$2:$A$317,$A11) -> 17 | C11: 0.05379746835 | D11: Полярные незаряженные
A12: T | B12: =COUNTIF('3b'!$A$2:$A$317,$A12) -> 15 | C12: 0.04746835443
A13: C | B13: =COUNTIF('3b'!$A$2:$A$317,$A13) -> 4 | C13: 0.01265822785
A14: M | B14: =COUNTIF('3b'!$A$2:$A$317,$A14) -> 12 | C14: 0.03797468354
A15: N | B15: =COUNTIF('3b'!$A$2:$A$317,$A15) -> 16 | C15: 0.05063291139
A16: Q | B16: =COUNTIF('3b'!$A$2:$A$317,$A16) -> 5 | C16: 0.01582278481
A17: K | B17: =COUNTIF('3b'!$A$2:$A$317,$A17) -> 33 | C17: 0.1044303797 | D17: Положительно заряженные
A18: R | B18: =COUNTIF('3b'!$A$2:$A$317,$A18) -> 11 | C18: 0.03481012658
A19: H | B19: =COUNTIF('3b'!$A$2:$A$317,$A19) -> 4 | C19: 0.01265822785
A20: D | B20: =COUNTIF('3b'!$A$2:$A$317,$A20) -> 14 | C20: 0.04430379747 | D20: Отрицательно заряженные
A21: E | B21: =COUNTIF('3b'!$A$2:$A$317,$A21) -> 26 | C21: 0.08227848101

Sheet 3d
A1: Аминокислота / Идентификатор белка | B1: =MID(INDEX('3c'!$A$2:$A$21, COLUMN(A1),1),1,1) -> G | C1: =MID(INDEX('3c'!$A$2:$A$21, COLUMN(B1),1),1,1) -> A | D1: =MID(INDEX('3c'!$A$2:$A$21, COLUMN(C1),1),1,1) -> V | E1: =MID(INDEX('3c'!$A$2:$A$21, COLUMN(D1),1),1,1) -> L | F1: =MID(INDEX('3c'!$A$2:$A$21, COLUMN(E1),1),1,1) -> I | G1: =MID(INDEX('3c'!$A$2:$A$21, COLUMN(F1),1),1,1) -> P | H1: =MID(INDEX('3c'!$A$2:$A$21, COLUMN(G1),1),1,1) -> F | I1: =MID(INDEX('3c'!$A$2:$A$21, COLUMN(H1),1),1,1) -> Y | J1: =MID(INDEX('3c'!$A$2:$A$21, COLUMN(I1),1),1,1) -> W | K1: =MID(INDEX('3c'!$A$2:$A$21, COLUMN(J1),1),1,1) -> S | L1: =MID(INDEX('3c'!$A$2:$A$21, COLUMN(K1),1),1,1) -> T | M1: =MID(INDEX('3c'!$A$2:$A$21, COLUMN(L1),1),1,1) -> C | N1: =MID(INDEX('3c'!$A$2:$A$21, COLUMN(M1),1),1,1) -> M | O1: =MID(INDEX('3c'!$A$2:$A$21, COLUMN(N1),1),1,1) -> N | P1: =MID(INDEX('3c'!$A$2:$A$21, COLUMN(O1),1),1,1) -> Q | Q1: =MID(INDEX('3c'!$A$2:$A$21, COLUMN(P1),1),1,1) -> K | R1: =MID(INDEX('3c'!$A$2:$A$21, COLUMN(Q1),1),1,1) -> R | S1: =MID(INDEX('3c'!$A$2:$A$21, COLUMN(R1),1),1,1) -> H | T1: =MID(INDEX('3c'!$A$2:$A$21, COLUMN(S1),1),1,1) -> D | U1: =MID(INDEX('3c'!$A$2:$A$21, COLUMN(T1),1),1,1) -> E
A2: =MID(INDEX(sequences!$A$1:$AQI$60, ROW(X1), 1),1, 10) -> KPH27514.1 | B2: =COUNTIFS(sequences!1:1,B$1) -> 22 | C2: =COUNTIFS(sequences!1:1,C$1) -> 29 | D2: =COUNTIFS(sequences!1:1,D$1) -> 27 | E2: =COUNTIFS(sequences!1:1,E$1) -> 17 | F2: =COUNTIFS(sequences!1:1,F$1) -> 11 | G2: =COUNTIFS(sequences!1:1,G$1) -> 10 | H2: =COUNTIFS(sequences!1:1,H$1) -> 10 | I2: =COUNTIFS(sequences!1:1,I$1) -> 4 | J2: =COUNTIFS(sequences!1:1,J$1) -> 1 | K2: =COUNTIFS(sequences!1:1,K$1) -> 18 | L2: =COUNTIFS(sequences!1:1,L$1) -> 18 | M2: =COUNTIFS(sequences!1:1,M$1) -> 3 | N2: =COUNTIFS(sequences!1:1,N$1) -> 10 | O2: =COUNTIFS(sequences!1:1,O$1) -> 4 | P2: =COUNTIFS(sequences!1:1,P$1) -> 8 | Q2: =COUNTIFS(sequences!1:1,Q$1) -> 10 | R2: =COUNTIFS(sequences!1:1,R$1) -> 12 | S2: =COUNTIFS(sequences!1:1,S$1) -> 6 | T2: =COUNTIFS(sequences!1:1,T$1) -> 11 | U2: =COUNTIFS(sequences!1:1,U$1) -> 20
A3: =MID(INDEX(sequences!$A$1:$AQI$60, ROW(X2), 1),1, 10) -> AKF90938.1 | B3: =COUNTIFS(sequences!2:2,B$1) -> 10 | C3: =COUNTIFS(sequences!2:2,C$1) -> 24 | D3: =COUNTIFS(sequences!2:2,D$1) -> 11 | E3: =COUNTIFS(sequences!2:2,E$1) -> 20 | F3: =COUNTIFS(sequences!2:2,F$1) -> 12 | G3: =COUNTIFS(sequences!2:2,G$1) -> 12 | H3: =COUNTIFS(sequences!2:2,H$1) -> 5 | I3: =COUNTIFS(sequences!2:2,I$1) -> 12 | J3: =COUNTIFS(sequences!2:2,J$1) -> 3 | K3: =COUNTIFS(sequences!2:2,K$1) -> 6 | L3: =COUNTIFS(sequences!2:2,L$1) -> 13 | M3: =COUNTIFS(sequences!2:2,M$1) -> 0 | N3: =COUNTIFS(sequences!2:2,N$1) -> 6 | O3: =COUNTIFS(sequences!2:2,O$1) -> 8 | P3: =COUNTIFS(sequences!2:2,P$1) -> 19 | Q3: =COUNTIFS(sequences!2:2,Q$1) -> 14 | R3: =COUNTIFS(sequences!2:2,R$1) -> 12 | S3: =COUNTIFS(sequences!2:2,S$1) -> 1 | T3: =COUNTIFS(sequences!2:2,T$1) -> 12 | U3: =COUNTIFS(sequences!2:2,U$1) -> 10
A4: =MID(INDEX(sequences!$A$1:$AQI$60, ROW(X3), 1),1, 10) -> BAU39574.1 | B4: =COUNTIFS(sequences!3:3,B$1) -> 46 | C4: =COUNTIFS(sequences!3:3,C$1) -> 43 | D4: =COUNTIFS(sequences!3:3,D$1) -> 23 | E4: =COUNTIFS(sequences!3:3,E$1) -> 41 | F4: =COUNTIFS(sequences!3:3,F$1) -> 19 | G4: =COUNTIFS(sequences!3:3,G$1) -> 25 | H4: =COUNTIFS(sequences!3:3,H$1) -> 24 | I4: =COUNTIFS(sequences!3:3,I$1) -> 25 | J4: =COUNTIFS(sequences!3:3,J$1) -> 19 | K4: =COUNTIFS(sequences!3:3,K$1) -> 35 | L4: =COUNTIFS(sequences!3:3,L$1) -> 29 | M4: =COUNTIFS(sequences!3:3,M$1) -> 2 | N4: =COUNTIFS(sequences!3:3,N$1) -> 10 | O4: =COUNTIFS(sequences!3:3,O$1) -> 20 | P4: =COUNTIFS(sequences!3:3,P$1) -> 32 | Q4: =COUNTIFS(sequences!3:3,Q$1) -> 23 | R4: =COUNTIFS(sequences!3:3,R$1) -> 29 | S4: =COUNTIFS(sequences!3:3,S$1) -> 12 | T4: =COUNTIFS(sequences!3:3,T$1) -> 33 | U4: =COUNTIFS(sequences!3:3,U$1) -> 19
A5: =MID(INDEX(sequences!$A$1:$AQI$60, ROW(X4), 1),1, 10) -> AKF91108.2 | B5: =COUNTIFS(sequences!4:4,B$1) -> 21 | C5: =COUNTIFS(sequences!4:4,C$1) -> 30 | D5: =COUNTIFS(sequences!4:4,D$1) -> 25 | E5: =COUNTIFS(sequences!4:4,E$1) -> 31 | F5: =COUNTIFS(sequences!4:4,F$1) -> 17 | G5: =COUNTIFS(sequences!4:4,G$1) -> 15 | H5: =COUNTIFS(sequences!4:4,H$1) -> 12 | I5: =COUNTIFS(sequences!4:4,I$1) -> 14 | J5: =COUNTIFS(sequences!4:4,J$1) -> 2 | K5: =COUNTIFS(sequences!4:4,K$1) -> 19 | L5: =COUNTIFS(sequences!4:4,L$1) -> 13 | M5: =COUNTIFS(sequences!4:4,M$1) -> 4 | N5: =COUNTIFS(sequences!4:4,N$1) -> 9 | O5: =COUNTIFS(sequences!4:4,O$1) -> 12 | P5: =COUNTIFS(sequences!4:4,P$1) -> 18 | Q5: =COUNTIFS(sequences!4:4,Q$1) -> 25 | R5: =COUNTIFS(sequences!4:4,R$1) -> 15 | S5: =COUNTIFS(sequences!4:4,S$1) -> 7 | T5: =COUNTIFS(sequences!4:4,T$1) -> 21 | U5: =COUNTIFS(sequences!4:4,U$1) -> 23
A6: =MID(INDEX(sequences!$A$1:$AQI$60, ROW(X5), 1),1, 10) -> ANF54906.1 | B6: =COUNTIFS(sequences!5:5,B$1) -> 32 | C6: =COUNTIFS(sequences!5:5,C$1) -> 38 | D6: =COUNTIFS(sequences!5:5,D$1) -> 21 | E6: =COUNTIFS(sequences!5:5,E$1) -> 30 | F6: =COUNTIFS(sequences!5:5,F$1) -> 25 | G6: =COUNTIFS(sequences!5:5,G$1) -> 23 | H6: =COUNTIFS(sequences!5:5,H$1) -> 24 | I6: =COUNTIFS(sequences!5:5,I$1) -> 24 | J6: =COUNTIFS(sequences!5:5,J$1) -> 13 | K6: =COUNTIFS(sequences!5:5,K$1) -> 25 | L6: =COUNTIFS(sequences!5:5,L$1) -> 26 | M6: =COUNTIFS(sequences!5:5,M$1) -> 6 | N6: =COUNTIFS(sequences!5:5,N$1) -> 9 | O6: =COUNTIFS(sequences!5:5,O$1) -> 13 | P6: =COUNTIFS(sequences!5:5,P$1) -> 16 | Q6: =COUNTIFS(sequences!5:5,Q$1) -> 29 | R6: =COUNTIFS(sequences!5:5,R$1) -> 33 | S6: =COUNTIFS(sequences!5:5,S$1) -> 11 | T6: =COUNTIFS(sequences!5:5,T$1) -> 38 | U6: =COUNTIFS(sequences!5:5,U$1) -> 21
A7: =MID(INDEX(sequences!$A$1:$AQI$60, ROW(X6), 1),1, 10) -> KST75586.1 | B7: =COUNTIFS(sequences!6:6,B$1) -> 12 | C7: =COUNTIFS(sequences!6:6,C$1) -> 18 | D7: =COUNTIFS(sequences!6:6,D$1) -> 17 | E7: =COUNTIFS(sequences!6:6,E$1) -> 19 | F7: =COUNTIFS(sequences!6:6,F$1) -> 7 | G7: =COUNTIFS(sequences!6:6,G$1) -> 8 | H7: =COUNTIFS(sequences!6:6,H$1) -> 5 | I7: =COUNTIFS(sequences!6:6,I$1) -> 2 | J7: =COUNTIFS(sequences!6:6,J$1) -> 2 | K7: =COUNTIFS(sequences!6:6,K$1) -> 11 | L7: =COUNTIFS(sequences!6:6,L$1) -> 6 | M7: =COUNTIFS(sequences!6:6,M$1) -> 2 | N7: =COUNTIFS(sequences!6:6,N$1) -> 3 | O7: =COUNTIFS(sequences!6:6,O$1) -> 3 | P7: =COUNTIFS(sequences!6:6,P$1) -> 2 | Q7: =COUNTIFS(sequences!6:6,Q$1) -> 7 | R7: =COUNTIFS(sequences!6:6,R$1) -> 12 | S7: =COUNTIFS(sequences!6:6,S$1) -> 3 | T7: =COUNTIFS(sequences!6:6,T$1) -> 13 | U7: =COUNTIFS(sequences!6:6,U$1) -> 8
A8: =MID(INDEX(sequences!$A$1:$AQI$60, ROW(X7), 1),1, 10) -> ANB87733.1 | B8: =COUNTIFS(sequences!7:7,B$1) -> 14 | C8: =COUNTIFS(sequences!7:7,C$1) -> 27 | D8: =COUNTIFS(sequences!7:7,D$1) -> 17 | E8: =COUNTIFS(sequences!7:7,E$1) -> 29 | F8: =COUNTIFS(sequences!7:7,F$1) -> 25 | G8: =COUNTIFS(sequences!7:7,G$1) -> 15 | H8: =COUNTIFS(sequences!7:7,H$1) -> 15 | I8: =COUNTIFS(sequences!7:7,I$1) -> 13 | J8: =COUNTIFS(sequences!7:7,J$1) -> 4 | K8: =COUNTIFS(sequences!7:7,K$1) -> 18 | L8: =COUNTIFS(sequences!7:7,L$1) -> 22 | M8: =COUNTIFS(sequences!7:7,M$1) -> 1 | N8: =COUNTIFS(sequences!7:7,N$1) -> 6 | O8: =COUNTIFS(sequences!7:7,O$1) -> 17 | P8: =COUNTIFS(sequences!7:7,P$1) -> 15 | Q8: =COUNTIFS(sequences!7:7,Q$1) -> 21 | R8: =COUNTIFS(sequences!7:7,R$1) -> 17 | S8: =COUNTIFS(sequences!7:7,S$1) -> 9 | T8: =COUNTIFS(sequences!7:7,T$1) -> 12 | U8: =COUNTIFS(sequences!7:7,U$1) -> 21
A9: =MID(INDEX(sequences!$A$1:$AQI$60, ROW(X8), 1),1, 10) -> AMW06251.1 | B9: =COUNTIFS(sequences!8:8,B$1) -> 33 | C9: =COUNTIFS(sequences!8:8,C$1) -> 50 | D9: =COUNTIFS(sequences!8:8,D$1) -> 26 | E9: =COUNTIFS(sequences!8:8,E$1) -> 41 | F9: =COUNTIFS(sequences!8:8,F$1) -> 19 | G9: =COUNTIFS(sequences!8:8,G$1) -> 40 | H9: =COUNTIFS(sequences!8:8,H$1) -> 21 | I9: =COUNTIFS(sequences!8:8,I$1) -> 18 | J9: =COUNTIFS(sequences!8:8,J$1) -> 3 | K9: =COUNTIFS(sequences!8:8,K$1) -> 23 | L9: =COUNTIFS(sequences!8:8,L$1) -> 20 | M9: =COUNTIFS(sequences!8:8,M$1) -> 2 | N9: =COUNTIFS(sequences!8:8,N$1) -> 10 | O9: =COUNTIFS(sequences!8:8,O$1) -> 13 | P9: =COUNTIFS(sequences!8:8,P$1) -> 21 | Q9: =COUNTIFS(sequences!8:8,Q$1) -> 16 | R9: =COUNTIFS(sequences!8:8,R$1) -> 29 | S9: =COUNTIFS(sequences!8:8,S$1) -> 15 | T9: =COUNTIFS(sequences!8:8,T$1) -> 35 | U9: =COUNTIFS(sequences!8:8,U$1) -> 18
A10: =MID(INDEX(sequences!$A$1:$AQI$60, ROW(X9), 1),1, 10) -> AAN67560.1 | B10: =COUNTIFS(sequences!9:9,B$1) -> 34 | C10: =COUNTIFS(sequences!9:9,C$1) -> 35 | D10: =COUNTIFS(sequences!9:9,D$1) -> 31 | E10: =COUNTIFS(sequences!9:9,E$1) -> 27 | F10: =COUNTIFS(sequences!9:9,F$1) -> 17 | G10: =COUNTIFS(sequences!9:9,G$1) -> 17 | H10: =COUNTIFS(sequences!9:9,H$1) -> 26 | I10: =COUNTIFS(sequences!9:9,I$1) -> 14 | J10: =COUNTIFS(sequences!9:9,J$1) -> 10 | K10: =COUNTIFS(sequences!9:9,K$1) -> 28 | L10: =COUNTIFS(sequences!9:9,L$1) -> 22 | M10: =COUNTIFS(sequences!9:9,M$1) -> 4 | N10: =COUNTIFS(sequences!9:9,N$1) -> 14 | O10: =COUNTIFS(sequences!9:9,O$1) -> 15 | P10: =COUNTIFS(sequences!9:9,P$1) -> 17 | Q10: =COUNTIFS(sequences!9:9,Q$1) -> 19 | R10: =COUNTIFS(sequences!9:9,R$1) -> 31 | S10: =COUNTIFS(sequences!9:9,S$1) -> 7 | T10: =COUNTIFS(sequences!9:9,T$1) -> 28 | U10: =COUNTIFS(sequences!9:9,U$1) -> 28
A11: =MID(INDEX(sequences!$A$1:$AQI$60, ROW(X10), 1),1, 10) -> BAK10117.1 | B11: =COUNTIFS(sequences!10:10,B$1) -> 62 | C11: =COUNTIFS(sequences!10:10,C$1) -> 57 | D11: =COUNTIFS(sequences!10:10,D$1) -> 44 | E11: =COUNTIFS(sequences!10:10,E$1) -> 88 | F11: =COUNTIFS(sequences!10:10,F$1) -> 41 | G11: =COUNTIFS(sequences!10:10,G$1) -> 50 | H11: =COUNTIFS(sequences!10:10,H$1) -> 36 | I11: =COUNTIFS(sequences!10:10,I$1) -> 31 | J11: =COUNTIFS(sequences!10:10,J$1) -> 19 | K11: =COUNTIFS(sequences!10:10,K$1) -> 32 | L11: =COUNTIFS(sequences!10:10,L$1) -> 37 | M11: =COUNTIFS(sequences!10:10,M$1) -> 9 | N11: =COUNTIFS(sequences!10:10,N$1) -> 12 | O11: =COUNTIFS(sequences!10:10,O$1) -> 20 | P11: =COUNTIFS(sequences!10:10,P$1) -> 47 | Q11: =COUNTIFS(sequences!10:10,Q$1) -> 26 | R11: =COUNTIFS(sequences!10:10,R$1) -> 70 | S11: =COUNTIFS(sequences!10:10,S$1) -> 18 | T11: =COUNTIFS(sequences!10:10,T$1) -> 46 | U11: =COUNTIFS(sequences!10:10,U$1) -> 57
A12: =MID(INDEX(sequences!$A$1:$AQI$60, ROW(X11), 1),1, 10) -> ALX14857.1 | B12: =COUNTIFS(sequences!11:11,B$1) -> 28 | C12: =COUNTIFS(sequences!11:11,C$1) -> 67 | D12: =COUNTIFS(sequences!11:11,D$1) -> 26 | E12: =COUNTIFS(sequences!11:11,E$1) -> 35 | F12: =COUNTIFS(sequences!11:11,F$1) -> 6 | G12: =COUNTIFS(sequences!11:11,G$1) -> 19 | H12: =COUNTIFS(sequences!11:11,H$1) -> 9 | I12: =COUNTIFS(sequences!11:11,I$1) -> 5 | J12: =COUNTIFS(sequences!11:11,J$1) -> 1 | K12: =COUNTIFS(sequences!11:11,K$1) -> 12 | L12: =COUNTIFS(sequences!11:11,L$1) -> 17 | M12: =COUNTIFS(sequences!11:11,M$1) -> 1 | N12: =COUNTIFS(sequences!11:11,N$1) -> 2 | O12: =COUNTIFS(sequences!11:11,O$1) -> 3 | P12: =COUNTIFS(sequences!11:11,P$1) -> 11 | Q12: =COUNTIFS(sequences!11:11,Q$1) -> 6 | R12: =COUNTIFS(sequences!11:11,R$1) -> 26 | S12: =COUNTIFS(sequences!11:11,S$1) -> 5 | T12: =COUNTIFS(sequences!11:11,T$1) -> 17 | U12: =COUNTIFS(sequences!11:11,U$1) -> 8
A13: =MID(INDEX(sequences!$A$1:$AQI$60, ROW(X12), 1),1, 10) -> AMW33787.1 | B13: =COUNTIFS(sequences!12:12,B$1) -> 11 | C13: =COUNTIFS(sequences!12:12,C$1) -> 24 | D13: =COUNTIFS(sequences!12:12,D$1) -> 37 | E13: =COUNTIFS(sequences!12:12,E$1) -> 23 | F13: =COUNTIFS(sequences!12:12,F$1) -> 24 | G13: =COUNTIFS(sequences!12:12,G$1) -> 17 | H13: =COUNTIFS(sequences!12:12,H$1) -> 6 | I13: =COUNTIFS(sequences!12:12,I$1) -> 17 | J13: =COUNTIFS(sequences!12:12,J$1) -> 0 | K13: =COUNTIFS(sequences!12:12,K$1) -> 17 | L13: =COUNTIFS(sequences!12:12,L$1) -> 15 | M13: =COUNTIFS(sequences!12:12,M$1) -> 4 | N13: =COUNTIFS(sequences!12:12,N$1) -> 11 | O13: =COUNTIFS(sequences!12:12,O$1) -> 16 | P13: =COUNTIFS(sequences!12:12,P$1) -> 5 | Q13: =COUNTIFS(sequences!12:12,Q$1) -> 33 | R13: =COUNTIFS(sequences!12:12,R$1) -> 11 | S13: =COUNTIFS(sequences!12:12,S$1) -> 4 | T13: =COUNTIFS(sequences!12:12,T$1) -> 14 | U13: =COUNTIFS(sequences!12:12,U$1) -> 26
A14: =MID(INDEX(sequences!$A$1:$AQI$60, ROW(X13), 1),1, 10) -> ALU96251.1 | B14: =COUNTIFS(sequences!13:13,B$1) -> 19 | C14: =COUNTIFS(sequences!13:13,C$1) -> 19 | D14: =COUNTIFS(sequences!13:13,D$1) -> 19 | E14: =COUNTIFS(sequences!13:13,E$1) -> 28 | F14: =COUNTIFS(sequences!13:13,F$1) -> 15 | G14: =COUNTIFS(sequences!13:13,G$1) -> 11 | H14: =COUNTIFS(sequences!13:13,H$1) -> 2 | I14: =COUNTIFS(sequences!13:13,I$1) -> 6 | J14: =COUNTIFS(sequences!13:13,J$1) -> 2 | K14: =COUNTIFS(sequences!13:13,K$1) -> 7 | L14: =COUNTIFS(sequences!13:13,L$1) -> 9 | M14: =COUNTIFS(sequences!13:13,M$1) -> 4 | N14: =COUNTIFS(sequences!13:13,N$1) -> 3 | O14: =COUNTIFS(sequences!13:13,O$1) -> 4 | P14: =COUNTIFS(sequences!13:13,P$1) -> 5 | Q14: =COUNTIFS(sequences!13:13,Q$1) -> 9 | R14: =COUNTIFS(sequences!13:13,R$1) -> 18 | S14: =COUNTIFS(sequences!13:13,S$1) -> 6 | T14: =COUNTIFS(sequences!13:13,T$1) -> 19 | U14: =COUNTIFS(sequences!13:13,U$1) -> 17
A15: =MID(INDEX(sequences!$A$1:$AQI$60, ROW(X14), 1),1, 10) -> ANE88985.1 | B15: =COUNTIFS(sequences!14:14,B$1) -> 55 | C15: =COUNTIFS(sequences!14:14,C$1) -> 57 | D15: =COUNTIFS(sequences!14:14,D$1) -> 47 | E15: =COUNTIFS(sequences!14:14,E$1) -> 34 | F15: =COUNTIFS(sequences!14:14,F$1) -> 19 | G15: =COUNTIFS(sequences!14:14,G$1) -> 16 | H15: =COUNTIFS(sequences!14:14,H$1) -> 17 | I15: =COUNTIFS(sequences!14:14,I$1) -> 36 | J15: =COUNTIFS(sequences!14:14,J$1) -> 4 | K15: =COUNTIFS(sequences!14:14,K$1) -> 42 | L15: =COUNTIFS(sequences!14:14,L$1) -> 48 | M15: =COUNTIFS(sequences!14:14,M$1) -> 0 | N15: =COUNTIFS(sequences!14:14,N$1) -> 4 | O15: =COUNTIFS(sequences!14:14,O$1) -> 35 | P15: =COUNTIFS(sequences!14:14,P$1) -> 20 | Q15: =COUNTIFS(sequences!14:14,Q$1) -> 48 | R15: =COUNTIFS(sequences!14:14,R$1) -> 10 | S15: =COUNTIFS(sequences!14:14,S$1) -> 9 | T15: =COUNTIFS(sequences!14:14,T$1) -> 41 | U15: =COUNTIFS(sequences!14:14,U$1) -> 23
A16: =MID(INDEX(sequences!$A$1:$AQI$60, ROW(X15), 1),1, 10) -> AMA72001.1 | B16: =COUNTIFS(sequences!15:15,B$1) -> 57 | C16: =COUNTIFS(sequences!15:15,C$1) -> 64 | D16: =COUNTIFS(sequences!15:15,D$1) -> 29 | E16: =COUNTIFS(sequences!15:15,E$1) -> 50 | F16: =COUNTIFS(sequences!15:15,F$1) -> 32 | G16: =COUNTIFS(sequences!15:15,G$1) -> 17 | H16: =COUNTIFS(sequences!15:15,H$1) -> 11 | I16: =COUNTIFS(sequences!15:15,I$1) -> 11 | J16: =COUNTIFS(sequences!15:15,J$1) -> 4 | K16: =COUNTIFS(sequences!15:15,K$1) -> 20 | L16: =COUNTIFS(sequences!15:15,L$1) -> 32 | M16: =COUNTIFS(sequences!15:15,M$1) -> 3 | N16: =COUNTIFS(sequences!15:15,N$1) -> 19 | O16: =COUNTIFS(sequences!15:15,O$1) -> 13 | P16: =COUNTIFS(sequences!15:15,P$1) -> 11 | Q16: =COUNTIFS(sequences!15:15,Q$1) -> 33 | R16: =COUNTIFS(sequences!15:15,R$1) -> 19 | S16: =COUNTIFS(sequences!15:15,S$1) -> 5 | T16: =COUNTIFS(sequences!15:15,T$1) -> 26 | U16: =COUNTIFS(sequences!15:15,U$1) -> 45
A17: =MID(INDEX(sequences!$A$1:$AQI$60, ROW(X16), 1),1, 10) -> AMW33074.1 | B17: =COUNTIFS(sequences!16:16,B$1) -> 46 | C17: =COUNTIFS(sequences!16:16,C$1) -> 23 | D17: =COUNTIFS(sequences!16:16,D$1) -> 48 | E17: =COUNTIFS(sequences!16:16,E$1) -> 52 | F17: =COUNTIFS(sequences!16:16,F$1) -> 41 | G17: =COUNTIFS(sequences!16:16,G$1) -> 25 | H17: =COUNTIFS(sequences!16:16,H$1) -> 32 | I17: =COUNTIFS(sequences!16:16,I$1) -> 40 | J17: =COUNTIFS(sequences!16:16,J$1) -> 24 | K17: =COUNTIFS(sequences!16:16,K$1) -> 43 | L17: =COUNTIFS(sequences!16:16,L$1) -> 43 | M17: =COUNTIFS(sequences!16:16,M$1) -> 2 | N17: =COUNTIFS(sequences!16:16,N$1) -> 13 | O17: =COUNTIFS(sequences!16:16,O$1) -> 54 | P17: =COUNTIFS(sequences!16:16,P$1) -> 20 | Q17: =COUNTIFS(sequences!16:16,Q$1) -> 40 | R17: =COUNTIFS(sequences!16:16,R$1) -> 17 | S17: =COUNTIFS(sequences!16:16,S$1) -> 10 | T17: =COUNTIFS(sequences!16:16,T$1) -> 43 | U17: =COUNTIFS(sequences!16:16,U$1) -> 27
A18: =MID(INDEX(sequences!$A$1:$AQI$60, ROW(X17), 1),1, 10) -> ALS80215.1 | B18: =COUNTIFS(sequences!17:17,B$1) -> 22 | C18: =COUNTIFS(sequences!17:17,C$1) -> 27 | D18: =COUNTIFS(sequences!17:17,D$1) -> 22 | E18: =COUNTIFS(sequences!17:17,E$1) -> 26 | F18: =COUNTIFS(sequences!17:17,F$1) -> 26 | G18: =COUNTIFS(sequences!17:17,G$1) -> 16 | H18: =COUNTIFS(sequences!17:17,H$1) -> 10 | I18: =COUNTIFS(sequences!17:17,I$1) -> 5 | J18: =COUNTIFS(sequences!17:17,J$1) -> 0 | K18: =COUNTIFS(sequences!17:17,K$1) -> 24 | L18: =COUNTIFS(sequences!17:17,L$1) -> 27 | M18: =COUNTIFS(sequences!17:17,M$1) -> 0 | N18: =COUNTIFS(sequences!17:17,N$1) -> 10 | O18: =COUNTIFS(sequences!17:17,O$1) -> 14 | P18: =COUNTIFS(sequences!17:17,P$1) -> 11 | Q18: =COUNTIFS(sequences!17:17,Q$1) -> 9 | R18: =COUNTIFS(sequences!17:17,R$1) -> 7 | S18: =COUNTIFS(sequences!17:17,S$1) -> 9 | T18: =COUNTIFS(sequences!17:17,T$1) -> 12 | U18: =COUNTIFS(sequences!17:17,U$1) -> 18
A19: =MID(INDEX(sequences!$A$1:$AQI$60, ROW(X18), 1),1, 10) -> AKM24736.1 | B19: =COUNTIFS(sequences!18:18,B$1) -> 35 | C19: =COUNTIFS(sequences!18:18,C$1) -> 57 | D19: =COUNTIFS(sequences!18:18,D$1) -> 20 | E19: =COUNTIFS(sequences!18:18,E$1) -> 53 | F19: =COUNTIFS(sequences!18:18,F$1) -> 20 | G19: =COUNTIFS(sequences!18:18,G$1) -> 23 | H19: =COUNTIFS(sequences!18:18,H$1) -> 19 | I19: =COUNTIFS(sequences!18:18,I$1) -> 10 | J19: =COUNTIFS(sequences!18:18,J$1) -> 7 | K19: =COUNTIFS(sequences!18:18,K$1) -> 20 | L19: =COUNTIFS(sequences!18:18,L$1) -> 17 | M19: =COUNTIFS(sequences!18:18,M$1) -> 4 | N19: =COUNTIFS(sequences!18:18,N$1) -> 11 | O19: =COUNTIFS(sequences!18:18,O$1) -> 7 | P19: =COUNTIFS(sequences!18:18,P$1) -> 22 | Q19: =COUNTIFS(sequences!18:18,Q$1) -> 5 | R19: =COUNTIFS(sequences!18:18,R$1) -> 44 | S19: =COUNTIFS(sequences!18:18,S$1) -> 19 | T19: =COUNTIFS(sequences!18:18,T$1) -> 34 | U19: =COUNTIFS(sequences!18:18,U$1) -> 27
A20: =MID(INDEX(sequences!$A$1:$AQI$60, ROW(X19), 1),1, 10) -> AHV36344.1 | B20: =COUNTIFS(sequences!19:19,B$1) -> 22 | C20: =COUNTIFS(sequences!19:19,C$1) -> 36 | D20: =COUNTIFS(sequences!19:19,D$1) -> 24 | E20: =COUNTIFS(sequences!19:19,E$1) -> 24 | F20: =COUNTIFS(sequences!19:19,F$1) -> 13 | G20: =COUNTIFS(sequences!19:19,G$1) -> 12 | H20: =COUNTIFS(sequences!19:19,H$1) -> 10 | I20: =COUNTIFS(sequences!19:19,I$1) -> 7 | J20: =COUNTIFS(sequences!19:19,J$1) -> 5 | K20: =COUNTIFS(sequences!19:19,K$1) -> 11 | L20: =COUNTIFS(sequences!19:19,L$1) -> 19 | M20: =COUNTIFS(sequences!19:19,M$1) -> 2 | N20: =COUNTIFS(sequences!19:19,N$1) -> 6 | O20: =COUNTIFS(sequences!19:19,O$1) -> 11 | P20: =COUNTIFS(sequences!19:19,P$1) -> 12 | Q20: =COUNTIFS(sequences!19:19,Q$1) -> 9 | R20: =COUNTIFS(sequences!19:19,R$1) -> 17 | S20: =COUNTIFS(sequences!19:19,S$1) -> 8 | T20: =COUNTIFS(sequences!19:19,T$1) -> 13 | U20: =COUNTIFS(sequences!19:19,U$1) -> 16
A21: =MID(INDEX(sequences!$A$1:$AQI$60, ROW(X20), 1),1, 10) -> AJH01048.1 | B21: =COUNTIFS(sequences!20:20,B$1) -> 31 | C21: =COUNTIFS(sequences!20:20,C$1) -> 49 | D21: =COUNTIFS(sequences!20:20,D$1) -> 41 | E21: =COUNTIFS(sequences!20:20,E$1) -> 29 | F21: =COUNTIFS(sequences!20:20,F$1) -> 31 | G21: =COUNTIFS(sequences!20:20,G$1) -> 17 | H21: =COUNTIFS(sequences!20:20,H$1) -> 12 | I21: =COUNTIFS(sequences!20:20,I$1) -> 8 | J21: =COUNTIFS(sequences!20:20,J$1) -> 0 | K21: =COUNTIFS(sequences!20:20,K$1) -> 15 | L21: =COUNTIFS(sequences!20:20,L$1) -> 13 | M21: =COUNTIFS(sequences!20:20,M$1) -> 3 | N21: =COUNTIFS(sequences!20:20,N$1) -> 9 | O21: =COUNTIFS(sequences!20:20,O$1) -> 22 | P21: =COUNTIFS(sequences!20:20,P$1) -> 4 | Q21: =COUNTIFS(sequences!20:20,Q$1) -> 33 | R21: =COUNTIFS(sequences!20:20,R$1) -> 11 | S21: =COUNTIFS(sequences!20:20,S$1) -> 4 | T21: =COUNTIFS(sequences!20:20,T$1) -> 28 | U21: =COUNTIFS(sequences!20:20,U$1) -> 29
A22: =MID(INDEX(sequences!$A$1:$AQI$60, ROW(X21), 1),1, 10) -> AAN68968.1 | B22: =COUNTIFS(sequences!21:21,B$1) -> 60 | C22: =COUNTIFS(sequences!21:21,C$1) -> 105 | D22: =COUNTIFS(sequences!21:21,D$1) -> 59 | E22: =COUNTIFS(sequences!21:21,E$1) -> 99 | F22: =COUNTIFS(sequences!21:21,F$1) -> 51 | G22: =COUNTIFS(sequences!21:21,G$1) -> 45 | H22: =COUNTIFS(sequences!21:21,H$1) -> 24 | I22: =COUNTIFS(sequences!21:21,I$1) -> 19 | J22: =COUNTIFS(sequences!21:21,J$1) -> 8 | K22: =COUNTIFS(sequences!21:21,K$1) -> 59 | L22: =COUNTIFS(sequences!21:21,L$1) -> 35 | M22: =COUNTIFS(sequences!21:21,M$1) -> 10 | N22: =COUNTIFS(sequences!21:21,N$1) -> 16 | O22: =COUNTIFS(sequences!21:21,O$1) -> 28 | P22: =COUNTIFS(sequences!21:21,P$1) -> 37 | Q22: =COUNTIFS(sequences!21:21,Q$1) -> 21 | R22: =COUNTIFS(sequences!21:21,R$1) -> 55 | S22: =COUNTIFS(sequences!21:21,S$1) -> 25 | T22: =COUNTIFS(sequences!21:21,T$1) -> 48 | U22: =COUNTIFS(sequences!21:21,U$1) -> 42
A23: =MID(INDEX(sequences!$A$1:$AQI$60, ROW(X22), 1),1, 10) -> AML51606.1 | B23: =COUNTIFS(sequences!22:22,B$1) -> 78 | C23: =COUNTIFS(sequences!22:22,C$1) -> 127 | D23: =COUNTIFS(sequences!22:22,D$1) -> 62 | E23: =COUNTIFS(sequences!22:22,E$1) -> 90 | F23: =COUNTIFS(sequences!22:22,F$1) -> 46 | G23: =COUNTIFS(sequences!22:22,G$1) -> 71 | H23: =COUNTIFS(sequences!22:22,H$1) -> 43 | I23: =COUNTIFS(sequences!22:22,I$1) -> 32 | J23: =COUNTIFS(sequences!22:22,J$1) -> 11 | K23: =COUNTIFS(sequences!22:22,K$1) -> 67 | L23: =COUNTIFS(sequences!22:22,L$1) -> 55 | M23: =COUNTIFS(sequences!22:22,M$1) -> 22 | N23: =COUNTIFS(sequences!22:22,N$1) -> 32 | O23: =COUNTIFS(sequences!22:22,O$1) -> 29 | P23: =COUNTIFS(sequences!22:22,P$1) -> 23 | Q23: =COUNTIFS(sequences!22:22,Q$1) -> 55 | R23: =COUNTIFS(sequences!22:22,R$1) -> 59 | S23: =COUNTIFS(sequences!22:22,S$1) -> 36 | T23: =COUNTIFS(sequences!22:22,T$1) -> 66 | U23: =COUNTIFS(sequences!22:22,U$1) -> 55
A24: =MID(INDEX(sequences!$A$1:$AQI$60, ROW(X23), 1),1, 10) -> ALQ89926.1 | B24: =COUNTIFS(sequences!23:23,B$1) -> 69 | C24: =COUNTIFS(sequences!23:23,C$1) -> 123 | D24: =COUNTIFS(sequences!23:23,D$1) -> 66 | E24: =COUNTIFS(sequences!23:23,E$1) -> 112 | F24: =COUNTIFS(sequences!23:23,F$1) -> 62 | G24: =COUNTIFS(sequences!23:23,G$1) -> 50 | H24: =COUNTIFS(sequences!23:23,H$1) -> 43 | I24: =COUNTIFS(sequences!23:23,I$1) -> 42 | J24: =COUNTIFS(sequences!23:23,J$1) -> 11 | K24: =COUNTIFS(sequences!23:23,K$1) -> 60 | L24: =COUNTIFS(sequences!23:23,L$1) -> 55 | M24: =COUNTIFS(sequences!23:23,M$1) -> 23 | N24: =COUNTIFS(sequences!23:23,N$1) -> 31 | O24: =COUNTIFS(sequences!23:23,O$1) -> 48 | P24: =COUNTIFS(sequences!23:23,P$1) -> 49 | Q24: =COUNTIFS(sequences!23:23,Q$1) -> 51 | R24: =COUNTIFS(sequences!23:23,R$1) -> 65 | S24: =COUNTIFS(sequences!23:23,S$1) -> 25 | T24: =COUNTIFS(sequences!23:23,T$1) -> 65 | U24: =COUNTIFS(sequences!23:23,U$1) -> 77
A25: =MID(INDEX(sequences!$A$1:$AQI$60, ROW(X24), 1),1, 10) -> AKC29168.1 | B25: =COUNTIFS(sequences!24:24,B$1) -> 38 | C25: =COUNTIFS(sequences!24:24,C$1) -> 27 | D25: =COUNTIFS(sequences!24:24,D$1) -> 26 | E25: =COUNTIFS(sequences!24:24,E$1) -> 44 | F25: =COUNTIFS(sequences!24:24,F$1) -> 46 | G25: =COUNTIFS(sequences!24:24,G$1) -> 18 | H25: =COUNTIFS(sequences!24:24,H$1) -> 27 | I25: =COUNTIFS(sequences!24:24,I$1) -> 31 | J25: =COUNTIFS(sequences!24:24,J$1) -> 6 | K25: =COUNTIFS(sequences!24:24,K$1) -> 32 | L25: =COUNTIFS(sequences!24:24,L$1) -> 43 | M25: =COUNTIFS(sequences!24:24,M$1) -> 2 | N25: =COUNTIFS(sequences!24:24,N$1) -> 8 | O25: =COUNTIFS(sequences!24:24,O$1) -> 38 | P25: =COUNTIFS(sequences!24:24,P$1) -> 16 | Q25: =COUNTIFS(sequences!24:24,Q$1) -> 49 | R25: =COUNTIFS(sequences!24:24,R$1) -> 8 | S25: =COUNTIFS(sequences!24:24,S$1) -> 13 | T25: =COUNTIFS(sequences!24:24,T$1) -> 37 | U25: =COUNTIFS(sequences!24:24,U$1) -> 27
A26: =MID(INDEX(sequences!$A$1:$AQI$60, ROW(X25), 1),1, 10) -> ANI97925.1 | B26: =COUNTIFS(sequences!25:25,B$1) -> 19 | C26: =COUNTIFS(sequences!25:25,C$1) -> 34 | D26: =COUNTIFS(sequences!25:25,D$1) -> 20 | E26: =COUNTIFS(sequences!25:25,E$1) -> 25 | F26: =COUNTIFS(sequences!25:25,F$1) -> 21 | G26: =COUNTIFS(sequences!25:25,G$1) -> 9 | H26: =COUNTIFS(sequences!25:25,H$1) -> 16 | I26: =COUNTIFS(sequences!25:25,I$1) -> 11 | J26: =COUNTIFS(sequences!25:25,J$1) -> 3 | K26: =COUNTIFS(sequences!25:25,K$1) -> 31 | L26: =COUNTIFS(sequences!25:25,L$1) -> 22 | M26: =COUNTIFS(sequences!25:25,M$1) -> 2 | N26: =COUNTIFS(sequences!25:25,N$1) -> 7 | O26: =COUNTIFS(sequences!25:25,O$1) -> 16 | P26: =COUNTIFS(sequences!25:25,P$1) -> 15 | Q26: =COUNTIFS(sequences!25:25,Q$1) -> 20 | R26: =COUNTIFS(sequences!25:25,R$1) -> 12 | S26: =COUNTIFS(sequences!25:25,S$1) -> 11 | T26: =COUNTIFS(sequences!25:25,T$1) -> 15 | U26: =COUNTIFS(sequences!25:25,U$1) -> 17
A27: =MID(INDEX(sequences!$A$1:$AQI$60, ROW(X26), 1),1, 10) -> ANE84582.1 | B27: =COUNTIFS(sequences!26:26,B$1) -> 16 | C27: =COUNTIFS(sequences!26:26,C$1) -> 16 | D27: =COUNTIFS(sequences!26:26,D$1) -> 18 | E27: =COUNTIFS(sequences!26:26,E$1) -> 28 | F27: =COUNTIFS(sequences!26:26,F$1) -> 18 | G27: =COUNTIFS(sequences!26:26,G$1) -> 14 | H27: =COUNTIFS(sequences!26:26,H$1) -> 13 | I27: =COUNTIFS(sequences!26:26,I$1) -> 14 | J27: =COUNTIFS(sequences!26:26,J$1) -> 6 | K27: =COUNTIFS(sequences!26:26,K$1) -> 12 | L27: =COUNTIFS(sequences!26:26,L$1) -> 11 | M27: =COUNTIFS(sequences!26:26,M$1) -> 2 | N27: =COUNTIFS(sequences!26:26,N$1) -> 7 | O27: =COUNTIFS(sequences!26:26,O$1) -> 16 | P27: =COUNTIFS(sequences!26:26,P$1) -> 10 | Q27: =COUNTIFS(sequences!26:26,Q$1) -> 20 | R27: =COUNTIFS(sequences!26:26,R$1) -> 12 | S27: =COUNTIFS(sequences!26:26,S$1) -> 5 | T27: =COUNTIFS(sequences!26:26,T$1) -> 18 | U27: =COUNTIFS(sequences!26:26,U$1) -> 24
A28: =MID(INDEX(sequences!$A$1:$AQI$60, ROW(X27), 1),1, 10) -> ALX08859.1 | B28: =COUNTIFS(sequences!27:27,B$1) -> 29 | C28: =COUNTIFS(sequences!27:27,C$1) -> 18 | D28: =COUNTIFS(sequences!27:27,D$1) -> 24 | E28: =COUNTIFS(sequences!27:27,E$1) -> 24 | F28: =COUNTIFS(sequences!27:27,F$1) -> 23 | G28: =COUNTIFS(sequences!27:27,G$1) -> 10 | H28: =COUNTIFS(sequences!27:27,H$1) -> 12 | I28: =COUNTIFS(sequences!27:27,I$1) -> 4 | J28: =COUNTIFS(sequences!27:27,J$1) -> 0 | K28: =COUNTIFS(sequences!27:27,K$1) -> 10 | L28: =COUNTIFS(sequences!27:27,L$1) -> 14 | M28: =COUNTIFS(sequences!27:27,M$1) -> 4 | N28: =COUNTIFS(sequences!27:27,N$1) -> 10 | O28: =COUNTIFS(sequences!27:27,O$1) -> 11 | P28: =COUNTIFS(sequences!27:27,P$1) -> 5 | Q28: =COUNTIFS(sequences!27:27,Q$1) -> 29 | R28: =COUNTIFS(sequences!27:27,R$1) -> 9 | S28: =COUNTIFS(sequences!27:27,S$1) -> 6 | T28: =COUNTIFS(sequences!27:27,T$1) -> 16 | U28: =COUNTIFS(sequences!27:27,U$1) -> 22
A29: =MID(INDEX(sequences!$A$1:$AQI$60, ROW(X28), 1),1, 10) -> ANW71083.1 | B29: =COUNTIFS(sequences!28:28,B$1) -> 37 | C29: =COUNTIFS(sequences!28:28,C$1) -> 39 | D29: =COUNTIFS(sequences!28:28,D$1) -> 27 | E29: =COUNTIFS(sequences!28:28,E$1) -> 32 | F29: =COUNTIFS(sequences!28:28,F$1) -> 27 | G29: =COUNTIFS(sequences!28:28,G$1) -> 18 | H29: =COUNTIFS(sequences!28:28,H$1) -> 10 | I29: =COUNTIFS(sequences!28:28,I$1) -> 17 | J29: =COUNTIFS(sequences!28:28,J$1) -> 2 | K29: =COUNTIFS(sequences!28:28,K$1) -> 23 | L29: =COUNTIFS(sequences!28:28,L$1) -> 24 | M29: =COUNTIFS(sequences!28:28,M$1) -> 6 | N29: =COUNTIFS(sequences!28:28,N$1) -> 4 | O29: =COUNTIFS(sequences!28:28,O$1) -> 8 | P29: =COUNTIFS(sequences!28:28,P$1) -> 18 | Q29: =COUNTIFS(sequences!28:28,Q$1) -> 20 | R29: =COUNTIFS(sequences!28:28,R$1) -> 18 | S29: =COUNTIFS(sequences!28:28,S$1) -> 6 | T29: =COUNTIFS(sequences!28:28,T$1) -> 26 | U29: =COUNTIFS(sequences!28:28,U$1) -> 26
A30: =MID(INDEX(sequences!$A$1:$AQI$60, ROW(X29), 1),1, 10) -> BAK10672.1 | B30: =COUNTIFS(sequences!29:29,B$1) -> 25 | C30: =COUNTIFS(sequences!29:29,C$1) -> 31 | D30: =COUNTIFS(sequences!29:29,D$1) -> 17 | E30: =COUNTIFS(sequences!29:29,E$1) -> 28 | F30: =COUNTIFS(sequences!29:29,F$1) -> 16 | G30: =COUNTIFS(sequences!29:29,G$1) -> 14 | H30: =COUNTIFS(sequences!29:29,H$1) -> 12 | I30: =COUNTIFS(sequences!29:29,I$1) -> 6 | J30: =COUNTIFS(sequences!29:29,J$1) -> 5 | K30: =COUNTIFS(sequences!29:29,K$1) -> 13 | L30: =COUNTIFS(sequences!29:29,L$1) -> 22 | M30: =COUNTIFS(sequences!29:29,M$1) -> 3 | N30: =COUNTIFS(sequences!29:29,N$1) -> 8 | O30: =COUNTIFS(sequences!29:29,O$1) -> 6 | P30: =COUNTIFS(sequences!29:29,P$1) -> 4 | Q30: =COUNTIFS(sequences!29:29,Q$1) -> 26 | R30: =COUNTIFS(sequences!29:29,R$1) -> 8 | S30: =COUNTIFS(sequences!29:29,S$1) -> 2 | T30: =COUNTIFS(sequences!29:29,T$1) -> 19 | U30: =COUNTIFS(sequences!29:29,U$1) -> 16
A31: =MID(INDEX(sequences!$A$1:$AQI$60, ROW(X30), 1),1, 10) -> AJH01087.1 | B31: =COUNTIFS(sequences!30:30,B$1) -> 31 | C31: =COUNTIFS(sequences!30:30,C$1) -> 39 | D31: =COUNTIFS(sequences!30:30,D$1) -> 45 | E31: =COUNTIFS(sequences!30:30,E$1) -> 33 | F31: =COUNTIFS(sequences!30:30,F$1) -> 41 | G31: =COUNTIFS(sequences!30:30,G$1) -> 18 | H31: =COUNTIFS(sequences!30:30,H$1) -> 12 | I31: =COUNTIFS(sequences!30:30,I$1) -> 11 | J31: =COUNTIFS(sequences!30:30,J$1) -> 0 | K31: =COUNTIFS(sequences!30:30,K$1) -> 18 | L31: =COUNTIFS(sequences!30:30,L$1) -> 35 | M31: =COUNTIFS(sequences!30:30,M$1) -> 8 | N31: =COUNTIFS(sequences!30:30,N$1) -> 18 | O31: =COUNTIFS(sequences!30:30,O$1) -> 31 | P31: =COUNTIFS(sequences!30:30,P$1) -> 7 | Q31: =COUNTIFS(sequences!30:30,Q$1) -> 38 | R31: =COUNTIFS(sequences!30:30,R$1) -> 15 | S31: =COUNTIFS(sequences!30:30,S$1) -> 9 | T31: =COUNTIFS(sequences!30:30,T$1) -> 23 | U31: =COUNTIFS(sequences!30:30,U$1) -> 39
A32: =MID(INDEX(sequences!$A$1:$AQI$60, ROW(X31), 1),1, 10) -> ALV05810.1 | B32: =COUNTIFS(sequences!31:31,B$1) -> 39 | C32: =COUNTIFS(sequences!31:31,C$1) -> 53 | D32: =COUNTIFS(sequences!31:31,D$1) -> 37 | E32: =COUNTIFS(sequences!31:31,E$1) -> 48 | F32: =COUNTIFS(sequences!31:31,F$1) -> 15 | G32: =COUNTIFS(sequences!31:31,G$1) -> 30 | H32: =COUNTIFS(sequences!31:31,H$1) -> 7 | I32: =COUNTIFS(sequences!31:31,I$1) -> 16 | J32: =COUNTIFS(sequences!31:31,J$1) -> 3 | K32: =COUNTIFS(sequences!31:31,K$1) -> 11 | L32: =COUNTIFS(sequences!31:31,L$1) -> 26 | M32: =COUNTIFS(sequences!31:31,M$1) -> 1 | N32: =COUNTIFS(sequences!31:31,N$1) -> 8 | O32: =COUNTIFS(sequences!31:31,O$1) -> 13 | P32: =COUNTIFS(sequences!31:31,P$1) -> 16 | Q32: =COUNTIFS(sequences!31:31,Q$1) -> 9 | R32: =COUNTIFS(sequences!31:31,R$1) -> 29 | S32: =COUNTIFS(sequences!31:31,S$1) -> 13 | T32: =COUNTIFS(sequences!31:31,T$1) -> 22 | U32: =COUNTIFS(sequences!31:31,U$1) -> 28
A33: =MID(INDEX(sequences!$A$1:$AQI$60, ROW(X32), 1),1, 10) -> AMA61679.1 | B33: =COUNTIFS(sequences!32:32,B$1) -> 13 | C33: =COUNTIFS(sequences!32:32,C$1) -> 23 | D33: =COUNTIFS(sequences!32:32,D$1) -> 17 | E33: =COUNTIFS(sequences!32:32,E$1) -> 22 | F33: =COUNTIFS(sequences!32:32,F$1) -> 12 | G33: =COUNTIFS(sequences!32:32,G$1) -> 10 | H33: =COUNTIFS(sequences!32:32,H$1) -> 7 | I33: =COUNTIFS(sequences!32:32,I$1) -> 5 | J33: =COUNTIFS(sequences!32:32,J$1) -> 6 | K33: =COUNTIFS(sequences!32:32,K$1) -> 10 | L33: =COUNTIFS(sequences!32:32,L$1) -> 11 | M33: =COUNTIFS(sequences!32:32,M$1) -> 2 | N33: =COUNTIFS(sequences!32:32,N$1) -> 6 | O33: =COUNTIFS(sequences!32:32,O$1) -> 4 | P33: =COUNTIFS(sequences!32:32,P$1) -> 10 | Q33: =COUNTIFS(sequences!32:32,Q$1) -> 2 | R33: =COUNTIFS(sequences!32:32,R$1) -> 23 | S33: =COUNTIFS(sequences!32:32,S$1) -> 8 | T33: =COUNTIFS(sequences!32:32,T$1) -> 15 | U33: =COUNTIFS(sequences!32:32,U$1) -> 12
A34: =MID(INDEX(sequences!$A$1:$AQI$60, ROW(X33), 1),1, 10) -> AMW05505.1 | B34: =COUNTIFS(sequences!33:33,B$1) -> 39 | C34: =COUNTIFS(sequences!33:33,C$1) -> 58 | D34: =COUNTIFS(sequences!33:33,D$1) -> 48 | E34: =COUNTIFS(sequences!33:33,E$1) -> 75 | F34: =COUNTIFS(sequences!33:33,F$1) -> 36 | G34: =COUNTIFS(sequences!33:33,G$1) -> 26 | H34: =COUNTIFS(sequences!33:33,H$1) -> 16 | I34: =COUNTIFS(sequences!33:33,I$1) -> 11 | J34: =COUNTIFS(sequences!33:33,J$1) -> 1 | K34: =COUNTIFS(sequences!33:33,K$1) -> 27 | L34: =COUNTIFS(sequences!33:33,L$1) -> 43 | M34: =COUNTIFS(sequences!33:33,M$1) -> 5 | N34: =COUNTIFS(sequences!33:33,N$1) -> 25 | O34: =COUNTIFS(sequences!33:33,O$1) -> 19 | P34: =COUNTIFS(sequences!33:33,P$1) -> 19 | Q34: =COUNTIFS(sequences!33:33,Q$1) -> 37 | R34: =COUNTIFS(sequences!33:33,R$1) -> 39 | S34: =COUNTIFS(sequences!33:33,S$1) -> 8 | T34: =COUNTIFS(sequences!33:33,T$1) -> 37 | U34: =COUNTIFS(sequences!33:33,U$1) -> 43
A35: =MID(INDEX(sequences!$A$1:$AQI$60, ROW(X34), 1),1, 10) -> ALX10035.1 | B35: =COUNTIFS(sequences!34:34,B$1) -> 6 | C35: =COUNTIFS(sequences!34:34,C$1) -> 20 | D35: =COUNTIFS(sequences!34:34,D$1) -> 10 | E35: =COUNTIFS(sequences!34:34,E$1) -> 14 | F35: =COUNTIFS(sequences!34:34,F$1) -> 18 | G35: =COUNTIFS(sequences!34:34,G$1) -> 6 | H35: =COUNTIFS(sequences!34:34,H$1) -> 11 | I35: =COUNTIFS(sequences!34:34,I$1) -> 12 | J35: =COUNTIFS(sequences!34:34,J$1) -> 2 | K35: =COUNTIFS(sequences!34:34,K$1) -> 10 | L35: =COUNTIFS(sequences!34:34,L$1) -> 9 | M35: =COUNTIFS(sequences!34:34,M$1) -> 1 | N35: =COUNTIFS(sequences!34:34,N$1) -> 8 | O35: =COUNTIFS(sequences!34:34,O$1) -> 16 | P35: =COUNTIFS(sequences!34:34,P$1) -> 2 | Q35: =COUNTIFS(sequences!34:34,Q$1) -> 19 | R35: =COUNTIFS(sequences!34:34,R$1) -> 5 | S35: =COUNTIFS(sequences!34:34,S$1) -> 5 | T35: =COUNTIFS(sequences!34:34,T$1) -> 9 | U35: =COUNTIFS(sequences!34:34,U$1) -> 21
A36: =MID(INDEX(sequences!$A$1:$AQI$60, ROW(X35), 1),1, 10) -> ANF53595.1 | B36: =COUNTIFS(sequences!35:35,B$1) -> 26 | C36: =COUNTIFS(sequences!35:35,C$1) -> 37 | D36: =COUNTIFS(sequences!35:35,D$1) -> 34 | E36: =COUNTIFS(sequences!35:35,E$1) -> 28 | F36: =COUNTIFS(sequences!35:35,F$1) -> 16 | G36: =COUNTIFS(sequences!35:35,G$1) -> 15 | H36: =COUNTIFS(sequences!35:35,H$1) -> 10 | I36: =COUNTIFS(sequences!35:35,I$1) -> 5 | J36: =COUNTIFS(sequences!35:35,J$1) -> 1 | K36: =COUNTIFS(sequences!35:35,K$1) -> 7 | L36: =COUNTIFS(sequences!35:35,L$1) -> 13 | M36: =COUNTIFS(sequences!35:35,M$1) -> 2 | N36: =COUNTIFS(sequences!35:35,N$1) -> 7 | O36: =COUNTIFS(sequences!35:35,O$1) -> 11 | P36: =COUNTIFS(sequences!35:35,P$1) -> 9 | Q36: =COUNTIFS(sequences!35:35,Q$1) -> 5 | R36: =COUNTIFS(sequences!35:35,R$1) -> 27 | S36: =COUNTIFS(sequences!35:35,S$1) -> 6 | T36: =COUNTIFS(sequences!35:35,T$1) -> 19 | U36: =COUNTIFS(sequences!35:35,U$1) -> 20
A37: =MID(INDEX(sequences!$A$1:$AQI$60, ROW(X36), 1),1, 10) -> AMA74783.1 | B37: =COUNTIFS(sequences!36:36,B$1) -> 52 | C37: =COUNTIFS(sequences!36:36,C$1) -> 68 | D37: =COUNTIFS(sequences!36:36,D$1) -> 61 | E37: =COUNTIFS(sequences!36:36,E$1) -> 98 | F37: =COUNTIFS(sequences!36:36,F$1) -> 55 | G37: =COUNTIFS(sequences!36:36,G$1) -> 33 | H37: =COUNTIFS(sequences!36:36,H$1) -> 28 | I37: =COUNTIFS(sequences!36:36,I$1) -> 32 | J37: =COUNTIFS(sequences!36:36,J$1) -> 7 | K37: =COUNTIFS(sequences!36:36,K$1) -> 45 | L37: =COUNTIFS(sequences!36:36,L$1) -> 47 | M37: =COUNTIFS(sequences!36:36,M$1) -> 2 | N37: =COUNTIFS(sequences!36:36,N$1) -> 24 | O37: =COUNTIFS(sequences!36:36,O$1) -> 31 | P37: =COUNTIFS(sequences!36:36,P$1) -> 27 | Q37: =COUNTIFS(sequences!36:36,Q$1) -> 62 | R37: =COUNTIFS(sequences!36:36,R$1) -> 49 | S37: =COUNTIFS(sequences!36:36,S$1) -> 19 | T37: =COUNTIFS(sequences!36:36,T$1) -> 51 | U37: =COUNTIFS(sequences!36:36,U$1) -> 90
A38: =MID(INDEX(sequences!$A$1:$AQI$60, ROW(X37), 1),1, 10) -> AMO53345.1 | B38: =COUNTIFS(sequences!37:37,B$1) -> 12 | C38: =COUNTIFS(sequences!37:37,C$1) -> 12 | D38: =COUNTIFS(sequences!37:37,D$1) -> 10 | E38: =COUNTIFS(sequences!37:37,E$1) -> 12 | F38: =COUNTIFS(sequences!37:37,F$1) -> 11 | G38: =COUNTIFS(sequences!37:37,G$1) -> 4 | H38: =COUNTIFS(sequences!37:37,H$1) -> 4 | I38: =COUNTIFS(sequences!37:37,I$1) -> 10 | J38: =COUNTIFS(sequences!37:37,J$1) -> 2 | K38: =COUNTIFS(sequences!37:37,K$1) -> 8 | L38: =COUNTIFS(sequences!37:37,L$1) -> 8 | M38: =COUNTIFS(sequences!37:37,M$1) -> 2 | N38: =COUNTIFS(sequences!37:37,N$1) -> 5 | O38: =COUNTIFS(sequences!37:37,O$1) -> 4 | P38: =COUNTIFS(sequences!37:37,P$1) -> 15 | Q38: =COUNTIFS(sequences!37:37,Q$1) -> 10 | R38: =COUNTIFS(sequences!37:37,R$1) -> 2 | S38: =COUNTIFS(sequences!37:37,S$1) -> 4 | T38: =COUNTIFS(sequences!37:37,T$1) -> 9 | U38: =COUNTIFS(sequences!37:37,U$1) -> 12
A39: =MID(INDEX(sequences!$A$1:$AQI$60, ROW(X38), 1),1, 10) -> ANW71455.1 | B39: =COUNTIFS(sequences!38:38,B$1) -> 18 | C39: =COUNTIFS(sequences!38:38,C$1) -> 33 | D39: =COUNTIFS(sequences!38:38,D$1) -> 28 | E39: =COUNTIFS(sequences!38:38,E$1) -> 30 | F39: =COUNTIFS(sequences!38:38,F$1) -> 10 | G39: =COUNTIFS(sequences!38:38,G$1) -> 11 | H39: =COUNTIFS(sequences!38:38,H$1) -> 10 | I39: =COUNTIFS(sequences!38:38,I$1) -> 7 | J39: =COUNTIFS(sequences!38:38,J$1) -> 2 | K39: =COUNTIFS(sequences!38:38,K$1) -> 8 | L39: =COUNTIFS(sequences!38:38,L$1) -> 10 | M39: =COUNTIFS(sequences!38:38,M$1) -> 2 | N39: =COUNTIFS(sequences!38:38,N$1) -> 1 | O39: =COUNTIFS(sequences!38:38,O$1) -> 12 | P39: =COUNTIFS(sequences!38:38,P$1) -> 12 | Q39: =COUNTIFS(sequences!38:38,Q$1) -> 16 | R39: =COUNTIFS(sequences!38:38,R$1) -> 21 | S39: =COUNTIFS(sequences!38:38,S$1) -> 5 | T39: =COUNTIFS(sequences!38:38,T$1) -> 19 | U39: =COUNTIFS(sequences!38:38,U$1) -> 22
A40: =MID(INDEX(sequences!$A$1:$AQI$60, ROW(X39), 1),1, 10) -> ALV13767.1 | B40: =COUNTIFS(sequences!39:39,B$1) -> 46 | C40: =COUNTIFS(sequences!39:39,C$1) -> 51 | D40: =COUNTIFS(sequences!39:39,D$1) -> 38 | E40: =COUNTIFS(sequences!39:39,E$1) -> 24 | F40: =COUNTIFS(sequences!39:39,F$1) -> 27 | G40: =COUNTIFS(sequences!39:39,G$1) -> 12 | H40: =COUNTIFS(sequences!39:39,H$1) -> 12 | I40: =COUNTIFS(sequences!39:39,I$1) -> 9 | J40: =COUNTIFS(sequences!39:39,J$1) -> 1 | K40: =COUNTIFS(sequences!39:39,K$1) -> 22 | L40: =COUNTIFS(sequences!39:39,L$1) -> 14 | M40: =COUNTIFS(sequences!39:39,M$1) -> 1 | N40: =COUNTIFS(sequences!39:39,N$1) -> 9 | O40: =COUNTIFS(sequences!39:39,O$1) -> 17 | P40: =COUNTIFS(sequences!39:39,P$1) -> 11 | Q40: =COUNTIFS(sequences!39:39,Q$1) -> 21 | R40: =COUNTIFS(sequences!39:39,R$1) -> 12 | S40: =COUNTIFS(sequences!39:39,S$1) -> 11 | T40: =COUNTIFS(sequences!39:39,T$1) -> 24 | U40: =COUNTIFS(sequences!39:39,U$1) -> 20
A41: =MID(INDEX(sequences!$A$1:$AQI$60, ROW(X40), 1),1, 10) -> AKC28808.1 | B41: =COUNTIFS(sequences!40:40,B$1) -> 111 | C41: =COUNTIFS(sequences!40:40,C$1) -> 75 | D41: =COUNTIFS(sequences!40:40,D$1) -> 71 | E41: =COUNTIFS(sequences!40:40,E$1) -> 78 | F41: =COUNTIFS(sequences!40:40,F$1) -> 62 | G41: =COUNTIFS(sequences!40:40,G$1) -> 37 | H41: =COUNTIFS(sequences!40:40,H$1) -> 46 | I41: =COUNTIFS(sequences!40:40,I$1) -> 51 | J41: =COUNTIFS(sequences!40:40,J$1) -> 15 | K41: =COUNTIFS(sequences!40:40,K$1) -> 99 | L41: =COUNTIFS(sequences!40:40,L$1) -> 86 | M41: =COUNTIFS(sequences!40:40,M$1) -> 0 | N41: =COUNTIFS(sequences!40:40,N$1) -> 8 | O41: =COUNTIFS(sequences!40:40,O$1) -> 105 | P41: =COUNTIFS(sequences!40:40,P$1) -> 37 | Q41: =COUNTIFS(sequences!40:40,Q$1) -> 63 | R41: =COUNTIFS(sequences!40:40,R$1) -> 39 | S41: =COUNTIFS(sequences!40:40,S$1) -> 2 | T41: =COUNTIFS(sequences!40:40,T$1) -> 47 | U41: =COUNTIFS(sequences!40:40,U$1) -> 36
A42: =MID(INDEX(sequences!$A$1:$AQI$60, ROW(X41), 1),1, 10) -> ANS42615.1 | B42: =COUNTIFS(sequences!41:41,B$1) -> 15 | C42: =COUNTIFS(sequences!41:41,C$1) -> 37 | D42: =COUNTIFS(sequences!41:41,D$1) -> 25 | E42: =COUNTIFS(sequences!41:41,E$1) -> 29 | F42: =COUNTIFS(sequences!41:41,F$1) -> 22 | G42: =COUNTIFS(sequences!41:41,G$1) -> 20 | H42: =COUNTIFS(sequences!41:41,H$1) -> 11 | I42: =COUNTIFS(sequences!41:41,I$1) -> 12 | J42: =COUNTIFS(sequences!41:41,J$1) -> 5 | K42: =COUNTIFS(sequences!41:41,K$1) -> 15 | L42: =COUNTIFS(sequences!41:41,L$1) -> 17 | M42: =COUNTIFS(sequences!41:41,M$1) -> 2 | N42: =COUNTIFS(sequences!41:41,N$1) -> 2 | O42: =COUNTIFS(sequences!41:41,O$1) -> 16 | P42: =COUNTIFS(sequences!41:41,P$1) -> 17 | Q42: =COUNTIFS(sequences!41:41,Q$1) -> 16 | R42: =COUNTIFS(sequences!41:41,R$1) -> 17 | S42: =COUNTIFS(sequences!41:41,S$1) -> 5 | T42: =COUNTIFS(sequences!41:41,T$1) -> 14 | U42: =COUNTIFS(sequences!41:41,U$1) -> 16
A43: =MID(INDEX(sequences!$A$1:$AQI$60, ROW(X42), 1),1, 10) -> ALU89561.1 | B43: =COUNTIFS(sequences!42:42,B$1) -> 46 | C43: =COUNTIFS(sequences!42:42,C$1) -> 28 | D43: =COUNTIFS(sequences!42:42,D$1) -> 36 | E43: =COUNTIFS(sequences!42:42,E$1) -> 24 | F43: =COUNTIFS(sequences!42:42,F$1) -> 37 | G43: =COUNTIFS(sequences!42:42,G$1) -> 19 | H43: =COUNTIFS(sequences!42:42,H$1) -> 19 | I43: =COUNTIFS(sequences!42:42,I$1) -> 23 | J43: =COUNTIFS(sequences!42:42,J$1) -> 9 | K43: =COUNTIFS(sequences!42:42,K$1) -> 29 | L43: =COUNTIFS(sequences!42:42,L$1) -> 23 | M43: =COUNTIFS(sequences!42:42,M$1) -> 6 | N43: =COUNTIFS(sequences!42:42,N$1) -> 14 | O43: =COUNTIFS(sequences!42:42,O$1) -> 15 | P43: =COUNTIFS(sequences!42:42,P$1) -> 15 | Q43: =COUNTIFS(sequences!42:42,Q$1) -> 39 | R43: =COUNTIFS(sequences!42:42,R$1) -> 21 | S43: =COUNTIFS(sequences!42:42,S$1) -> 14 | T43: =COUNTIFS(sequences!42:42,T$1) -> 34 | U43: =COUNTIFS(sequences!42:42,U$1) -> 32
A44: =MID(INDEX(sequences!$A$1:$AQI$60, ROW(X43), 1),1, 10) -> ANK77050.1 | B44: =COUNTIFS(sequences!43:43,B$1) -> 48 | C44: =COUNTIFS(sequences!43:43,C$1) -> 67 | D44: =COUNTIFS(sequences!43:43,D$1) -> 32 | E44: =COUNTIFS(sequences!43:43,E$1) -> 48 | F44: =COUNTIFS(sequences!43:43,F$1) -> 19 | G44: =COUNTIFS(sequences!43:43,G$1) -> 22 | H44: =COUNTIFS(sequences!43:43,H$1) -> 18 | I44: =COUNTIFS(sequences!43:43,I$1) -> 10 | J44: =COUNTIFS(sequences!43:43,J$1) -> 3 | K44: =COUNTIFS(sequences!43:43,K$1) -> 20 | L44: =COUNTIFS(sequences!43:43,L$1) -> 19 | M44: =COUNTIFS(sequences!43:43,M$1) -> 7 | N44: =COUNTIFS(sequences!43:43,N$1) -> 4 | O44: =COUNTIFS(sequences!43:43,O$1) -> 11 | P44: =COUNTIFS(sequences!43:43,P$1) -> 10 | Q44: =COUNTIFS(sequences!43:43,Q$1) -> 12 | R44: =COUNTIFS(sequences!43:43,R$1) -> 27 | S44: =COUNTIFS(sequences!43:43,S$1) -> 8 | T44: =COUNTIFS(sequences!43:43,T$1) -> 23 | U44: =COUNTIFS(sequences!43:43,U$1) -> 25
A45: =MID(INDEX(sequences!$A$1:$AQI$60, ROW(X44), 1),1, 10) -> ALX12233.1 | B45: =COUNTIFS(sequences!44:44,B$1) -> 21 | C45: =COUNTIFS(sequences!44:44,C$1) -> 32 | D45: =COUNTIFS(sequences!44:44,D$1) -> 28 | E45: =COUNTIFS(sequences!44:44,E$1) -> 29 | F45: =COUNTIFS(sequences!44:44,F$1) -> 15 | G45: =COUNTIFS(sequences!44:44,G$1) -> 19 | H45: =COUNTIFS(sequences!44:44,H$1) -> 10 | I45: =COUNTIFS(sequences!44:44,I$1) -> 11 | J45: =COUNTIFS(sequences!44:44,J$1) -> 1 | K45: =COUNTIFS(sequences!44:44,K$1) -> 14 | L45: =COUNTIFS(sequences!44:44,L$1) -> 11 | M45: =COUNTIFS(sequences!44:44,M$1) -> 3 | N45: =COUNTIFS(sequences!44:44,N$1) -> 5 | O45: =COUNTIFS(sequences!44:44,O$1) -> 3 | P45: =COUNTIFS(sequences!44:44,P$1) -> 8 | Q45: =COUNTIFS(sequences!44:44,Q$1) -> 21 | R45: =COUNTIFS(sequences!44:44,R$1) -> 13 | S45: =COUNTIFS(sequences!44:44,S$1) -> 7 | T45: =COUNTIFS(sequences!44:44,T$1) -> 15 | U45: =COUNTIFS(sequences!44:44,U$1) -> 27
A46: =MID(INDEX(sequences!$A$1:$AQI$60, ROW(X45), 1),1, 10) -> BAC72980.1 | B46: =COUNTIFS(sequences!45:45,B$1) -> 61 | C46: =COUNTIFS(sequences!45:45,C$1) -> 62 | D46: =COUNTIFS(sequences!45:45,D$1) -> 43 | E46: =COUNTIFS(sequences!45:45,E$1) -> 47 | F46: =COUNTIFS(sequences!45:45,F$1) -> 18 | G46: =COUNTIFS(sequences!45:45,G$1) -> 35 | H46: =COUNTIFS(sequences!45:45,H$1) -> 9 | I46: =COUNTIFS(sequences!45:45,I$1) -> 27 | J46: =COUNTIFS(sequences!45:45,J$1) -> 12 | K46: =COUNTIFS(sequences!45:45,K$1) -> 26 | L46: =COUNTIFS(sequences!45:45,L$1) -> 36 | M46: =COUNTIFS(sequences!45:45,M$1) -> 2 | N46: =COUNTIFS(sequences!45:45,N$1) -> 5 | O46: =COUNTIFS(sequences!45:45,O$1) -> 6 | P46: =COUNTIFS(sequences!45:45,P$1) -> 19 | Q46: =COUNTIFS(sequences!45:45,Q$1) -> 16 | R46: =COUNTIFS(sequences!45:45,R$1) -> 38 | S46: =COUNTIFS(sequences!45:45,S$1) -> 13 | T46: =COUNTIFS(sequences!45:45,T$1) -> 35 | U46: =COUNTIFS(sequences!45:45,U$1) -> 18
A47: =MID(INDEX(sequences!$A$1:$AQI$60, ROW(X46), 1),1, 10) -> AHJ75203.1 | B47: =COUNTIFS(sequences!46:46,B$1) -> 10 | C47: =COUNTIFS(sequences!46:46,C$1) -> 20 | D47: =COUNTIFS(sequences!46:46,D$1) -> 6 | E47: =COUNTIFS(sequences!46:46,E$1) -> 22 | F47: =COUNTIFS(sequences!46:46,F$1) -> 7 | G47: =COUNTIFS(sequences!46:46,G$1) -> 16 | H47: =COUNTIFS(sequences!46:46,H$1) -> 10 | I47: =COUNTIFS(sequences!46:46,I$1) -> 3 | J47: =COUNTIFS(sequences!46:46,J$1) -> 5 | K47: =COUNTIFS(sequences!46:46,K$1) -> 10 | L47: =COUNTIFS(sequences!46:46,L$1) -> 10 | M47: =COUNTIFS(sequences!46:46,M$1) -> 1 | N47: =COUNTIFS(sequences!46:46,N$1) -> 1 | O47: =COUNTIFS(sequences!46:46,O$1) -> 1 | P47: =COUNTIFS(sequences!46:46,P$1) -> 15 | Q47: =COUNTIFS(sequences!46:46,Q$1) -> 4 | R47: =COUNTIFS(sequences!46:46,R$1) -> 17 | S47: =COUNTIFS(sequences!46:46,S$1) -> 5 | T47: =COUNTIFS(sequences!46:46,T$1) -> 6 | U47: =COUNTIFS(sequences!46:46,U$1) -> 6
A48: =MID(INDEX(sequences!$A$1:$AQI$60, ROW(X47), 1),1, 10) -> ALV08439.1 | B48: =COUNTIFS(sequences!47:47,B$1) -> 25 | C48: =COUNTIFS(sequences!47:47,C$1) -> 59 | D48: =COUNTIFS(sequences!47:47,D$1) -> 24 | E48: =COUNTIFS(sequences!47:47,E$1) -> 38 | F48: =COUNTIFS(sequences!47:47,F$1) -> 10 | G48: =COUNTIFS(sequences!47:47,G$1) -> 18 | H48: =COUNTIFS(sequences!47:47,H$1) -> 4 | I48: =COUNTIFS(sequences!47:47,I$1) -> 4 | J48: =COUNTIFS(sequences!47:47,J$1) -> 2 | K48: =COUNTIFS(sequences!47:47,K$1) -> 15 | L48: =COUNTIFS(sequences!47:47,L$1) -> 16 | M48: =COUNTIFS(sequences!47:47,M$1) -> 0 | N48: =COUNTIFS(sequences!47:47,N$1) -> 7 | O48: =COUNTIFS(sequences!47:47,O$1) -> 5 | P48: =COUNTIFS(sequences!47:47,P$1) -> 17 | Q48: =COUNTIFS(sequences!47:47,Q$1) -> 1 | R48: =COUNTIFS(sequences!47:47,R$1) -> 25 | S48: =COUNTIFS(sequences!47:47,S$1) -> 6 | T48: =COUNTIFS(sequences!47:47,T$1) -> 9 | U48: =COUNTIFS(sequences!47:47,U$1) -> 12
A49: =MID(INDEX(sequences!$A$1:$AQI$60, ROW(X48), 1),1, 10) -> KST73321.1 | B49: =COUNTIFS(sequences!48:48,B$1) -> 67 | C49: =COUNTIFS(sequences!48:48,C$1) -> 95 | D49: =COUNTIFS(sequences!48:48,D$1) -> 43 | E49: =COUNTIFS(sequences!48:48,E$1) -> 66 | F49: =COUNTIFS(sequences!48:48,F$1) -> 18 | G49: =COUNTIFS(sequences!48:48,G$1) -> 39 | H49: =COUNTIFS(sequences!48:48,H$1) -> 32 | I49: =COUNTIFS(sequences!48:48,I$1) -> 14 | J49: =COUNTIFS(sequences!48:48,J$1) -> 23 | K49: =COUNTIFS(sequences!48:48,K$1) -> 38 | L49: =COUNTIFS(sequences!48:48,L$1) -> 39 | M49: =COUNTIFS(sequences!48:48,M$1) -> 2 | N49: =COUNTIFS(sequences!48:48,N$1) -> 12 | O49: =COUNTIFS(sequences!48:48,O$1) -> 25 | P49: =COUNTIFS(sequences!48:48,P$1) -> 26 | Q49: =COUNTIFS(sequences!48:48,Q$1) -> 34 | R49: =COUNTIFS(sequences!48:48,R$1) -> 41 | S49: =COUNTIFS(sequences!48:48,S$1) -> 20 | T49: =COUNTIFS(sequences!48:48,T$1) -> 53 | U49: =COUNTIFS(sequences!48:48,U$1) -> 40
A50: =MID(INDEX(sequences!$A$1:$AQI$60, ROW(X49), 1),1, 10) -> ALV23621.1 | B50: =COUNTIFS(sequences!49:49,B$1) -> 15 | C50: =COUNTIFS(sequences!49:49,C$1) -> 11 | D50: =COUNTIFS(sequences!49:49,D$1) -> 14 | E50: =COUNTIFS(sequences!49:49,E$1) -> 34 | F50: =COUNTIFS(sequences!49:49,F$1) -> 50 | G50: =COUNTIFS(sequences!49:49,G$1) -> 10 | H50: =COUNTIFS(sequences!49:49,H$1) -> 19 | I50: =COUNTIFS(sequences!49:49,I$1) -> 11 | J50: =COUNTIFS(sequences!49:49,J$1) -> 0 | K50: =COUNTIFS(sequences!49:49,K$1) -> 34 | L50: =COUNTIFS(sequences!49:49,L$1) -> 19 | M50: =COUNTIFS(sequences!49:49,M$1) -> 0 | N50: =COUNTIFS(sequences!49:49,N$1) -> 5 | O50: =COUNTIFS(sequences!49:49,O$1) -> 29 | P50: =COUNTIFS(sequences!49:49,P$1) -> 9 | Q50: =COUNTIFS(sequences!49:49,Q$1) -> 37 | R50: =COUNTIFS(sequences!49:49,R$1) -> 7 | S50: =COUNTIFS(sequences!49:49,S$1) -> 3 | T50: =COUNTIFS(sequences!49:49,T$1) -> 25 | U50: =COUNTIFS(sequences!49:49,U$1) -> 23
A51: =MID(INDEX(sequences!$A$1:$AQI$60, ROW(X50), 1),1, 10) -> AHR76694.1 | B51: =COUNTIFS(sequences!50:50,B$1) -> 49 | C51: =COUNTIFS(sequences!50:50,C$1) -> 58 | D51: =COUNTIFS(sequences!50:50,D$1) -> 49 | E51: =COUNTIFS(sequences!50:50,E$1) -> 61 | F51: =COUNTIFS(sequences!50:50,F$1) -> 50 | G51: =COUNTIFS(sequences!50:50,G$1) -> 36 | H51: =COUNTIFS(sequences!50:50,H$1) -> 28 | I51: =COUNTIFS(sequences!50:50,I$1) -> 21 | J51: =COUNTIFS(sequences!50:50,J$1) -> 10 | K51: =COUNTIFS(sequences!50:50,K$1) -> 41 | L51: =COUNTIFS(sequences!50:50,L$1) -> 25 | M51: =COUNTIFS(sequences!50:50,M$1) -> 12 | N51: =COUNTIFS(sequences!50:50,N$1) -> 7 | O51: =COUNTIFS(sequences!50:50,O$1) -> 29 | P51: =COUNTIFS(sequences!50:50,P$1) -> 20 | Q51: =COUNTIFS(sequences!50:50,Q$1) -> 21 | R51: =COUNTIFS(sequences!50:50,R$1) -> 48 | S51: =COUNTIFS(sequences!50:50,S$1) -> 19 | T51: =COUNTIFS(sequences!50:50,T$1) -> 39 | U51: =COUNTIFS(sequences!50:50,U$1) -> 36
A52: =MID(INDEX(sequences!$A$1:$AQI$60, ROW(X51), 1),1, 10) -> ALV08113.1 | B52: =COUNTIFS(sequences!51:51,B$1) -> 50 | C52: =COUNTIFS(sequences!51:51,C$1) -> 63 | D52: =COUNTIFS(sequences!51:51,D$1) -> 30 | E52: =COUNTIFS(sequences!51:51,E$1) -> 38 | F52: =COUNTIFS(sequences!51:51,F$1) -> 19 | G52: =COUNTIFS(sequences!51:51,G$1) -> 35 | H52: =COUNTIFS(sequences!51:51,H$1) -> 25 | I52: =COUNTIFS(sequences!51:51,I$1) -> 13 | J52: =COUNTIFS(sequences!51:51,J$1) -> 26 | K52: =COUNTIFS(sequences!51:51,K$1) -> 22 | L52: =COUNTIFS(sequences!51:51,L$1) -> 17 | M52: =COUNTIFS(sequences!51:51,M$1) -> 6 | N52: =COUNTIFS(sequences!51:51,N$1) -> 11 | O52: =COUNTIFS(sequences!51:51,O$1) -> 12 | P52: =COUNTIFS(sequences!51:51,P$1) -> 30 | Q52: =COUNTIFS(sequences!51:51,Q$1) -> 7 | R52: =COUNTIFS(sequences!51:51,R$1) -> 31 | S52: =COUNTIFS(sequences!51:51,S$1) -> 15 | T52: =COUNTIFS(sequences!51:51,T$1) -> 31 | U52: =COUNTIFS(sequences!51:51,U$1) -> 25
A53: =MID(INDEX(sequences!$A$1:$AQI$60, ROW(X52), 1),1, 10) -> ALX09866.1 | B53: =COUNTIFS(sequences!52:52,B$1) -> 54 | C53: =COUNTIFS(sequences!52:52,C$1) -> 35 | D53: =COUNTIFS(sequences!52:52,D$1) -> 45 | E53: =COUNTIFS(sequences!52:52,E$1) -> 45 | F53: =COUNTIFS(sequences!52:52,F$1) -> 41 | G53: =COUNTIFS(sequences!52:52,G$1) -> 32 | H53: =COUNTIFS(sequences!52:52,H$1) -> 46 | I53: =COUNTIFS(sequences!52:52,I$1) -> 55 | J53: =COUNTIFS(sequences!52:52,J$1) -> 21 | K53: =COUNTIFS(sequences!52:52,K$1) -> 39 | L53: =COUNTIFS(sequences!52:52,L$1) -> 26 | M53: =COUNTIFS(sequences!52:52,M$1) -> 6 | N53: =COUNTIFS(sequences!52:52,N$1) -> 28 | O53: =COUNTIFS(sequences!52:52,O$1) -> 42 | P53: =COUNTIFS(sequences!52:52,P$1) -> 13 | Q53: =COUNTIFS(sequences!52:52,Q$1) -> 44 | R53: =COUNTIFS(sequences!52:52,R$1) -> 33 | S53: =COUNTIFS(sequences!52:52,S$1) -> 29 | T53: =COUNTIFS(sequences!52:52,T$1) -> 52 | U53: =COUNTIFS(sequences!52:52,U$1) -> 50
A54: =MID(INDEX(sequences!$A$1:$AQI$60, ROW(X53), 1),1, 10) -> AKJ67821.1 | B54: =COUNTIFS(sequences!53:53,B$1) -> 21 | C54: =COUNTIFS(sequences!53:53,C$1) -> 26 | D54: =COUNTIFS(sequences!53:53,D$1) -> 14 | E54: =COUNTIFS(sequences!53:53,E$1) -> 21 | F54: =COUNTIFS(sequences!53:53,F$1) -> 8 | G54: =COUNTIFS(sequences!53:53,G$1) -> 16 | H54: =COUNTIFS(sequences!53:53,H$1) -> 12 | I54: =COUNTIFS(sequences!53:53,I$1) -> 4 | J54: =COUNTIFS(sequences!53:53,J$1) -> 6 | K54: =COUNTIFS(sequences!53:53,K$1) -> 19 | L54: =COUNTIFS(sequences!53:53,L$1) -> 16 | M54: =COUNTIFS(sequences!53:53,M$1) -> 5 | N54: =COUNTIFS(sequences!53:53,N$1) -> 6 | O54: =COUNTIFS(sequences!53:53,O$1) -> 8 | P54: =COUNTIFS(sequences!53:53,P$1) -> 6 | Q54: =COUNTIFS(sequences!53:53,Q$1) -> 4 | R54: =COUNTIFS(sequences!53:53,R$1) -> 19 | S54: =COUNTIFS(sequences!53:53,S$1) -> 6 | T54: =COUNTIFS(sequences!53:53,T$1) -> 14 | U54: =COUNTIFS(sequences!53:53,U$1) -> 13
A55: =MID(INDEX(sequences!$A$1:$AQI$60, ROW(X54), 1),1, 10) -> AKO92848.1 | B55: =COUNTIFS(sequences!54:54,B$1) -> 39 | C55: =COUNTIFS(sequences!54:54,C$1) -> 31 | D55: =COUNTIFS(sequences!54:54,D$1) -> 25 | E55: =COUNTIFS(sequences!54:54,E$1) -> 28 | F55: =COUNTIFS(sequences!54:54,F$1) -> 31 | G55: =COUNTIFS(sequences!54:54,G$1) -> 18 | H55: =COUNTIFS(sequences!54:54,H$1) -> 14 | I55: =COUNTIFS(sequences!54:54,I$1) -> 12 | J55: =COUNTIFS(sequences!54:54,J$1) -> 5 | K55: =COUNTIFS(sequences!54:54,K$1) -> 23 | L55: =COUNTIFS(sequences!54:54,L$1) -> 12 | M55: =COUNTIFS(sequences!54:54,M$1) -> 5 | N55: =COUNTIFS(sequences!54:54,N$1) -> 4 | O55: =COUNTIFS(sequences!54:54,O$1) -> 16 | P55: =COUNTIFS(sequences!54:54,P$1) -> 10 | Q55: =COUNTIFS(sequences!54:54,Q$1) -> 21 | R55: =COUNTIFS(sequences!54:54,R$1) -> 18 | S55: =COUNTIFS(sequences!54:54,S$1) -> 15 | T55: =COUNTIFS(sequences!54:54,T$1) -> 17 | U55: =COUNTIFS(sequences!54:54,U$1) -> 32
A56: =MID(INDEX(sequences!$A$1:$AQI$60, ROW(X55), 1),1, 10) -> AKF90774.1 | B56: =COUNTIFS(sequences!55:55,B$1) -> 13 | C56: =COUNTIFS(sequences!55:55,C$1) -> 16 | D56: =COUNTIFS(sequences!55:55,D$1) -> 15 | E56: =COUNTIFS(sequences!55:55,E$1) -> 23 | F56: =COUNTIFS(sequences!55:55,F$1) -> 14 | G56: =COUNTIFS(sequences!55:55,G$1) -> 10 | H56: =COUNTIFS(sequences!55:55,H$1) -> 4 | I56: =COUNTIFS(sequences!55:55,I$1) -> 1 | J56: =COUNTIFS(sequences!55:55,J$1) -> 0 | K56: =COUNTIFS(sequences!55:55,K$1) -> 5 | L56: =COUNTIFS(sequences!55:55,L$1) -> 10 | M56: =COUNTIFS(sequences!55:55,M$1) -> 0 | N56: =COUNTIFS(sequences!55:55,N$1) -> 4 | O56: =COUNTIFS(sequences!55:55,O$1) -> 4 | P56: =COUNTIFS(sequences!55:55,P$1) -> 4 | Q56: =COUNTIFS(sequences!55:55,Q$1) -> 6 | R56: =COUNTIFS(sequences!55:55,R$1) -> 7 | S56: =COUNTIFS(sequences!55:55,S$1) -> 4 | T56: =COUNTIFS(sequences!55:55,T$1) -> 9 | U56: =COUNTIFS(sequences!55:55,U$1) -> 14
A57: =MID(INDEX(sequences!$A$1:$AQI$60, ROW(X56), 1),1, 10) -> ALX10644.1 | B57: =COUNTIFS(sequences!56:56,B$1) -> 22 | C57: =COUNTIFS(sequences!56:56,C$1) -> 32 | D57: =COUNTIFS(sequences!56:56,D$1) -> 19 | E57: =COUNTIFS(sequences!56:56,E$1) -> 22 | F57: =COUNTIFS(sequences!56:56,F$1) -> 11 | G57: =COUNTIFS(sequences!56:56,G$1) -> 7 | H57: =COUNTIFS(sequences!56:56,H$1) -> 4 | I57: =COUNTIFS(sequences!56:56,I$1) -> 4 | J57: =COUNTIFS(sequences!56:56,J$1) -> 5 | K57: =COUNTIFS(sequences!56:56,K$1) -> 14 | L57: =COUNTIFS(sequences!56:56,L$1) -> 13 | M57: =COUNTIFS(sequences!56:56,M$1) -> 1 | N57: =COUNTIFS(sequences!56:56,N$1) -> 5 | O57: =COUNTIFS(sequences!56:56,O$1) -> 4 | P57: =COUNTIFS(sequences!56:56,P$1) -> 9 | Q57: =COUNTIFS(sequences!56:56,Q$1) -> 3 | R57: =COUNTIFS(sequences!56:56,R$1) -> 19 | S57: =COUNTIFS(sequences!56:56,S$1) -> 4 | T57: =COUNTIFS(sequences!56:56,T$1) -> 15 | U57: =COUNTIFS(sequences!56:56,U$1) -> 11
A58: =MID(INDEX(sequences!$A$1:$AQI$60, ROW(X57), 1),1, 10) -> ALU99394.1 | B58: =COUNTIFS(sequences!57:57,B$1) -> 23 | C58: =COUNTIFS(sequences!57:57,C$1) -> 33 | D58: =COUNTIFS(sequences!57:57,D$1) -> 16 | E58: =COUNTIFS(sequences!57:57,E$1) -> 31 | F58: =COUNTIFS(sequences!57:57,F$1) -> 27 | G58: =COUNTIFS(sequences!57:57,G$1) -> 10 | H58: =COUNTIFS(sequences!57:57,H$1) -> 14 | I58: =COUNTIFS(sequences!57:57,I$1) -> 2 | J58: =COUNTIFS(sequences!57:57,J$1) -> 0 | K58: =COUNTIFS(sequences!57:57,K$1) -> 19 | L58: =COUNTIFS(sequences!57:57,L$1) -> 17 | M58: =COUNTIFS(sequences!57:57,M$1) -> 2 | N58: =COUNTIFS(sequences!57:57,N$1) -> 9 | O58: =COUNTIFS(sequences!57:57,O$1) -> 20 | P58: =COUNTIFS(sequences!57:57,P$1) -> 6 | Q58: =COUNTIFS(sequences!57:57,Q$1) -> 26 | R58: =COUNTIFS(sequences!57:57,R$1) -> 6 | S58: =COUNTIFS(sequences!57:57,S$1) -> 4 | T58: =COUNTIFS(sequences!57:57,T$1) -> 15 | U58: =COUNTIFS(sequences!57:57,U$1) -> 18
A59: =MID(INDEX(sequences!$A$1:$AQI$60, ROW(X58), 1),1, 10) -> ALV04273.1 | B59: =COUNTIFS(sequences!58:58,B$1) -> 41 | C59: =COUNTIFS(sequences!58:58,C$1) -> 53 | D59: =COUNTIFS(sequences!58:58,D$1) -> 40 | E59: =COUNTIFS(sequences!58:58,E$1) -> 21 | F59: =COUNTIFS(sequences!58:58,F$1) -> 16 | G59: =COUNTIFS(sequences!58:58,G$1) -> 14 | H59: =COUNTIFS(sequences!58:58,H$1) -> 9 | I59: =COUNTIFS(sequences!58:58,I$1) -> 13 | J59: =COUNTIFS(sequences!58:58,J$1) -> 4 | K59: =COUNTIFS(sequences!58:58,K$1) -> 45 | L59: =COUNTIFS(sequences!58:58,L$1) -> 19 | M59: =COUNTIFS(sequences!58:58,M$1) -> 0 | N59: =COUNTIFS(sequences!58:58,N$1) -> 8 | O59: =COUNTIFS(sequences!58:58,O$1) -> 21 | P59: =COUNTIFS(sequences!58:58,P$1) -> 14 | Q59: =COUNTIFS(sequences!58:58,Q$1) -> 28 | R59: =COUNTIFS(sequences!58:58,R$1) -> 3 | S59: =COUNTIFS(sequences!58:58,S$1) -> 7 | T59: =COUNTIFS(sequences!58:58,T$1) -> 13 | U59: =COUNTIFS(sequences!58:58,U$1) -> 12
A60: =MID(INDEX(sequences!$A$1:$AQI$60, ROW(X59), 1),1, 10) -> AMW39234.1 | B60: =COUNTIFS(sequences!59:59,B$1) -> 34 | C60: =COUNTIFS(sequences!59:59,C$1) -> 48 | D60: =COUNTIFS(sequences!59:59,D$1) -> 26 | E60: =COUNTIFS(sequences!59:59,E$1) -> 38 | F60: =COUNTIFS(sequences!59:59,F$1) -> 24 | G60: =COUNTIFS(sequences!59:59,G$1) -> 25 | H60: =COUNTIFS(sequences!59:59,H$1) -> 17 | I60: =COUNTIFS(sequences!59:59,I$1) -> 9 | J60: =COUNTIFS(sequences!59:59,J$1) -> 10 | K60: =COUNTIFS(sequences!59:59,K$1) -> 23 | L60: =COUNTIFS(sequences!59:59,L$1) -> 23 | M60: =COUNTIFS(sequences!59:59,M$1) -> 10 | N60: =COUNTIFS(sequences!59:59,N$1) -> 18 | O60: =COUNTIFS(sequences!59:59,O$1) -> 11 | P60: =COUNTIFS(sequences!59:59,P$1) -> 18 | Q60: =COUNTIFS(sequences!59:59,Q$1) -> 8 | R60: =COUNTIFS(sequences!59:59,R$1) -> 27 | S60: =COUNTIFS(sequences!59:59,S$1) -> 17 | T60: =COUNTIFS(sequences!59:59,T$1) -> 17 | U60: =COUNTIFS(sequences!59:59,U$1) -> 25
A61: =MID(INDEX(sequences!$A$1:$AQI$60, ROW(X60), 1),1, 10) -> ALX07436.1 | B61: =COUNTIFS(sequences!60:60,B$1) -> 18 | C61: =COUNTIFS(sequences!60:60,C$1) -> 16 | D61: =COUNTIFS(sequences!60:60,D$1) -> 14 | E61: =COUNTIFS(sequences!60:60,E$1) -> 20 | F61: =COUNTIFS(sequences!60:60,F$1) -> 12 | G61: =COUNTIFS(sequences!60:60,G$1) -> 2 | H61: =COUNTIFS(sequences!60:60,H$1) -> 12 | I61: =COUNTIFS(sequences!60:60,I$1) -> 3 | J61: =COUNTIFS(sequences!60:60,J$1) -> 0 | K61: =COUNTIFS(sequences!60:60,K$1) -> 11 | L61: =COUNTIFS(sequences!60:60,L$1) -> 10 | M61: =COUNTIFS(sequences!60:60,M$1) -> 1 | N61: =COUNTIFS(sequences!60:60,N$1) -> 6 | O61: =COUNTIFS(sequences!60:60,O$1) -> 6 | P61: =COUNTIFS(sequences!60:60,P$1) -> 2 | Q61: =COUNTIFS(sequences!60:60,Q$1) -> 15 | R61: =COUNTIFS(sequences!60:60,R$1) -> 9 | S61: =COUNTIFS(sequences!60:60,S$1) -> 7 | T61: =COUNTIFS(sequences!60:60,T$1) -> 16 | U61: =COUNTIFS(sequences!60:60,U$1) -> 14

Sheet sequences
A1: KPH27514.1 | B1: S | C1: Q | D1: A | E1: V | F1: F | G1: H | H1: L | I1: G | J1: V | K1: T | L1: E | M1: A | N1: D | O1: L | P1: A | Q1: G | R1: A | S1: T | T1: L | U1: A | V1: I | W1: I | X1: P | Y1: G | Z1: D | AA1: P | AB1: A | AC1: R | AD1: V | AE1: Q | AF1: K | AG1: I | AH1: A | AI1: E | AJ1: E | AK1: M | AL1: E | AM1: N | AN1: P | AO1: V | AP1: F | AQ1: L | AR1: A | AS1: S | AT1: H | AU1: R | AV1: E | AW1: Y | AX1: T | AY1: L | AZ1: Y | BA1: R | BB1: A | BC1: E | BD1: L | BE1: D | BF1: G | BG1: K | BH1: P | BI1: V | BJ1: V | BK1: V | BL1: C | BM1: S | BN1: T | BO1: G | BP1: I | BQ1: G | BR1: G | BS1: P | BT1: S | BU1: T | BV1: S | BW1: I | BX1: A | BY1: V | BZ1: E | CA1: E | CB1: L | CC1: A | CD1: Q | CE1: L | CF1: G | CG1: V | CH1: R | CI1: T | CJ1: F | CK1: L | CL1: R | CM1: V | CN1: G | CO1: T | CP1: T | CQ1: G | CR1: A | CS1: I | CT1: Q | CU1: P | CV1: H | CW1: V | CX1: N | CY1: V | CZ1: G | DA1: D | DB1: M | DC1: I | DD1: V | DE1: S | DF1: T | DG1: G | DH1: S | DI1: V | DJ1: R | DK1: L | DL1: D | DM1: G | DN1: A | DO1: S | DP1: L | DQ1: H | DR1: F | DS1: A | DT1: P | DU1: M | DV1: E | DW1: F | DX1: P | DY1: A | DZ1: V | EA1: A | EB1: D | EC1: F | ED1: E | EE1: V | EF1: A | EG1: T | EH1: A | EI1: M | EJ1: K | EK1: A | EL1: A | EM1: V | EN1: E | EO1: E | EP1: S | EQ1: G | ER1: A | ES1: D | ET1: V | EU1: H | EV1: M | EW1: G | EX1: V | EY1: T | EZ1: A | FA1: S | FB1: S | FC1: D | FD1: T | FE1: F | FF1: Y | FG1: P | FH1: G | FI1: Q | FJ1: E | FK1: R | FL1: Y | FM1: D | FN1: T | FO1: F | FP1: S | FQ1: G | FR1: R | FS1: V | FT1: V | FU1: K | FV1: R | FW1: F | FX1: Q | FY1: G | FZ1: S | GA1: M | GB1: K | GC1: E | GD1: W | GE1: Q | GF1: D | GG1: M | GH1: G | GI1: V | GJ1: L | GK1: N | GL1: F | GM1: E | GN1: M | GO1: E | GP1: S | GQ1: A | GR1: T | GS1: L | GT1: L | GU1: T | GV1: M | GW1: C | GX1: A | GY1: S | GZ1: S | HA1: G | HB1: L | HC1: K | HD1: A | HE1: G | HF1: C | HG1: V | HH1: A | HI1: G | HJ1: V | HK1: I | HL1: I | HM1: N | HN1: R | HO1: T | HP1: Q | HQ1: K | HR1: E | HS1: I | HT1: P | HU1: D | HV1: H | HW1: S | HX1: T | HY1: L | HZ1: K | IA1: E | IB1: T | IC1: E | ID1: A | IE1: R | IF1: S | IG1: I | IH1: K | II1: V | IJ1: V | IK1: V | IL1: E | IM1: A | IN1: A | IO1: R | IP1: K | IQ1: M | IR1: L
A2: AKF90938.1 | B2: F | C2: K | D2: R | E2: L | F2: M | G2: M | H2: V | I2: A | J2: L | K2: L | L2: V | M2: I | N2: A | O2: P | P2: L | Q2: S | R2: A | S2: A | T2: T | U2: A | V2: A | W2: D | X2: Q | Y2: S | Z2: N | AA2: P | AB2: Y | AC2: K | AD2: L | AE2: M | AF2: N | AG2: E | AH2: A | AI2: A | AJ2: Q | AK2: K | AL2: T | AM2: F | AN2: D | AO2: R | AP2: L | AQ2: K | AR2: N | AS2: E | AT2: Q | AU2: P | AV2: K | AW2: I | AX2: R | AY2: A | AZ2: N | BA2: P | BB2: D | BC2: Y | BD2: L | BE2: R | BF2: D | BG2: V | BH2: V | BI2: D | BJ2: Q | BK2: E | BL2: L | BM2: L | BN2: P | BO2: Y | BP2: V | BQ2: Q | BR2: V | BS2: K | BT2: Y | BU2: A | BV2: G | BW2: A | BX2: L | BY2: V | BZ2: L | CA2: G | CB2: R | CC2: Y | CD2: Y | CE2: K | CF2: E | CG2: A | CH2: T | CI2: P | CJ2: A | CK2: Q | CL2: R | CM2: E | CN2: A | CO2: Y | CP2: F | CQ2: A | CR2: A | CS2: F | CT2: R | CU2: E | CV2: Y | CW2: L | CX2: K | CY2: Q | CZ2: A | DA2: Y | DB2: G | DC2: Q | DD2: A | DE2: L | DF2: A | DG2: M | DH2: Y | DI2: H | DJ2: G | DK2: Q | DL2: T | DM2: Y | DN2: Q | DO2: I | DP2: A | DQ2: P | DR2: E | DS2: Q | DT2: P | DU2: L | DV2: G | DW2: D | DX2: A | DY2: T | DZ2: I | EA2: V | EB2: P | EC2: I | ED2: R | EE2: V | EF2: T | EG2: I | EH2: I | EI2: D | EJ2: P | EK2: N | EL2: G | EM2: R | EN2: P | EO2: P | EP2: V | EQ2: R | ER2: L | ES2: D | ET2: F | EU2: Q | EV2: W | EW2: R | EX2: K | EY2: N | EZ2: T | FA2: Q | FB2: T | FC2: G | FD2: N | FE2: W | FF2: Q | FG2: A | FH2: Y | FI2: D | FJ2: M | FK2: I | FL2: A | FM2: E | FN2: G | FO2: V | FP2: S | FQ2: M | FR2: I | FS2: T | FT2: T | FU2: K | FV2: Q | FW2: N | FX2: E | FY2: W | FZ2: S | GA2: D | GB2: L | GC2: L | GD2: R | GE2: T | GF2: K | GG2: G | GH2: I | GI2: D | GJ2: G | GK2: L | GL2: T | GM2: A | GN2: Q | GO2: L | GP2: K | GQ2: S | GR2: I | GS2: S | GT2: Q | GU2: Q | GV2: K | GW2: I | GX2: T | GY2: L | GZ2: D | HA2: E | HB2: K | HC2: Q
A3: BAU39574.1 | B3: K | C3: T | D3: K | E3: C | F3: V | G3: P | H3: D | I3: V | J3: W | K3: K | L3: N | M3: K | N3: K | O3: P | P3: D | Q3: L | R3: S | S3: E | T3: K | U3: R | V3: K | W3: S | X3: F | Y3: L | Z3: K | AA3: T | AB3: G | AC3: A | AD3: L | AE3: L | AF3: L | AG3: A | AH3: G | AI3: S | AJ3: L | AK3: F | AL3: L | AM3: G | AN3: V | AO3: A | AP3: N | AQ3: I | AR3: S | AS3: G | AT3: Q | AU3: A | AV3: Y | AW3: A | AX3: L | AY3: A | AZ3: P | BA3: S | BB3: A | BC3: Q | BD3: A | BE3: P | BF3: Q | BG3: A | BH3: Y | BI3: T | BJ3: P | BK3: T | BL3: P | BM3: A | BN3: D | BO3: V | BP3: A | BQ3: M | BR3: V | BS3: S | BT3: D | BU3: L | BV3: E | BW3: Q | BX3: R | BY3: T | BZ3: F | CA3: Q | CB3: W | CC3: F | CD3: W | CE3: D | CF3: S | CG3: A | CH3: D | CI3: P | CJ3: A | CK3: T | CL3: G | CM3: L | CN3: I | CO3: P | CP3: D | CQ3: R | CR3: Y | CS3: P | CT3: S | CU3: D | CV3: Q | CW3: K | CX3: Q | CY3: D | CZ3: S | DA3: V | DB3: A | DC3: S | DD3: V | DE3: G | DF3: F | DG3: G | DH3: L | DI3: T | DJ3: A | DK3: Y | DL3: G | DM3: I | DN3: G | DO3: V | DP3: K | DQ3: R | DR3: H | DS3: Y | DT3: I | DU3: T | DV3: R | DW3: Q | DX3: Q | DY3: A | DZ3: V | EA3: E | EB3: R | EC3: T | ED3: L | EE3: T | EF3: T | EG3: L | EH3: R | EI3: Y | EJ3: M | EK3: W | EL3: K | EM3: L | EN3: P | EO3: Q | EP3: N | EQ3: E | ER3: S | ES3: A | ET3: D | EU3: K | EV3: A | EW3: S | EX3: G | EY3: Y | EZ3: H | FA3: G | FB3: F | FC3: F | FD3: Y | FE3: H | FF3: F | FG3: L | FH3: D | FI3: N | FJ3: R | FK3: T | FL3: G | FM3: L | FN3: R | FO3: L | FP3: N | FQ3: P | FR3: D | FS3: I | FT3: E | FU3: L | FV3: S | FW3: S | FX3: I | FY3: D | FZ3: T | GA3: A | GB3: L | GC3: L | GD3: M | GE3: Q | GF3: G | GG3: V | GH3: L | GI3: F | GJ3: C | GK3: R | GL3: N | GM3: F | GN3: Y | GO3: T | GP3: Q | GQ3: D | GR3: T | GS3: A | GT3: Q | GU3: E | GV3: K | GW3: E | GX3: I | GY3: R | GZ3: Q | HA3: L | HB3: S | HC3: D | HD3: Q | HE3: L | HF3: F | HG3: N | HH3: R | HI3: V | HJ3: D | HK3: W | HL3: K | HM3: W | HN3: M | HO3: E | HP3: R | HQ3: P | HR3: D | HS3: H | HT3: R | HU3: L | HV3: S | HW3: M | HX3: G | HY3: W | HZ3: S | IA3: P | IB3: E | IC3: H | ID3: G | IE3: F | IF3: L | IG3: P | IH3: N | II3: Y | IJ3: W | IK3: E | IL3: G | IM3: Y | IN3: S | IO3: E | IP3: G | IQ3: M | IR3: M | IS3: L | IT3: Y | IU3: I | IV3: L | IW3: A | IX3: L | IY3: G | IZ3: T | JA3: P | JB3: E | JC3: H | JD3: G | JE3: L | JF3: Q | JG3: P | JH3: V | JI3: S | JJ3: W | JK3: Q | JL3: A | JM3: W | JN3: L | JO3: A | JP3: T | JQ3: N | JR3: D | JS3: K | JT3: R | JU3: W | JV3: G | JW3: E | JX3: E | JY3: Y | JZ3: G | KA3: Q | KB3: T | KC3: F | KD3: L | KE3: N | KF3: F | KG3: A | KH3: P | KI3: L | KJ3: F | KK3: G | KL3: H | KM3: Q | KN3: Y | KO3: S | KP3: H | KQ3: A | KR3: W | KS3: I | KT3: D | KU3: F | KV3: R | KW3: G | KX3: I | KY3: Q | KZ3: D | LA3: N | LB3: W | LC3: I | LD3: S | LE3: S | LF3: K | LG3: G | LH3: I | LI3: D | LJ3: Y | LK3: F | LL3: E | LM3: N | LN3: S | LO3: R | LP3: R | LQ3: A | LR3: V | LS3: Y | LT3: A | LU3: Q | LV3: R | LW3: N | LX3: Y | LY3: A | LZ3: V | MA3: S | MB3: N | MC3: P | MD3: G | ME3: K | MF3: W | MG3: Q | MH3: G | MI3: Y | MJ3: D | MK3: A | ML3: N | MM3: T | MN3: W | MO3: G | MP3: L | MQ3: T | MR3: A | MS3: S | MT3: D | MU3: G | MV3: P | MW3: G | MX3: D | MY3: V | MZ3: T | NA3: K | NB3: T | NC3: E | ND3: N | NE3: G | NF3: Q | NG3: T | NH3: R | NI3: H | NJ3: F | NK3: L | NL3: S | NM3: Y | NN3: S | NO3: A | NP3: R | NQ3: G | NR3: V | NS3: G | NT3: R | NU3: D | NV3: Y | NW3: T | NX3: Q | NY3: D | NZ3: D | OA3: G | OB3: T | OC3: I | OD3: A | OE3: P | OF3: T | OG3: A | OH3: A | OI3: G | OJ3: G | OK3: S | OL3: V | OM3: A | ON3: F | OO3: A | OP3: P | OQ3: E | OR3: I | OS3: A | OT3: I | OU3: P | OV3: A | OW3: L | OX3: R | OY3: T | OZ3: M | PA3: K | PB3: S | PC3: K | PD3: Y | PE3: G | PF3: N | PG3: H | PH3: I | PI3: Y | PJ3: G | PK3: K | PL3: Y | PM3: G | PN3: F | PO3: A | PP3: D | PQ3: S | PR3: F | PS3: N | PT3: P | PU3: S | PV3: F | PW3: H | PX3: D | PY3: E | PZ3: K | QA3: Q | QB3: D | QC3: Y | QD3: W | QE3: A | QF3: D | QG3: N | QH3: T | QI3: Y | QJ3: L | QK3: G | QL3: I | QM3: D | QN3: Q | QO3: G | QP3: P | QQ3: I | QR3: L | QS3: L | QT3: M | QU3: V | QV3: E | QW3: N | QX3: W | QY3: R | QZ3: S | RA3: G | RB3: F | RC3: V | RD3: W | RE3: D | RF3: T | RG3: M | RH3: R | RI3: Q | RJ3: S | RK3: A | RL3: V | RM3: I | RN3: R | RO3: R | RP3: G | RQ3: L | RR3: L | RS3: Q | RT3: A | RU3: G | RV3: F | RW3: H | RX3: G | RY3: G | RZ3: W | SA3: L | SB3: Q | SC3: Q | SD3: V | SE3: A | SF3: Q | SG3: Q | SH3: P | SI3: S | SJ3: S | SK3: V | SL3: V | SM3: R | SN3: R | SO3: K | SP3: G
A4: AKF91108.2 | B4: T | C4: K | D4: P | E4: I | F4: V | G4: F | H4: S | I4: G | J4: A | K4: Q | L4: P | M4: S | N4: G | O4: E | P4: L | Q4: T | R4: I | S4: G | T4: N | U4: Y | V4: M | W4: G | X4: A | Y4: L | Z4: R | AA4: Q | AB4: W | AC4: V | AD4: N | AE4: M | AF4: Q | AG4: D | AH4: D | AI4: Y | AJ4: H | AK4: C | AL4: I | AM4: Y | AN4: C | AO4: I | AP4: V | AQ4: D | AR4: Q | AS4: H | AT4: A | AU4: I | AV4: T | AW4: V | AX4: R | AY4: Q | AZ4: D | BA4: A | BB4: Q | BC4: Q | BD4: L | BE4: R | BF4: K | BG4: A | BH4: T | BI4: L | BJ4: D | BK4: T | BL4: L | BM4: A | BN4: L | BO4: Y | BP4: L | BQ4: A | BR4: C | BS4: G | BT4: I | BU4: D | BV4: P | BW4: E | BX4: K | BY4: S | BZ4: T | CA4: I | CB4: F | CC4: V | CD4: Q | CE4: S | CF4: H | CG4: V | CH4: P | CI4: E | CJ4: H | CK4: A | CL4: Q | CM4: L | CN4: G | CO4: W | CP4: A | CQ4: L | CR4: N | CS4: C | CT4: Y | CU4: T | CV4: Y | CW4: F | CX4: G | CY4: E | CZ4: L | DA4: S | DB4: R | DC4: M | DD4: T | DE4: Q | DF4: F | DG4: K | DH4: D | DI4: K | DJ4: S | DK4: A | DL4: R | DM4: Y | DN4: A | DO4: E | DP4: N | DQ4: I | DR4: N | DS4: A | DT4: G | DU4: L | DV4: F | DW4: D | DX4: Y | DY4: P | DZ4: V | EA4: L | EB4: M | EC4: A | ED4: A | EE4: D | EF4: I | EG4: L | EH4: L | EI4: Y | EJ4: Q | EK4: T | EL4: N | EM4: L | EN4: V | EO4: P | EP4: V | EQ4: G | ER4: E | ES4: D | ET4: Q | EU4: K | EV4: Q | EW4: H | EX4: L | EY4: E | EZ4: L | FA4: S | FB4: R | FC4: D | FD4: I | FE4: A | FF4: Q | FG4: R | FH4: F | FI4: N | FJ4: G | FK4: L | FL4: Y | FM4: G | FN4: D | FO4: I | FP4: F | FQ4: K | FR4: V | FS4: P | FT4: E | FU4: P | FV4: F | FW4: I | FX4: P | FY4: K | FZ4: S | GA4: G | GB4: A | GC4: R | GD4: V | GE4: M | GF4: S | GG4: L | GH4: L | GI4: E | GJ4: P | GK4: T | GL4: K | GM4: K | GN4: M | GO4: S | GP4: K | GQ4: S | GR4: D | GS4: D | GT4: N | GU4: R | GV4: N | GW4: N | GX4: V | GY4: I | GZ4: G | HA4: L | HB4: L | HC4: E | HD4: D | HE4: P | HF4: K | HG4: S | HH4: V | HI4: V | HJ4: K | HK4: K | HL4: I | HM4: K | HN4: R | HO4: A | HP4: V | HQ4: T | HR4: D | HS4: S | HT4: D | HU4: E | HV4: P | HW4: P | HX4: V | HY4: V | HZ4: R | IA4: Y | IB4: D | IC4: V | ID4: K | IE4: E | IF4: K | IG4: A | IH4: G | II4: V | IJ4: S | IK4: N | IL4: L | IM4: L | IN4: D | IO4: I | IP4: L | IQ4: S | IR4: A | IS4: V | IT4: T | IU4: G | IV4: Q | IW4: S | IX4: I | IY4: P | IZ4: E | JA4: L | JB4: E | JC4: K | JD4: Q | JE4: F | JF4: E | JG4: G | JH4: K | JI4: M | JJ4: Y | JK4: G | JL4: H | JM4: L | JN4: K | JO4: G | JP4: E | JQ4: V | JR4: A | JS4: E | JT4: A | JU4: V | JV4: S | JW4: G | JX4: M | JY4: L | JZ4: S | KA4: E | KB4: L | KC4: Q | KD4: E | KE4: R | KF4: Y | KG4: H | KH4: R | KI4: F | KJ4: R | KK4: N | KL4: D | KM4: E | KN4: A | KO4: F | KP4: L | KQ4: Q | KR4: K | KS4: V | KT4: M | KU4: K | KV4: D | KW4: G | KX4: A | KY4: E | KZ4: K | LA4: A | LB4: S | LC4: A | LD4: R | LE4: A | LF4: A | LG4: E | LH4: T | LI4: L | LJ4: K | LK4: A | LL4: V | LM4: Y | LN4: E | LO4: A | LP4: I | LQ4: G | LR4: F | LS4: V | LT4: A | LU4: K | LV4: P
A5: ANF54906.1 | B5: P | C5: K | D5: Q | E5: K | F5: R | G5: I | H5: A | I5: I | J5: I | K5: G | L5: A | M5: G | N5: P | O5: S | P5: G | Q5: L | R5: A | S5: L | T5: L | U5: R | V5: A | W5: F | X5: Q | Y5: S | Z5: A | AA5: R | AB5: D | AC5: E | AD5: G | AE5: A | AF5: D | AG5: I | AH5: P | AI5: E | AJ5: I | AK5: V | AL5: C | AM5: F | AN5: E | AO5: K | AP5: Q | AQ5: K | AR5: D | AS5: W | AT5: G | AU5: G | AV5: M | AW5: W | AX5: N | AY5: Y | AZ5: T | BA5: W | BB5: R | BC5: T | BD5: G | BE5: M | BF5: D | BG5: E | BH5: N | BI5: G | BJ5: E | BK5: P | BL5: V | BM5: H | BN5: G | BO5: S | BP5: M | BQ5: Y | BR5: R | BS5: Y | BT5: L | BU5: W | BV5: S | BW5: N | BX5: G | BY5: P | BZ5: K | CA5: E | CB5: C | CC5: L | CD5: E | CE5: F | CF5: A | CG5: D | CH5: Y | CI5: T | CJ5: F | CK5: D | CL5: E | CM5: H | CN5: F | CO5: K | CP5: K | CQ5: T | CR5: I | CS5: S | CT5: S | CU5: Y | CV5: P | CW5: P | CX5: R | CY5: E | CZ5: V | DA5: L | DB5: W | DC5: D | DD5: Y | DE5: I | DF5: Q | DG5: G | DH5: R | DI5: V | DJ5: K | DK5: K | DL5: A | DM5: N | DN5: I | DO5: R | DP5: Q | DQ5: Y | DR5: I | DS5: R | DT5: F | DU5: N | DV5: T | DW5: A | DX5: V | DY5: K | DZ5: D | EA5: V | EB5: A | EC5: F | ED5: D | EE5: K | EF5: T | EG5: T | EH5: G | EI5: Q | EJ5: F | EK5: T | EL5: V | EM5: T | EN5: A | EO5: Q | EP5: D | EQ5: Y | ER5: S | ES5: A | ET5: G | EU5: R | EV5: R | EW5: T | EX5: S | EY5: G | EZ5: T | FA5: F | FB5: D | FC5: H | FD5: V | FE5: I | FF5: V | FG5: A | FH5: T | FI5: G | FJ5: H | FK5: F | FL5: S | FM5: T | FN5: P | FO5: N | FP5: A | FQ5: P | FR5: S | FS5: Y | FT5: P | FU5: G | FV5: F | FW5: D | FX5: L | FY5: F | FZ5: P | GA5: G | GB5: R | GC5: I | GD5: L | GE5: H | GF5: A | GG5: H | GH5: D | GI5: F | GJ5: R | GK5: D | GL5: A | GM5: A | GN5: E | GO5: F | GP5: K | GQ5: G | GR5: K | GS5: D | GT5: V | GU5: L | GV5: L | GW5: I | GX5: G | GY5: S | GZ5: S | HA5: Y | HB5: S | HC5: A | HD5: E | HE5: D | HF5: I | HG5: G | HH5: S | HI5: Q | HJ5: C | HK5: Y | HL5: K | HM5: Y | HN5: G | HO5: A | HP5: K | HQ5: S | HR5: V | HS5: T | HT5: T | HU5: S | HV5: Y | HW5: R | HX5: S | HY5: R | HZ5: P | IA5: M | IB5: G | IC5: Y | ID5: D | IE5: W | IF5: P | IG5: K | IH5: G | II5: W | IJ5: E | IK5: E | IL5: K | IM5: P | IN5: C | IO5: L | IP5: T | IQ5: R | IR5: V | IS5: D | IT5: G | IU5: K | IV5: T | IW5: A | IX5: H | IY5: F | IZ5: S | JA5: D | JB5: G | JC5: T | JD5: R | JE5: R | JF5: D | JG5: V | JH5: D | JI5: A | JJ5: I | JK5: I | JL5: L | JM5: C | JN5: T | JO5: G | JP5: Y | JQ5: K | JR5: H | JS5: H | JT5: F | JU5: P | JV5: F | JW5: L | JX5: P | JY5: D | JZ5: E | KA5: L | KB5: R | KC5: L | KD5: K | KE5: T | KF5: S | KG5: N | KH5: R | KI5: L | KJ5: W | KK5: P | KL5: L | KM5: N | KN5: L | KO5: Y | KP5: E | KQ5: G | KR5: V | KS5: V | KT5: F | KU5: T | KV5: P | KW5: N | KX5: P | KY5: R | KZ5: L | LA5: F | LB5: Y | LC5: L | LD5: G | LE5: M | LF5: Q | LG5: D | LH5: L | LI5: W | LJ5: Y | LK5: S | LL5: F | LM5: N | LN5: M | LO5: F | LP5: D | LQ5: A | LR5: Q | LS5: A | LT5: W | LU5: L | LV5: T | LW5: R | LX5: D | LY5: I | LZ5: I | MA5: M | MB5: D | MC5: R | MD5: I | ME5: A | MF5: L | MG5: P | MH5: S | MI5: R | MJ5: A | MK5: D | ML5: M | MM5: E | MN5: A | MO5: A | MP5: N | MQ5: D | MR5: Q | MS5: W | MT5: R | MU5: E | MV5: K | MW5: E | MX5: V | MY5: A | MZ5: I | NA5: R | NB5: T | NC5: D | ND5: E | NE5: Q | NF5: A | NG5: F | NH5: K | NI5: Y | NJ5: Q | NK5: G | NL5: D | NM5: Y | NN5: I | NO5: K | NP5: G | NQ5: L | NR5: I | NS5: A | NT5: Q | NU5: T | NV5: D | NW5: Y | NX5: P | NY5: E | NZ5: L | OA5: D | OB5: V | OC5: D | OD5: N | OE5: I | OF5: N | OG5: R | OH5: I | OI5: F | OJ5: L | OK5: Q | OL5: W | OM5: K | ON5: K | OO5: D | OP5: K | OQ5: K | OR5: A | OS5: D | OT5: I | OU5: M | OV5: G | OW5: Y | OX5: R | OY5: D | OZ5: K | PA5: C | PB5: Y | PC5: R | PD5: S | PE5: V | PF5: V | PG5: T | PH5: G | PI5: T | PJ5: L | PK5: A | PL5: A | PM5: R | PN5: H | PO5: H | PP5: V | PQ5: P | PR5: W | PS5: I | PT5: K | PU5: A | PV5: F | PW5: D | PX5: D | PY5: S | PZ5: L | QA5: E | QB5: A | QC5: Y | QD5: L | QE5: R | QF5: L | QG5: P | QH5: S | QI5: A | QJ5: R | QK5: S | QL5: Q | QM5: A | QN5: A | QO5: R | QP5: V
A6: KST75586.1 | B6: P | C6: A | D6: S | E6: F | F6: E | G6: R | H6: K | I6: L | J6: I | K6: T | L6: R | M6: D | N6: A | O6: L | P6: V | Q6: A | R6: L | S6: R | T6: A | U6: S | V6: L | W6: P | X6: A | Y6: P | Z6: V | AA6: V | AB6: F | AC6: T | AD6: N | AE6: G | AF6: V | AG6: F | AH6: D | AI6: I | AJ6: L | AK6: H | AL6: R | AM6: G | AN6: H | AO6: V | AP6: T | AQ6: Y | AR6: L | AS6: A | AT6: D | AU6: A | AV6: K | AW6: A | AX6: L | AY6: G | AZ6: A | BA6: C | BB6: L | BC6: I | BD6: V | BE6: G | BF6: V | BG6: N | BH6: S | BI6: D | BJ6: A | BK6: S | BL6: V | BM6: R | BN6: M | BO6: L | BP6: G | BQ6: K | BR6: G | BS6: D | BT6: D | BU6: R | BV6: P | BW6: I | BX6: N | BY6: V | BZ6: Q | CA6: E | CB6: D | CC6: R | CD6: M | CE6: A | CF6: L | CG6: L | CH6: A | CI6: A | CJ6: L | CK6: E | CL6: C | CM6: V | CN6: D | CO6: W | CP6: V | CQ6: V | CR6: G | CS6: F | CT6: D | CU6: E | CV6: K | CW6: T | CX6: P | CY6: V | CZ6: S | DA6: L | DB6: I | DC6: E | DD6: A | DE6: V | DF6: R | DG6: P | DH6: D | DI6: I | DJ6: L | DK6: V | DL6: K | DM6: G | DN6: G | DO6: D | DP6: Y | DQ6: D | DR6: M | DS6: D | DT6: A | DU6: L | DV6: P | DW6: E | DX6: S | DY6: A | DZ6: L | EA6: V | EB6: R | EC6: G | ED6: W | EE6: G | EF6: G | EG6: R | EH6: S | EI6: L | EJ6: A | EK6: I | EL6: P | EM6: F | EN6: E | EO6: H | EP6: E | EQ6: R | ER6: S | ES6: T | ET6: T | EU6: A | EV6: L | EW6: L | EX6: K | EY6: K | EZ6: V | FA6: R | FB6: S | FC6: Q | FD6: S | FE6: S
A7: ANB87733.1 | B7: N | C7: Y | D7: Q | E7: L | F7: L | G7: K | H7: T | I7: F | J7: S | K7: R | L7: Q | M7: P | N7: I | O7: Q | P7: F | Q7: G | R7: R | S7: F | T7: L | U7: A | V7: R | W7: L | X7: L | Y7: A | Z7: G | AA7: L | AB7: V | AC7: N | AD7: T | AE7: L | AF7: K | AG7: I | AH7: T | AI7: R | AJ7: T | AK7: S | AL7: K | AM7: S | AN7: I | AO7: E | AP7: L | AQ7: N | AR7: L | AS7: R | AT7: I | AU7: A | AV7: L | AW7: P | AX7: Y | AY7: L | AZ7: T | BA7: P | BB7: Q | BC7: Q | BD7: R | BE7: I | BF7: A | BG7: I | BH7: T | BI7: E | BJ7: K | BK7: A | BL7: V | BM7: R | BN7: N | BO7: E | BP7: L | BQ7: T | BR7: S | BS7: Y | BT7: F | BU7: E | BV7: F | BW7: L | BX7: S | BY7: I | BZ7: W | CA7: G | CB7: S | CC7: S | CD7: N | CE7: S | CF7: K | CG7: N | CH7: I | CI7: S | CJ7: R | CK7: I | CL7: H | CM7: R | CN7: I | CO7: E | CP7: G | CQ7: E | CR7: H | CS7: F | CT7: F | CU7: H | CV7: E | CW7: A | CX7: L | CY7: A | CZ7: A | DA7: K | DB7: K | DC7: G | DD7: V | DE7: V | DF7: L | DG7: I | DH7: V | DI7: P | DJ7: H | DK7: F | DL7: G | DM7: T | DN7: W | DO7: E | DP7: V | DQ7: M | DR7: N | DS7: A | DT7: W | DU7: C | DV7: A | DW7: Q | DX7: F | DY7: T | DZ7: S | EA7: M | EB7: T | EC7: I | ED7: L | EE7: Y | EF7: K | EG7: P | EH7: V | EI7: K | EJ7: N | EK7: A | EL7: D | EM7: A | EN7: D | EO7: R | EP7: F | EQ7: V | ER7: R | ES7: E | ET7: A | EU7: R | EV7: S | EW7: R | EX7: E | EY7: Q | EZ7: A | FA7: N | FB7: L | FC7: V | FD7: P | FE7: T | FF7: D | FG7: E | FH7: S | FI7: G | FJ7: V | FK7: R | FL7: Q | FM7: I | FN7: F | FO7: K | FP7: A | FQ7: L | FR7: K | FS7: Q | FT7: G | FU7: E | FV7: T | FW7: T | FX7: V | FY7: I | FZ7: L | GA7: P | GB7: D | GC7: H | GD7: T | GE7: P | GF7: N | GG7: V | GH7: G | GI7: G | GJ7: D | GK7: M | GL7: V | GM7: N | GN7: Y | GO7: F | GP7: G | GQ7: V | GR7: P | GS7: L | GT7: A | GU7: S | GV7: S | GW7: N | GX7: L | GY7: S | GZ7: A | HA7: K | HB7: L | HC7: I | HD7: Q | HE7: K | HF7: T | HG7: K | HH7: A | HI7: K | HJ7: A | HK7: L | HL7: F | HM7: L | HN7: Y | HO7: A | HP7: I | HQ7: R | HR7: N | HS7: E | HT7: N | HU7: D | HV7: G | HW7: F | HX7: T | HY7: M | HZ7: H | IA7: I | IB7: E | IC7: P | ID7: M | IE7: D | IF7: E | IG7: K | IH7: I | II7: Y | IJ7: E | IK7: G | IL7: T | IM7: A | IN7: D | IO7: D | IP7: G | IQ7: T | IR7: Y | IS7: V | IT7: I | IU7: H | IV7: Q | IW7: A | IX7: I | IY7: E | IZ7: Q | JA7: L | JB7: I | JC7: Y | JD7: Q | JE7: Y | JF7: P | JG7: E | JH7: H | JI7: Y | JJ7: H | JK7: W | JL7: S | JM7: Y | JN7: K | JO7: R | JP7: F | JQ7: K | JR7: A | JS7: N | JT7: P | JU7: A | JV7: L | JW7: D | JX7: N | JY7: I | JZ7: Y | KA7: N | KB7: I | KC7: D | KD7: P | KE7: T | KF7: E | KG7: A | KH7: L | KI7: K | KJ7: I | KK7: V | KL7: D | KM7: R | KN7: L | KO7: K | KP7: A | KQ7: E | KR7: A | KS7: L | KT7: K | KU7: T | KV7: S | KW7: T | KX7: Q | KY7: P | KZ7: E | LA7: P | LB7: I | LC7: Q | LD7: T | LE7: S | LF7: V | LG7: M
A8: AMW06251.1 | B8: A | C8: A | D8: C | E8: G | F8: D | G8: A | H8: P | I8: P | J8: E | K8: A | L8: G | M8: K | N8: R | O8: E | P8: D | Q8: P | R8: R | S8: P | T8: N | U8: I | V8: V | W8: F | X8: V | Y8: L | Z8: L | AA8: D | AB8: D | AC8: A | AD8: R | AE8: Y | AF8: D | AG8: D | AH8: L | AI8: I | AJ8: D | AK8: H | AL8: P | AM8: F | AN8: A | AO8: A | AP8: L | AQ8: P | AR8: N | AS8: L | AT8: K | AU8: Q | AV8: L | AW8: A | AX8: A | AY8: E | AZ8: G | BA8: A | BB8: S | BC8: F | BD8: Q | BE8: H | BF8: F | BG8: Y | BH8: T | BI8: A | BJ8: A | BK8: P | BL8: L | BM8: C | BN8: S | BO8: P | BP8: S | BQ8: R | BR8: A | BS8: V | BT8: F | BU8: M | BV8: T | BW8: G | BX8: Q | BY8: Y | BZ8: P | CA8: Y | CB8: H | CC8: N | CD8: G | CE8: I | CF8: T | CG8: D | CH8: N | CI8: G | CJ8: E | CK8: R | CL8: A | CM8: E | CN8: R | CO8: S | CP8: H | CQ8: Q | CR8: I | CS8: V | CT8: T | CU8: F | CV8: P | CW8: K | CX8: L | CY8: L | CZ8: H | DA8: D | DB8: V | DC8: G | DD8: Y | DE8: H | DF8: T | DG8: G | DH8: F | DI8: F | DJ8: G | DK8: K | DL8: W | DM8: H | DN8: M | DO8: G | DP8: H | DQ8: E | DR8: D | DS8: D | DT8: S | DU8: P | DV8: R | DW8: P | DX8: G | DY8: F | DZ8: D | EA8: R | EB8: W | EC8: V | ED8: S | EE8: F | EF8: V | EG8: G | EH8: Q | EI8: G | EJ8: V | EK8: Y | EL8: F | EM8: N | EN8: P | EO8: D | EP8: L | EQ8: N | ER8: I | ES8: D | ET8: G | EU8: V | EV8: P | EW8: A | EX8: K | EY8: A | EZ8: Q | FA8: G | FB8: Y | FC8: M | FD8: T | FE8: D | FF8: I | FG8: L | FH8: T | FI8: N | FJ8: E | FK8: A | FL8: V | FM8: S | FN8: F | FO8: I | FP8: K | FQ8: A | FR8: A | FS8: P | FT8: D | FU8: S | FV8: Q | FW8: P | FX8: F | FY8: L | FZ8: V | GA8: F | GB8: M | GC8: A | GD8: Q | GE8: K | GF8: A | GG8: V | GH8: H | GI8: P | GJ8: E | GK8: I | GL8: H | GM8: P | GN8: N | GO8: Y | GP8: V | GQ8: R | GR8: S | GS8: F | GT8: P | GU8: P | GV8: A | GW8: P | GX8: G | GY8: D | GZ8: E | HA8: Q | HB8: L | HC8: Y | HD8: A | HE8: Q | HF8: D | HG8: T | HH8: V | HI8: P | HJ8: H | HK8: G | HL8: P | HM8: S | HN8: W | HO8: R | HP8: A | HQ8: P | HR8: T | HS8: T | HT8: G | HU8: K | HV8: P | HW8: A | HX8: L | HY8: Q | HZ8: R | IA8: P | IB8: H | IC8: D | ID8: A | IE8: S | IF8: D | IG8: P | IH8: R | II8: S | IJ8: P | IK8: K | IL8: G | IM8: G | IN8: L | IO8: P | IP8: D | IQ8: S | IR8: V | IS8: V | IT8: K | IU8: D | IV8: R | IW8: L | IX8: R | IY8: M | IZ8: L | JA8: S | JB8: A | JC8: I | JD8: D | JE8: R | JF8: S | JG8: L | JH8: G | JI8: V | JJ8: L | JK8: I | JL8: A | JM8: A | JN8: L | JO8: K | JP8: A | JQ8: R | JR8: G | JS8: V | JT8: Y | JU8: D | JV8: Q | JW8: T | JX8: V | JY8: F | JZ8: V | KA8: V | KB8: T | KC8: S | KD8: D | KE8: Q | KF8: G | KG8: F | KH8: F | KI8: Y | KJ8: G | KK8: E | KL8: F | KM8: G | KN8: L | KO8: A | KP8: Q | KQ8: E | KR8: R | KS8: R | KT8: L | KU8: A | KV8: Y | KW8: E | KX8: P | KY8: S | KZ8: I | LA8: H | LB8: I | LC8: P | LD8: L | LE8: I | LF8: V | LG8: R | LH8: H | LI8: P | LJ8: A | LK8: L | LL8: A | LM8: K | LN8: A | LO8: G | LP8: A | LQ8: T | LR8: P | LS8: R | LT8: A | LU8: L | LV8: S | LW8: S | LX8: N | LY8: V | LZ8: D | MA8: I | MB8: A | MC8: P | MD8: T | ME8: L | MF8: L | MG8: A | MH8: I | MI8: G | MJ8: G | MK8: A | ML8: A | MM8: I | MN8: P | MO8: A | MP8: S | MQ8: M | MR8: D | MS8: G | MT8: R | MU8: S | MV8: L | MW8: L | MX8: P | MY8: A | MZ8: L | NA8: A | NB8: A | NC8: D | ND8: T | NE8: A | NF8: T | NG8: I | NH8: R | NI8: Q | NJ8: D | NK8: M | NL8: L | NM8: I | NN8: E | NO8: Y | NP8: Y | NQ8: S | NR8: D | NS8: K | NT8: E | NU8: F | NV8: P | NW8: R | NX8: L | NY8: Q | NZ8: G | OA8: M | OB8: G | OC8: Y | OD8: Q | OE8: A | OF8: V | OG8: R | OH8: T | OI8: D | OJ8: R | OK8: Y | OL8: K | OM8: F | ON8: I | OO8: R | OP8: Y | OQ8: K | OR8: E | OS8: L | OT8: Q | OU8: G | OV8: M | OW8: D | OX8: E | OY8: L | OZ8: Y | PA8: D | PB8: L | PC8: Q | PD8: N | PE8: D | PF8: P | PG8: H | PH8: E | PI8: L | PJ8: D | PK8: N | PL8: L | PM8: L | PN8: P | PO8: N | PP8: R | PQ8: A | PR8: P | PS8: T | PT8: A | PU8: V | PV8: L | PW8: R | PX8: E | PY8: M | PZ8: T | QA8: V | QB8: R | QC8: L | QD8: N | QE8: A | QF8: L | QG8: T | QH8: S | QI8: G | QJ8: K | QK8: Q | QL8: Q
